Workbook

Sheet Novo
A1: =IFERROR(HYPERLINK(getCoor(ROW(),COLUMN()),""),"") ->  | B1: =IFERROR(HYPERLINK(getCoor(ROW(),COLUMN()),""),"") ->  | C1: =IFERROR(HYPERLINK(getCoor(ROW(),COLUMN()),""),"") ->  | D1: =IFERROR(HYPERLINK(getCoor(ROW(),COLUMN()),""),"") ->  | E1: =IFERROR(HYPERLINK(getCoor(ROW(),COLUMN()),""),"") ->  | F1: =IFERROR(HYPERLINK(getCoor(ROW(),COLUMN()),""),"") ->  | G1: =IFERROR(HYPERLINK(getCoor(ROW(),COLUMN()),""),"") ->  | H1: =IFERROR(HYPERLINK(getCoor(ROW(),COLUMN()),""),"") ->  | I1: =IFERROR(HYPERLINK(getCoor(ROW(),COLUMN()),""),"") ->  | J1: =IFERROR(HYPERLINK(getCoor(ROW(),COLUMN()),""),"") ->  | K1: =IFERROR(HYPERLINK(getCoor(ROW(),COLUMN()),""),"") ->  | L1: =IFERROR(HYPERLINK(getCoor(ROW(),COLUMN()),""),"") ->  | M1: =IFERROR(HYPERLINK(getCoor(ROW(),COLUMN()),""),"") ->  | N1: =IFERROR(HYPERLINK(getCoor(ROW(),COLUMN()),""),"") ->  | O1: =IFERROR(HYPERLINK(getCoor(ROW(),COLUMN()),""),"") ->  | P1: =IFERROR(HYPERLINK(getCoor(ROW(),COLUMN()),""),"") ->  | Q1: =IFERROR(HYPERLINK(getCoor(ROW(),COLUMN()),""),"") ->  | R1: =IFERROR(HYPERLINK(getCoor(ROW(),COLUMN()),""),"") ->  | S1: =IFERROR(HYPERLINK(getCoor(ROW(),COLUMN()),""),"") ->  | T1: =IFERROR(HYPERLINK(getCoor(ROW(),COLUMN()),""),"") ->  | U1: =IFERROR(HYPERLINK(getCoor(ROW(),COLUMN()),""),"") ->  | V1: =IFERROR(HYPERLINK(getCoor(ROW(),COLUMN()),""),"") ->  | W1: =IFERROR(HYPERLINK(getCoor(ROW(),COLUMN()),""),"") ->  | X1: =IFERROR(HYPERLINK(getCoor(ROW(),COLUMN()),""),"") ->  | Y1: =IFERROR(HYPERLINK(getCoor(ROW(),COLUMN()),""),"") ->  | Z1: =IFERROR(HYPERLINK(getCoor(ROW(),COLUMN()),""),"") ->  | AA1: =IFERROR(HYPERLINK(getCoor(ROW(),COLUMN()),""),"") ->  | AB1: =IFERROR(HYPERLINK(getCoor(ROW(),COLUMN()),""),"") ->  | AC1: =IFERROR(HYPERLINK(getCoor(ROW(),COLUMN()),""),"") ->  | AD1: =IFERROR(HYPERLINK(getCoor(ROW(),COLUMN()),""),"") ->  | AE1: =IFERROR(HYPERLINK(getCoor(ROW(),COLUMN()),""),"") ->  | AF1: =IFERROR(HYPERLINK(getCoor(ROW(),COLUMN()),""),"") ->  | AG1: =IFERROR(HYPERLINK(getCoor(ROW(),COLUMN()),""),"") ->  | AH1: =IFERROR(HYPERLINK(getCoor(ROW(),COLUMN()),""),"") ->  | AI1: =IFERROR(HYPERLINK(getCoor(ROW(),COLUMN()),""),"") ->  | AJ1: =IFERROR(HYPERLINK(getCoor(ROW(),COLUMN()),""),"") ->  | AK1: =IFERROR(HYPERLINK(getCoor(ROW(),COLUMN()),""),"") ->  | AL1: =IFERROR(HYPERLINK(getCoor(ROW(),COLUMN()),""),"") ->  | AM1: =IFERROR(HYPERLINK(getCoor(ROW(),COLUMN()),""),"") ->  | AN1: =IFERROR(HYPERLINK(getCoor(ROW(),COLUMN()),""),"") ->  | AO1: =IFERROR(HYPERLINK(getCoor(ROW(),COLUMN()),""),"") ->  | AP1: =IFERROR(HYPERLINK(getCoor(ROW(),COLUMN()),""),"") ->  | AQ1: =IFERROR(HYPERLINK(getCoor(ROW(),COLUMN()),""),"") ->  | AR1: =IFERROR(HYPERLINK(getCoor(ROW(),COLUMN()),""),"") ->  | AS1: =IFERROR(HYPERLINK(getCoor(ROW(),COLUMN()),""),"") ->  | AT1: =IFERROR(HYPERLINK(getCoor(ROW(),COLUMN()),""),"") ->  | AU1: =IFERROR(HYPERLINK(getCoor(ROW(),COLUMN()),""),"") ->  | AV1: =IFERROR(HYPERLINK(getCoor(ROW(),COLUMN()),""),"") ->  | AW1: =IFERROR(HYPERLINK(getCoor(ROW(),COLUMN()),""),"") ->  | AX1: =IFERROR(HYPERLINK(getCoor(ROW(),COLUMN()),""),"") ->  | AY1: =IFERROR(HYPERLINK(getCoor(ROW(),COLUMN()),""),"") ->  | AZ1: =IFERROR(HYPERLINK(getCoor(ROW(),COLUMN()),""),"") ->  | BA1: =IFERROR(HYPERLINK(getCoor(ROW(),COLUMN()),""),"") ->  | BB1: =IFERROR(HYPERLINK(getCoor(ROW(),COLUMN()),""),"") ->  | BC1: =IFERROR(HYPERLINK(getCoor(ROW(),COLUMN()),""),"") ->  | BD1: =IFERROR(HYPERLINK(getCoor(ROW(),COLUMN()),""),"") ->  | BE1: =IFERROR(HYPERLINK(getCoor(ROW(),COLUMN()),""),"") ->  | BF1: =IFERROR(HYPERLINK(getCoor(ROW(),COLUMN()),""),"") ->  | BG1: =IFERROR(HYPERLINK(getCoor(ROW(),COLUMN()),""),"") ->  | BH1: =IFERROR(HYPERLINK(getCoor(ROW(),COLUMN()),""),"") ->  | BI1: =IFERROR(HYPERLINK(getCoor(ROW(),COLUMN()),""),"") ->  | BJ1: =IFERROR(HYPERLINK(getCoor(ROW(),COLUMN()),""),"") ->  | BK1: =IFERROR(HYPERLINK(getCoor(ROW(),COLUMN()),""),"") ->  | BL1: Nº | BM1: Média dos 3 anos | BN1: IN | BO1: % | BP1: OUT | BQ1: % | BR1: Dif. | DH1: Left | DI1: Top | DJ1: Largura | DK1: Altura | DL1: Within X | DM1: Within Y | DN1: Highlight Flag | DO1: Cntrd X | DP1: Cntrd Y | DQ1: Distance | DR1: Coordenadas volátis
B2: =IFERROR(HYPERLINK(getCoor(ROW(),COLUMN()),""),"") ->  | C2: =IFERROR(HYPERLINK(getCoor(ROW(),COLUMN()),""),"") ->  | D2: =IFERROR(HYPERLINK(getCoor(ROW(),COLUMN()),""),"") ->  | E2: =IFERROR(HYPERLINK(getCoor(ROW(),COLUMN()),""),"") ->  | F2: =IFERROR(HYPERLINK(getCoor(ROW(),COLUMN()),""),"") ->  | G2: =IFERROR(HYPERLINK(getCoor(ROW(),COLUMN()),""),"") ->  | H2: =IFERROR(HYPERLINK(getCoor(ROW(),COLUMN()),""),"") ->  | I2: =IFERROR(HYPERLINK(getCoor(ROW(),COLUMN()),""),"") ->  | J2: =IFERROR(HYPERLINK(getCoor(ROW(),COLUMN()),""),"") ->  | K2: =IFERROR(HYPERLINK(getCoor(ROW(),COLUMN()),""),"") ->  | L2: =IFERROR(HYPERLINK(getCoor(ROW(),COLUMN()),""),"") ->  | M2: =IFERROR(HYPERLINK(getCoor(ROW(),COLUMN()),""),"") ->  | N2: =IFERROR(HYPERLINK(getCoor(ROW(),COLUMN()),""),"") ->  | O2: =IFERROR(HYPERLINK(getCoor(ROW(),COLUMN()),""),"") ->  | P2: =IFERROR(HYPERLINK(getCoor(ROW(),COLUMN()),""),"") ->  | Q2: =IFERROR(HYPERLINK(getCoor(ROW(),COLUMN()),""),"") ->  | R2: =IFERROR(HYPERLINK(getCoor(ROW(),COLUMN()),""),"") ->  | S2: =IFERROR(HYPERLINK(getCoor(ROW(),COLUMN()),""),"") ->  | T2: =IFERROR(HYPERLINK(getCoor(ROW(),COLUMN()),""),"") ->  | U2: =IFERROR(HYPERLINK(getCoor(ROW(),COLUMN()),""),"") ->  | V2: =IFERROR(HYPERLINK(getCoor(ROW(),COLUMN()),""),"") ->  | W2: =IFERROR(HYPERLINK(getCoor(ROW(),COLUMN()),""),"") ->  | X2: =IFERROR(HYPERLINK(getCoor(ROW(),COLUMN()),""),"") ->  | Y2: =IFERROR(HYPERLINK(getCoor(ROW(),COLUMN()),""),"") ->  | Z2: =IFERROR(HYPERLINK(getCoor(ROW(),COLUMN()),""),"") ->  | AA2: =IFERROR(HYPERLINK(getCoor(ROW(),COLUMN()),""),"") ->  | AB2: =IFERROR(HYPERLINK(getCoor(ROW(),COLUMN()),""),"") ->  | AC2: =IFERROR(HYPERLINK(getCoor(ROW(),COLUMN()),""),"") ->  | AD2: =IFERROR(HYPERLINK(getCoor(ROW(),COLUMN()),""),"") ->  | AE2: =IFERROR(HYPERLINK(getCoor(ROW(),COLUMN()),""),"") ->  | AF2: =IFERROR(HYPERLINK(getCoor(ROW(),COLUMN()),""),"") ->  | AG2: =IFERROR(HYPERLINK(getCoor(ROW(),COLUMN()),""),"") ->  | AH2: =IFERROR(HYPERLINK(getCoor(ROW(),COLUMN()),""),"") ->  | AI2: =IFERROR(HYPERLINK(getCoor(ROW(),COLUMN()),""),"") ->  | AJ2: =IFERROR(HYPERLINK(getCoor(ROW(),COLUMN()),""),"") ->  | AK2: =IFERROR(HYPERLINK(getCoor(ROW(),COLUMN()),""),"") ->  | AL2: =IFERROR(HYPERLINK(getCoor(ROW(),COLUMN()),""),"") ->  | AM2: =IFERROR(HYPERLINK(getCoor(ROW(),COLUMN()),""),"") ->  | AN2: =IFERROR(HYPERLINK(getCoor(ROW(),COLUMN()),""),"") ->  | AO2: =IFERROR(HYPERLINK(getCoor(ROW(),COLUMN()),""),"") ->  | AP2: =IFERROR(HYPERLINK(getCoor(ROW(),COLUMN()),""),"") ->  | AQ2: =IFERROR(HYPERLINK(getCoor(ROW(),COLUMN()),""),"") ->  | AR2: =IFERROR(HYPERLINK(getCoor(ROW(),COLUMN()),""),"") ->  | AS2: =IFERROR(HYPERLINK(getCoor(ROW(),COLUMN()),""),"") ->  | AT2: =IFERROR(HYPERLINK(getCoor(ROW(),COLUMN()),""),"") ->  | AU2: =IFERROR(HYPERLINK(getCoor(ROW(),COLUMN()),""),"") ->  | AV2: =IFERROR(HYPERLINK(getCoor(ROW(),COLUMN()),""),"") ->  | AW2: =IFERROR(HYPERLINK(getCoor(ROW(),COLUMN()),""),"") ->  | AX2: =IFERROR(HYPERLINK(getCoor(ROW(),COLUMN()),""),"") ->  | AY2: =IFERROR(HYPERLINK(getCoor(ROW(),COLUMN()),""),"") ->  | AZ2: =IFERROR(HYPERLINK(getCoor(ROW(),COLUMN()),""),"") ->  | BA2: =IFERROR(HYPERLINK(getCoor(ROW(),COLUMN()),""),"") ->  | BB2: =IFERROR(HYPERLINK(getCoor(ROW(),COLUMN()),""),"") ->  | BC2: =IFERROR(HYPERLINK(getCoor(ROW(),COLUMN()),""),"") ->  | BD2: =IFERROR(HYPERLINK(getCoor(ROW(),COLUMN()),""),"") ->  | BE2: =IFERROR(HYPERLINK(getCoor(ROW(),COLUMN()),""),"") ->  | BF2: =IFERROR(HYPERLINK(getCoor(ROW(),COLUMN()),""),"") ->  | BG2: =IFERROR(HYPERLINK(getCoor(ROW(),COLUMN()),""),"") ->  | BH2: =IFERROR(HYPERLINK(getCoor(ROW(),COLUMN()),""),"") ->  | BI2: =IFERROR(HYPERLINK(getCoor(ROW(),COLUMN()),""),"") ->  | BJ2: =IFERROR(HYPERLINK(getCoor(ROW(),COLUMN()),""),"") ->  | BK2: =IFERROR(HYPERLINK(getCoor(ROW(),COLUMN()),""),"") ->  | BL2: 1 | BM2: Alabama | BN2: =IFERROR(HLOOKUP($DS$5,Table!$I$182:$BL$237,Table!BN186),"") ->  | BO2: =IFERROR(BN2/$BN$54,"") ->  | BP2: =IFERROR(VLOOKUP($DS$5,Table!$A$186:$BL$237,Table!BO186),"") ->  | BQ2: =IFERROR(BP2/$BP$54,"") ->  | BR2: =+IFERROR(BN2-BP2,"") ->  | BS2: 53 | BT2: =BM53 -> Puerto Rico | BU2: =BR53 ->  | DH2: 351 | DI2: 243 | DJ2: 40 | DK2: 40 | DL2: =AND(valLeft>=DH2,valLeft<=(DH2+DK2)) -> TRUE | DM2: =AND(valTop>=DI2,valTop<=(DI2+DK2)) -> FALSE | DN2: =AND(DL2,DM2) -> FALSE | DO2: =(DH2+DK2+DH2)/2 -> 371 | DP2: =(DI2+DJ2+DI2)/2 -> 263 | DQ2: =SQRT((DO2-valLeft)^2+(DP2-valTop)^2)*DN2 -> 0 | DR2: Left | DS2: 378 | DT2: =IF(DU2=TRUE,1,0) -> 0 | DU2: =IF(DN2=FALSE,FALSE,TRUE) -> FALSE | DV2: 1 | DW2: Alabama | DX2: =--DU2&DW2 -> 0Alabama | EB2: 5
B3: =IFERROR(HYPERLINK(getCoor(ROW(),COLUMN()),""),"") ->  | C3: =IFERROR(HYPERLINK(getCoor(ROW(),COLUMN()),""),"") ->  | D3: =IFERROR(HYPERLINK(getCoor(ROW(),COLUMN()),""),"") ->  | E3: =IFERROR(HYPERLINK(getCoor(ROW(),COLUMN()),""),"") ->  | F3: =IFERROR(HYPERLINK(getCoor(ROW(),COLUMN()),""),"") ->  | G3: =IFERROR(HYPERLINK(getCoor(ROW(),COLUMN()),""),"") ->  | H3: =IFERROR(HYPERLINK(getCoor(ROW(),COLUMN()),""),"") ->  | I3: =IFERROR(HYPERLINK(getCoor(ROW(),COLUMN()),""),"") ->  | J3: =IFERROR(HYPERLINK(getCoor(ROW(),COLUMN()),""),"") ->  | K3: =IFERROR(HYPERLINK(getCoor(ROW(),COLUMN()),""),"") ->  | L3: =IFERROR(HYPERLINK(getCoor(ROW(),COLUMN()),""),"") ->  | M3: =IFERROR(HYPERLINK(getCoor(ROW(),COLUMN()),""),"") ->  | N3: =IFERROR(HYPERLINK(getCoor(ROW(),COLUMN()),""),"") ->  | O3: =IFERROR(HYPERLINK(getCoor(ROW(),COLUMN()),""),"") ->  | P3: =IFERROR(HYPERLINK(getCoor(ROW(),COLUMN()),""),"") ->  | Q3: =IFERROR(HYPERLINK(getCoor(ROW(),COLUMN()),""),"") ->  | R3: =IFERROR(HYPERLINK(getCoor(ROW(),COLUMN()),""),"") ->  | S3: =IFERROR(HYPERLINK(getCoor(ROW(),COLUMN()),""),"") ->  | T3: =IFERROR(HYPERLINK(getCoor(ROW(),COLUMN()),""),"") ->  | U3: =IFERROR(HYPERLINK(getCoor(ROW(),COLUMN()),""),"") ->  | V3: =IFERROR(HYPERLINK(getCoor(ROW(),COLUMN()),""),"") ->  | W3: =IFERROR(HYPERLINK(getCoor(ROW(),COLUMN()),""),"") ->  | X3: =IFERROR(HYPERLINK(getCoor(ROW(),COLUMN()),""),"") ->  | Y3: =IFERROR(HYPERLINK(getCoor(ROW(),COLUMN()),""),"") ->  | Z3: =IFERROR(HYPERLINK(getCoor(ROW(),COLUMN()),""),"") ->  | AA3: =IFERROR(HYPERLINK(getCoor(ROW(),COLUMN()),""),"") ->  | AB3: =IFERROR(HYPERLINK(getCoor(ROW(),COLUMN()),""),"") ->  | AC3: =IFERROR(HYPERLINK(getCoor(ROW(),COLUMN()),""),"") ->  | AD3: =IFERROR(HYPERLINK(getCoor(ROW(),COLUMN()),""),"") ->  | AE3: =IFERROR(HYPERLINK(getCoor(ROW(),COLUMN()),""),"") ->  | AF3: =IFERROR(HYPERLINK(getCoor(ROW(),COLUMN()),""),"") ->  | AG3: =IFERROR(HYPERLINK(getCoor(ROW(),COLUMN()),""),"") ->  | AH3: =IFERROR(HYPERLINK(getCoor(ROW(),COLUMN()),""),"") ->  | AI3: =IFERROR(HYPERLINK(getCoor(ROW(),COLUMN()),""),"") ->  | AJ3: =IFERROR(HYPERLINK(getCoor(ROW(),COLUMN()),""),"") ->  | AK3: =IFERROR(HYPERLINK(getCoor(ROW(),COLUMN()),""),"") ->  | AL3: =IFERROR(HYPERLINK(getCoor(ROW(),COLUMN()),""),"") ->  | AM3: =IFERROR(HYPERLINK(getCoor(ROW(),COLUMN()),""),"") ->  | AN3: =IFERROR(HYPERLINK(getCoor(ROW(),COLUMN()),""),"") ->  | AO3: =IFERROR(HYPERLINK(getCoor(ROW(),COLUMN()),""),"") ->  | AP3: =IFERROR(HYPERLINK(getCoor(ROW(),COLUMN()),""),"") ->  | AQ3: =IFERROR(HYPERLINK(getCoor(ROW(),COLUMN()),""),"") ->  | AR3: =IFERROR(HYPERLINK(getCoor(ROW(),COLUMN()),""),"") ->  | AS3: =IFERROR(HYPERLINK(getCoor(ROW(),COLUMN()),""),"") ->  | AT3: =IFERROR(HYPERLINK(getCoor(ROW(),COLUMN()),""),"") ->  | AU3: =IFERROR(HYPERLINK(getCoor(ROW(),COLUMN()),""),"") ->  | AV3: =IFERROR(HYPERLINK(getCoor(ROW(),COLUMN()),""),"") ->  | AW3: =IFERROR(HYPERLINK(getCoor(ROW(),COLUMN()),""),"") ->  | AX3: =IFERROR(HYPERLINK(getCoor(ROW(),COLUMN()),""),"") ->  | AY3: =IFERROR(HYPERLINK(getCoor(ROW(),COLUMN()),""),"") ->  | AZ3: =IFERROR(HYPERLINK(getCoor(ROW(),COLUMN()),""),"") ->  | BA3: =IFERROR(HYPERLINK(getCoor(ROW(),COLUMN()),""),"") ->  | BB3: =IFERROR(HYPERLINK(getCoor(ROW(),COLUMN()),""),"") ->  | BC3: =IFERROR(HYPERLINK(getCoor(ROW(),COLUMN()),""),"") ->  | BD3: =IFERROR(HYPERLINK(getCoor(ROW(),COLUMN()),""),"") ->  | BE3: =IFERROR(HYPERLINK(getCoor(ROW(),COLUMN()),""),"") ->  | BF3: =IFERROR(HYPERLINK(getCoor(ROW(),COLUMN()),""),"") ->  | BG3: =IFERROR(HYPERLINK(getCoor(ROW(),COLUMN()),""),"") ->  | BH3: =IFERROR(HYPERLINK(getCoor(ROW(),COLUMN()),""),"") ->  | BI3: =IFERROR(HYPERLINK(getCoor(ROW(),COLUMN()),""),"") ->  | BJ3: =IFERROR(HYPERLINK(getCoor(ROW(),COLUMN()),""),"") ->  | BK3: =IFERROR(HYPERLINK(getCoor(ROW(),COLUMN()),""),"") ->  | BL3: 2 | BM3: Alaska | BN3: =IFERROR(HLOOKUP($DS$5,Table!$I$182:$BL$237,Table!BN187),"") ->  | BO3: =IFERROR(BN3/$BN$54,"") ->  | BP3: =IFERROR(VLOOKUP($DS$5,Table!$A$186:$BL$237,Table!BO187),"") ->  | BQ3: =IFERROR(BP3/$BP$54,"") ->  | BS3: 52 | BT3: =BM52 -> Wyoming | BU3: =BR52 ->  | DH3: 54 | DI3: 310 | DJ3: 50 | DK3: 50 | DL3: =AND(valLeft>=DH3,valLeft<=(DH3+DK3)) -> FALSE | DM3: =AND(valTop>=DI3,valTop<=(DI3+DK3)) -> TRUE | DN3: =AND(DL3,DM3) -> FALSE | DO3: =(DH3+DK3+DH3)/2 -> 79 | DP3: =(DI3+DJ3+DI3)/2 -> 335 | DQ3: =SQRT((DO3-valLeft)^2+(DP3-valTop)^2)*DN3 -> 0 | DR3: Top | DS3: 351 | DT3: 0 | DU3: FALSE | DV3: 2 | DW3: Alaska | DX3: 0Alaska | EB3: 6
B4: =IFERROR(HYPERLINK(getCoor(ROW(),COLUMN()),""),"") ->  | C4: =IFERROR(HYPERLINK(getCoor(ROW(),COLUMN()),""),"") ->  | D4: =IFERROR(HYPERLINK(getCoor(ROW(),COLUMN()),""),"") ->  | E4: =IFERROR(HYPERLINK(getCoor(ROW(),COLUMN()),""),"") ->  | F4: =IFERROR(HYPERLINK(getCoor(ROW(),COLUMN()),""),"") ->  | G4: =IFERROR(HYPERLINK(getCoor(ROW(),COLUMN()),""),"") ->  | H4: =IFERROR(HYPERLINK(getCoor(ROW(),COLUMN()),""),"") ->  | I4: =IFERROR(HYPERLINK(getCoor(ROW(),COLUMN()),""),"") ->  | J4: =IFERROR(HYPERLINK(getCoor(ROW(),COLUMN()),""),"") ->  | K4: =IFERROR(HYPERLINK(getCoor(ROW(),COLUMN()),""),"") ->  | L4: =IFERROR(HYPERLINK(getCoor(ROW(),COLUMN()),""),"") ->  | M4: =IFERROR(HYPERLINK(getCoor(ROW(),COLUMN()),""),"") ->  | N4: =IFERROR(HYPERLINK(getCoor(ROW(),COLUMN()),""),"") ->  | O4: =IFERROR(HYPERLINK(getCoor(ROW(),COLUMN()),""),"") ->  | P4: =IFERROR(HYPERLINK(getCoor(ROW(),COLUMN()),""),"") ->  | Q4: =IFERROR(HYPERLINK(getCoor(ROW(),COLUMN()),""),"") ->  | R4: =IFERROR(HYPERLINK(getCoor(ROW(),COLUMN()),""),"") ->  | S4: =IFERROR(HYPERLINK(getCoor(ROW(),COLUMN()),""),"") ->  | T4: =IFERROR(HYPERLINK(getCoor(ROW(),COLUMN()),""),"") ->  | U4: =IFERROR(HYPERLINK(getCoor(ROW(),COLUMN()),""),"") ->  | V4: =IFERROR(HYPERLINK(getCoor(ROW(),COLUMN()),""),"") ->  | W4: =IFERROR(HYPERLINK(getCoor(ROW(),COLUMN()),""),"") ->  | X4: =IFERROR(HYPERLINK(getCoor(ROW(),COLUMN()),""),"") ->  | Y4: =IFERROR(HYPERLINK(getCoor(ROW(),COLUMN()),""),"") ->  | Z4: =IFERROR(HYPERLINK(getCoor(ROW(),COLUMN()),""),"") ->  | AA4: =IFERROR(HYPERLINK(getCoor(ROW(),COLUMN()),""),"") ->  | AB4: =IFERROR(HYPERLINK(getCoor(ROW(),COLUMN()),""),"") ->  | AC4: =IFERROR(HYPERLINK(getCoor(ROW(),COLUMN()),""),"") ->  | AD4: =IFERROR(HYPERLINK(getCoor(ROW(),COLUMN()),""),"") ->  | AE4: =IFERROR(HYPERLINK(getCoor(ROW(),COLUMN()),""),"") ->  | AF4: =IFERROR(HYPERLINK(getCoor(ROW(),COLUMN()),""),"") ->  | AG4: =IFERROR(HYPERLINK(getCoor(ROW(),COLUMN()),""),"") ->  | AH4: =IFERROR(HYPERLINK(getCoor(ROW(),COLUMN()),""),"") ->  | AI4: =IFERROR(HYPERLINK(getCoor(ROW(),COLUMN()),""),"") ->  | AJ4: =IFERROR(HYPERLINK(getCoor(ROW(),COLUMN()),""),"") ->  | AK4: =IFERROR(HYPERLINK(getCoor(ROW(),COLUMN()),""),"") ->  | AL4: =IFERROR(HYPERLINK(getCoor(ROW(),COLUMN()),""),"") ->  | AM4: =IFERROR(HYPERLINK(getCoor(ROW(),COLUMN()),""),"") ->  | AN4: =IFERROR(HYPERLINK(getCoor(ROW(),COLUMN()),""),"") ->  | AO4: =IFERROR(HYPERLINK(getCoor(ROW(),COLUMN()),""),"") ->  | AP4: =IFERROR(HYPERLINK(getCoor(ROW(),COLUMN()),""),"") ->  | AQ4: =IFERROR(HYPERLINK(getCoor(ROW(),COLUMN()),""),"") ->  | AR4: =IFERROR(HYPERLINK(getCoor(ROW(),COLUMN()),""),"") ->  | AS4: =IFERROR(HYPERLINK(getCoor(ROW(),COLUMN()),""),"") ->  | AT4: =IFERROR(HYPERLINK(getCoor(ROW(),COLUMN()),""),"") ->  | AU4: =IFERROR(HYPERLINK(getCoor(ROW(),COLUMN()),""),"") ->  | AV4: =IFERROR(HYPERLINK(getCoor(ROW(),COLUMN()),""),"") ->  | AW4: =IFERROR(HYPERLINK(getCoor(ROW(),COLUMN()),""),"") ->  | AX4: =IFERROR(HYPERLINK(getCoor(ROW(),COLUMN()),""),"") ->  | AY4: =IFERROR(HYPERLINK(getCoor(ROW(),COLUMN()),""),"") ->  | AZ4: =IFERROR(HYPERLINK(getCoor(ROW(),COLUMN()),""),"") ->  | BA4: =IFERROR(HYPERLINK(getCoor(ROW(),COLUMN()),""),"") ->  | BB4: =IFERROR(HYPERLINK(getCoor(ROW(),COLUMN()),""),"") ->  | BC4: =IFERROR(HYPERLINK(getCoor(ROW(),COLUMN()),""),"") ->  | BD4: =IFERROR(HYPERLINK(getCoor(ROW(),COLUMN()),""),"") ->  | BE4: =IFERROR(HYPERLINK(getCoor(ROW(),COLUMN()),""),"") ->  | BF4: =IFERROR(HYPERLINK(getCoor(ROW(),COLUMN()),""),"") ->  | BG4: =IFERROR(HYPERLINK(getCoor(ROW(),COLUMN()),""),"") ->  | BH4: =IFERROR(HYPERLINK(getCoor(ROW(),COLUMN()),""),"") ->  | BI4: =IFERROR(HYPERLINK(getCoor(ROW(),COLUMN()),""),"") ->  | BJ4: =IFERROR(HYPERLINK(getCoor(ROW(),COLUMN()),""),"") ->  | BK4: =IFERROR(HYPERLINK(getCoor(ROW(),COLUMN()),""),"") ->  | BL4: 3 | BM4: Arizona | BN4: =IFERROR(HLOOKUP($DS$5,Table!$I$182:$BL$237,Table!BN188),"") ->  | BP4: =IFERROR(VLOOKUP($DS$5,Table!$A$186:$BL$237,Table!BO188),"") ->  | BS4: 51 | BT4: =BM51 -> Wisconsin | BU4: =BR51 ->  | DH4: 99 | DI4: 230 | DJ4: 40 | DK4: 40 | DL4: FALSE | DM4: FALSE | DN4: FALSE | DO4: 119 | DP4: 250 | DQ4: 0 | DT4: 0 | DU4: FALSE | DV4: 3 | DW4: Arizona | DX4: 0Arizona | EB4: 7
B5: =IFERROR(HYPERLINK(getCoor(ROW(),COLUMN()),""),"") ->  | C5: =IFERROR(HYPERLINK(getCoor(ROW(),COLUMN()),""),"") ->  | D5: =IFERROR(HYPERLINK(getCoor(ROW(),COLUMN()),""),"") ->  | E5: =IFERROR(HYPERLINK(getCoor(ROW(),COLUMN()),""),"") ->  | F5: =IFERROR(HYPERLINK(getCoor(ROW(),COLUMN()),""),"") ->  | G5: =IFERROR(HYPERLINK(getCoor(ROW(),COLUMN()),""),"") ->  | H5: =IFERROR(HYPERLINK(getCoor(ROW(),COLUMN()),""),"") ->  | I5: =IFERROR(HYPERLINK(getCoor(ROW(),COLUMN()),""),"") ->  | J5: =IFERROR(HYPERLINK(getCoor(ROW(),COLUMN()),""),"") ->  | K5: =IFERROR(HYPERLINK(getCoor(ROW(),COLUMN()),""),"") ->  | L5: =IFERROR(HYPERLINK(getCoor(ROW(),COLUMN()),""),"") ->  | M5: =IFERROR(HYPERLINK(getCoor(ROW(),COLUMN()),""),"") ->  | N5: =IFERROR(HYPERLINK(getCoor(ROW(),COLUMN()),""),"") ->  | O5: =IFERROR(HYPERLINK(getCoor(ROW(),COLUMN()),""),"") ->  | P5: =IFERROR(HYPERLINK(getCoor(ROW(),COLUMN()),""),"") ->  | Q5: =IFERROR(HYPERLINK(getCoor(ROW(),COLUMN()),""),"") ->  | R5: =IFERROR(HYPERLINK(getCoor(ROW(),COLUMN()),""),"") ->  | S5: =IFERROR(HYPERLINK(getCoor(ROW(),COLUMN()),""),"") ->  | T5: =IFERROR(HYPERLINK(getCoor(ROW(),COLUMN()),""),"") ->  | U5: =IFERROR(HYPERLINK(getCoor(ROW(),COLUMN()),""),"") ->  | V5: =IFERROR(HYPERLINK(getCoor(ROW(),COLUMN()),""),"") ->  | W5: =IFERROR(HYPERLINK(getCoor(ROW(),COLUMN()),""),"") ->  | X5: =IFERROR(HYPERLINK(getCoor(ROW(),COLUMN()),""),"") ->  | Y5: =IFERROR(HYPERLINK(getCoor(ROW(),COLUMN()),""),"") ->  | Z5: =IFERROR(HYPERLINK(getCoor(ROW(),COLUMN()),""),"") ->  | AA5: =IFERROR(HYPERLINK(getCoor(ROW(),COLUMN()),""),"") ->  | AB5: =IFERROR(HYPERLINK(getCoor(ROW(),COLUMN()),""),"") ->  | AC5: =IFERROR(HYPERLINK(getCoor(ROW(),COLUMN()),""),"") ->  | AD5: =IFERROR(HYPERLINK(getCoor(ROW(),COLUMN()),""),"") ->  | AE5: =IFERROR(HYPERLINK(getCoor(ROW(),COLUMN()),""),"") ->  | AF5: =IFERROR(HYPERLINK(getCoor(ROW(),COLUMN()),""),"") ->  | AG5: =IFERROR(HYPERLINK(getCoor(ROW(),COLUMN()),""),"") ->  | AH5: =IFERROR(HYPERLINK(getCoor(ROW(),COLUMN()),""),"") ->  | AI5: =IFERROR(HYPERLINK(getCoor(ROW(),COLUMN()),""),"") ->  | AJ5: =IFERROR(HYPERLINK(getCoor(ROW(),COLUMN()),""),"") ->  | AK5: =IFERROR(HYPERLINK(getCoor(ROW(),COLUMN()),""),"") ->  | AL5: =IFERROR(HYPERLINK(getCoor(ROW(),COLUMN()),""),"") ->  | AM5: =IFERROR(HYPERLINK(getCoor(ROW(),COLUMN()),""),"") ->  | AN5: =IFERROR(HYPERLINK(getCoor(ROW(),COLUMN()),""),"") ->  | AO5: =IFERROR(HYPERLINK(getCoor(ROW(),COLUMN()),""),"") ->  | AP5: =IFERROR(HYPERLINK(getCoor(ROW(),COLUMN()),""),"") ->  | AQ5: =IFERROR(HYPERLINK(getCoor(ROW(),COLUMN()),""),"") ->  | AR5: =IFERROR(HYPERLINK(getCoor(ROW(),COLUMN()),""),"") ->  | AS5: =IFERROR(HYPERLINK(getCoor(ROW(),COLUMN()),""),"") ->  | AT5: =IFERROR(HYPERLINK(getCoor(ROW(),COLUMN()),""),"") ->  | AU5: =IFERROR(HYPERLINK(getCoor(ROW(),COLUMN()),""),"") ->  | AV5: =IFERROR(HYPERLINK(getCoor(ROW(),COLUMN()),""),"") ->  | AW5: =IFERROR(HYPERLINK(getCoor(ROW(),COLUMN()),""),"") ->  | AX5: =IFERROR(HYPERLINK(getCoor(ROW(),COLUMN()),""),"") ->  | AY5: =IFERROR(HYPERLINK(getCoor(ROW(),COLUMN()),""),"") ->  | AZ5: =IFERROR(HYPERLINK(getCoor(ROW(),COLUMN()),""),"") ->  | BA5: =IFERROR(HYPERLINK(getCoor(ROW(),COLUMN()),""),"") ->  | BB5: =IFERROR(HYPERLINK(getCoor(ROW(),COLUMN()),""),"") ->  | BC5: =IFERROR(HYPERLINK(getCoor(ROW(),COLUMN()),""),"") ->  | BD5: =IFERROR(HYPERLINK(getCoor(ROW(),COLUMN()),""),"") ->  | BE5: =IFERROR(HYPERLINK(getCoor(ROW(),COLUMN()),""),"") ->  | BF5: =IFERROR(HYPERLINK(getCoor(ROW(),COLUMN()),""),"") ->  | BG5: =IFERROR(HYPERLINK(getCoor(ROW(),COLUMN()),""),"") ->  | BH5: =IFERROR(HYPERLINK(getCoor(ROW(),COLUMN()),""),"") ->  | BI5: =IFERROR(HYPERLINK(getCoor(ROW(),COLUMN()),""),"") ->  | BJ5: =IFERROR(HYPERLINK(getCoor(ROW(),COLUMN()),""),"") ->  | BK5: =IFERROR(HYPERLINK(getCoor(ROW(),COLUMN()),""),"") ->  | BL5: 4 | BM5: Arkansas | BN5: =IFERROR(HLOOKUP($DS$5,Table!$I$182:$BL$237,Table!BN189),"") ->  | BP5: =IFERROR(VLOOKUP($DS$5,Table!$A$186:$BL$237,Table!BO189),"") ->  | BS5: 50 | BT5: =BM50 -> West Virginia | BU5: =BR50 ->  | DH5: 288 | DI5: 230 | DJ5: 40 | DK5: 40 | DL5: FALSE | DM5: FALSE | DN5: FALSE | DO5: 308 | DP5: 250 | DQ5: 0 | DR5: Index | DS5: =IFERROR(VLOOKUP(1,DT2:DV108,3,FALSE),"") ->  | DT5: 0 | DU5: FALSE | DV5: 4 | DW5: Arkansas | DX5: 0Arkansas | EB5: 8
A6: =IFERROR(HYPERLINK(getCoor(ROW(),COLUMN()),""),"") ->  | B6: =IFERROR(HYPERLINK(getCoor(ROW(),COLUMN()),""),"") ->  | C6: =IFERROR(HYPERLINK(getCoor(ROW(),COLUMN()),""),"") ->  | D6: =IFERROR(HYPERLINK(getCoor(ROW(),COLUMN()),""),"") ->  | E6: =IFERROR(HYPERLINK(getCoor(ROW(),COLUMN()),""),"") ->  | F6: =IFERROR(HYPERLINK(getCoor(ROW(),COLUMN()),""),"") ->  | G6: =IFERROR(HYPERLINK(getCoor(ROW(),COLUMN()),""),"") ->  | H6: =IFERROR(HYPERLINK(getCoor(ROW(),COLUMN()),""),"") ->  | I6: =IFERROR(HYPERLINK(getCoor(ROW(),COLUMN()),""),"") ->  | J6: =IFERROR(HYPERLINK(getCoor(ROW(),COLUMN()),""),"") ->  | K6: =IFERROR(HYPERLINK(getCoor(ROW(),COLUMN()),""),"") ->  | L6: =IFERROR(HYPERLINK(getCoor(ROW(),COLUMN()),""),"") ->  | M6: =IFERROR(HYPERLINK(getCoor(ROW(),COLUMN()),""),"") ->  | N6: =IFERROR(HYPERLINK(getCoor(ROW(),COLUMN()),""),"") ->  | O6: =IFERROR(HYPERLINK(getCoor(ROW(),COLUMN()),""),"") ->  | P6: =IFERROR(HYPERLINK(getCoor(ROW(),COLUMN()),""),"") ->  | Q6: =IFERROR(HYPERLINK(getCoor(ROW(),COLUMN()),""),"") ->  | R6: =IFERROR(HYPERLINK(getCoor(ROW(),COLUMN()),""),"") ->  | S6: =IFERROR(HYPERLINK(getCoor(ROW(),COLUMN()),""),"") ->  | T6: =IFERROR(HYPERLINK(getCoor(ROW(),COLUMN()),""),"") ->  | U6: =IFERROR(HYPERLINK(getCoor(ROW(),COLUMN()),""),"") ->  | V6: =IFERROR(HYPERLINK(getCoor(ROW(),COLUMN()),""),"") ->  | W6: =IFERROR(HYPERLINK(getCoor(ROW(),COLUMN()),""),"") ->  | X6: =IFERROR(HYPERLINK(getCoor(ROW(),COLUMN()),""),"") ->  | Y6: =IFERROR(HYPERLINK(getCoor(ROW(),COLUMN()),""),"") ->  | Z6: =IFERROR(HYPERLINK(getCoor(ROW(),COLUMN()),""),"") ->  | AA6: =IFERROR(HYPERLINK(getCoor(ROW(),COLUMN()),""),"") ->  | AB6: =IFERROR(HYPERLINK(getCoor(ROW(),COLUMN()),""),"") ->  | AC6: =IFERROR(HYPERLINK(getCoor(ROW(),COLUMN()),""),"") ->  | AD6: =IFERROR(HYPERLINK(getCoor(ROW(),COLUMN()),""),"") ->  | AE6: =IFERROR(HYPERLINK(getCoor(ROW(),COLUMN()),""),"") ->  | AF6: =IFERROR(HYPERLINK(getCoor(ROW(),COLUMN()),""),"") ->  | AG6: =IFERROR(HYPERLINK(getCoor(ROW(),COLUMN()),""),"") ->  | AH6: =IFERROR(HYPERLINK(getCoor(ROW(),COLUMN()),""),"") ->  | AI6: =IFERROR(HYPERLINK(getCoor(ROW(),COLUMN()),""),"") ->  | AJ6: =IFERROR(HYPERLINK(getCoor(ROW(),COLUMN()),""),"") ->  | AK6: =IFERROR(HYPERLINK(getCoor(ROW(),COLUMN()),""),"") ->  | AL6: =IFERROR(HYPERLINK(getCoor(ROW(),COLUMN()),""),"") ->  | AM6: =IFERROR(HYPERLINK(getCoor(ROW(),COLUMN()),""),"") ->  | AN6: =IFERROR(HYPERLINK(getCoor(ROW(),COLUMN()),""),"") ->  | AO6: =IFERROR(HYPERLINK(getCoor(ROW(),COLUMN()),""),"") ->  | AP6: =IFERROR(HYPERLINK(getCoor(ROW(),COLUMN()),""),"") ->  | AQ6: =IFERROR(HYPERLINK(getCoor(ROW(),COLUMN()),""),"") ->  | AR6: =IFERROR(HYPERLINK(getCoor(ROW(),COLUMN()),""),"") ->  | AS6: =IFERROR(HYPERLINK(getCoor(ROW(),COLUMN()),""),"") ->  | AT6: =IFERROR(HYPERLINK(getCoor(ROW(),COLUMN()),""),"") ->  | AU6: =IFERROR(HYPERLINK(getCoor(ROW(),COLUMN()),""),"") ->  | AV6: =IFERROR(HYPERLINK(getCoor(ROW(),COLUMN()),""),"") ->  | AW6: =IFERROR(HYPERLINK(getCoor(ROW(),COLUMN()),""),"") ->  | AX6: =IFERROR(HYPERLINK(getCoor(ROW(),COLUMN()),""),"") ->  | AY6: =IFERROR(HYPERLINK(getCoor(ROW(),COLUMN()),""),"") ->  | AZ6: =IFERROR(HYPERLINK(getCoor(ROW(),COLUMN()),""),"") ->  | BA6: =IFERROR(HYPERLINK(getCoor(ROW(),COLUMN()),""),"") ->  | BB6: =IFERROR(HYPERLINK(getCoor(ROW(),COLUMN()),""),"") ->  | BC6: =IFERROR(HYPERLINK(getCoor(ROW(),COLUMN()),""),"") ->  | BD6: =IFERROR(HYPERLINK(getCoor(ROW(),COLUMN()),""),"") ->  | BE6: =IFERROR(HYPERLINK(getCoor(ROW(),COLUMN()),""),"") ->  | BF6: =IFERROR(HYPERLINK(getCoor(ROW(),COLUMN()),""),"") ->  | BG6: =IFERROR(HYPERLINK(getCoor(ROW(),COLUMN()),""),"") ->  | BH6: =IFERROR(HYPERLINK(getCoor(ROW(),COLUMN()),""),"") ->  | BI6: =IFERROR(HYPERLINK(getCoor(ROW(),COLUMN()),""),"") ->  | BJ6: =IFERROR(HYPERLINK(getCoor(ROW(),COLUMN()),""),"") ->  | BK6: =IFERROR(HYPERLINK(getCoor(ROW(),COLUMN()),""),"") ->  | BL6: 5 | BM6: California | BN6: =IFERROR(HLOOKUP($DS$5,Table!$I$182:$BL$237,Table!BN190),"") ->  | BP6: =IFERROR(VLOOKUP($DS$5,Table!$A$186:$BL$237,Table!BO190),"") ->  | BS6: 49 | BT6: =BM49 -> Washington | BU6: =BR49 ->  | DH6: 27 | DI6: 189 | DJ6: 40 | DK6: 40 | DL6: FALSE | DM6: FALSE | DN6: FALSE | DO6: 47 | DP6: 209 | DQ6: 0 | DR6: Quadrado | DS6: =IFERROR(LEFT(INDEX(DW2:DW55,DS5,1),20),"") ->  | DT6: 0 | DU6: FALSE | DV6: 5 | DW6: California | DX6: 0California | EB6: 9
A7: =IFERROR(HYPERLINK(getCoor(ROW(),COLUMN()),""),"") ->  | B7: =IFERROR(HYPERLINK(getCoor(ROW(),COLUMN()),""),"") ->  | C7: =IFERROR(HYPERLINK(getCoor(ROW(),COLUMN()),""),"") ->  | D7: =IFERROR(HYPERLINK(getCoor(ROW(),COLUMN()),""),"") ->  | E7: =IFERROR(HYPERLINK(getCoor(ROW(),COLUMN()),""),"") ->  | F7: =IFERROR(HYPERLINK(getCoor(ROW(),COLUMN()),""),"") ->  | G7: =IFERROR(HYPERLINK(getCoor(ROW(),COLUMN()),""),"") ->  | H7: =IFERROR(HYPERLINK(getCoor(ROW(),COLUMN()),""),"") ->  | I7: =IFERROR(HYPERLINK(getCoor(ROW(),COLUMN()),""),"") ->  | J7: =IFERROR(HYPERLINK(getCoor(ROW(),COLUMN()),""),"") ->  | K7: =IFERROR(HYPERLINK(getCoor(ROW(),COLUMN()),""),"") ->  | L7: =IFERROR(HYPERLINK(getCoor(ROW(),COLUMN()),""),"") ->  | M7: =IFERROR(HYPERLINK(getCoor(ROW(),COLUMN()),""),"") ->  | N7: =IFERROR(HYPERLINK(getCoor(ROW(),COLUMN()),""),"") ->  | O7: =IFERROR(HYPERLINK(getCoor(ROW(),COLUMN()),""),"") ->  | P7: =IFERROR(HYPERLINK(getCoor(ROW(),COLUMN()),""),"") ->  | Q7: =IFERROR(HYPERLINK(getCoor(ROW(),COLUMN()),""),"") ->  | R7: =IFERROR(HYPERLINK(getCoor(ROW(),COLUMN()),""),"") ->  | S7: =IFERROR(HYPERLINK(getCoor(ROW(),COLUMN()),""),"") ->  | T7: =IFERROR(HYPERLINK(getCoor(ROW(),COLUMN()),""),"") ->  | U7: =IFERROR(HYPERLINK(getCoor(ROW(),COLUMN()),""),"") ->  | V7: =IFERROR(HYPERLINK(getCoor(ROW(),COLUMN()),""),"") ->  | W7: =IFERROR(HYPERLINK(getCoor(ROW(),COLUMN()),""),"") ->  | X7: =IFERROR(HYPERLINK(getCoor(ROW(),COLUMN()),""),"") ->  | Y7: =IFERROR(HYPERLINK(getCoor(ROW(),COLUMN()),""),"") ->  | Z7: =IFERROR(HYPERLINK(getCoor(ROW(),COLUMN()),""),"") ->  | AA7: =IFERROR(HYPERLINK(getCoor(ROW(),COLUMN()),""),"") ->  | AB7: =IFERROR(HYPERLINK(getCoor(ROW(),COLUMN()),""),"") ->  | AC7: =IFERROR(HYPERLINK(getCoor(ROW(),COLUMN()),""),"") ->  | AD7: =IFERROR(HYPERLINK(getCoor(ROW(),COLUMN()),""),"") ->  | AE7: =IFERROR(HYPERLINK(getCoor(ROW(),COLUMN()),""),"") ->  | AF7: =IFERROR(HYPERLINK(getCoor(ROW(),COLUMN()),""),"") ->  | AG7: =IFERROR(HYPERLINK(getCoor(ROW(),COLUMN()),""),"") ->  | AH7: =IFERROR(HYPERLINK(getCoor(ROW(),COLUMN()),""),"") ->  | AI7: =IFERROR(HYPERLINK(getCoor(ROW(),COLUMN()),""),"") ->  | AJ7: =IFERROR(HYPERLINK(getCoor(ROW(),COLUMN()),""),"") ->  | AK7: =IFERROR(HYPERLINK(getCoor(ROW(),COLUMN()),""),"") ->  | AL7: =IFERROR(HYPERLINK(getCoor(ROW(),COLUMN()),""),"") ->  | AM7: =IFERROR(HYPERLINK(getCoor(ROW(),COLUMN()),""),"") ->  | AN7: =IFERROR(HYPERLINK(getCoor(ROW(),COLUMN()),""),"") ->  | AO7: =IFERROR(HYPERLINK(getCoor(ROW(),COLUMN()),""),"") ->  | AP7: =IFERROR(HYPERLINK(getCoor(ROW(),COLUMN()),""),"") ->  | AQ7: =IFERROR(HYPERLINK(getCoor(ROW(),COLUMN()),""),"") ->  | AR7: =IFERROR(HYPERLINK(getCoor(ROW(),COLUMN()),""),"") ->  | AS7: =IFERROR(HYPERLINK(getCoor(ROW(),COLUMN()),""),"") ->  | AT7: =IFERROR(HYPERLINK(getCoor(ROW(),COLUMN()),""),"") ->  | AU7: =IFERROR(HYPERLINK(getCoor(ROW(),COLUMN()),""),"") ->  | AV7: =IFERROR(HYPERLINK(getCoor(ROW(),COLUMN()),""),"") ->  | AW7: =IFERROR(HYPERLINK(getCoor(ROW(),COLUMN()),""),"") ->  | AX7: =IFERROR(HYPERLINK(getCoor(ROW(),COLUMN()),""),"") ->  | AY7: =IFERROR(HYPERLINK(getCoor(ROW(),COLUMN()),""),"") ->  | AZ7: =IFERROR(HYPERLINK(getCoor(ROW(),COLUMN()),""),"") ->  | BA7: =IFERROR(HYPERLINK(getCoor(ROW(),COLUMN()),""),"") ->  | BB7: =IFERROR(HYPERLINK(getCoor(ROW(),COLUMN()),""),"") ->  | BC7: =IFERROR(HYPERLINK(getCoor(ROW(),COLUMN()),""),"") ->  | BD7: =IFERROR(HYPERLINK(getCoor(ROW(),COLUMN()),""),"") ->  | BE7: =IFERROR(HYPERLINK(getCoor(ROW(),COLUMN()),""),"") ->  | BF7: =IFERROR(HYPERLINK(getCoor(ROW(),COLUMN()),""),"") ->  | BG7: =IFERROR(HYPERLINK(getCoor(ROW(),COLUMN()),""),"") ->  | BH7: =IFERROR(HYPERLINK(getCoor(ROW(),COLUMN()),""),"") ->  | BI7: =IFERROR(HYPERLINK(getCoor(ROW(),COLUMN()),""),"") ->  | BJ7: =IFERROR(HYPERLINK(getCoor(ROW(),COLUMN()),""),"") ->  | BK7: =IFERROR(HYPERLINK(getCoor(ROW(),COLUMN()),""),"") ->  | BL7: 6 | BM7: Colorado | BN7: =IFERROR(HLOOKUP($DS$5,Table!$I$182:$BL$237,Table!BN191),"") ->  | BP7: =IFERROR(VLOOKUP($DS$5,Table!$A$186:$BL$237,Table!BO191),"") ->  | BS7: 48 | BT7: =BM48 -> Virginia | BU7: =BR48 ->  | DH7: 162 | DI7: 176 | DJ7: 50 | DK7: 50 | DL7: FALSE | DM7: FALSE | DN7: FALSE | DO7: 187 | DP7: 201 | DQ7: 0 | DS7: =IFERROR(VLOOKUP(1,DT2:DV108,3,FALSE),"") ->  | DT7: 0 | DU7: FALSE | DV7: 6 | DW7: Colorado | DX7: 0Colorado | EB7: 10
A8: =IFERROR(HYPERLINK(getCoor(ROW(),COLUMN()),""),"") ->  | B8: =IFERROR(HYPERLINK(getCoor(ROW(),COLUMN()),""),"") ->  | C8: =IFERROR(HYPERLINK(getCoor(ROW(),COLUMN()),""),"") ->  | D8: =IFERROR(HYPERLINK(getCoor(ROW(),COLUMN()),""),"") ->  | E8: =IFERROR(HYPERLINK(getCoor(ROW(),COLUMN()),""),"") ->  | F8: =IFERROR(HYPERLINK(getCoor(ROW(),COLUMN()),""),"") ->  | G8: =IFERROR(HYPERLINK(getCoor(ROW(),COLUMN()),""),"") ->  | H8: =IFERROR(HYPERLINK(getCoor(ROW(),COLUMN()),""),"") ->  | I8: =IFERROR(HYPERLINK(getCoor(ROW(),COLUMN()),""),"") ->  | J8: =IFERROR(HYPERLINK(getCoor(ROW(),COLUMN()),""),"") ->  | K8: =IFERROR(HYPERLINK(getCoor(ROW(),COLUMN()),""),"") ->  | L8: =IFERROR(HYPERLINK(getCoor(ROW(),COLUMN()),""),"") ->  | M8: =IFERROR(HYPERLINK(getCoor(ROW(),COLUMN()),""),"") ->  | N8: =IFERROR(HYPERLINK(getCoor(ROW(),COLUMN()),""),"") ->  | O8: =IFERROR(HYPERLINK(getCoor(ROW(),COLUMN()),""),"") ->  | P8: =IFERROR(HYPERLINK(getCoor(ROW(),COLUMN()),""),"") ->  | Q8: =IFERROR(HYPERLINK(getCoor(ROW(),COLUMN()),""),"") ->  | R8: =IFERROR(HYPERLINK(getCoor(ROW(),COLUMN()),""),"") ->  | S8: =IFERROR(HYPERLINK(getCoor(ROW(),COLUMN()),""),"") ->  | T8: =IFERROR(HYPERLINK(getCoor(ROW(),COLUMN()),""),"") ->  | U8: =IFERROR(HYPERLINK(getCoor(ROW(),COLUMN()),""),"") ->  | V8: =IFERROR(HYPERLINK(getCoor(ROW(),COLUMN()),""),"") ->  | W8: =IFERROR(HYPERLINK(getCoor(ROW(),COLUMN()),""),"") ->  | X8: =IFERROR(HYPERLINK(getCoor(ROW(),COLUMN()),""),"") ->  | Y8: =IFERROR(HYPERLINK(getCoor(ROW(),COLUMN()),""),"") ->  | Z8: =IFERROR(HYPERLINK(getCoor(ROW(),COLUMN()),""),"") ->  | AA8: =IFERROR(HYPERLINK(getCoor(ROW(),COLUMN()),""),"") ->  | AB8: =IFERROR(HYPERLINK(getCoor(ROW(),COLUMN()),""),"") ->  | AC8: =IFERROR(HYPERLINK(getCoor(ROW(),COLUMN()),""),"") ->  | AD8: =IFERROR(HYPERLINK(getCoor(ROW(),COLUMN()),""),"") ->  | AE8: =IFERROR(HYPERLINK(getCoor(ROW(),COLUMN()),""),"") ->  | AF8: =IFERROR(HYPERLINK(getCoor(ROW(),COLUMN()),""),"") ->  | AG8: =IFERROR(HYPERLINK(getCoor(ROW(),COLUMN()),""),"") ->  | AH8: =IFERROR(HYPERLINK(getCoor(ROW(),COLUMN()),""),"") ->  | AI8: =IFERROR(HYPERLINK(getCoor(ROW(),COLUMN()),""),"") ->  | AJ8: =IFERROR(HYPERLINK(getCoor(ROW(),COLUMN()),""),"") ->  | AK8: =IFERROR(HYPERLINK(getCoor(ROW(),COLUMN()),""),"") ->  | AL8: =IFERROR(HYPERLINK(getCoor(ROW(),COLUMN()),""),"") ->  | AM8: =IFERROR(HYPERLINK(getCoor(ROW(),COLUMN()),""),"") ->  | AN8: =IFERROR(HYPERLINK(getCoor(ROW(),COLUMN()),""),"") ->  | AO8: =IFERROR(HYPERLINK(getCoor(ROW(),COLUMN()),""),"") ->  | AP8: =IFERROR(HYPERLINK(getCoor(ROW(),COLUMN()),""),"") ->  | AQ8: =IFERROR(HYPERLINK(getCoor(ROW(),COLUMN()),""),"") ->  | AR8: =IFERROR(HYPERLINK(getCoor(ROW(),COLUMN()),""),"") ->  | AS8: =IFERROR(HYPERLINK(getCoor(ROW(),COLUMN()),""),"") ->  | AT8: =IFERROR(HYPERLINK(getCoor(ROW(),COLUMN()),""),"") ->  | AU8: =IFERROR(HYPERLINK(getCoor(ROW(),COLUMN()),""),"") ->  | AV8: =IFERROR(HYPERLINK(getCoor(ROW(),COLUMN()),""),"") ->  | AW8: =IFERROR(HYPERLINK(getCoor(ROW(),COLUMN()),""),"") ->  | AX8: =IFERROR(HYPERLINK(getCoor(ROW(),COLUMN()),""),"") ->  | AY8: =IFERROR(HYPERLINK(getCoor(ROW(),COLUMN()),""),"") ->  | AZ8: =IFERROR(HYPERLINK(getCoor(ROW(),COLUMN()),""),"") ->  | BA8: =IFERROR(HYPERLINK(getCoor(ROW(),COLUMN()),""),"") ->  | BB8: =IFERROR(HYPERLINK(getCoor(ROW(),COLUMN()),""),"") ->  | BC8: =IFERROR(HYPERLINK(getCoor(ROW(),COLUMN()),""),"") ->  | BD8: =IFERROR(HYPERLINK(getCoor(ROW(),COLUMN()),""),"") ->  | BE8: =IFERROR(HYPERLINK(getCoor(ROW(),COLUMN()),""),"") ->  | BF8: =IFERROR(HYPERLINK(getCoor(ROW(),COLUMN()),""),"") ->  | BG8: =IFERROR(HYPERLINK(getCoor(ROW(),COLUMN()),""),"") ->  | BH8: =IFERROR(HYPERLINK(getCoor(ROW(),COLUMN()),""),"") ->  | BI8: =IFERROR(HYPERLINK(getCoor(ROW(),COLUMN()),""),"") ->  | BJ8: =IFERROR(HYPERLINK(getCoor(ROW(),COLUMN()),""),"") ->  | BK8: =IFERROR(HYPERLINK(getCoor(ROW(),COLUMN()),""),"") ->  | BL8: 7 | BM8: Connecticut | BN8: =IFERROR(HLOOKUP($DS$5,Table!$I$182:$BL$237,Table!BN192),"") ->  | BP8: =IFERROR(VLOOKUP($DS$5,Table!$A$186:$BL$237,Table!BO192),"") ->  | BS8: 47 | BT8: =BM47 -> Vermont | BU8: =BR47 ->  | DH8: 531 | DI8: 148 | DJ8: 20 | DK8: 7 | DL8: FALSE | DM8: FALSE | DN8: FALSE | DO8: 534.5 | DP8: 158 | DQ8: 0 | DR8: Coordenada da célula | DS8: =VLOOKUP(ToggleIndex,DT2:DX16,4,FALSE) ->  | DT8: 0 | DU8: FALSE | DV8: 7 | DW8: Connecticut | DX8: 0Connecticut | EB8: 11
A9: =IFERROR(HYPERLINK(getCoor(ROW(),COLUMN()),""),"") ->  | B9: =IFERROR(HYPERLINK(getCoor(ROW(),COLUMN()),""),"") ->  | C9: =IFERROR(HYPERLINK(getCoor(ROW(),COLUMN()),""),"") ->  | D9: =IFERROR(HYPERLINK(getCoor(ROW(),COLUMN()),""),"") ->  | E9: =IFERROR(HYPERLINK(getCoor(ROW(),COLUMN()),""),"") ->  | F9: =IFERROR(HYPERLINK(getCoor(ROW(),COLUMN()),""),"") ->  | G9: =IFERROR(HYPERLINK(getCoor(ROW(),COLUMN()),""),"") ->  | H9: =IFERROR(HYPERLINK(getCoor(ROW(),COLUMN()),""),"") ->  | I9: =IFERROR(HYPERLINK(getCoor(ROW(),COLUMN()),""),"") ->  | J9: =IFERROR(HYPERLINK(getCoor(ROW(),COLUMN()),""),"") ->  | K9: =IFERROR(HYPERLINK(getCoor(ROW(),COLUMN()),""),"") ->  | L9: =IFERROR(HYPERLINK(getCoor(ROW(),COLUMN()),""),"") ->  | M9: =IFERROR(HYPERLINK(getCoor(ROW(),COLUMN()),""),"") ->  | N9: =IFERROR(HYPERLINK(getCoor(ROW(),COLUMN()),""),"") ->  | O9: =IFERROR(HYPERLINK(getCoor(ROW(),COLUMN()),""),"") ->  | P9: =IFERROR(HYPERLINK(getCoor(ROW(),COLUMN()),""),"") ->  | Q9: =IFERROR(HYPERLINK(getCoor(ROW(),COLUMN()),""),"") ->  | R9: =IFERROR(HYPERLINK(getCoor(ROW(),COLUMN()),""),"") ->  | S9: =IFERROR(HYPERLINK(getCoor(ROW(),COLUMN()),""),"") ->  | T9: =IFERROR(HYPERLINK(getCoor(ROW(),COLUMN()),""),"") ->  | U9: =IFERROR(HYPERLINK(getCoor(ROW(),COLUMN()),""),"") ->  | V9: =IFERROR(HYPERLINK(getCoor(ROW(),COLUMN()),""),"") ->  | W9: =IFERROR(HYPERLINK(getCoor(ROW(),COLUMN()),""),"") ->  | X9: =IFERROR(HYPERLINK(getCoor(ROW(),COLUMN()),""),"") ->  | Y9: =IFERROR(HYPERLINK(getCoor(ROW(),COLUMN()),""),"") ->  | Z9: =IFERROR(HYPERLINK(getCoor(ROW(),COLUMN()),""),"") ->  | AA9: =IFERROR(HYPERLINK(getCoor(ROW(),COLUMN()),""),"") ->  | AB9: =IFERROR(HYPERLINK(getCoor(ROW(),COLUMN()),""),"") ->  | AC9: =IFERROR(HYPERLINK(getCoor(ROW(),COLUMN()),""),"") ->  | AD9: =IFERROR(HYPERLINK(getCoor(ROW(),COLUMN()),""),"") ->  | AE9: =IFERROR(HYPERLINK(getCoor(ROW(),COLUMN()),""),"") ->  | AF9: =IFERROR(HYPERLINK(getCoor(ROW(),COLUMN()),""),"") ->  | AG9: =IFERROR(HYPERLINK(getCoor(ROW(),COLUMN()),""),"") ->  | AH9: =IFERROR(HYPERLINK(getCoor(ROW(),COLUMN()),""),"") ->  | AI9: =IFERROR(HYPERLINK(getCoor(ROW(),COLUMN()),""),"") ->  | AJ9: =IFERROR(HYPERLINK(getCoor(ROW(),COLUMN()),""),"") ->  | AK9: =IFERROR(HYPERLINK(getCoor(ROW(),COLUMN()),""),"") ->  | AL9: =IFERROR(HYPERLINK(getCoor(ROW(),COLUMN()),""),"") ->  | AM9: =IFERROR(HYPERLINK(getCoor(ROW(),COLUMN()),""),"") ->  | AN9: =IFERROR(HYPERLINK(getCoor(ROW(),COLUMN()),""),"") ->  | AO9: =IFERROR(HYPERLINK(getCoor(ROW(),COLUMN()),""),"") ->  | AP9: =IFERROR(HYPERLINK(getCoor(ROW(),COLUMN()),""),"") ->  | AQ9: =IFERROR(HYPERLINK(getCoor(ROW(),COLUMN()),""),"") ->  | AR9: =IFERROR(HYPERLINK(getCoor(ROW(),COLUMN()),""),"") ->  | AS9: =IFERROR(HYPERLINK(getCoor(ROW(),COLUMN()),""),"") ->  | AT9: =IFERROR(HYPERLINK(getCoor(ROW(),COLUMN()),""),"") ->  | AU9: =IFERROR(HYPERLINK(getCoor(ROW(),COLUMN()),""),"") ->  | AV9: =IFERROR(HYPERLINK(getCoor(ROW(),COLUMN()),""),"") ->  | AW9: =IFERROR(HYPERLINK(getCoor(ROW(),COLUMN()),""),"") ->  | AX9: =IFERROR(HYPERLINK(getCoor(ROW(),COLUMN()),""),"") ->  | AY9: =IFERROR(HYPERLINK(getCoor(ROW(),COLUMN()),""),"") ->  | AZ9: =IFERROR(HYPERLINK(getCoor(ROW(),COLUMN()),""),"") ->  | BA9: =IFERROR(HYPERLINK(getCoor(ROW(),COLUMN()),""),"") ->  | BB9: =IFERROR(HYPERLINK(getCoor(ROW(),COLUMN()),""),"") ->  | BC9: =IFERROR(HYPERLINK(getCoor(ROW(),COLUMN()),""),"") ->  | BD9: =IFERROR(HYPERLINK(getCoor(ROW(),COLUMN()),""),"") ->  | BE9: =IFERROR(HYPERLINK(getCoor(ROW(),COLUMN()),""),"") ->  | BF9: =IFERROR(HYPERLINK(getCoor(ROW(),COLUMN()),""),"") ->  | BG9: =IFERROR(HYPERLINK(getCoor(ROW(),COLUMN()),""),"") ->  | BH9: =IFERROR(HYPERLINK(getCoor(ROW(),COLUMN()),""),"") ->  | BI9: =IFERROR(HYPERLINK(getCoor(ROW(),COLUMN()),""),"") ->  | BJ9: =IFERROR(HYPERLINK(getCoor(ROW(),COLUMN()),""),"") ->  | BK9: =IFERROR(HYPERLINK(getCoor(ROW(),COLUMN()),""),"") ->  | BL9: 8 | BM9: Delaware | BN9: =IFERROR(HLOOKUP($DS$5,Table!$I$182:$BL$237,Table!BN193),"") ->  | BP9: =IFERROR(VLOOKUP($DS$5,Table!$A$186:$BL$237,Table!BO193),"") ->  | BS9: 46 | BT9: =BM46 -> Utah | BU9: =BR46 ->  | DH9: 531 | DI9: 176 | DJ9: 20 | DK9: 7 | DL9: FALSE | DM9: FALSE | DN9: FALSE | DO9: 534.5 | DP9: 186 | DQ9: 0 | DR9: Linha / Coluna | DT9: 0 | DU9: FALSE | DV9: 8 | DW9: Delaware | DX9: 0Delaware | EB9: 12
A10: =IFERROR(HYPERLINK(getCoor(ROW(),COLUMN()),""),"") ->  | B10: =IFERROR(HYPERLINK(getCoor(ROW(),COLUMN()),""),"") ->  | C10: =IFERROR(HYPERLINK(getCoor(ROW(),COLUMN()),""),"") ->  | D10: =IFERROR(HYPERLINK(getCoor(ROW(),COLUMN()),""),"") ->  | E10: =IFERROR(HYPERLINK(getCoor(ROW(),COLUMN()),""),"") ->  | F10: =IFERROR(HYPERLINK(getCoor(ROW(),COLUMN()),""),"") ->  | G10: =IFERROR(HYPERLINK(getCoor(ROW(),COLUMN()),""),"") ->  | H10: =IFERROR(HYPERLINK(getCoor(ROW(),COLUMN()),""),"") ->  | I10: =IFERROR(HYPERLINK(getCoor(ROW(),COLUMN()),""),"") ->  | J10: =IFERROR(HYPERLINK(getCoor(ROW(),COLUMN()),""),"") ->  | K10: =IFERROR(HYPERLINK(getCoor(ROW(),COLUMN()),""),"") ->  | L10: =IFERROR(HYPERLINK(getCoor(ROW(),COLUMN()),""),"") ->  | M10: =IFERROR(HYPERLINK(getCoor(ROW(),COLUMN()),""),"") ->  | N10: =IFERROR(HYPERLINK(getCoor(ROW(),COLUMN()),""),"") ->  | O10: =IFERROR(HYPERLINK(getCoor(ROW(),COLUMN()),""),"") ->  | P10: =IFERROR(HYPERLINK(getCoor(ROW(),COLUMN()),""),"") ->  | Q10: =IFERROR(HYPERLINK(getCoor(ROW(),COLUMN()),""),"") ->  | R10: =IFERROR(HYPERLINK(getCoor(ROW(),COLUMN()),""),"") ->  | S10: =IFERROR(HYPERLINK(getCoor(ROW(),COLUMN()),""),"") ->  | T10: =IFERROR(HYPERLINK(getCoor(ROW(),COLUMN()),""),"") ->  | U10: =IFERROR(HYPERLINK(getCoor(ROW(),COLUMN()),""),"") ->  | V10: =IFERROR(HYPERLINK(getCoor(ROW(),COLUMN()),""),"") ->  | W10: =IFERROR(HYPERLINK(getCoor(ROW(),COLUMN()),""),"") ->  | X10: =IFERROR(HYPERLINK(getCoor(ROW(),COLUMN()),""),"") ->  | Y10: =IFERROR(HYPERLINK(getCoor(ROW(),COLUMN()),""),"") ->  | Z10: =IFERROR(HYPERLINK(getCoor(ROW(),COLUMN()),""),"") ->  | AA10: =IFERROR(HYPERLINK(getCoor(ROW(),COLUMN()),""),"") ->  | AB10: =IFERROR(HYPERLINK(getCoor(ROW(),COLUMN()),""),"") ->  | AC10: =IFERROR(HYPERLINK(getCoor(ROW(),COLUMN()),""),"") ->  | AD10: =IFERROR(HYPERLINK(getCoor(ROW(),COLUMN()),""),"") ->  | AE10: =IFERROR(HYPERLINK(getCoor(ROW(),COLUMN()),""),"") ->  | AF10: =IFERROR(HYPERLINK(getCoor(ROW(),COLUMN()),""),"") ->  | AG10: =IFERROR(HYPERLINK(getCoor(ROW(),COLUMN()),""),"") ->  | AH10: =IFERROR(HYPERLINK(getCoor(ROW(),COLUMN()),""),"") ->  | AI10: =IFERROR(HYPERLINK(getCoor(ROW(),COLUMN()),""),"") ->  | AJ10: =IFERROR(HYPERLINK(getCoor(ROW(),COLUMN()),""),"") ->  | AK10: =IFERROR(HYPERLINK(getCoor(ROW(),COLUMN()),""),"") ->  | AL10: =IFERROR(HYPERLINK(getCoor(ROW(),COLUMN()),""),"") ->  | AM10: =IFERROR(HYPERLINK(getCoor(ROW(),COLUMN()),""),"") ->  | AN10: =IFERROR(HYPERLINK(getCoor(ROW(),COLUMN()),""),"") ->  | AO10: =IFERROR(HYPERLINK(getCoor(ROW(),COLUMN()),""),"") ->  | AP10: =IFERROR(HYPERLINK(getCoor(ROW(),COLUMN()),""),"") ->  | AQ10: =IFERROR(HYPERLINK(getCoor(ROW(),COLUMN()),""),"") ->  | AR10: =IFERROR(HYPERLINK(getCoor(ROW(),COLUMN()),""),"") ->  | AS10: =IFERROR(HYPERLINK(getCoor(ROW(),COLUMN()),""),"") ->  | AT10: =IFERROR(HYPERLINK(getCoor(ROW(),COLUMN()),""),"") ->  | AU10: =IFERROR(HYPERLINK(getCoor(ROW(),COLUMN()),""),"") ->  | AV10: =IFERROR(HYPERLINK(getCoor(ROW(),COLUMN()),""),"") ->  | AW10: =IFERROR(HYPERLINK(getCoor(ROW(),COLUMN()),""),"") ->  | AX10: =IFERROR(HYPERLINK(getCoor(ROW(),COLUMN()),""),"") ->  | AY10: =IFERROR(HYPERLINK(getCoor(ROW(),COLUMN()),""),"") ->  | AZ10: =IFERROR(HYPERLINK(getCoor(ROW(),COLUMN()),""),"") ->  | BA10: =IFERROR(HYPERLINK(getCoor(ROW(),COLUMN()),""),"") ->  | BB10: =IFERROR(HYPERLINK(getCoor(ROW(),COLUMN()),""),"") ->  | BC10: =IFERROR(HYPERLINK(getCoor(ROW(),COLUMN()),""),"") ->  | BD10: =IFERROR(HYPERLINK(getCoor(ROW(),COLUMN()),""),"") ->  | BE10: =IFERROR(HYPERLINK(getCoor(ROW(),COLUMN()),""),"") ->  | BF10: =IFERROR(HYPERLINK(getCoor(ROW(),COLUMN()),""),"") ->  | BG10: =IFERROR(HYPERLINK(getCoor(ROW(),COLUMN()),""),"") ->  | BH10: =IFERROR(HYPERLINK(getCoor(ROW(),COLUMN()),""),"") ->  | BI10: =IFERROR(HYPERLINK(getCoor(ROW(),COLUMN()),""),"") ->  | BJ10: =IFERROR(HYPERLINK(getCoor(ROW(),COLUMN()),""),"") ->  | BK10: =IFERROR(HYPERLINK(getCoor(ROW(),COLUMN()),""),"") ->  | BL10: 9 | BM10: District of Columbia | BN10: =IFERROR(HLOOKUP($DS$5,Table!$I$182:$BL$237,Table!BN194),"") ->  | BP10: =IFERROR(VLOOKUP($DS$5,Table!$A$186:$BL$237,Table!BO194),"") ->  | BS10: 45 | BT10: =BM45 -> Texas | BU10: =BR45 ->  | DH10: 531 | DI10: 202 | DJ10: 20 | DK10: 7 | DL10: FALSE | DM10: FALSE | DN10: FALSE | DO10: 534.5 | DP10: 212 | DQ10: 0 | DT10: 0 | DU10: FALSE | DV10: 9 | DW10: District of Columbia | DX10: 0District of Columbia | EB10: 13
A11: =IFERROR(HYPERLINK(getCoor(ROW(),COLUMN()),""),"") ->  | B11: =IFERROR(HYPERLINK(getCoor(ROW(),COLUMN()),""),"") ->  | C11: =IFERROR(HYPERLINK(getCoor(ROW(),COLUMN()),""),"") ->  | D11: =IFERROR(HYPERLINK(getCoor(ROW(),COLUMN()),""),"") ->  | E11: =IFERROR(HYPERLINK(getCoor(ROW(),COLUMN()),""),"") ->  | F11: =IFERROR(HYPERLINK(getCoor(ROW(),COLUMN()),""),"") ->  | G11: =IFERROR(HYPERLINK(getCoor(ROW(),COLUMN()),""),"") ->  | H11: =IFERROR(HYPERLINK(getCoor(ROW(),COLUMN()),""),"") ->  | I11: =IFERROR(HYPERLINK(getCoor(ROW(),COLUMN()),""),"") ->  | J11: =IFERROR(HYPERLINK(getCoor(ROW(),COLUMN()),""),"") ->  | K11: =IFERROR(HYPERLINK(getCoor(ROW(),COLUMN()),""),"") ->  | L11: =IFERROR(HYPERLINK(getCoor(ROW(),COLUMN()),""),"") ->  | M11: =IFERROR(HYPERLINK(getCoor(ROW(),COLUMN()),""),"") ->  | N11: =IFERROR(HYPERLINK(getCoor(ROW(),COLUMN()),""),"") ->  | O11: =IFERROR(HYPERLINK(getCoor(ROW(),COLUMN()),""),"") ->  | P11: =IFERROR(HYPERLINK(getCoor(ROW(),COLUMN()),""),"") ->  | Q11: =IFERROR(HYPERLINK(getCoor(ROW(),COLUMN()),""),"") ->  | R11: =IFERROR(HYPERLINK(getCoor(ROW(),COLUMN()),""),"") ->  | S11: =IFERROR(HYPERLINK(getCoor(ROW(),COLUMN()),""),"") ->  | T11: =IFERROR(HYPERLINK(getCoor(ROW(),COLUMN()),""),"") ->  | U11: =IFERROR(HYPERLINK(getCoor(ROW(),COLUMN()),""),"") ->  | V11: =IFERROR(HYPERLINK(getCoor(ROW(),COLUMN()),""),"") ->  | W11: =IFERROR(HYPERLINK(getCoor(ROW(),COLUMN()),""),"") ->  | X11: =IFERROR(HYPERLINK(getCoor(ROW(),COLUMN()),""),"") ->  | Y11: =IFERROR(HYPERLINK(getCoor(ROW(),COLUMN()),""),"") ->  | Z11: =IFERROR(HYPERLINK(getCoor(ROW(),COLUMN()),""),"") ->  | AA11: =IFERROR(HYPERLINK(getCoor(ROW(),COLUMN()),""),"") ->  | AB11: =IFERROR(HYPERLINK(getCoor(ROW(),COLUMN()),""),"") ->  | AC11: =IFERROR(HYPERLINK(getCoor(ROW(),COLUMN()),""),"") ->  | AD11: =IFERROR(HYPERLINK(getCoor(ROW(),COLUMN()),""),"") ->  | AE11: =IFERROR(HYPERLINK(getCoor(ROW(),COLUMN()),""),"") ->  | AF11: =IFERROR(HYPERLINK(getCoor(ROW(),COLUMN()),""),"") ->  | AG11: =IFERROR(HYPERLINK(getCoor(ROW(),COLUMN()),""),"") ->  | AH11: =IFERROR(HYPERLINK(getCoor(ROW(),COLUMN()),""),"") ->  | AI11: =IFERROR(HYPERLINK(getCoor(ROW(),COLUMN()),""),"") ->  | AJ11: =IFERROR(HYPERLINK(getCoor(ROW(),COLUMN()),""),"") ->  | AK11: =IFERROR(HYPERLINK(getCoor(ROW(),COLUMN()),""),"") ->  | AL11: =IFERROR(HYPERLINK(getCoor(ROW(),COLUMN()),""),"") ->  | AM11: =IFERROR(HYPERLINK(getCoor(ROW(),COLUMN()),""),"") ->  | AN11: =IFERROR(HYPERLINK(getCoor(ROW(),COLUMN()),""),"") ->  | AO11: =IFERROR(HYPERLINK(getCoor(ROW(),COLUMN()),""),"") ->  | AP11: =IFERROR(HYPERLINK(getCoor(ROW(),COLUMN()),""),"") ->  | AQ11: =IFERROR(HYPERLINK(getCoor(ROW(),COLUMN()),""),"") ->  | AR11: =IFERROR(HYPERLINK(getCoor(ROW(),COLUMN()),""),"") ->  | AS11: =IFERROR(HYPERLINK(getCoor(ROW(),COLUMN()),""),"") ->  | AT11: =IFERROR(HYPERLINK(getCoor(ROW(),COLUMN()),""),"") ->  | AU11: =IFERROR(HYPERLINK(getCoor(ROW(),COLUMN()),""),"") ->  | AV11: =IFERROR(HYPERLINK(getCoor(ROW(),COLUMN()),""),"") ->  | AW11: =IFERROR(HYPERLINK(getCoor(ROW(),COLUMN()),""),"") ->  | AX11: =IFERROR(HYPERLINK(getCoor(ROW(),COLUMN()),""),"") ->  | AY11: =IFERROR(HYPERLINK(getCoor(ROW(),COLUMN()),""),"") ->  | AZ11: =IFERROR(HYPERLINK(getCoor(ROW(),COLUMN()),""),"") ->  | BA11: =IFERROR(HYPERLINK(getCoor(ROW(),COLUMN()),""),"") ->  | BB11: =IFERROR(HYPERLINK(getCoor(ROW(),COLUMN()),""),"") ->  | BC11: =IFERROR(HYPERLINK(getCoor(ROW(),COLUMN()),""),"") ->  | BD11: =IFERROR(HYPERLINK(getCoor(ROW(),COLUMN()),""),"") ->  | BE11: =IFERROR(HYPERLINK(getCoor(ROW(),COLUMN()),""),"") ->  | BF11: =IFERROR(HYPERLINK(getCoor(ROW(),COLUMN()),""),"") ->  | BG11: =IFERROR(HYPERLINK(getCoor(ROW(),COLUMN()),""),"") ->  | BH11: =IFERROR(HYPERLINK(getCoor(ROW(),COLUMN()),""),"") ->  | BI11: =IFERROR(HYPERLINK(getCoor(ROW(),COLUMN()),""),"") ->  | BJ11: =IFERROR(HYPERLINK(getCoor(ROW(),COLUMN()),""),"") ->  | BK11: =IFERROR(HYPERLINK(getCoor(ROW(),COLUMN()),""),"") ->  | BL11: 10 | BM11: Florida | BN11: =IFERROR(HLOOKUP($DS$5,Table!$I$182:$BL$237,Table!BN195),"") ->  | BP11: =IFERROR(VLOOKUP($DS$5,Table!$A$186:$BL$237,Table!BO195),"") ->  | BS11: 44 | BT11: =BM44 -> Tennessee | BU11: =BR44 ->  | DH11: 432 | DI11: 338 | DJ11: 40 | DK11: 40 | DL11: FALSE | DM11: TRUE | DN11: FALSE | DO11: 452 | DP11: 358 | DQ11: 0 | DT11: 0 | DU11: FALSE | DV11: 10 | DW11: Florida | DX11: 0Florida | EB11: 14
A12: =IFERROR(HYPERLINK(getCoor(ROW(),COLUMN()),""),"") ->  | B12: =IFERROR(HYPERLINK(getCoor(ROW(),COLUMN()),""),"") ->  | C12: =IFERROR(HYPERLINK(getCoor(ROW(),COLUMN()),""),"") ->  | D12: =IFERROR(HYPERLINK(getCoor(ROW(),COLUMN()),""),"") ->  | E12: =IFERROR(HYPERLINK(getCoor(ROW(),COLUMN()),""),"") ->  | F12: =IFERROR(HYPERLINK(getCoor(ROW(),COLUMN()),""),"") ->  | G12: =IFERROR(HYPERLINK(getCoor(ROW(),COLUMN()),""),"") ->  | H12: =IFERROR(HYPERLINK(getCoor(ROW(),COLUMN()),""),"") ->  | I12: =IFERROR(HYPERLINK(getCoor(ROW(),COLUMN()),""),"") ->  | J12: =IFERROR(HYPERLINK(getCoor(ROW(),COLUMN()),""),"") ->  | K12: =IFERROR(HYPERLINK(getCoor(ROW(),COLUMN()),""),"") ->  | L12: =IFERROR(HYPERLINK(getCoor(ROW(),COLUMN()),""),"") ->  | M12: =IFERROR(HYPERLINK(getCoor(ROW(),COLUMN()),""),"") ->  | N12: =IFERROR(HYPERLINK(getCoor(ROW(),COLUMN()),""),"") ->  | O12: =IFERROR(HYPERLINK(getCoor(ROW(),COLUMN()),""),"") ->  | P12: =IFERROR(HYPERLINK(getCoor(ROW(),COLUMN()),""),"") ->  | Q12: =IFERROR(HYPERLINK(getCoor(ROW(),COLUMN()),""),"") ->  | R12: =IFERROR(HYPERLINK(getCoor(ROW(),COLUMN()),""),"") ->  | S12: =IFERROR(HYPERLINK(getCoor(ROW(),COLUMN()),""),"") ->  | T12: =IFERROR(HYPERLINK(getCoor(ROW(),COLUMN()),""),"") ->  | U12: =IFERROR(HYPERLINK(getCoor(ROW(),COLUMN()),""),"") ->  | V12: =IFERROR(HYPERLINK(getCoor(ROW(),COLUMN()),""),"") ->  | W12: =IFERROR(HYPERLINK(getCoor(ROW(),COLUMN()),""),"") ->  | X12: =IFERROR(HYPERLINK(getCoor(ROW(),COLUMN()),""),"") ->  | Y12: =IFERROR(HYPERLINK(getCoor(ROW(),COLUMN()),""),"") ->  | Z12: =IFERROR(HYPERLINK(getCoor(ROW(),COLUMN()),""),"") ->  | AA12: =IFERROR(HYPERLINK(getCoor(ROW(),COLUMN()),""),"") ->  | AB12: =IFERROR(HYPERLINK(getCoor(ROW(),COLUMN()),""),"") ->  | AC12: =IFERROR(HYPERLINK(getCoor(ROW(),COLUMN()),""),"") ->  | AD12: =IFERROR(HYPERLINK(getCoor(ROW(),COLUMN()),""),"") ->  | AE12: =IFERROR(HYPERLINK(getCoor(ROW(),COLUMN()),""),"") ->  | AF12: =IFERROR(HYPERLINK(getCoor(ROW(),COLUMN()),""),"") ->  | AG12: =IFERROR(HYPERLINK(getCoor(ROW(),COLUMN()),""),"") ->  | AH12: =IFERROR(HYPERLINK(getCoor(ROW(),COLUMN()),""),"") ->  | AI12: =IFERROR(HYPERLINK(getCoor(ROW(),COLUMN()),""),"") ->  | AJ12: =IFERROR(HYPERLINK(getCoor(ROW(),COLUMN()),""),"") ->  | AK12: =IFERROR(HYPERLINK(getCoor(ROW(),COLUMN()),""),"") ->  | AL12: =IFERROR(HYPERLINK(getCoor(ROW(),COLUMN()),""),"") ->  | AM12: =IFERROR(HYPERLINK(getCoor(ROW(),COLUMN()),""),"") ->  | AN12: =IFERROR(HYPERLINK(getCoor(ROW(),COLUMN()),""),"") ->  | AO12: =IFERROR(HYPERLINK(getCoor(ROW(),COLUMN()),""),"") ->  | AP12: =IFERROR(HYPERLINK(getCoor(ROW(),COLUMN()),""),"") ->  | AQ12: =IFERROR(HYPERLINK(getCoor(ROW(),COLUMN()),""),"") ->  | AR12: =IFERROR(HYPERLINK(getCoor(ROW(),COLUMN()),""),"") ->  | AS12: =IFERROR(HYPERLINK(getCoor(ROW(),COLUMN()),""),"") ->  | AT12: =IFERROR(HYPERLINK(getCoor(ROW(),COLUMN()),""),"") ->  | AU12: =IFERROR(HYPERLINK(getCoor(ROW(),COLUMN()),""),"") ->  | AV12: =IFERROR(HYPERLINK(getCoor(ROW(),COLUMN()),""),"") ->  | AW12: =IFERROR(HYPERLINK(getCoor(ROW(),COLUMN()),""),"") ->  | AX12: =IFERROR(HYPERLINK(getCoor(ROW(),COLUMN()),""),"") ->  | AY12: =IFERROR(HYPERLINK(getCoor(ROW(),COLUMN()),""),"") ->  | AZ12: =IFERROR(HYPERLINK(getCoor(ROW(),COLUMN()),""),"") ->  | BA12: =IFERROR(HYPERLINK(getCoor(ROW(),COLUMN()),""),"") ->  | BB12: =IFERROR(HYPERLINK(getCoor(ROW(),COLUMN()),""),"") ->  | BC12: =IFERROR(HYPERLINK(getCoor(ROW(),COLUMN()),""),"") ->  | BD12: =IFERROR(HYPERLINK(getCoor(ROW(),COLUMN()),""),"") ->  | BE12: =IFERROR(HYPERLINK(getCoor(ROW(),COLUMN()),""),"") ->  | BF12: =IFERROR(HYPERLINK(getCoor(ROW(),COLUMN()),""),"") ->  | BG12: =IFERROR(HYPERLINK(getCoor(ROW(),COLUMN()),""),"") ->  | BH12: =IFERROR(HYPERLINK(getCoor(ROW(),COLUMN()),""),"") ->  | BI12: =IFERROR(HYPERLINK(getCoor(ROW(),COLUMN()),""),"") ->  | BJ12: =IFERROR(HYPERLINK(getCoor(ROW(),COLUMN()),""),"") ->  | BK12: =IFERROR(HYPERLINK(getCoor(ROW(),COLUMN()),""),"") ->  | BL12: 11 | BM12: Georgia | BN12: =IFERROR(HLOOKUP($DS$5,Table!$I$182:$BL$237,Table!BN196),"") ->  | BP12: =IFERROR(VLOOKUP($DS$5,Table!$A$186:$BL$237,Table!BO196),"") ->  | BS12: 43 | BT12: =BM43 -> South Dakota | BU12: =BR43 ->  | DH12: 405 | DI12: 256 | DJ12: 20 | DK12: 20 | DL12: FALSE | DM12: FALSE | DN12: FALSE | DO12: 415 | DP12: 266 | DQ12: 0 | DR12: =CONCATENATE(BN1,DS7) -> IN | DT12: 0 | DU12: FALSE | DV12: 11 | DW12: Georgia | DX12: 0Georgia | EB12: 15
A13: =IFERROR(HYPERLINK(getCoor(ROW(),COLUMN()),""),"") ->  | B13: =IFERROR(HYPERLINK(getCoor(ROW(),COLUMN()),""),"") ->  | C13: =IFERROR(HYPERLINK(getCoor(ROW(),COLUMN()),""),"") ->  | D13: =IFERROR(HYPERLINK(getCoor(ROW(),COLUMN()),""),"") ->  | E13: =IFERROR(HYPERLINK(getCoor(ROW(),COLUMN()),""),"") ->  | F13: =IFERROR(HYPERLINK(getCoor(ROW(),COLUMN()),""),"") ->  | G13: =IFERROR(HYPERLINK(getCoor(ROW(),COLUMN()),""),"") ->  | H13: =IFERROR(HYPERLINK(getCoor(ROW(),COLUMN()),""),"") ->  | I13: =IFERROR(HYPERLINK(getCoor(ROW(),COLUMN()),""),"") ->  | J13: =IFERROR(HYPERLINK(getCoor(ROW(),COLUMN()),""),"") ->  | K13: =IFERROR(HYPERLINK(getCoor(ROW(),COLUMN()),""),"") ->  | L13: =IFERROR(HYPERLINK(getCoor(ROW(),COLUMN()),""),"") ->  | M13: =IFERROR(HYPERLINK(getCoor(ROW(),COLUMN()),""),"") ->  | N13: =IFERROR(HYPERLINK(getCoor(ROW(),COLUMN()),""),"") ->  | O13: =IFERROR(HYPERLINK(getCoor(ROW(),COLUMN()),""),"") ->  | P13: =IFERROR(HYPERLINK(getCoor(ROW(),COLUMN()),""),"") ->  | Q13: =IFERROR(HYPERLINK(getCoor(ROW(),COLUMN()),""),"") ->  | R13: =IFERROR(HYPERLINK(getCoor(ROW(),COLUMN()),""),"") ->  | S13: =IFERROR(HYPERLINK(getCoor(ROW(),COLUMN()),""),"") ->  | T13: =IFERROR(HYPERLINK(getCoor(ROW(),COLUMN()),""),"") ->  | U13: =IFERROR(HYPERLINK(getCoor(ROW(),COLUMN()),""),"") ->  | V13: =IFERROR(HYPERLINK(getCoor(ROW(),COLUMN()),""),"") ->  | W13: =IFERROR(HYPERLINK(getCoor(ROW(),COLUMN()),""),"") ->  | X13: =IFERROR(HYPERLINK(getCoor(ROW(),COLUMN()),""),"") ->  | Y13: =IFERROR(HYPERLINK(getCoor(ROW(),COLUMN()),""),"") ->  | Z13: =IFERROR(HYPERLINK(getCoor(ROW(),COLUMN()),""),"") ->  | AA13: =IFERROR(HYPERLINK(getCoor(ROW(),COLUMN()),""),"") ->  | AB13: =IFERROR(HYPERLINK(getCoor(ROW(),COLUMN()),""),"") ->  | AC13: =IFERROR(HYPERLINK(getCoor(ROW(),COLUMN()),""),"") ->  | AD13: =IFERROR(HYPERLINK(getCoor(ROW(),COLUMN()),""),"") ->  | AE13: =IFERROR(HYPERLINK(getCoor(ROW(),COLUMN()),""),"") ->  | AF13: =IFERROR(HYPERLINK(getCoor(ROW(),COLUMN()),""),"") ->  | AG13: =IFERROR(HYPERLINK(getCoor(ROW(),COLUMN()),""),"") ->  | AH13: =IFERROR(HYPERLINK(getCoor(ROW(),COLUMN()),""),"") ->  | AI13: =IFERROR(HYPERLINK(getCoor(ROW(),COLUMN()),""),"") ->  | AJ13: =IFERROR(HYPERLINK(getCoor(ROW(),COLUMN()),""),"") ->  | AK13: =IFERROR(HYPERLINK(getCoor(ROW(),COLUMN()),""),"") ->  | AL13: =IFERROR(HYPERLINK(getCoor(ROW(),COLUMN()),""),"") ->  | AM13: =IFERROR(HYPERLINK(getCoor(ROW(),COLUMN()),""),"") ->  | AN13: =IFERROR(HYPERLINK(getCoor(ROW(),COLUMN()),""),"") ->  | AO13: =IFERROR(HYPERLINK(getCoor(ROW(),COLUMN()),""),"") ->  | AP13: =IFERROR(HYPERLINK(getCoor(ROW(),COLUMN()),""),"") ->  | AQ13: =IFERROR(HYPERLINK(getCoor(ROW(),COLUMN()),""),"") ->  | AR13: =IFERROR(HYPERLINK(getCoor(ROW(),COLUMN()),""),"") ->  | AS13: =IFERROR(HYPERLINK(getCoor(ROW(),COLUMN()),""),"") ->  | AT13: =IFERROR(HYPERLINK(getCoor(ROW(),COLUMN()),""),"") ->  | AU13: =IFERROR(HYPERLINK(getCoor(ROW(),COLUMN()),""),"") ->  | AV13: =IFERROR(HYPERLINK(getCoor(ROW(),COLUMN()),""),"") ->  | AW13: =IFERROR(HYPERLINK(getCoor(ROW(),COLUMN()),""),"") ->  | AX13: =IFERROR(HYPERLINK(getCoor(ROW(),COLUMN()),""),"") ->  | AY13: =IFERROR(HYPERLINK(getCoor(ROW(),COLUMN()),""),"") ->  | AZ13: =IFERROR(HYPERLINK(getCoor(ROW(),COLUMN()),""),"") ->  | BA13: =IFERROR(HYPERLINK(getCoor(ROW(),COLUMN()),""),"") ->  | BB13: =IFERROR(HYPERLINK(getCoor(ROW(),COLUMN()),""),"") ->  | BC13: =IFERROR(HYPERLINK(getCoor(ROW(),COLUMN()),""),"") ->  | BD13: =IFERROR(HYPERLINK(getCoor(ROW(),COLUMN()),""),"") ->  | BE13: =IFERROR(HYPERLINK(getCoor(ROW(),COLUMN()),""),"") ->  | BF13: =IFERROR(HYPERLINK(getCoor(ROW(),COLUMN()),""),"") ->  | BG13: =IFERROR(HYPERLINK(getCoor(ROW(),COLUMN()),""),"") ->  | BH13: =IFERROR(HYPERLINK(getCoor(ROW(),COLUMN()),""),"") ->  | BI13: =IFERROR(HYPERLINK(getCoor(ROW(),COLUMN()),""),"") ->  | BJ13: =IFERROR(HYPERLINK(getCoor(ROW(),COLUMN()),""),"") ->  | BK13: =IFERROR(HYPERLINK(getCoor(ROW(),COLUMN()),""),"") ->  | BL13: 12 | BM13: Hawaii | BN13: =IFERROR(HLOOKUP($DS$5,Table!$I$182:$BL$237,Table!BN197),"") ->  | BP13: =IFERROR(VLOOKUP($DS$5,Table!$A$186:$BL$237,Table!BO197),"") ->  | BS13: 42 | BT13: =BM42 -> South Carolina | BU13: =BR42 ->  | DH13: 153 | DI13: 351 | DJ13: 20 | DK13: 20 | DL13: FALSE | DM13: TRUE | DN13: FALSE | DO13: 163 | DP13: 361 | DQ13: 0 | DT13: 0 | DU13: FALSE | DV13: 12 | DW13: Hawaii | DX13: 0Hawaii | EB13: 16
A14: =IFERROR(HYPERLINK(getCoor(ROW(),COLUMN()),""),"") ->  | B14: =IFERROR(HYPERLINK(getCoor(ROW(),COLUMN()),""),"") ->  | C14: =IFERROR(HYPERLINK(getCoor(ROW(),COLUMN()),""),"") ->  | D14: =IFERROR(HYPERLINK(getCoor(ROW(),COLUMN()),""),"") ->  | E14: =IFERROR(HYPERLINK(getCoor(ROW(),COLUMN()),""),"") ->  | F14: =IFERROR(HYPERLINK(getCoor(ROW(),COLUMN()),""),"") ->  | G14: =IFERROR(HYPERLINK(getCoor(ROW(),COLUMN()),""),"") ->  | H14: =IFERROR(HYPERLINK(getCoor(ROW(),COLUMN()),""),"") ->  | I14: =IFERROR(HYPERLINK(getCoor(ROW(),COLUMN()),""),"") ->  | J14: =IFERROR(HYPERLINK(getCoor(ROW(),COLUMN()),""),"") ->  | K14: =IFERROR(HYPERLINK(getCoor(ROW(),COLUMN()),""),"") ->  | L14: =IFERROR(HYPERLINK(getCoor(ROW(),COLUMN()),""),"") ->  | M14: =IFERROR(HYPERLINK(getCoor(ROW(),COLUMN()),""),"") ->  | N14: =IFERROR(HYPERLINK(getCoor(ROW(),COLUMN()),""),"") ->  | O14: =IFERROR(HYPERLINK(getCoor(ROW(),COLUMN()),""),"") ->  | P14: =IFERROR(HYPERLINK(getCoor(ROW(),COLUMN()),""),"") ->  | Q14: =IFERROR(HYPERLINK(getCoor(ROW(),COLUMN()),""),"") ->  | R14: =IFERROR(HYPERLINK(getCoor(ROW(),COLUMN()),""),"") ->  | S14: =IFERROR(HYPERLINK(getCoor(ROW(),COLUMN()),""),"") ->  | T14: =IFERROR(HYPERLINK(getCoor(ROW(),COLUMN()),""),"") ->  | U14: =IFERROR(HYPERLINK(getCoor(ROW(),COLUMN()),""),"") ->  | V14: =IFERROR(HYPERLINK(getCoor(ROW(),COLUMN()),""),"") ->  | W14: =IFERROR(HYPERLINK(getCoor(ROW(),COLUMN()),""),"") ->  | X14: =IFERROR(HYPERLINK(getCoor(ROW(),COLUMN()),""),"") ->  | Y14: =IFERROR(HYPERLINK(getCoor(ROW(),COLUMN()),""),"") ->  | Z14: =IFERROR(HYPERLINK(getCoor(ROW(),COLUMN()),""),"") ->  | AA14: =IFERROR(HYPERLINK(getCoor(ROW(),COLUMN()),""),"") ->  | AB14: =IFERROR(HYPERLINK(getCoor(ROW(),COLUMN()),""),"") ->  | AC14: =IFERROR(HYPERLINK(getCoor(ROW(),COLUMN()),""),"") ->  | AD14: =IFERROR(HYPERLINK(getCoor(ROW(),COLUMN()),""),"") ->  | AE14: =IFERROR(HYPERLINK(getCoor(ROW(),COLUMN()),""),"") ->  | AF14: =IFERROR(HYPERLINK(getCoor(ROW(),COLUMN()),""),"") ->  | AG14: =IFERROR(HYPERLINK(getCoor(ROW(),COLUMN()),""),"") ->  | AH14: =IFERROR(HYPERLINK(getCoor(ROW(),COLUMN()),""),"") ->  | AI14: =IFERROR(HYPERLINK(getCoor(ROW(),COLUMN()),""),"") ->  | AJ14: =IFERROR(HYPERLINK(getCoor(ROW(),COLUMN()),""),"") ->  | AK14: =IFERROR(HYPERLINK(getCoor(ROW(),COLUMN()),""),"") ->  | AL14: =IFERROR(HYPERLINK(getCoor(ROW(),COLUMN()),""),"") ->  | AM14: =IFERROR(HYPERLINK(getCoor(ROW(),COLUMN()),""),"") ->  | AN14: =IFERROR(HYPERLINK(getCoor(ROW(),COLUMN()),""),"") ->  | AO14: =IFERROR(HYPERLINK(getCoor(ROW(),COLUMN()),""),"") ->  | AP14: =IFERROR(HYPERLINK(getCoor(ROW(),COLUMN()),""),"") ->  | AQ14: =IFERROR(HYPERLINK(getCoor(ROW(),COLUMN()),""),"") ->  | AR14: =IFERROR(HYPERLINK(getCoor(ROW(),COLUMN()),""),"") ->  | AS14: =IFERROR(HYPERLINK(getCoor(ROW(),COLUMN()),""),"") ->  | AT14: =IFERROR(HYPERLINK(getCoor(ROW(),COLUMN()),""),"") ->  | AU14: =IFERROR(HYPERLINK(getCoor(ROW(),COLUMN()),""),"") ->  | AV14: =IFERROR(HYPERLINK(getCoor(ROW(),COLUMN()),""),"") ->  | AW14: =IFERROR(HYPERLINK(getCoor(ROW(),COLUMN()),""),"") ->  | AX14: =IFERROR(HYPERLINK(getCoor(ROW(),COLUMN()),""),"") ->  | AY14: =IFERROR(HYPERLINK(getCoor(ROW(),COLUMN()),""),"") ->  | AZ14: =IFERROR(HYPERLINK(getCoor(ROW(),COLUMN()),""),"") ->  | BA14: =IFERROR(HYPERLINK(getCoor(ROW(),COLUMN()),""),"") ->  | BB14: =IFERROR(HYPERLINK(getCoor(ROW(),COLUMN()),""),"") ->  | BC14: =IFERROR(HYPERLINK(getCoor(ROW(),COLUMN()),""),"") ->  | BD14: =IFERROR(HYPERLINK(getCoor(ROW(),COLUMN()),""),"") ->  | BE14: =IFERROR(HYPERLINK(getCoor(ROW(),COLUMN()),""),"") ->  | BF14: =IFERROR(HYPERLINK(getCoor(ROW(),COLUMN()),""),"") ->  | BG14: =IFERROR(HYPERLINK(getCoor(ROW(),COLUMN()),""),"") ->  | BH14: =IFERROR(HYPERLINK(getCoor(ROW(),COLUMN()),""),"") ->  | BI14: =IFERROR(HYPERLINK(getCoor(ROW(),COLUMN()),""),"") ->  | BJ14: =IFERROR(HYPERLINK(getCoor(ROW(),COLUMN()),""),"") ->  | BK14: =IFERROR(HYPERLINK(getCoor(ROW(),COLUMN()),""),"") ->  | BL14: 13 | BM14: Idaho | BN14: =IFERROR(HLOOKUP($DS$5,Table!$I$182:$BL$237,Table!BN198),"") ->  | BP14: =IFERROR(VLOOKUP($DS$5,Table!$A$186:$BL$237,Table!BO198),"") ->  | BS14: 41 | BT14: =BM41 -> Rhode Island | BU14: =BR41 ->  | DH14: 108 | DI14: 108 | DJ14: 20 | DK14: 20 | DL14: FALSE | DM14: FALSE | DN14: FALSE | DO14: 118 | DP14: 118 | DQ14: 0 | DT14: 0 | DU14: FALSE | DV14: 13 | DW14: Idaho | DX14: 0Idaho | EB14: 17
A15: =IFERROR(HYPERLINK(getCoor(ROW(),COLUMN()),""),"") ->  | B15: =IFERROR(HYPERLINK(getCoor(ROW(),COLUMN()),""),"") ->  | C15: =IFERROR(HYPERLINK(getCoor(ROW(),COLUMN()),""),"") ->  | D15: =IFERROR(HYPERLINK(getCoor(ROW(),COLUMN()),""),"") ->  | E15: =IFERROR(HYPERLINK(getCoor(ROW(),COLUMN()),""),"") ->  | F15: =IFERROR(HYPERLINK(getCoor(ROW(),COLUMN()),""),"") ->  | G15: =IFERROR(HYPERLINK(getCoor(ROW(),COLUMN()),""),"") ->  | H15: =IFERROR(HYPERLINK(getCoor(ROW(),COLUMN()),""),"") ->  | I15: =IFERROR(HYPERLINK(getCoor(ROW(),COLUMN()),""),"") ->  | J15: =IFERROR(HYPERLINK(getCoor(ROW(),COLUMN()),""),"") ->  | K15: =IFERROR(HYPERLINK(getCoor(ROW(),COLUMN()),""),"") ->  | L15: =IFERROR(HYPERLINK(getCoor(ROW(),COLUMN()),""),"") ->  | M15: =IFERROR(HYPERLINK(getCoor(ROW(),COLUMN()),""),"") ->  | N15: =IFERROR(HYPERLINK(getCoor(ROW(),COLUMN()),""),"") ->  | O15: =IFERROR(HYPERLINK(getCoor(ROW(),COLUMN()),""),"") ->  | P15: =IFERROR(HYPERLINK(getCoor(ROW(),COLUMN()),""),"") ->  | Q15: =IFERROR(HYPERLINK(getCoor(ROW(),COLUMN()),""),"") ->  | R15: =IFERROR(HYPERLINK(getCoor(ROW(),COLUMN()),""),"") ->  | S15: =IFERROR(HYPERLINK(getCoor(ROW(),COLUMN()),""),"") ->  | T15: =IFERROR(HYPERLINK(getCoor(ROW(),COLUMN()),""),"") ->  | U15: =IFERROR(HYPERLINK(getCoor(ROW(),COLUMN()),""),"") ->  | V15: =IFERROR(HYPERLINK(getCoor(ROW(),COLUMN()),""),"") ->  | W15: =IFERROR(HYPERLINK(getCoor(ROW(),COLUMN()),""),"") ->  | X15: =IFERROR(HYPERLINK(getCoor(ROW(),COLUMN()),""),"") ->  | Y15: =IFERROR(HYPERLINK(getCoor(ROW(),COLUMN()),""),"") ->  | Z15: =IFERROR(HYPERLINK(getCoor(ROW(),COLUMN()),""),"") ->  | AA15: =IFERROR(HYPERLINK(getCoor(ROW(),COLUMN()),""),"") ->  | AB15: =IFERROR(HYPERLINK(getCoor(ROW(),COLUMN()),""),"") ->  | AC15: =IFERROR(HYPERLINK(getCoor(ROW(),COLUMN()),""),"") ->  | AD15: =IFERROR(HYPERLINK(getCoor(ROW(),COLUMN()),""),"") ->  | AE15: =IFERROR(HYPERLINK(getCoor(ROW(),COLUMN()),""),"") ->  | AF15: =IFERROR(HYPERLINK(getCoor(ROW(),COLUMN()),""),"") ->  | AG15: =IFERROR(HYPERLINK(getCoor(ROW(),COLUMN()),""),"") ->  | AH15: =IFERROR(HYPERLINK(getCoor(ROW(),COLUMN()),""),"") ->  | AI15: =IFERROR(HYPERLINK(getCoor(ROW(),COLUMN()),""),"") ->  | AJ15: =IFERROR(HYPERLINK(getCoor(ROW(),COLUMN()),""),"") ->  | AK15: =IFERROR(HYPERLINK(getCoor(ROW(),COLUMN()),""),"") ->  | AL15: =IFERROR(HYPERLINK(getCoor(ROW(),COLUMN()),""),"") ->  | AM15: =IFERROR(HYPERLINK(getCoor(ROW(),COLUMN()),""),"") ->  | AN15: =IFERROR(HYPERLINK(getCoor(ROW(),COLUMN()),""),"") ->  | AO15: =IFERROR(HYPERLINK(getCoor(ROW(),COLUMN()),""),"") ->  | AP15: =IFERROR(HYPERLINK(getCoor(ROW(),COLUMN()),""),"") ->  | AQ15: =IFERROR(HYPERLINK(getCoor(ROW(),COLUMN()),""),"") ->  | AR15: =IFERROR(HYPERLINK(getCoor(ROW(),COLUMN()),""),"") ->  | AS15: =IFERROR(HYPERLINK(getCoor(ROW(),COLUMN()),""),"") ->  | AT15: =IFERROR(HYPERLINK(getCoor(ROW(),COLUMN()),""),"") ->  | AU15: =IFERROR(HYPERLINK(getCoor(ROW(),COLUMN()),""),"") ->  | AV15: =IFERROR(HYPERLINK(getCoor(ROW(),COLUMN()),""),"") ->  | AW15: =IFERROR(HYPERLINK(getCoor(ROW(),COLUMN()),""),"") ->  | AX15: =IFERROR(HYPERLINK(getCoor(ROW(),COLUMN()),""),"") ->  | AY15: =IFERROR(HYPERLINK(getCoor(ROW(),COLUMN()),""),"") ->  | AZ15: =IFERROR(HYPERLINK(getCoor(ROW(),COLUMN()),""),"") ->  | BA15: =IFERROR(HYPERLINK(getCoor(ROW(),COLUMN()),""),"") ->  | BB15: =IFERROR(HYPERLINK(getCoor(ROW(),COLUMN()),""),"") ->  | BC15: =IFERROR(HYPERLINK(getCoor(ROW(),COLUMN()),""),"") ->  | BD15: =IFERROR(HYPERLINK(getCoor(ROW(),COLUMN()),""),"") ->  | BE15: =IFERROR(HYPERLINK(getCoor(ROW(),COLUMN()),""),"") ->  | BF15: =IFERROR(HYPERLINK(getCoor(ROW(),COLUMN()),""),"") ->  | BG15: =IFERROR(HYPERLINK(getCoor(ROW(),COLUMN()),""),"") ->  | BH15: =IFERROR(HYPERLINK(getCoor(ROW(),COLUMN()),""),"") ->  | BI15: =IFERROR(HYPERLINK(getCoor(ROW(),COLUMN()),""),"") ->  | BJ15: =IFERROR(HYPERLINK(getCoor(ROW(),COLUMN()),""),"") ->  | BK15: =IFERROR(HYPERLINK(getCoor(ROW(),COLUMN()),""),"") ->  | BL15: 14 | BM15: Illinois | BN15: =IFERROR(HLOOKUP($DS$5,Table!$I$182:$BL$237,Table!BN199),"") ->  | BP15: =IFERROR(VLOOKUP($DS$5,Table!$A$186:$BL$237,Table!BO199),"") ->  | BS15: 40 | BT15: =BM40 -> Pennsylvania | BU15: =BR40 ->  | DH15: 333 | DI15: 162 | DJ15: 7 | DK15: 7 | DL15: FALSE | DM15: FALSE | DN15: FALSE | DO15: 336.5 | DP15: 165.5 | DQ15: 0 | DT15: 0 | DU15: FALSE | DV15: 14 | DW15: Illinois | DX15: 0Illinois | EB15: 18
A16: =IFERROR(HYPERLINK(getCoor(ROW(),COLUMN()),""),"") ->  | B16: =IFERROR(HYPERLINK(getCoor(ROW(),COLUMN()),""),"") ->  | C16: =IFERROR(HYPERLINK(getCoor(ROW(),COLUMN()),""),"") ->  | D16: =IFERROR(HYPERLINK(getCoor(ROW(),COLUMN()),""),"") ->  | E16: =IFERROR(HYPERLINK(getCoor(ROW(),COLUMN()),""),"") ->  | F16: =IFERROR(HYPERLINK(getCoor(ROW(),COLUMN()),""),"") ->  | G16: =IFERROR(HYPERLINK(getCoor(ROW(),COLUMN()),""),"") ->  | H16: =IFERROR(HYPERLINK(getCoor(ROW(),COLUMN()),""),"") ->  | I16: =IFERROR(HYPERLINK(getCoor(ROW(),COLUMN()),""),"") ->  | J16: =IFERROR(HYPERLINK(getCoor(ROW(),COLUMN()),""),"") ->  | K16: =IFERROR(HYPERLINK(getCoor(ROW(),COLUMN()),""),"") ->  | L16: =IFERROR(HYPERLINK(getCoor(ROW(),COLUMN()),""),"") ->  | M16: =IFERROR(HYPERLINK(getCoor(ROW(),COLUMN()),""),"") ->  | N16: =IFERROR(HYPERLINK(getCoor(ROW(),COLUMN()),""),"") ->  | O16: =IFERROR(HYPERLINK(getCoor(ROW(),COLUMN()),""),"") ->  | P16: =IFERROR(HYPERLINK(getCoor(ROW(),COLUMN()),""),"") ->  | Q16: =IFERROR(HYPERLINK(getCoor(ROW(),COLUMN()),""),"") ->  | R16: =IFERROR(HYPERLINK(getCoor(ROW(),COLUMN()),""),"") ->  | S16: =IFERROR(HYPERLINK(getCoor(ROW(),COLUMN()),""),"") ->  | T16: =IFERROR(HYPERLINK(getCoor(ROW(),COLUMN()),""),"") ->  | U16: =IFERROR(HYPERLINK(getCoor(ROW(),COLUMN()),""),"") ->  | V16: =IFERROR(HYPERLINK(getCoor(ROW(),COLUMN()),""),"") ->  | W16: =IFERROR(HYPERLINK(getCoor(ROW(),COLUMN()),""),"") ->  | X16: =IFERROR(HYPERLINK(getCoor(ROW(),COLUMN()),""),"") ->  | Y16: =IFERROR(HYPERLINK(getCoor(ROW(),COLUMN()),""),"") ->  | Z16: =IFERROR(HYPERLINK(getCoor(ROW(),COLUMN()),""),"") ->  | AA16: =IFERROR(HYPERLINK(getCoor(ROW(),COLUMN()),""),"") ->  | AB16: =IFERROR(HYPERLINK(getCoor(ROW(),COLUMN()),""),"") ->  | AC16: =IFERROR(HYPERLINK(getCoor(ROW(),COLUMN()),""),"") ->  | AD16: =IFERROR(HYPERLINK(getCoor(ROW(),COLUMN()),""),"") ->  | AE16: =IFERROR(HYPERLINK(getCoor(ROW(),COLUMN()),""),"") ->  | AF16: =IFERROR(HYPERLINK(getCoor(ROW(),COLUMN()),""),"") ->  | AG16: =IFERROR(HYPERLINK(getCoor(ROW(),COLUMN()),""),"") ->  | AH16: =IFERROR(HYPERLINK(getCoor(ROW(),COLUMN()),""),"") ->  | AI16: =IFERROR(HYPERLINK(getCoor(ROW(),COLUMN()),""),"") ->  | AJ16: =IFERROR(HYPERLINK(getCoor(ROW(),COLUMN()),""),"") ->  | AK16: =IFERROR(HYPERLINK(getCoor(ROW(),COLUMN()),""),"") ->  | AL16: =IFERROR(HYPERLINK(getCoor(ROW(),COLUMN()),""),"") ->  | AM16: =IFERROR(HYPERLINK(getCoor(ROW(),COLUMN()),""),"") ->  | AN16: =IFERROR(HYPERLINK(getCoor(ROW(),COLUMN()),""),"") ->  | AO16: =IFERROR(HYPERLINK(getCoor(ROW(),COLUMN()),""),"") ->  | AP16: =IFERROR(HYPERLINK(getCoor(ROW(),COLUMN()),""),"") ->  | AQ16: =IFERROR(HYPERLINK(getCoor(ROW(),COLUMN()),""),"") ->  | AR16: =IFERROR(HYPERLINK(getCoor(ROW(),COLUMN()),""),"") ->  | AS16: =IFERROR(HYPERLINK(getCoor(ROW(),COLUMN()),""),"") ->  | AT16: =IFERROR(HYPERLINK(getCoor(ROW(),COLUMN()),""),"") ->  | AU16: =IFERROR(HYPERLINK(getCoor(ROW(),COLUMN()),""),"") ->  | AV16: =IFERROR(HYPERLINK(getCoor(ROW(),COLUMN()),""),"") ->  | AW16: =IFERROR(HYPERLINK(getCoor(ROW(),COLUMN()),""),"") ->  | AX16: =IFERROR(HYPERLINK(getCoor(ROW(),COLUMN()),""),"") ->  | AY16: =IFERROR(HYPERLINK(getCoor(ROW(),COLUMN()),""),"") ->  | AZ16: =IFERROR(HYPERLINK(getCoor(ROW(),COLUMN()),""),"") ->  | BA16: =IFERROR(HYPERLINK(getCoor(ROW(),COLUMN()),""),"") ->  | BB16: =IFERROR(HYPERLINK(getCoor(ROW(),COLUMN()),""),"") ->  | BC16: =IFERROR(HYPERLINK(getCoor(ROW(),COLUMN()),""),"") ->  | BD16: =IFERROR(HYPERLINK(getCoor(ROW(),COLUMN()),""),"") ->  | BE16: =IFERROR(HYPERLINK(getCoor(ROW(),COLUMN()),""),"") ->  | BF16: =IFERROR(HYPERLINK(getCoor(ROW(),COLUMN()),""),"") ->  | BG16: =IFERROR(HYPERLINK(getCoor(ROW(),COLUMN()),""),"") ->  | BH16: =IFERROR(HYPERLINK(getCoor(ROW(),COLUMN()),""),"") ->  | BI16: =IFERROR(HYPERLINK(getCoor(ROW(),COLUMN()),""),"") ->  | BJ16: =IFERROR(HYPERLINK(getCoor(ROW(),COLUMN()),""),"") ->  | BK16: =IFERROR(HYPERLINK(getCoor(ROW(),COLUMN()),""),"") ->  | BL16: 15 | BM16: Indiana | BN16: =IFERROR(HLOOKUP($DS$5,Table!$I$182:$BL$237,Table!BN200),"") ->  | BP16: =IFERROR(VLOOKUP($DS$5,Table!$A$186:$BL$237,Table!BO200),"") ->  | BS16: 39 | BT16: =BM39 -> Oregon | BU16: =BR39 ->  | DH16: 360 | DI16: 162 | DJ16: 14 | DK16: 14 | DL16: FALSE | DM16: FALSE | DN16: FALSE | DO16: 367 | DP16: 169 | DQ16: 0 | DT16: 0 | DU16: FALSE | DV16: 15 | DW16: Indiana | DX16: 0Indiana | EB16: 19
A17: =IFERROR(HYPERLINK(getCoor(ROW(),COLUMN()),""),"") ->  | B17: =IFERROR(HYPERLINK(getCoor(ROW(),COLUMN()),""),"") ->  | C17: =IFERROR(HYPERLINK(getCoor(ROW(),COLUMN()),""),"") ->  | D17: =IFERROR(HYPERLINK(getCoor(ROW(),COLUMN()),""),"") ->  | E17: =IFERROR(HYPERLINK(getCoor(ROW(),COLUMN()),""),"") ->  | F17: =IFERROR(HYPERLINK(getCoor(ROW(),COLUMN()),""),"") ->  | G17: =IFERROR(HYPERLINK(getCoor(ROW(),COLUMN()),""),"") ->  | H17: =IFERROR(HYPERLINK(getCoor(ROW(),COLUMN()),""),"") ->  | I17: =IFERROR(HYPERLINK(getCoor(ROW(),COLUMN()),""),"") ->  | J17: =IFERROR(HYPERLINK(getCoor(ROW(),COLUMN()),""),"") ->  | K17: =IFERROR(HYPERLINK(getCoor(ROW(),COLUMN()),""),"") ->  | L17: =IFERROR(HYPERLINK(getCoor(ROW(),COLUMN()),""),"") ->  | M17: =IFERROR(HYPERLINK(getCoor(ROW(),COLUMN()),""),"") ->  | N17: =IFERROR(HYPERLINK(getCoor(ROW(),COLUMN()),""),"") ->  | O17: =IFERROR(HYPERLINK(getCoor(ROW(),COLUMN()),""),"") ->  | P17: =IFERROR(HYPERLINK(getCoor(ROW(),COLUMN()),""),"") ->  | Q17: =IFERROR(HYPERLINK(getCoor(ROW(),COLUMN()),""),"") ->  | R17: =IFERROR(HYPERLINK(getCoor(ROW(),COLUMN()),""),"") ->  | S17: =IFERROR(HYPERLINK(getCoor(ROW(),COLUMN()),""),"") ->  | T17: =IFERROR(HYPERLINK(getCoor(ROW(),COLUMN()),""),"") ->  | U17: =IFERROR(HYPERLINK(getCoor(ROW(),COLUMN()),""),"") ->  | V17: =IFERROR(HYPERLINK(getCoor(ROW(),COLUMN()),""),"") ->  | W17: =IFERROR(HYPERLINK(getCoor(ROW(),COLUMN()),""),"") ->  | X17: =IFERROR(HYPERLINK(getCoor(ROW(),COLUMN()),""),"") ->  | Y17: =IFERROR(HYPERLINK(getCoor(ROW(),COLUMN()),""),"") ->  | Z17: =IFERROR(HYPERLINK(getCoor(ROW(),COLUMN()),""),"") ->  | AA17: =IFERROR(HYPERLINK(getCoor(ROW(),COLUMN()),""),"") ->  | AB17: =IFERROR(HYPERLINK(getCoor(ROW(),COLUMN()),""),"") ->  | AC17: =IFERROR(HYPERLINK(getCoor(ROW(),COLUMN()),""),"") ->  | AD17: =IFERROR(HYPERLINK(getCoor(ROW(),COLUMN()),""),"") ->  | AE17: =IFERROR(HYPERLINK(getCoor(ROW(),COLUMN()),""),"") ->  | AF17: =IFERROR(HYPERLINK(getCoor(ROW(),COLUMN()),""),"") ->  | AG17: =IFERROR(HYPERLINK(getCoor(ROW(),COLUMN()),""),"") ->  | AH17: =IFERROR(HYPERLINK(getCoor(ROW(),COLUMN()),""),"") ->  | AI17: =IFERROR(HYPERLINK(getCoor(ROW(),COLUMN()),""),"") ->  | AJ17: =IFERROR(HYPERLINK(getCoor(ROW(),COLUMN()),""),"") ->  | AK17: =IFERROR(HYPERLINK(getCoor(ROW(),COLUMN()),""),"") ->  | AL17: =IFERROR(HYPERLINK(getCoor(ROW(),COLUMN()),""),"") ->  | AM17: =IFERROR(HYPERLINK(getCoor(ROW(),COLUMN()),""),"") ->  | AN17: =IFERROR(HYPERLINK(getCoor(ROW(),COLUMN()),""),"") ->  | AO17: =IFERROR(HYPERLINK(getCoor(ROW(),COLUMN()),""),"") ->  | AP17: =IFERROR(HYPERLINK(getCoor(ROW(),COLUMN()),""),"") ->  | AQ17: =IFERROR(HYPERLINK(getCoor(ROW(),COLUMN()),""),"") ->  | AR17: =IFERROR(HYPERLINK(getCoor(ROW(),COLUMN()),""),"") ->  | AS17: =IFERROR(HYPERLINK(getCoor(ROW(),COLUMN()),""),"") ->  | AT17: =IFERROR(HYPERLINK(getCoor(ROW(),COLUMN()),""),"") ->  | AU17: =IFERROR(HYPERLINK(getCoor(ROW(),COLUMN()),""),"") ->  | AV17: =IFERROR(HYPERLINK(getCoor(ROW(),COLUMN()),""),"") ->  | AW17: =IFERROR(HYPERLINK(getCoor(ROW(),COLUMN()),""),"") ->  | AX17: =IFERROR(HYPERLINK(getCoor(ROW(),COLUMN()),""),"") ->  | AY17: =IFERROR(HYPERLINK(getCoor(ROW(),COLUMN()),""),"") ->  | AZ17: =IFERROR(HYPERLINK(getCoor(ROW(),COLUMN()),""),"") ->  | BA17: =IFERROR(HYPERLINK(getCoor(ROW(),COLUMN()),""),"") ->  | BB17: =IFERROR(HYPERLINK(getCoor(ROW(),COLUMN()),""),"") ->  | BC17: =IFERROR(HYPERLINK(getCoor(ROW(),COLUMN()),""),"") ->  | BD17: =IFERROR(HYPERLINK(getCoor(ROW(),COLUMN()),""),"") ->  | BE17: =IFERROR(HYPERLINK(getCoor(ROW(),COLUMN()),""),"") ->  | BF17: =IFERROR(HYPERLINK(getCoor(ROW(),COLUMN()),""),"") ->  | BG17: =IFERROR(HYPERLINK(getCoor(ROW(),COLUMN()),""),"") ->  | BH17: =IFERROR(HYPERLINK(getCoor(ROW(),COLUMN()),""),"") ->  | BI17: =IFERROR(HYPERLINK(getCoor(ROW(),COLUMN()),""),"") ->  | BJ17: =IFERROR(HYPERLINK(getCoor(ROW(),COLUMN()),""),"") ->  | BK17: =IFERROR(HYPERLINK(getCoor(ROW(),COLUMN()),""),"") ->  | BL17: 16 | BM17: Iowa | BN17: =IFERROR(HLOOKUP($DS$5,Table!$I$182:$BL$237,Table!BN201),"") ->  | BP17: =IFERROR(VLOOKUP($DS$5,Table!$A$186:$BL$237,Table!BO201),"") ->  | BS17: 38 | BT17: =BM38 -> Oklahoma | BU17: =BR38 ->  | DH17: 288 | DI17: 135 | DJ17: 14 | DK17: 14 | DL17: FALSE | DM17: FALSE | DN17: FALSE | DO17: 295 | DP17: 142 | DQ17: 0 | DT17: =IF(DU17=TRUE,1,0) -> 0 | DU17: FALSE | DV17: 16 | DW17: Iowa | DX17: =--DU17&DW17 -> 0Iowa | EB17: 20
A18: =IFERROR(HYPERLINK(getCoor(ROW(),COLUMN()),""),"") ->  | B18: =IFERROR(HYPERLINK(getCoor(ROW(),COLUMN()),""),"") ->  | C18: =IFERROR(HYPERLINK(getCoor(ROW(),COLUMN()),""),"") ->  | D18: =IFERROR(HYPERLINK(getCoor(ROW(),COLUMN()),""),"") ->  | E18: =IFERROR(HYPERLINK(getCoor(ROW(),COLUMN()),""),"") ->  | F18: =IFERROR(HYPERLINK(getCoor(ROW(),COLUMN()),""),"") ->  | G18: =IFERROR(HYPERLINK(getCoor(ROW(),COLUMN()),""),"") ->  | H18: =IFERROR(HYPERLINK(getCoor(ROW(),COLUMN()),""),"") ->  | I18: =IFERROR(HYPERLINK(getCoor(ROW(),COLUMN()),""),"") ->  | J18: =IFERROR(HYPERLINK(getCoor(ROW(),COLUMN()),""),"") ->  | K18: =IFERROR(HYPERLINK(getCoor(ROW(),COLUMN()),""),"") ->  | L18: =IFERROR(HYPERLINK(getCoor(ROW(),COLUMN()),""),"") ->  | M18: =IFERROR(HYPERLINK(getCoor(ROW(),COLUMN()),""),"") ->  | N18: =IFERROR(HYPERLINK(getCoor(ROW(),COLUMN()),""),"") ->  | O18: =IFERROR(HYPERLINK(getCoor(ROW(),COLUMN()),""),"") ->  | P18: =IFERROR(HYPERLINK(getCoor(ROW(),COLUMN()),""),"") ->  | Q18: =IFERROR(HYPERLINK(getCoor(ROW(),COLUMN()),""),"") ->  | R18: =IFERROR(HYPERLINK(getCoor(ROW(),COLUMN()),""),"") ->  | S18: =IFERROR(HYPERLINK(getCoor(ROW(),COLUMN()),""),"") ->  | T18: =IFERROR(HYPERLINK(getCoor(ROW(),COLUMN()),""),"") ->  | U18: =IFERROR(HYPERLINK(getCoor(ROW(),COLUMN()),""),"") ->  | V18: =IFERROR(HYPERLINK(getCoor(ROW(),COLUMN()),""),"") ->  | W18: =IFERROR(HYPERLINK(getCoor(ROW(),COLUMN()),""),"") ->  | X18: =IFERROR(HYPERLINK(getCoor(ROW(),COLUMN()),""),"") ->  | Y18: =IFERROR(HYPERLINK(getCoor(ROW(),COLUMN()),""),"") ->  | Z18: =IFERROR(HYPERLINK(getCoor(ROW(),COLUMN()),""),"") ->  | AA18: =IFERROR(HYPERLINK(getCoor(ROW(),COLUMN()),""),"") ->  | AB18: =IFERROR(HYPERLINK(getCoor(ROW(),COLUMN()),""),"") ->  | AC18: =IFERROR(HYPERLINK(getCoor(ROW(),COLUMN()),""),"") ->  | AD18: =IFERROR(HYPERLINK(getCoor(ROW(),COLUMN()),""),"") ->  | AE18: =IFERROR(HYPERLINK(getCoor(ROW(),COLUMN()),""),"") ->  | AF18: =IFERROR(HYPERLINK(getCoor(ROW(),COLUMN()),""),"") ->  | AG18: =IFERROR(HYPERLINK(getCoor(ROW(),COLUMN()),""),"") ->  | AH18: =IFERROR(HYPERLINK(getCoor(ROW(),COLUMN()),""),"") ->  | AI18: =IFERROR(HYPERLINK(getCoor(ROW(),COLUMN()),""),"") ->  | AJ18: =IFERROR(HYPERLINK(getCoor(ROW(),COLUMN()),""),"") ->  | AK18: =IFERROR(HYPERLINK(getCoor(ROW(),COLUMN()),""),"") ->  | AL18: =IFERROR(HYPERLINK(getCoor(ROW(),COLUMN()),""),"") ->  | AM18: =IFERROR(HYPERLINK(getCoor(ROW(),COLUMN()),""),"") ->  | AN18: =IFERROR(HYPERLINK(getCoor(ROW(),COLUMN()),""),"") ->  | AO18: =IFERROR(HYPERLINK(getCoor(ROW(),COLUMN()),""),"") ->  | AP18: =IFERROR(HYPERLINK(getCoor(ROW(),COLUMN()),""),"") ->  | AQ18: =IFERROR(HYPERLINK(getCoor(ROW(),COLUMN()),""),"") ->  | AR18: =IFERROR(HYPERLINK(getCoor(ROW(),COLUMN()),""),"") ->  | AS18: =IFERROR(HYPERLINK(getCoor(ROW(),COLUMN()),""),"") ->  | AT18: =IFERROR(HYPERLINK(getCoor(ROW(),COLUMN()),""),"") ->  | AU18: =IFERROR(HYPERLINK(getCoor(ROW(),COLUMN()),""),"") ->  | AV18: =IFERROR(HYPERLINK(getCoor(ROW(),COLUMN()),""),"") ->  | AW18: =IFERROR(HYPERLINK(getCoor(ROW(),COLUMN()),""),"") ->  | AX18: =IFERROR(HYPERLINK(getCoor(ROW(),COLUMN()),""),"") ->  | AY18: =IFERROR(HYPERLINK(getCoor(ROW(),COLUMN()),""),"") ->  | AZ18: =IFERROR(HYPERLINK(getCoor(ROW(),COLUMN()),""),"") ->  | BA18: =IFERROR(HYPERLINK(getCoor(ROW(),COLUMN()),""),"") ->  | BB18: =IFERROR(HYPERLINK(getCoor(ROW(),COLUMN()),""),"") ->  | BC18: =IFERROR(HYPERLINK(getCoor(ROW(),COLUMN()),""),"") ->  | BD18: =IFERROR(HYPERLINK(getCoor(ROW(),COLUMN()),""),"") ->  | BE18: =IFERROR(HYPERLINK(getCoor(ROW(),COLUMN()),""),"") ->  | BF18: =IFERROR(HYPERLINK(getCoor(ROW(),COLUMN()),""),"") ->  | BG18: =IFERROR(HYPERLINK(getCoor(ROW(),COLUMN()),""),"") ->  | BH18: =IFERROR(HYPERLINK(getCoor(ROW(),COLUMN()),""),"") ->  | BI18: =IFERROR(HYPERLINK(getCoor(ROW(),COLUMN()),""),"") ->  | BJ18: =IFERROR(HYPERLINK(getCoor(ROW(),COLUMN()),""),"") ->  | BK18: =IFERROR(HYPERLINK(getCoor(ROW(),COLUMN()),""),"") ->  | BL18: 17 | BM18: Kansas | BN18: =IFERROR(HLOOKUP($DS$5,Table!$I$182:$BL$237,Table!BN202),"") ->  | BP18: =IFERROR(VLOOKUP($DS$5,Table!$A$186:$BL$237,Table!BO202),"") ->  | BS18: 37 | BT18: =BM37 -> Ohio | BU18: =BR37 ->  | DH18: 243 | DI18: 189 | DJ18: 14 | DK18: 14 | DL18: FALSE | DM18: FALSE | DN18: FALSE | DO18: 250 | DP18: 196 | DQ18: 0 | DT18: 0 | DU18: FALSE | DV18: 17 | DW18: Kansas | DX18: 0Kansas | EB18: 21
A19: =IFERROR(HYPERLINK(getCoor(ROW(),COLUMN()),""),"") ->  | B19: =IFERROR(HYPERLINK(getCoor(ROW(),COLUMN()),""),"") ->  | C19: =IFERROR(HYPERLINK(getCoor(ROW(),COLUMN()),""),"") ->  | D19: =IFERROR(HYPERLINK(getCoor(ROW(),COLUMN()),""),"") ->  | E19: =IFERROR(HYPERLINK(getCoor(ROW(),COLUMN()),""),"") ->  | F19: =IFERROR(HYPERLINK(getCoor(ROW(),COLUMN()),""),"") ->  | G19: =IFERROR(HYPERLINK(getCoor(ROW(),COLUMN()),""),"") ->  | H19: =IFERROR(HYPERLINK(getCoor(ROW(),COLUMN()),""),"") ->  | I19: =IFERROR(HYPERLINK(getCoor(ROW(),COLUMN()),""),"") ->  | J19: =IFERROR(HYPERLINK(getCoor(ROW(),COLUMN()),""),"") ->  | K19: =IFERROR(HYPERLINK(getCoor(ROW(),COLUMN()),""),"") ->  | L19: =IFERROR(HYPERLINK(getCoor(ROW(),COLUMN()),""),"") ->  | M19: =IFERROR(HYPERLINK(getCoor(ROW(),COLUMN()),""),"") ->  | N19: =IFERROR(HYPERLINK(getCoor(ROW(),COLUMN()),""),"") ->  | O19: =IFERROR(HYPERLINK(getCoor(ROW(),COLUMN()),""),"") ->  | P19: =IFERROR(HYPERLINK(getCoor(ROW(),COLUMN()),""),"") ->  | Q19: =IFERROR(HYPERLINK(getCoor(ROW(),COLUMN()),""),"") ->  | R19: =IFERROR(HYPERLINK(getCoor(ROW(),COLUMN()),""),"") ->  | S19: =IFERROR(HYPERLINK(getCoor(ROW(),COLUMN()),""),"") ->  | T19: =IFERROR(HYPERLINK(getCoor(ROW(),COLUMN()),""),"") ->  | U19: =IFERROR(HYPERLINK(getCoor(ROW(),COLUMN()),""),"") ->  | V19: =IFERROR(HYPERLINK(getCoor(ROW(),COLUMN()),""),"") ->  | W19: =IFERROR(HYPERLINK(getCoor(ROW(),COLUMN()),""),"") ->  | X19: =IFERROR(HYPERLINK(getCoor(ROW(),COLUMN()),""),"") ->  | Y19: =IFERROR(HYPERLINK(getCoor(ROW(),COLUMN()),""),"") ->  | Z19: =IFERROR(HYPERLINK(getCoor(ROW(),COLUMN()),""),"") ->  | AA19: =IFERROR(HYPERLINK(getCoor(ROW(),COLUMN()),""),"") ->  | AB19: =IFERROR(HYPERLINK(getCoor(ROW(),COLUMN()),""),"") ->  | AC19: =IFERROR(HYPERLINK(getCoor(ROW(),COLUMN()),""),"") ->  | AD19: =IFERROR(HYPERLINK(getCoor(ROW(),COLUMN()),""),"") ->  | AE19: =IFERROR(HYPERLINK(getCoor(ROW(),COLUMN()),""),"") ->  | AF19: =IFERROR(HYPERLINK(getCoor(ROW(),COLUMN()),""),"") ->  | AG19: =IFERROR(HYPERLINK(getCoor(ROW(),COLUMN()),""),"") ->  | AH19: =IFERROR(HYPERLINK(getCoor(ROW(),COLUMN()),""),"") ->  | AI19: =IFERROR(HYPERLINK(getCoor(ROW(),COLUMN()),""),"") ->  | AJ19: =IFERROR(HYPERLINK(getCoor(ROW(),COLUMN()),""),"") ->  | AK19: =IFERROR(HYPERLINK(getCoor(ROW(),COLUMN()),""),"") ->  | AL19: =IFERROR(HYPERLINK(getCoor(ROW(),COLUMN()),""),"") ->  | AM19: =IFERROR(HYPERLINK(getCoor(ROW(),COLUMN()),""),"") ->  | AN19: =IFERROR(HYPERLINK(getCoor(ROW(),COLUMN()),""),"") ->  | AO19: =IFERROR(HYPERLINK(getCoor(ROW(),COLUMN()),""),"") ->  | AP19: =IFERROR(HYPERLINK(getCoor(ROW(),COLUMN()),""),"") ->  | AQ19: =IFERROR(HYPERLINK(getCoor(ROW(),COLUMN()),""),"") ->  | AR19: =IFERROR(HYPERLINK(getCoor(ROW(),COLUMN()),""),"") ->  | AS19: =IFERROR(HYPERLINK(getCoor(ROW(),COLUMN()),""),"") ->  | AT19: =IFERROR(HYPERLINK(getCoor(ROW(),COLUMN()),""),"") ->  | AU19: =IFERROR(HYPERLINK(getCoor(ROW(),COLUMN()),""),"") ->  | AV19: =IFERROR(HYPERLINK(getCoor(ROW(),COLUMN()),""),"") ->  | AW19: =IFERROR(HYPERLINK(getCoor(ROW(),COLUMN()),""),"") ->  | AX19: =IFERROR(HYPERLINK(getCoor(ROW(),COLUMN()),""),"") ->  | AY19: =IFERROR(HYPERLINK(getCoor(ROW(),COLUMN()),""),"") ->  | AZ19: =IFERROR(HYPERLINK(getCoor(ROW(),COLUMN()),""),"") ->  | BA19: =IFERROR(HYPERLINK(getCoor(ROW(),COLUMN()),""),"") ->  | BB19: =IFERROR(HYPERLINK(getCoor(ROW(),COLUMN()),""),"") ->  | BC19: =IFERROR(HYPERLINK(getCoor(ROW(),COLUMN()),""),"") ->  | BD19: =IFERROR(HYPERLINK(getCoor(ROW(),COLUMN()),""),"") ->  | BE19: =IFERROR(HYPERLINK(getCoor(ROW(),COLUMN()),""),"") ->  | BF19: =IFERROR(HYPERLINK(getCoor(ROW(),COLUMN()),""),"") ->  | BG19: =IFERROR(HYPERLINK(getCoor(ROW(),COLUMN()),""),"") ->  | BH19: =IFERROR(HYPERLINK(getCoor(ROW(),COLUMN()),""),"") ->  | BI19: =IFERROR(HYPERLINK(getCoor(ROW(),COLUMN()),""),"") ->  | BJ19: =IFERROR(HYPERLINK(getCoor(ROW(),COLUMN()),""),"") ->  | BK19: =IFERROR(HYPERLINK(getCoor(ROW(),COLUMN()),""),"") ->  | BL19: 18 | BM19: Kentucky | BN19: =IFERROR(HLOOKUP($DS$5,Table!$I$182:$BL$237,Table!BN203),"") ->  | BP19: =IFERROR(VLOOKUP($DS$5,Table!$A$186:$BL$237,Table!BO203),"") ->  | BS19: 36 | BT19: =BM36 -> North Dakota | BU19: =BR36 ->  | DH19: 378 | DI19: 202 | DJ19: 14 | DK19: 14 | DL19: TRUE | DM19: FALSE | DN19: FALSE | DO19: 385 | DP19: 209 | DQ19: 0 | DT19: 0 | DU19: FALSE | DV19: 18 | DW19: Kentucky | DX19: 0Kentucky | EB19: 22
A20: =IFERROR(HYPERLINK(getCoor(ROW(),COLUMN()),""),"") ->  | B20: =IFERROR(HYPERLINK(getCoor(ROW(),COLUMN()),""),"") ->  | C20: =IFERROR(HYPERLINK(getCoor(ROW(),COLUMN()),""),"") ->  | D20: =IFERROR(HYPERLINK(getCoor(ROW(),COLUMN()),""),"") ->  | E20: =IFERROR(HYPERLINK(getCoor(ROW(),COLUMN()),""),"") ->  | F20: =IFERROR(HYPERLINK(getCoor(ROW(),COLUMN()),""),"") ->  | G20: =IFERROR(HYPERLINK(getCoor(ROW(),COLUMN()),""),"") ->  | H20: =IFERROR(HYPERLINK(getCoor(ROW(),COLUMN()),""),"") ->  | I20: =IFERROR(HYPERLINK(getCoor(ROW(),COLUMN()),""),"") ->  | J20: =IFERROR(HYPERLINK(getCoor(ROW(),COLUMN()),""),"") ->  | K20: =IFERROR(HYPERLINK(getCoor(ROW(),COLUMN()),""),"") ->  | L20: =IFERROR(HYPERLINK(getCoor(ROW(),COLUMN()),""),"") ->  | M20: =IFERROR(HYPERLINK(getCoor(ROW(),COLUMN()),""),"") ->  | N20: =IFERROR(HYPERLINK(getCoor(ROW(),COLUMN()),""),"") ->  | O20: =IFERROR(HYPERLINK(getCoor(ROW(),COLUMN()),""),"") ->  | P20: =IFERROR(HYPERLINK(getCoor(ROW(),COLUMN()),""),"") ->  | Q20: =IFERROR(HYPERLINK(getCoor(ROW(),COLUMN()),""),"") ->  | R20: =IFERROR(HYPERLINK(getCoor(ROW(),COLUMN()),""),"") ->  | S20: =IFERROR(HYPERLINK(getCoor(ROW(),COLUMN()),""),"") ->  | T20: =IFERROR(HYPERLINK(getCoor(ROW(),COLUMN()),""),"") ->  | U20: =IFERROR(HYPERLINK(getCoor(ROW(),COLUMN()),""),"") ->  | V20: =IFERROR(HYPERLINK(getCoor(ROW(),COLUMN()),""),"") ->  | W20: =IFERROR(HYPERLINK(getCoor(ROW(),COLUMN()),""),"") ->  | X20: =IFERROR(HYPERLINK(getCoor(ROW(),COLUMN()),""),"") ->  | Y20: =IFERROR(HYPERLINK(getCoor(ROW(),COLUMN()),""),"") ->  | Z20: =IFERROR(HYPERLINK(getCoor(ROW(),COLUMN()),""),"") ->  | AA20: =IFERROR(HYPERLINK(getCoor(ROW(),COLUMN()),""),"") ->  | AB20: =IFERROR(HYPERLINK(getCoor(ROW(),COLUMN()),""),"") ->  | AC20: =IFERROR(HYPERLINK(getCoor(ROW(),COLUMN()),""),"") ->  | AD20: =IFERROR(HYPERLINK(getCoor(ROW(),COLUMN()),""),"") ->  | AE20: =IFERROR(HYPERLINK(getCoor(ROW(),COLUMN()),""),"") ->  | AF20: =IFERROR(HYPERLINK(getCoor(ROW(),COLUMN()),""),"") ->  | AG20: =IFERROR(HYPERLINK(getCoor(ROW(),COLUMN()),""),"") ->  | AH20: =IFERROR(HYPERLINK(getCoor(ROW(),COLUMN()),""),"") ->  | AI20: =IFERROR(HYPERLINK(getCoor(ROW(),COLUMN()),""),"") ->  | AJ20: =IFERROR(HYPERLINK(getCoor(ROW(),COLUMN()),""),"") ->  | AK20: =IFERROR(HYPERLINK(getCoor(ROW(),COLUMN()),""),"") ->  | AL20: =IFERROR(HYPERLINK(getCoor(ROW(),COLUMN()),""),"") ->  | AM20: =IFERROR(HYPERLINK(getCoor(ROW(),COLUMN()),""),"") ->  | AN20: =IFERROR(HYPERLINK(getCoor(ROW(),COLUMN()),""),"") ->  | AO20: =IFERROR(HYPERLINK(getCoor(ROW(),COLUMN()),""),"") ->  | AP20: =IFERROR(HYPERLINK(getCoor(ROW(),COLUMN()),""),"") ->  | AQ20: =IFERROR(HYPERLINK(getCoor(ROW(),COLUMN()),""),"") ->  | AR20: =IFERROR(HYPERLINK(getCoor(ROW(),COLUMN()),""),"") ->  | AS20: =IFERROR(HYPERLINK(getCoor(ROW(),COLUMN()),""),"") ->  | AT20: =IFERROR(HYPERLINK(getCoor(ROW(),COLUMN()),""),"") ->  | AU20: =IFERROR(HYPERLINK(getCoor(ROW(),COLUMN()),""),"") ->  | AV20: =IFERROR(HYPERLINK(getCoor(ROW(),COLUMN()),""),"") ->  | AW20: =IFERROR(HYPERLINK(getCoor(ROW(),COLUMN()),""),"") ->  | AX20: =IFERROR(HYPERLINK(getCoor(ROW(),COLUMN()),""),"") ->  | AY20: =IFERROR(HYPERLINK(getCoor(ROW(),COLUMN()),""),"") ->  | AZ20: =IFERROR(HYPERLINK(getCoor(ROW(),COLUMN()),""),"") ->  | BA20: =IFERROR(HYPERLINK(getCoor(ROW(),COLUMN()),""),"") ->  | BB20: =IFERROR(HYPERLINK(getCoor(ROW(),COLUMN()),""),"") ->  | BC20: =IFERROR(HYPERLINK(getCoor(ROW(),COLUMN()),""),"") ->  | BD20: =IFERROR(HYPERLINK(getCoor(ROW(),COLUMN()),""),"") ->  | BE20: =IFERROR(HYPERLINK(getCoor(ROW(),COLUMN()),""),"") ->  | BF20: =IFERROR(HYPERLINK(getCoor(ROW(),COLUMN()),""),"") ->  | BG20: =IFERROR(HYPERLINK(getCoor(ROW(),COLUMN()),""),"") ->  | BH20: =IFERROR(HYPERLINK(getCoor(ROW(),COLUMN()),""),"") ->  | BI20: =IFERROR(HYPERLINK(getCoor(ROW(),COLUMN()),""),"") ->  | BJ20: =IFERROR(HYPERLINK(getCoor(ROW(),COLUMN()),""),"") ->  | BK20: =IFERROR(HYPERLINK(getCoor(ROW(),COLUMN()),""),"") ->  | BL20: 19 | BM20: Louisiana | BN20: =IFERROR(HLOOKUP($DS$5,Table!$I$182:$BL$237,Table!BN204),"") ->  | BP20: =IFERROR(VLOOKUP($DS$5,Table!$A$186:$BL$237,Table!BO204),"") ->  | BS20: 35 | BT20: =BM35 -> North Carolina | BU20: =BR35 ->  | DH20: 315 | DI20: 297 | DJ20: 14 | DK20: 14 | DL20: FALSE | DM20: FALSE | DN20: FALSE | DO20: 322 | DP20: 304 | DQ20: 0 | DT20: 0 | DU20: FALSE | DV20: 19 | DW20: Louisiana | DX20: 0Louisiana | EB20: 23
A21: =IFERROR(HYPERLINK(getCoor(ROW(),COLUMN()),""),"") ->  | B21: =IFERROR(HYPERLINK(getCoor(ROW(),COLUMN()),""),"") ->  | C21: =IFERROR(HYPERLINK(getCoor(ROW(),COLUMN()),""),"") ->  | D21: =IFERROR(HYPERLINK(getCoor(ROW(),COLUMN()),""),"") ->  | E21: =IFERROR(HYPERLINK(getCoor(ROW(),COLUMN()),""),"") ->  | F21: =IFERROR(HYPERLINK(getCoor(ROW(),COLUMN()),""),"") ->  | G21: =IFERROR(HYPERLINK(getCoor(ROW(),COLUMN()),""),"") ->  | H21: =IFERROR(HYPERLINK(getCoor(ROW(),COLUMN()),""),"") ->  | I21: =IFERROR(HYPERLINK(getCoor(ROW(),COLUMN()),""),"") ->  | J21: =IFERROR(HYPERLINK(getCoor(ROW(),COLUMN()),""),"") ->  | K21: =IFERROR(HYPERLINK(getCoor(ROW(),COLUMN()),""),"") ->  | L21: =IFERROR(HYPERLINK(getCoor(ROW(),COLUMN()),""),"") ->  | M21: =IFERROR(HYPERLINK(getCoor(ROW(),COLUMN()),""),"") ->  | N21: =IFERROR(HYPERLINK(getCoor(ROW(),COLUMN()),""),"") ->  | O21: =IFERROR(HYPERLINK(getCoor(ROW(),COLUMN()),""),"") ->  | P21: =IFERROR(HYPERLINK(getCoor(ROW(),COLUMN()),""),"") ->  | Q21: =IFERROR(HYPERLINK(getCoor(ROW(),COLUMN()),""),"") ->  | R21: =IFERROR(HYPERLINK(getCoor(ROW(),COLUMN()),""),"") ->  | S21: =IFERROR(HYPERLINK(getCoor(ROW(),COLUMN()),""),"") ->  | T21: =IFERROR(HYPERLINK(getCoor(ROW(),COLUMN()),""),"") ->  | U21: =IFERROR(HYPERLINK(getCoor(ROW(),COLUMN()),""),"") ->  | V21: =IFERROR(HYPERLINK(getCoor(ROW(),COLUMN()),""),"") ->  | W21: =IFERROR(HYPERLINK(getCoor(ROW(),COLUMN()),""),"") ->  | X21: =IFERROR(HYPERLINK(getCoor(ROW(),COLUMN()),""),"") ->  | Y21: =IFERROR(HYPERLINK(getCoor(ROW(),COLUMN()),""),"") ->  | Z21: =IFERROR(HYPERLINK(getCoor(ROW(),COLUMN()),""),"") ->  | AA21: =IFERROR(HYPERLINK(getCoor(ROW(),COLUMN()),""),"") ->  | AB21: =IFERROR(HYPERLINK(getCoor(ROW(),COLUMN()),""),"") ->  | AC21: =IFERROR(HYPERLINK(getCoor(ROW(),COLUMN()),""),"") ->  | AD21: =IFERROR(HYPERLINK(getCoor(ROW(),COLUMN()),""),"") ->  | AE21: =IFERROR(HYPERLINK(getCoor(ROW(),COLUMN()),""),"") ->  | AF21: =IFERROR(HYPERLINK(getCoor(ROW(),COLUMN()),""),"") ->  | AG21: =IFERROR(HYPERLINK(getCoor(ROW(),COLUMN()),""),"") ->  | AH21: =IFERROR(HYPERLINK(getCoor(ROW(),COLUMN()),""),"") ->  | AI21: =IFERROR(HYPERLINK(getCoor(ROW(),COLUMN()),""),"") ->  | AJ21: =IFERROR(HYPERLINK(getCoor(ROW(),COLUMN()),""),"") ->  | AK21: =IFERROR(HYPERLINK(getCoor(ROW(),COLUMN()),""),"") ->  | AL21: =IFERROR(HYPERLINK(getCoor(ROW(),COLUMN()),""),"") ->  | AM21: =IFERROR(HYPERLINK(getCoor(ROW(),COLUMN()),""),"") ->  | AN21: =IFERROR(HYPERLINK(getCoor(ROW(),COLUMN()),""),"") ->  | AO21: =IFERROR(HYPERLINK(getCoor(ROW(),COLUMN()),""),"") ->  | AP21: =IFERROR(HYPERLINK(getCoor(ROW(),COLUMN()),""),"") ->  | AQ21: =IFERROR(HYPERLINK(getCoor(ROW(),COLUMN()),""),"") ->  | AR21: =IFERROR(HYPERLINK(getCoor(ROW(),COLUMN()),""),"") ->  | AS21: =IFERROR(HYPERLINK(getCoor(ROW(),COLUMN()),""),"") ->  | AT21: =IFERROR(HYPERLINK(getCoor(ROW(),COLUMN()),""),"") ->  | AU21: =IFERROR(HYPERLINK(getCoor(ROW(),COLUMN()),""),"") ->  | AV21: =IFERROR(HYPERLINK(getCoor(ROW(),COLUMN()),""),"") ->  | AW21: =IFERROR(HYPERLINK(getCoor(ROW(),COLUMN()),""),"") ->  | AX21: =IFERROR(HYPERLINK(getCoor(ROW(),COLUMN()),""),"") ->  | AY21: =IFERROR(HYPERLINK(getCoor(ROW(),COLUMN()),""),"") ->  | AZ21: =IFERROR(HYPERLINK(getCoor(ROW(),COLUMN()),""),"") ->  | BA21: =IFERROR(HYPERLINK(getCoor(ROW(),COLUMN()),""),"") ->  | BB21: =IFERROR(HYPERLINK(getCoor(ROW(),COLUMN()),""),"") ->  | BC21: =IFERROR(HYPERLINK(getCoor(ROW(),COLUMN()),""),"") ->  | BD21: =IFERROR(HYPERLINK(getCoor(ROW(),COLUMN()),""),"") ->  | BE21: =IFERROR(HYPERLINK(getCoor(ROW(),COLUMN()),""),"") ->  | BF21: =IFERROR(HYPERLINK(getCoor(ROW(),COLUMN()),""),"") ->  | BG21: =IFERROR(HYPERLINK(getCoor(ROW(),COLUMN()),""),"") ->  | BH21: =IFERROR(HYPERLINK(getCoor(ROW(),COLUMN()),""),"") ->  | BI21: =IFERROR(HYPERLINK(getCoor(ROW(),COLUMN()),""),"") ->  | BJ21: =IFERROR(HYPERLINK(getCoor(ROW(),COLUMN()),""),"") ->  | BK21: =IFERROR(HYPERLINK(getCoor(ROW(),COLUMN()),""),"") ->  | BL21: 20 | BM21: Maine | BN21: =IFERROR(HLOOKUP($DS$5,Table!$I$182:$BL$237,Table!BN205),"") ->  | BP21: =IFERROR(VLOOKUP($DS$5,Table!$A$186:$BL$237,Table!BO205),"") ->  | BS21: 34 | BT21: =BM34 -> New York | BU21: =BR34 ->  | DH21: 504 | DI21: 54 | DJ21: 14 | DK21: 14 | DL21: FALSE | DM21: FALSE | DN21: FALSE | DO21: 511 | DP21: 61 | DQ21: 0 | DT21: 0 | DU21: FALSE | DV21: 20 | DW21: Maine | DX21: 0Maine | EB21: 24
A22: =IFERROR(HYPERLINK(getCoor(ROW(),COLUMN()),""),"") ->  | B22: =IFERROR(HYPERLINK(getCoor(ROW(),COLUMN()),""),"") ->  | C22: =IFERROR(HYPERLINK(getCoor(ROW(),COLUMN()),""),"") ->  | D22: =IFERROR(HYPERLINK(getCoor(ROW(),COLUMN()),""),"") ->  | E22: =IFERROR(HYPERLINK(getCoor(ROW(),COLUMN()),""),"") ->  | F22: =IFERROR(HYPERLINK(getCoor(ROW(),COLUMN()),""),"") ->  | G22: =IFERROR(HYPERLINK(getCoor(ROW(),COLUMN()),""),"") ->  | H22: =IFERROR(HYPERLINK(getCoor(ROW(),COLUMN()),""),"") ->  | I22: =IFERROR(HYPERLINK(getCoor(ROW(),COLUMN()),""),"") ->  | J22: =IFERROR(HYPERLINK(getCoor(ROW(),COLUMN()),""),"") ->  | K22: =IFERROR(HYPERLINK(getCoor(ROW(),COLUMN()),""),"") ->  | L22: =IFERROR(HYPERLINK(getCoor(ROW(),COLUMN()),""),"") ->  | M22: =IFERROR(HYPERLINK(getCoor(ROW(),COLUMN()),""),"") ->  | N22: =IFERROR(HYPERLINK(getCoor(ROW(),COLUMN()),""),"") ->  | O22: =IFERROR(HYPERLINK(getCoor(ROW(),COLUMN()),""),"") ->  | P22: =IFERROR(HYPERLINK(getCoor(ROW(),COLUMN()),""),"") ->  | Q22: =IFERROR(HYPERLINK(getCoor(ROW(),COLUMN()),""),"") ->  | R22: =IFERROR(HYPERLINK(getCoor(ROW(),COLUMN()),""),"") ->  | S22: =IFERROR(HYPERLINK(getCoor(ROW(),COLUMN()),""),"") ->  | T22: =IFERROR(HYPERLINK(getCoor(ROW(),COLUMN()),""),"") ->  | U22: =IFERROR(HYPERLINK(getCoor(ROW(),COLUMN()),""),"") ->  | V22: =IFERROR(HYPERLINK(getCoor(ROW(),COLUMN()),""),"") ->  | W22: =IFERROR(HYPERLINK(getCoor(ROW(),COLUMN()),""),"") ->  | X22: =IFERROR(HYPERLINK(getCoor(ROW(),COLUMN()),""),"") ->  | Y22: =IFERROR(HYPERLINK(getCoor(ROW(),COLUMN()),""),"") ->  | Z22: =IFERROR(HYPERLINK(getCoor(ROW(),COLUMN()),""),"") ->  | AA22: =IFERROR(HYPERLINK(getCoor(ROW(),COLUMN()),""),"") ->  | AB22: =IFERROR(HYPERLINK(getCoor(ROW(),COLUMN()),""),"") ->  | AC22: =IFERROR(HYPERLINK(getCoor(ROW(),COLUMN()),""),"") ->  | AD22: =IFERROR(HYPERLINK(getCoor(ROW(),COLUMN()),""),"") ->  | AE22: =IFERROR(HYPERLINK(getCoor(ROW(),COLUMN()),""),"") ->  | AF22: =IFERROR(HYPERLINK(getCoor(ROW(),COLUMN()),""),"") ->  | AG22: =IFERROR(HYPERLINK(getCoor(ROW(),COLUMN()),""),"") ->  | AH22: =IFERROR(HYPERLINK(getCoor(ROW(),COLUMN()),""),"") ->  | AI22: =IFERROR(HYPERLINK(getCoor(ROW(),COLUMN()),""),"") ->  | AJ22: =IFERROR(HYPERLINK(getCoor(ROW(),COLUMN()),""),"") ->  | AK22: =IFERROR(HYPERLINK(getCoor(ROW(),COLUMN()),""),"") ->  | AL22: =IFERROR(HYPERLINK(getCoor(ROW(),COLUMN()),""),"") ->  | AM22: =IFERROR(HYPERLINK(getCoor(ROW(),COLUMN()),""),"") ->  | AN22: =IFERROR(HYPERLINK(getCoor(ROW(),COLUMN()),""),"") ->  | AO22: =IFERROR(HYPERLINK(getCoor(ROW(),COLUMN()),""),"") ->  | AP22: =IFERROR(HYPERLINK(getCoor(ROW(),COLUMN()),""),"") ->  | AQ22: =IFERROR(HYPERLINK(getCoor(ROW(),COLUMN()),""),"") ->  | AR22: =IFERROR(HYPERLINK(getCoor(ROW(),COLUMN()),""),"") ->  | AS22: =IFERROR(HYPERLINK(getCoor(ROW(),COLUMN()),""),"") ->  | AT22: =IFERROR(HYPERLINK(getCoor(ROW(),COLUMN()),""),"") ->  | AU22: =IFERROR(HYPERLINK(getCoor(ROW(),COLUMN()),""),"") ->  | AV22: =IFERROR(HYPERLINK(getCoor(ROW(),COLUMN()),""),"") ->  | AW22: =IFERROR(HYPERLINK(getCoor(ROW(),COLUMN()),""),"") ->  | AX22: =IFERROR(HYPERLINK(getCoor(ROW(),COLUMN()),""),"") ->  | AY22: =IFERROR(HYPERLINK(getCoor(ROW(),COLUMN()),""),"") ->  | AZ22: =IFERROR(HYPERLINK(getCoor(ROW(),COLUMN()),""),"") ->  | BA22: =IFERROR(HYPERLINK(getCoor(ROW(),COLUMN()),""),"") ->  | BB22: =IFERROR(HYPERLINK(getCoor(ROW(),COLUMN()),""),"") ->  | BC22: =IFERROR(HYPERLINK(getCoor(ROW(),COLUMN()),""),"") ->  | BD22: =IFERROR(HYPERLINK(getCoor(ROW(),COLUMN()),""),"") ->  | BE22: =IFERROR(HYPERLINK(getCoor(ROW(),COLUMN()),""),"") ->  | BF22: =IFERROR(HYPERLINK(getCoor(ROW(),COLUMN()),""),"") ->  | BG22: =IFERROR(HYPERLINK(getCoor(ROW(),COLUMN()),""),"") ->  | BH22: =IFERROR(HYPERLINK(getCoor(ROW(),COLUMN()),""),"") ->  | BI22: =IFERROR(HYPERLINK(getCoor(ROW(),COLUMN()),""),"") ->  | BJ22: =IFERROR(HYPERLINK(getCoor(ROW(),COLUMN()),""),"") ->  | BK22: =IFERROR(HYPERLINK(getCoor(ROW(),COLUMN()),""),"") ->  | BL22: 21 | BM22: Maryland | BN22: =IFERROR(HLOOKUP($DS$5,Table!$I$182:$BL$237,Table!BN206),"") ->  | BP22: =IFERROR(VLOOKUP($DS$5,Table!$A$186:$BL$237,Table!BO206),"") ->  | BS22: 33 | BT22: =BM33 -> New Mexico | BU22: =BR33 ->  | DH22: 531 | DI22: 189 | DJ22: 20 | DK22: 7 | DL22: FALSE | DM22: FALSE | DN22: FALSE | DO22: 534.5 | DP22: 199 | DQ22: 0 | DT22: 0 | DU22: FALSE | DV22: 21 | DW22: Maryland | DX22: 0Maryland | EB22: 25
A23: =IFERROR(HYPERLINK(getCoor(ROW(),COLUMN()),""),"") ->  | B23: =IFERROR(HYPERLINK(getCoor(ROW(),COLUMN()),""),"") ->  | C23: =IFERROR(HYPERLINK(getCoor(ROW(),COLUMN()),""),"") ->  | D23: =IFERROR(HYPERLINK(getCoor(ROW(),COLUMN()),""),"") ->  | E23: =IFERROR(HYPERLINK(getCoor(ROW(),COLUMN()),""),"") ->  | F23: =IFERROR(HYPERLINK(getCoor(ROW(),COLUMN()),""),"") ->  | G23: =IFERROR(HYPERLINK(getCoor(ROW(),COLUMN()),""),"") ->  | H23: =IFERROR(HYPERLINK(getCoor(ROW(),COLUMN()),""),"") ->  | I23: =IFERROR(HYPERLINK(getCoor(ROW(),COLUMN()),""),"") ->  | J23: =IFERROR(HYPERLINK(getCoor(ROW(),COLUMN()),""),"") ->  | K23: =IFERROR(HYPERLINK(getCoor(ROW(),COLUMN()),""),"") ->  | L23: =IFERROR(HYPERLINK(getCoor(ROW(),COLUMN()),""),"") ->  | M23: =IFERROR(HYPERLINK(getCoor(ROW(),COLUMN()),""),"") ->  | N23: =IFERROR(HYPERLINK(getCoor(ROW(),COLUMN()),""),"") ->  | O23: =IFERROR(HYPERLINK(getCoor(ROW(),COLUMN()),""),"") ->  | P23: =IFERROR(HYPERLINK(getCoor(ROW(),COLUMN()),""),"") ->  | Q23: =IFERROR(HYPERLINK(getCoor(ROW(),COLUMN()),""),"") ->  | R23: =IFERROR(HYPERLINK(getCoor(ROW(),COLUMN()),""),"") ->  | S23: =IFERROR(HYPERLINK(getCoor(ROW(),COLUMN()),""),"") ->  | T23: =IFERROR(HYPERLINK(getCoor(ROW(),COLUMN()),""),"") ->  | U23: =IFERROR(HYPERLINK(getCoor(ROW(),COLUMN()),""),"") ->  | V23: =IFERROR(HYPERLINK(getCoor(ROW(),COLUMN()),""),"") ->  | W23: =IFERROR(HYPERLINK(getCoor(ROW(),COLUMN()),""),"") ->  | X23: =IFERROR(HYPERLINK(getCoor(ROW(),COLUMN()),""),"") ->  | Y23: =IFERROR(HYPERLINK(getCoor(ROW(),COLUMN()),""),"") ->  | Z23: =IFERROR(HYPERLINK(getCoor(ROW(),COLUMN()),""),"") ->  | AA23: =IFERROR(HYPERLINK(getCoor(ROW(),COLUMN()),""),"") ->  | AB23: =IFERROR(HYPERLINK(getCoor(ROW(),COLUMN()),""),"") ->  | AC23: =IFERROR(HYPERLINK(getCoor(ROW(),COLUMN()),""),"") ->  | AD23: =IFERROR(HYPERLINK(getCoor(ROW(),COLUMN()),""),"") ->  | AE23: =IFERROR(HYPERLINK(getCoor(ROW(),COLUMN()),""),"") ->  | AF23: =IFERROR(HYPERLINK(getCoor(ROW(),COLUMN()),""),"") ->  | AG23: =IFERROR(HYPERLINK(getCoor(ROW(),COLUMN()),""),"") ->  | AH23: =IFERROR(HYPERLINK(getCoor(ROW(),COLUMN()),""),"") ->  | AI23: =IFERROR(HYPERLINK(getCoor(ROW(),COLUMN()),""),"") ->  | AJ23: =IFERROR(HYPERLINK(getCoor(ROW(),COLUMN()),""),"") ->  | AK23: =IFERROR(HYPERLINK(getCoor(ROW(),COLUMN()),""),"") ->  | AL23: =IFERROR(HYPERLINK(getCoor(ROW(),COLUMN()),""),"") ->  | AM23: =IFERROR(HYPERLINK(getCoor(ROW(),COLUMN()),""),"") ->  | AN23: =IFERROR(HYPERLINK(getCoor(ROW(),COLUMN()),""),"") ->  | AO23: =IFERROR(HYPERLINK(getCoor(ROW(),COLUMN()),""),"") ->  | AP23: =IFERROR(HYPERLINK(getCoor(ROW(),COLUMN()),""),"") ->  | AQ23: =IFERROR(HYPERLINK(getCoor(ROW(),COLUMN()),""),"") ->  | AR23: =IFERROR(HYPERLINK(getCoor(ROW(),COLUMN()),""),"") ->  | AS23: =IFERROR(HYPERLINK(getCoor(ROW(),COLUMN()),""),"") ->  | AT23: =IFERROR(HYPERLINK(getCoor(ROW(),COLUMN()),""),"") ->  | AU23: =IFERROR(HYPERLINK(getCoor(ROW(),COLUMN()),""),"") ->  | AV23: =IFERROR(HYPERLINK(getCoor(ROW(),COLUMN()),""),"") ->  | AW23: =IFERROR(HYPERLINK(getCoor(ROW(),COLUMN()),""),"") ->  | AX23: =IFERROR(HYPERLINK(getCoor(ROW(),COLUMN()),""),"") ->  | AY23: =IFERROR(HYPERLINK(getCoor(ROW(),COLUMN()),""),"") ->  | AZ23: =IFERROR(HYPERLINK(getCoor(ROW(),COLUMN()),""),"") ->  | BA23: =IFERROR(HYPERLINK(getCoor(ROW(),COLUMN()),""),"") ->  | BB23: =IFERROR(HYPERLINK(getCoor(ROW(),COLUMN()),""),"") ->  | BC23: =IFERROR(HYPERLINK(getCoor(ROW(),COLUMN()),""),"") ->  | BD23: =IFERROR(HYPERLINK(getCoor(ROW(),COLUMN()),""),"") ->  | BE23: =IFERROR(HYPERLINK(getCoor(ROW(),COLUMN()),""),"") ->  | BF23: =IFERROR(HYPERLINK(getCoor(ROW(),COLUMN()),""),"") ->  | BG23: =IFERROR(HYPERLINK(getCoor(ROW(),COLUMN()),""),"") ->  | BH23: =IFERROR(HYPERLINK(getCoor(ROW(),COLUMN()),""),"") ->  | BI23: =IFERROR(HYPERLINK(getCoor(ROW(),COLUMN()),""),"") ->  | BJ23: =IFERROR(HYPERLINK(getCoor(ROW(),COLUMN()),""),"") ->  | BK23: =IFERROR(HYPERLINK(getCoor(ROW(),COLUMN()),""),"") ->  | BL23: 22 | BM23: Massachusetts | BN23: =IFERROR(HLOOKUP($DS$5,Table!$I$182:$BL$237,Table!BN207),"") ->  | BP23: =IFERROR(VLOOKUP($DS$5,Table!$A$186:$BL$237,Table!BO207),"") ->  | BS23: 32 | BT23: =BM32 -> New Jersey | BU23: =BR32 ->  | DH23: 432 | DI23: 54 | DJ23: 40 | DK23: 7 | DL23: FALSE | DM23: FALSE | DN23: FALSE | DO23: 435.5 | DP23: 74 | DQ23: 0 | DT23: 0 | DU23: FALSE | DV23: 22 | DW23: Massachusetts | DX23: 0Massachusetts | EB23: 26
A24: =IFERROR(HYPERLINK(getCoor(ROW(),COLUMN()),""),"") ->  | B24: =IFERROR(HYPERLINK(getCoor(ROW(),COLUMN()),""),"") ->  | C24: =IFERROR(HYPERLINK(getCoor(ROW(),COLUMN()),""),"") ->  | D24: =IFERROR(HYPERLINK(getCoor(ROW(),COLUMN()),""),"") ->  | E24: =IFERROR(HYPERLINK(getCoor(ROW(),COLUMN()),""),"") ->  | F24: =IFERROR(HYPERLINK(getCoor(ROW(),COLUMN()),""),"") ->  | G24: =IFERROR(HYPERLINK(getCoor(ROW(),COLUMN()),""),"") ->  | H24: =IFERROR(HYPERLINK(getCoor(ROW(),COLUMN()),""),"") ->  | I24: =IFERROR(HYPERLINK(getCoor(ROW(),COLUMN()),""),"") ->  | J24: =IFERROR(HYPERLINK(getCoor(ROW(),COLUMN()),""),"") ->  | K24: =IFERROR(HYPERLINK(getCoor(ROW(),COLUMN()),""),"") ->  | L24: =IFERROR(HYPERLINK(getCoor(ROW(),COLUMN()),""),"") ->  | M24: =IFERROR(HYPERLINK(getCoor(ROW(),COLUMN()),""),"") ->  | N24: =IFERROR(HYPERLINK(getCoor(ROW(),COLUMN()),""),"") ->  | O24: =IFERROR(HYPERLINK(getCoor(ROW(),COLUMN()),""),"") ->  | P24: =IFERROR(HYPERLINK(getCoor(ROW(),COLUMN()),""),"") ->  | Q24: =IFERROR(HYPERLINK(getCoor(ROW(),COLUMN()),""),"") ->  | R24: =IFERROR(HYPERLINK(getCoor(ROW(),COLUMN()),""),"") ->  | S24: =IFERROR(HYPERLINK(getCoor(ROW(),COLUMN()),""),"") ->  | T24: =IFERROR(HYPERLINK(getCoor(ROW(),COLUMN()),""),"") ->  | U24: =IFERROR(HYPERLINK(getCoor(ROW(),COLUMN()),""),"") ->  | V24: =IFERROR(HYPERLINK(getCoor(ROW(),COLUMN()),""),"") ->  | W24: =IFERROR(HYPERLINK(getCoor(ROW(),COLUMN()),""),"") ->  | X24: =IFERROR(HYPERLINK(getCoor(ROW(),COLUMN()),""),"") ->  | Y24: =IFERROR(HYPERLINK(getCoor(ROW(),COLUMN()),""),"") ->  | Z24: =IFERROR(HYPERLINK(getCoor(ROW(),COLUMN()),""),"") ->  | AA24: =IFERROR(HYPERLINK(getCoor(ROW(),COLUMN()),""),"") ->  | AB24: =IFERROR(HYPERLINK(getCoor(ROW(),COLUMN()),""),"") ->  | AC24: =IFERROR(HYPERLINK(getCoor(ROW(),COLUMN()),""),"") ->  | AD24: =IFERROR(HYPERLINK(getCoor(ROW(),COLUMN()),""),"") ->  | AE24: =IFERROR(HYPERLINK(getCoor(ROW(),COLUMN()),""),"") ->  | AF24: =IFERROR(HYPERLINK(getCoor(ROW(),COLUMN()),""),"") ->  | AG24: =IFERROR(HYPERLINK(getCoor(ROW(),COLUMN()),""),"") ->  | AH24: =IFERROR(HYPERLINK(getCoor(ROW(),COLUMN()),""),"") ->  | AI24: =IFERROR(HYPERLINK(getCoor(ROW(),COLUMN()),""),"") ->  | AJ24: =IFERROR(HYPERLINK(getCoor(ROW(),COLUMN()),""),"") ->  | AK24: =IFERROR(HYPERLINK(getCoor(ROW(),COLUMN()),""),"") ->  | AL24: =IFERROR(HYPERLINK(getCoor(ROW(),COLUMN()),""),"") ->  | AM24: =IFERROR(HYPERLINK(getCoor(ROW(),COLUMN()),""),"") ->  | AN24: =IFERROR(HYPERLINK(getCoor(ROW(),COLUMN()),""),"") ->  | AO24: =IFERROR(HYPERLINK(getCoor(ROW(),COLUMN()),""),"") ->  | AP24: =IFERROR(HYPERLINK(getCoor(ROW(),COLUMN()),""),"") ->  | AQ24: =IFERROR(HYPERLINK(getCoor(ROW(),COLUMN()),""),"") ->  | AR24: =IFERROR(HYPERLINK(getCoor(ROW(),COLUMN()),""),"") ->  | AS24: =IFERROR(HYPERLINK(getCoor(ROW(),COLUMN()),""),"") ->  | AT24: =IFERROR(HYPERLINK(getCoor(ROW(),COLUMN()),""),"") ->  | AU24: =IFERROR(HYPERLINK(getCoor(ROW(),COLUMN()),""),"") ->  | AV24: =IFERROR(HYPERLINK(getCoor(ROW(),COLUMN()),""),"") ->  | AW24: =IFERROR(HYPERLINK(getCoor(ROW(),COLUMN()),""),"") ->  | AX24: =IFERROR(HYPERLINK(getCoor(ROW(),COLUMN()),""),"") ->  | AY24: =IFERROR(HYPERLINK(getCoor(ROW(),COLUMN()),""),"") ->  | AZ24: =IFERROR(HYPERLINK(getCoor(ROW(),COLUMN()),""),"") ->  | BA24: =IFERROR(HYPERLINK(getCoor(ROW(),COLUMN()),""),"") ->  | BB24: =IFERROR(HYPERLINK(getCoor(ROW(),COLUMN()),""),"") ->  | BC24: =IFERROR(HYPERLINK(getCoor(ROW(),COLUMN()),""),"") ->  | BD24: =IFERROR(HYPERLINK(getCoor(ROW(),COLUMN()),""),"") ->  | BE24: =IFERROR(HYPERLINK(getCoor(ROW(),COLUMN()),""),"") ->  | BF24: =IFERROR(HYPERLINK(getCoor(ROW(),COLUMN()),""),"") ->  | BG24: =IFERROR(HYPERLINK(getCoor(ROW(),COLUMN()),""),"") ->  | BH24: =IFERROR(HYPERLINK(getCoor(ROW(),COLUMN()),""),"") ->  | BI24: =IFERROR(HYPERLINK(getCoor(ROW(),COLUMN()),""),"") ->  | BJ24: =IFERROR(HYPERLINK(getCoor(ROW(),COLUMN()),""),"") ->  | BK24: =IFERROR(HYPERLINK(getCoor(ROW(),COLUMN()),""),"") ->  | BL24: 23 | BM24: Michigan | BN24: =IFERROR(HLOOKUP($DS$5,Table!$I$182:$BL$237,Table!BN208),"") ->  | BP24: =IFERROR(VLOOKUP($DS$5,Table!$A$186:$BL$237,Table!BO208),"") ->  | BS24: 31 | BT24: =BM31 -> New Hampshire | BU24: =BR31 ->  | DH24: 378 | DI24: 122 | DJ24: 40 | DK24: 14 | DL24: =AND(valLeft>=DH24,valLeft<=(DH24+DK24)) -> TRUE | DM24: =AND(valTop>=DI24,valTop<=(DI24+DK24)) -> FALSE | DN24: =AND(DL24,DM24) -> FALSE | DO24: =(DH24+DK24+DH24)/2 -> 385 | DP24: =(DI24+DJ24+DI24)/2 -> 142 | DQ24: =SQRT((DO24-valLeft)^2+(DP24-valTop)^2)*DN24 -> 0 | DT24: 0 | DU24: FALSE | DV24: 23 | DW24: Michigan | DX24: 0Michigan | EB24: 27
A25: =IFERROR(HYPERLINK(getCoor(ROW(),COLUMN()),""),"") ->  | B25: =IFERROR(HYPERLINK(getCoor(ROW(),COLUMN()),""),"") ->  | C25: =IFERROR(HYPERLINK(getCoor(ROW(),COLUMN()),""),"") ->  | D25: =IFERROR(HYPERLINK(getCoor(ROW(),COLUMN()),""),"") ->  | E25: =IFERROR(HYPERLINK(getCoor(ROW(),COLUMN()),""),"") ->  | F25: =IFERROR(HYPERLINK(getCoor(ROW(),COLUMN()),""),"") ->  | G25: =IFERROR(HYPERLINK(getCoor(ROW(),COLUMN()),""),"") ->  | H25: =IFERROR(HYPERLINK(getCoor(ROW(),COLUMN()),""),"") ->  | I25: =IFERROR(HYPERLINK(getCoor(ROW(),COLUMN()),""),"") ->  | J25: =IFERROR(HYPERLINK(getCoor(ROW(),COLUMN()),""),"") ->  | K25: =IFERROR(HYPERLINK(getCoor(ROW(),COLUMN()),""),"") ->  | L25: =IFERROR(HYPERLINK(getCoor(ROW(),COLUMN()),""),"") ->  | M25: =IFERROR(HYPERLINK(getCoor(ROW(),COLUMN()),""),"") ->  | N25: =IFERROR(HYPERLINK(getCoor(ROW(),COLUMN()),""),"") ->  | O25: =IFERROR(HYPERLINK(getCoor(ROW(),COLUMN()),""),"") ->  | P25: =IFERROR(HYPERLINK(getCoor(ROW(),COLUMN()),""),"") ->  | Q25: =IFERROR(HYPERLINK(getCoor(ROW(),COLUMN()),""),"") ->  | R25: =IFERROR(HYPERLINK(getCoor(ROW(),COLUMN()),""),"") ->  | S25: =IFERROR(HYPERLINK(getCoor(ROW(),COLUMN()),""),"") ->  | T25: =IFERROR(HYPERLINK(getCoor(ROW(),COLUMN()),""),"") ->  | U25: =IFERROR(HYPERLINK(getCoor(ROW(),COLUMN()),""),"") ->  | V25: =IFERROR(HYPERLINK(getCoor(ROW(),COLUMN()),""),"") ->  | W25: =IFERROR(HYPERLINK(getCoor(ROW(),COLUMN()),""),"") ->  | X25: =IFERROR(HYPERLINK(getCoor(ROW(),COLUMN()),""),"") ->  | Y25: =IFERROR(HYPERLINK(getCoor(ROW(),COLUMN()),""),"") ->  | Z25: =IFERROR(HYPERLINK(getCoor(ROW(),COLUMN()),""),"") ->  | AA25: =IFERROR(HYPERLINK(getCoor(ROW(),COLUMN()),""),"") ->  | AB25: =IFERROR(HYPERLINK(getCoor(ROW(),COLUMN()),""),"") ->  | AC25: =IFERROR(HYPERLINK(getCoor(ROW(),COLUMN()),""),"") ->  | AD25: =IFERROR(HYPERLINK(getCoor(ROW(),COLUMN()),""),"") ->  | AE25: =IFERROR(HYPERLINK(getCoor(ROW(),COLUMN()),""),"") ->  | AF25: =IFERROR(HYPERLINK(getCoor(ROW(),COLUMN()),""),"") ->  | AG25: =IFERROR(HYPERLINK(getCoor(ROW(),COLUMN()),""),"") ->  | AH25: =IFERROR(HYPERLINK(getCoor(ROW(),COLUMN()),""),"") ->  | AI25: =IFERROR(HYPERLINK(getCoor(ROW(),COLUMN()),""),"") ->  | AJ25: =IFERROR(HYPERLINK(getCoor(ROW(),COLUMN()),""),"") ->  | AK25: =IFERROR(HYPERLINK(getCoor(ROW(),COLUMN()),""),"") ->  | AL25: =IFERROR(HYPERLINK(getCoor(ROW(),COLUMN()),""),"") ->  | AM25: =IFERROR(HYPERLINK(getCoor(ROW(),COLUMN()),""),"") ->  | AN25: =IFERROR(HYPERLINK(getCoor(ROW(),COLUMN()),""),"") ->  | AO25: =IFERROR(HYPERLINK(getCoor(ROW(),COLUMN()),""),"") ->  | AP25: =IFERROR(HYPERLINK(getCoor(ROW(),COLUMN()),""),"") ->  | AQ25: =IFERROR(HYPERLINK(getCoor(ROW(),COLUMN()),""),"") ->  | AR25: =IFERROR(HYPERLINK(getCoor(ROW(),COLUMN()),""),"") ->  | AS25: =IFERROR(HYPERLINK(getCoor(ROW(),COLUMN()),""),"") ->  | AT25: =IFERROR(HYPERLINK(getCoor(ROW(),COLUMN()),""),"") ->  | AU25: =IFERROR(HYPERLINK(getCoor(ROW(),COLUMN()),""),"") ->  | AV25: =IFERROR(HYPERLINK(getCoor(ROW(),COLUMN()),""),"") ->  | AW25: =IFERROR(HYPERLINK(getCoor(ROW(),COLUMN()),""),"") ->  | AX25: =IFERROR(HYPERLINK(getCoor(ROW(),COLUMN()),""),"") ->  | AY25: =IFERROR(HYPERLINK(getCoor(ROW(),COLUMN()),""),"") ->  | AZ25: =IFERROR(HYPERLINK(getCoor(ROW(),COLUMN()),""),"") ->  | BA25: =IFERROR(HYPERLINK(getCoor(ROW(),COLUMN()),""),"") ->  | BB25: =IFERROR(HYPERLINK(getCoor(ROW(),COLUMN()),""),"") ->  | BC25: =IFERROR(HYPERLINK(getCoor(ROW(),COLUMN()),""),"") ->  | BD25: =IFERROR(HYPERLINK(getCoor(ROW(),COLUMN()),""),"") ->  | BE25: =IFERROR(HYPERLINK(getCoor(ROW(),COLUMN()),""),"") ->  | BF25: =IFERROR(HYPERLINK(getCoor(ROW(),COLUMN()),""),"") ->  | BG25: =IFERROR(HYPERLINK(getCoor(ROW(),COLUMN()),""),"") ->  | BH25: =IFERROR(HYPERLINK(getCoor(ROW(),COLUMN()),""),"") ->  | BI25: =IFERROR(HYPERLINK(getCoor(ROW(),COLUMN()),""),"") ->  | BJ25: =IFERROR(HYPERLINK(getCoor(ROW(),COLUMN()),""),"") ->  | BK25: =IFERROR(HYPERLINK(getCoor(ROW(),COLUMN()),""),"") ->  | BL25: 24 | BM25: Minnesota | BN25: =IFERROR(HLOOKUP($DS$5,Table!$I$182:$BL$237,Table!BN209),"") ->  | BP25: =IFERROR(VLOOKUP($DS$5,Table!$A$186:$BL$237,Table!BO209),"") ->  | BT25: =BM30 -> Nevada | BU25: =BR30 ->  | DH25: 279 | DI25: 81 | DJ25: 40 | DK25: 14 | DL25: FALSE | DM25: FALSE | DN25: FALSE | DO25: 286 | DP25: 101 | DQ25: 0 | DT25: 0 | DU25: FALSE | DV25: 24 | DW25: Minnesota | DX25: 0Minnesota | EB25: 28
A26: =IFERROR(HYPERLINK(getCoor(ROW(),COLUMN()),""),"") ->  | B26: =IFERROR(HYPERLINK(getCoor(ROW(),COLUMN()),""),"") ->  | C26: =IFERROR(HYPERLINK(getCoor(ROW(),COLUMN()),""),"") ->  | D26: =IFERROR(HYPERLINK(getCoor(ROW(),COLUMN()),""),"") ->  | E26: =IFERROR(HYPERLINK(getCoor(ROW(),COLUMN()),""),"") ->  | F26: =IFERROR(HYPERLINK(getCoor(ROW(),COLUMN()),""),"") ->  | G26: =IFERROR(HYPERLINK(getCoor(ROW(),COLUMN()),""),"") ->  | H26: =IFERROR(HYPERLINK(getCoor(ROW(),COLUMN()),""),"") ->  | I26: =IFERROR(HYPERLINK(getCoor(ROW(),COLUMN()),""),"") ->  | J26: =IFERROR(HYPERLINK(getCoor(ROW(),COLUMN()),""),"") ->  | K26: =IFERROR(HYPERLINK(getCoor(ROW(),COLUMN()),""),"") ->  | L26: =IFERROR(HYPERLINK(getCoor(ROW(),COLUMN()),""),"") ->  | M26: =IFERROR(HYPERLINK(getCoor(ROW(),COLUMN()),""),"") ->  | N26: =IFERROR(HYPERLINK(getCoor(ROW(),COLUMN()),""),"") ->  | O26: =IFERROR(HYPERLINK(getCoor(ROW(),COLUMN()),""),"") ->  | P26: =IFERROR(HYPERLINK(getCoor(ROW(),COLUMN()),""),"") ->  | Q26: =IFERROR(HYPERLINK(getCoor(ROW(),COLUMN()),""),"") ->  | R26: =IFERROR(HYPERLINK(getCoor(ROW(),COLUMN()),""),"") ->  | S26: =IFERROR(HYPERLINK(getCoor(ROW(),COLUMN()),""),"") ->  | T26: =IFERROR(HYPERLINK(getCoor(ROW(),COLUMN()),""),"") ->  | U26: =IFERROR(HYPERLINK(getCoor(ROW(),COLUMN()),""),"") ->  | V26: =IFERROR(HYPERLINK(getCoor(ROW(),COLUMN()),""),"") ->  | W26: =IFERROR(HYPERLINK(getCoor(ROW(),COLUMN()),""),"") ->  | X26: =IFERROR(HYPERLINK(getCoor(ROW(),COLUMN()),""),"") ->  | Y26: =IFERROR(HYPERLINK(getCoor(ROW(),COLUMN()),""),"") ->  | Z26: =IFERROR(HYPERLINK(getCoor(ROW(),COLUMN()),""),"") ->  | AA26: =IFERROR(HYPERLINK(getCoor(ROW(),COLUMN()),""),"") ->  | AB26: =IFERROR(HYPERLINK(getCoor(ROW(),COLUMN()),""),"") ->  | AC26: =IFERROR(HYPERLINK(getCoor(ROW(),COLUMN()),""),"") ->  | AD26: =IFERROR(HYPERLINK(getCoor(ROW(),COLUMN()),""),"") ->  | AE26: =IFERROR(HYPERLINK(getCoor(ROW(),COLUMN()),""),"") ->  | AF26: =IFERROR(HYPERLINK(getCoor(ROW(),COLUMN()),""),"") ->  | AG26: =IFERROR(HYPERLINK(getCoor(ROW(),COLUMN()),""),"") ->  | AH26: =IFERROR(HYPERLINK(getCoor(ROW(),COLUMN()),""),"") ->  | AI26: =IFERROR(HYPERLINK(getCoor(ROW(),COLUMN()),""),"") ->  | AJ26: =IFERROR(HYPERLINK(getCoor(ROW(),COLUMN()),""),"") ->  | AK26: =IFERROR(HYPERLINK(getCoor(ROW(),COLUMN()),""),"") ->  | AL26: =IFERROR(HYPERLINK(getCoor(ROW(),COLUMN()),""),"") ->  | AM26: =IFERROR(HYPERLINK(getCoor(ROW(),COLUMN()),""),"") ->  | AN26: =IFERROR(HYPERLINK(getCoor(ROW(),COLUMN()),""),"") ->  | AO26: =IFERROR(HYPERLINK(getCoor(ROW(),COLUMN()),""),"") ->  | AP26: =IFERROR(HYPERLINK(getCoor(ROW(),COLUMN()),""),"") ->  | AQ26: =IFERROR(HYPERLINK(getCoor(ROW(),COLUMN()),""),"") ->  | AR26: =IFERROR(HYPERLINK(getCoor(ROW(),COLUMN()),""),"") ->  | AS26: =IFERROR(HYPERLINK(getCoor(ROW(),COLUMN()),""),"") ->  | AT26: =IFERROR(HYPERLINK(getCoor(ROW(),COLUMN()),""),"") ->  | AU26: =IFERROR(HYPERLINK(getCoor(ROW(),COLUMN()),""),"") ->  | AV26: =IFERROR(HYPERLINK(getCoor(ROW(),COLUMN()),""),"") ->  | AW26: =IFERROR(HYPERLINK(getCoor(ROW(),COLUMN()),""),"") ->  | AX26: =IFERROR(HYPERLINK(getCoor(ROW(),COLUMN()),""),"") ->  | AY26: =IFERROR(HYPERLINK(getCoor(ROW(),COLUMN()),""),"") ->  | AZ26: =IFERROR(HYPERLINK(getCoor(ROW(),COLUMN()),""),"") ->  | BA26: =IFERROR(HYPERLINK(getCoor(ROW(),COLUMN()),""),"") ->  | BB26: =IFERROR(HYPERLINK(getCoor(ROW(),COLUMN()),""),"") ->  | BC26: =IFERROR(HYPERLINK(getCoor(ROW(),COLUMN()),""),"") ->  | BD26: =IFERROR(HYPERLINK(getCoor(ROW(),COLUMN()),""),"") ->  | BE26: =IFERROR(HYPERLINK(getCoor(ROW(),COLUMN()),""),"") ->  | BF26: =IFERROR(HYPERLINK(getCoor(ROW(),COLUMN()),""),"") ->  | BG26: =IFERROR(HYPERLINK(getCoor(ROW(),COLUMN()),""),"") ->  | BH26: =IFERROR(HYPERLINK(getCoor(ROW(),COLUMN()),""),"") ->  | BI26: =IFERROR(HYPERLINK(getCoor(ROW(),COLUMN()),""),"") ->  | BJ26: =IFERROR(HYPERLINK(getCoor(ROW(),COLUMN()),""),"") ->  | BK26: =IFERROR(HYPERLINK(getCoor(ROW(),COLUMN()),""),"") ->  | BL26: 25 | BM26: Mississippi | BN26: =IFERROR(HLOOKUP($DS$5,Table!$I$182:$BL$237,Table!BN210),"") ->  | BP26: =IFERROR(VLOOKUP($DS$5,Table!$A$186:$BL$237,Table!BO210),"") ->  | BS26: 29 | BT26: =BM29 -> Nebraska | BU26: =BR29 ->  | DH26: 333 | DI26: 270 | DJ26: 20 | DK26: 7 | DL26: FALSE | DM26: FALSE | DN26: FALSE | DO26: 336.5 | DP26: 280 | DQ26: 0 | DT26: 0 | DU26: FALSE | DV26: 25 | DW26: Mississippi | DX26: 0Mississippi | EB26: 29
A27: =IFERROR(HYPERLINK(getCoor(ROW(),COLUMN()),""),"") ->  | B27: =IFERROR(HYPERLINK(getCoor(ROW(),COLUMN()),""),"") ->  | C27: =IFERROR(HYPERLINK(getCoor(ROW(),COLUMN()),""),"") ->  | D27: =IFERROR(HYPERLINK(getCoor(ROW(),COLUMN()),""),"") ->  | E27: =IFERROR(HYPERLINK(getCoor(ROW(),COLUMN()),""),"") ->  | F27: =IFERROR(HYPERLINK(getCoor(ROW(),COLUMN()),""),"") ->  | G27: =IFERROR(HYPERLINK(getCoor(ROW(),COLUMN()),""),"") ->  | H27: =IFERROR(HYPERLINK(getCoor(ROW(),COLUMN()),""),"") ->  | I27: =IFERROR(HYPERLINK(getCoor(ROW(),COLUMN()),""),"") ->  | J27: =IFERROR(HYPERLINK(getCoor(ROW(),COLUMN()),""),"") ->  | K27: =IFERROR(HYPERLINK(getCoor(ROW(),COLUMN()),""),"") ->  | L27: =IFERROR(HYPERLINK(getCoor(ROW(),COLUMN()),""),"") ->  | M27: =IFERROR(HYPERLINK(getCoor(ROW(),COLUMN()),""),"") ->  | N27: =IFERROR(HYPERLINK(getCoor(ROW(),COLUMN()),""),"") ->  | O27: =IFERROR(HYPERLINK(getCoor(ROW(),COLUMN()),""),"") ->  | P27: =IFERROR(HYPERLINK(getCoor(ROW(),COLUMN()),""),"") ->  | Q27: =IFERROR(HYPERLINK(getCoor(ROW(),COLUMN()),""),"") ->  | R27: =IFERROR(HYPERLINK(getCoor(ROW(),COLUMN()),""),"") ->  | S27: =IFERROR(HYPERLINK(getCoor(ROW(),COLUMN()),""),"") ->  | T27: =IFERROR(HYPERLINK(getCoor(ROW(),COLUMN()),""),"") ->  | U27: =IFERROR(HYPERLINK(getCoor(ROW(),COLUMN()),""),"") ->  | V27: =IFERROR(HYPERLINK(getCoor(ROW(),COLUMN()),""),"") ->  | W27: =IFERROR(HYPERLINK(getCoor(ROW(),COLUMN()),""),"") ->  | X27: =IFERROR(HYPERLINK(getCoor(ROW(),COLUMN()),""),"") ->  | Y27: =IFERROR(HYPERLINK(getCoor(ROW(),COLUMN()),""),"") ->  | Z27: =IFERROR(HYPERLINK(getCoor(ROW(),COLUMN()),""),"") ->  | AA27: =IFERROR(HYPERLINK(getCoor(ROW(),COLUMN()),""),"") ->  | AB27: =IFERROR(HYPERLINK(getCoor(ROW(),COLUMN()),""),"") ->  | AC27: =IFERROR(HYPERLINK(getCoor(ROW(),COLUMN()),""),"") ->  | AD27: =IFERROR(HYPERLINK(getCoor(ROW(),COLUMN()),""),"") ->  | AE27: =IFERROR(HYPERLINK(getCoor(ROW(),COLUMN()),""),"") ->  | AF27: =IFERROR(HYPERLINK(getCoor(ROW(),COLUMN()),""),"") ->  | AG27: =IFERROR(HYPERLINK(getCoor(ROW(),COLUMN()),""),"") ->  | AH27: =IFERROR(HYPERLINK(getCoor(ROW(),COLUMN()),""),"") ->  | AI27: =IFERROR(HYPERLINK(getCoor(ROW(),COLUMN()),""),"") ->  | AJ27: =IFERROR(HYPERLINK(getCoor(ROW(),COLUMN()),""),"") ->  | AK27: =IFERROR(HYPERLINK(getCoor(ROW(),COLUMN()),""),"") ->  | AL27: =IFERROR(HYPERLINK(getCoor(ROW(),COLUMN()),""),"") ->  | AM27: =IFERROR(HYPERLINK(getCoor(ROW(),COLUMN()),""),"") ->  | AN27: =IFERROR(HYPERLINK(getCoor(ROW(),COLUMN()),""),"") ->  | AO27: =IFERROR(HYPERLINK(getCoor(ROW(),COLUMN()),""),"") ->  | AP27: =IFERROR(HYPERLINK(getCoor(ROW(),COLUMN()),""),"") ->  | AQ27: =IFERROR(HYPERLINK(getCoor(ROW(),COLUMN()),""),"") ->  | AR27: =IFERROR(HYPERLINK(getCoor(ROW(),COLUMN()),""),"") ->  | AS27: =IFERROR(HYPERLINK(getCoor(ROW(),COLUMN()),""),"") ->  | AT27: =IFERROR(HYPERLINK(getCoor(ROW(),COLUMN()),""),"") ->  | AU27: =IFERROR(HYPERLINK(getCoor(ROW(),COLUMN()),""),"") ->  | AV27: =IFERROR(HYPERLINK(getCoor(ROW(),COLUMN()),""),"") ->  | AW27: =IFERROR(HYPERLINK(getCoor(ROW(),COLUMN()),""),"") ->  | AX27: =IFERROR(HYPERLINK(getCoor(ROW(),COLUMN()),""),"") ->  | AY27: =IFERROR(HYPERLINK(getCoor(ROW(),COLUMN()),""),"") ->  | AZ27: =IFERROR(HYPERLINK(getCoor(ROW(),COLUMN()),""),"") ->  | BA27: =IFERROR(HYPERLINK(getCoor(ROW(),COLUMN()),""),"") ->  | BB27: =IFERROR(HYPERLINK(getCoor(ROW(),COLUMN()),""),"") ->  | BC27: =IFERROR(HYPERLINK(getCoor(ROW(),COLUMN()),""),"") ->  | BD27: =IFERROR(HYPERLINK(getCoor(ROW(),COLUMN()),""),"") ->  | BE27: =IFERROR(HYPERLINK(getCoor(ROW(),COLUMN()),""),"") ->  | BF27: =IFERROR(HYPERLINK(getCoor(ROW(),COLUMN()),""),"") ->  | BG27: =IFERROR(HYPERLINK(getCoor(ROW(),COLUMN()),""),"") ->  | BH27: =IFERROR(HYPERLINK(getCoor(ROW(),COLUMN()),""),"") ->  | BI27: =IFERROR(HYPERLINK(getCoor(ROW(),COLUMN()),""),"") ->  | BJ27: =IFERROR(HYPERLINK(getCoor(ROW(),COLUMN()),""),"") ->  | BK27: =IFERROR(HYPERLINK(getCoor(ROW(),COLUMN()),""),"") ->  | BL27: 26 | BM27: Missouri | BN27: =IFERROR(HLOOKUP($DS$5,Table!$I$182:$BL$237,Table!BN211),"") ->  | BP27: =IFERROR(VLOOKUP($DS$5,Table!$A$186:$BL$237,Table!BO211),"") ->  | BS27: 28 | BT27: =BM28 -> Montana | BU27: =BR28 ->  | DH27: 306 | DI27: 189 | DJ27: 20 | DK27: 14 | DL27: FALSE | DM27: FALSE | DN27: FALSE | DO27: 313 | DP27: 199 | DQ27: 0 | DT27: 0 | DU27: FALSE | DV27: 26 | DW27: Missouri | DX27: 0Missouri | EB27: 30
A28: =IFERROR(HYPERLINK(getCoor(ROW(),COLUMN()),""),"") ->  | B28: =IFERROR(HYPERLINK(getCoor(ROW(),COLUMN()),""),"") ->  | C28: =IFERROR(HYPERLINK(getCoor(ROW(),COLUMN()),""),"") ->  | D28: =IFERROR(HYPERLINK(getCoor(ROW(),COLUMN()),""),"") ->  | E28: =IFERROR(HYPERLINK(getCoor(ROW(),COLUMN()),""),"") ->  | F28: =IFERROR(HYPERLINK(getCoor(ROW(),COLUMN()),""),"") ->  | G28: =IFERROR(HYPERLINK(getCoor(ROW(),COLUMN()),""),"") ->  | H28: =IFERROR(HYPERLINK(getCoor(ROW(),COLUMN()),""),"") ->  | I28: =IFERROR(HYPERLINK(getCoor(ROW(),COLUMN()),""),"") ->  | J28: =IFERROR(HYPERLINK(getCoor(ROW(),COLUMN()),""),"") ->  | K28: =IFERROR(HYPERLINK(getCoor(ROW(),COLUMN()),""),"") ->  | L28: =IFERROR(HYPERLINK(getCoor(ROW(),COLUMN()),""),"") ->  | M28: =IFERROR(HYPERLINK(getCoor(ROW(),COLUMN()),""),"") ->  | N28: =IFERROR(HYPERLINK(getCoor(ROW(),COLUMN()),""),"") ->  | O28: =IFERROR(HYPERLINK(getCoor(ROW(),COLUMN()),""),"") ->  | P28: =IFERROR(HYPERLINK(getCoor(ROW(),COLUMN()),""),"") ->  | Q28: =IFERROR(HYPERLINK(getCoor(ROW(),COLUMN()),""),"") ->  | R28: =IFERROR(HYPERLINK(getCoor(ROW(),COLUMN()),""),"") ->  | S28: =IFERROR(HYPERLINK(getCoor(ROW(),COLUMN()),""),"") ->  | T28: =IFERROR(HYPERLINK(getCoor(ROW(),COLUMN()),""),"") ->  | U28: =IFERROR(HYPERLINK(getCoor(ROW(),COLUMN()),""),"") ->  | V28: =IFERROR(HYPERLINK(getCoor(ROW(),COLUMN()),""),"") ->  | W28: =IFERROR(HYPERLINK(getCoor(ROW(),COLUMN()),""),"") ->  | X28: =IFERROR(HYPERLINK(getCoor(ROW(),COLUMN()),""),"") ->  | Y28: =IFERROR(HYPERLINK(getCoor(ROW(),COLUMN()),""),"") ->  | Z28: =IFERROR(HYPERLINK(getCoor(ROW(),COLUMN()),""),"") ->  | AA28: =IFERROR(HYPERLINK(getCoor(ROW(),COLUMN()),""),"") ->  | AB28: =IFERROR(HYPERLINK(getCoor(ROW(),COLUMN()),""),"") ->  | AC28: =IFERROR(HYPERLINK(getCoor(ROW(),COLUMN()),""),"") ->  | AD28: =IFERROR(HYPERLINK(getCoor(ROW(),COLUMN()),""),"") ->  | AE28: =IFERROR(HYPERLINK(getCoor(ROW(),COLUMN()),""),"") ->  | AF28: =IFERROR(HYPERLINK(getCoor(ROW(),COLUMN()),""),"") ->  | AG28: =IFERROR(HYPERLINK(getCoor(ROW(),COLUMN()),""),"") ->  | AH28: =IFERROR(HYPERLINK(getCoor(ROW(),COLUMN()),""),"") ->  | AI28: =IFERROR(HYPERLINK(getCoor(ROW(),COLUMN()),""),"") ->  | AJ28: =IFERROR(HYPERLINK(getCoor(ROW(),COLUMN()),""),"") ->  | AK28: =IFERROR(HYPERLINK(getCoor(ROW(),COLUMN()),""),"") ->  | AL28: =IFERROR(HYPERLINK(getCoor(ROW(),COLUMN()),""),"") ->  | AM28: =IFERROR(HYPERLINK(getCoor(ROW(),COLUMN()),""),"") ->  | AN28: =IFERROR(HYPERLINK(getCoor(ROW(),COLUMN()),""),"") ->  | AO28: =IFERROR(HYPERLINK(getCoor(ROW(),COLUMN()),""),"") ->  | AP28: =IFERROR(HYPERLINK(getCoor(ROW(),COLUMN()),""),"") ->  | AQ28: =IFERROR(HYPERLINK(getCoor(ROW(),COLUMN()),""),"") ->  | AR28: =IFERROR(HYPERLINK(getCoor(ROW(),COLUMN()),""),"") ->  | AS28: =IFERROR(HYPERLINK(getCoor(ROW(),COLUMN()),""),"") ->  | AT28: =IFERROR(HYPERLINK(getCoor(ROW(),COLUMN()),""),"") ->  | AU28: =IFERROR(HYPERLINK(getCoor(ROW(),COLUMN()),""),"") ->  | AV28: =IFERROR(HYPERLINK(getCoor(ROW(),COLUMN()),""),"") ->  | AW28: =IFERROR(HYPERLINK(getCoor(ROW(),COLUMN()),""),"") ->  | AX28: =IFERROR(HYPERLINK(getCoor(ROW(),COLUMN()),""),"") ->  | AY28: =IFERROR(HYPERLINK(getCoor(ROW(),COLUMN()),""),"") ->  | AZ28: =IFERROR(HYPERLINK(getCoor(ROW(),COLUMN()),""),"") ->  | BA28: =IFERROR(HYPERLINK(getCoor(ROW(),COLUMN()),""),"") ->  | BB28: =IFERROR(HYPERLINK(getCoor(ROW(),COLUMN()),""),"") ->  | BC28: =IFERROR(HYPERLINK(getCoor(ROW(),COLUMN()),""),"") ->  | BD28: =IFERROR(HYPERLINK(getCoor(ROW(),COLUMN()),""),"") ->  | BE28: =IFERROR(HYPERLINK(getCoor(ROW(),COLUMN()),""),"") ->  | BF28: =IFERROR(HYPERLINK(getCoor(ROW(),COLUMN()),""),"") ->  | BG28: =IFERROR(HYPERLINK(getCoor(ROW(),COLUMN()),""),"") ->  | BH28: =IFERROR(HYPERLINK(getCoor(ROW(),COLUMN()),""),"") ->  | BI28: =IFERROR(HYPERLINK(getCoor(ROW(),COLUMN()),""),"") ->  | BJ28: =IFERROR(HYPERLINK(getCoor(ROW(),COLUMN()),""),"") ->  | BK28: =IFERROR(HYPERLINK(getCoor(ROW(),COLUMN()),""),"") ->  | BL28: 27 | BM28: Montana | BN28: =IFERROR(HLOOKUP($DS$5,Table!$I$182:$BL$237,Table!BN212),"") ->  | BP28: =IFERROR(VLOOKUP($DS$5,Table!$A$186:$BL$237,Table!BO212),"") ->  | BS28: 27 | BT28: =BM27 -> Missouri | BU28: =BR27 ->  | DH28: 153 | DI28: 68 | DJ28: 20 | DK28: 14 | DL28: FALSE | DM28: FALSE | DN28: FALSE | DO28: 160 | DP28: 78 | DQ28: 0 | DT28: 0 | DU28: FALSE | DV28: 27 | DW28: Montana | DX28: 0Montana | EB28: 31
F29: =IFERROR(HYPERLINK(getCoor(ROW(),COLUMN()),""),"") ->  | G29: =IFERROR(HYPERLINK(getCoor(ROW(),COLUMN()),""),"") ->  | H29: =IFERROR(HYPERLINK(getCoor(ROW(),COLUMN()),""),"") ->  | I29: =IFERROR(HYPERLINK(getCoor(ROW(),COLUMN()),""),"") ->  | J29: =IFERROR(HYPERLINK(getCoor(ROW(),COLUMN()),""),"") ->  | K29: =IFERROR(HYPERLINK(getCoor(ROW(),COLUMN()),""),"") ->  | L29: =IFERROR(HYPERLINK(getCoor(ROW(),COLUMN()),""),"") ->  | M29: =IFERROR(HYPERLINK(getCoor(ROW(),COLUMN()),""),"") ->  | N29: =IFERROR(HYPERLINK(getCoor(ROW(),COLUMN()),""),"") ->  | O29: =IFERROR(HYPERLINK(getCoor(ROW(),COLUMN()),""),"") ->  | P29: =IFERROR(HYPERLINK(getCoor(ROW(),COLUMN()),""),"") ->  | Q29: =IFERROR(HYPERLINK(getCoor(ROW(),COLUMN()),""),"") ->  | R29: =IFERROR(HYPERLINK(getCoor(ROW(),COLUMN()),""),"") ->  | S29: =IFERROR(HYPERLINK(getCoor(ROW(),COLUMN()),""),"") ->  | T29: =IFERROR(HYPERLINK(getCoor(ROW(),COLUMN()),""),"") ->  | U29: =IFERROR(HYPERLINK(getCoor(ROW(),COLUMN()),""),"") ->  | V29: =IFERROR(HYPERLINK(getCoor(ROW(),COLUMN()),""),"") ->  | W29: =IFERROR(HYPERLINK(getCoor(ROW(),COLUMN()),""),"") ->  | X29: =IFERROR(HYPERLINK(getCoor(ROW(),COLUMN()),""),"") ->  | Y29: =IFERROR(HYPERLINK(getCoor(ROW(),COLUMN()),""),"") ->  | Z29: =IFERROR(HYPERLINK(getCoor(ROW(),COLUMN()),""),"") ->  | AA29: =IFERROR(HYPERLINK(getCoor(ROW(),COLUMN()),""),"") ->  | AB29: =IFERROR(HYPERLINK(getCoor(ROW(),COLUMN()),""),"") ->  | AC29: =IFERROR(HYPERLINK(getCoor(ROW(),COLUMN()),""),"") ->  | AD29: =IFERROR(HYPERLINK(getCoor(ROW(),COLUMN()),""),"") ->  | AE29: =IFERROR(HYPERLINK(getCoor(ROW(),COLUMN()),""),"") ->  | AF29: =IFERROR(HYPERLINK(getCoor(ROW(),COLUMN()),""),"") ->  | AG29: =IFERROR(HYPERLINK(getCoor(ROW(),COLUMN()),""),"") ->  | AH29: =IFERROR(HYPERLINK(getCoor(ROW(),COLUMN()),""),"") ->  | AI29: =IFERROR(HYPERLINK(getCoor(ROW(),COLUMN()),""),"") ->  | AJ29: =IFERROR(HYPERLINK(getCoor(ROW(),COLUMN()),""),"") ->  | AK29: =IFERROR(HYPERLINK(getCoor(ROW(),COLUMN()),""),"") ->  | AL29: =IFERROR(HYPERLINK(getCoor(ROW(),COLUMN()),""),"") ->  | AM29: =IFERROR(HYPERLINK(getCoor(ROW(),COLUMN()),""),"") ->  | AN29: =IFERROR(HYPERLINK(getCoor(ROW(),COLUMN()),""),"") ->  | AO29: =IFERROR(HYPERLINK(getCoor(ROW(),COLUMN()),""),"") ->  | AP29: =IFERROR(HYPERLINK(getCoor(ROW(),COLUMN()),""),"") ->  | AQ29: =IFERROR(HYPERLINK(getCoor(ROW(),COLUMN()),""),"") ->  | AR29: =IFERROR(HYPERLINK(getCoor(ROW(),COLUMN()),""),"") ->  | AS29: =IFERROR(HYPERLINK(getCoor(ROW(),COLUMN()),""),"") ->  | AT29: =IFERROR(HYPERLINK(getCoor(ROW(),COLUMN()),""),"") ->  | AU29: =IFERROR(HYPERLINK(getCoor(ROW(),COLUMN()),""),"") ->  | AV29: =IFERROR(HYPERLINK(getCoor(ROW(),COLUMN()),""),"") ->  | AW29: =IFERROR(HYPERLINK(getCoor(ROW(),COLUMN()),""),"") ->  | AX29: =IFERROR(HYPERLINK(getCoor(ROW(),COLUMN()),""),"") ->  | AY29: =IFERROR(HYPERLINK(getCoor(ROW(),COLUMN()),""),"") ->  | AZ29: =IFERROR(HYPERLINK(getCoor(ROW(),COLUMN()),""),"") ->  | BA29: =IFERROR(HYPERLINK(getCoor(ROW(),COLUMN()),""),"") ->  | BB29: =IFERROR(HYPERLINK(getCoor(ROW(),COLUMN()),""),"") ->  | BC29: =IFERROR(HYPERLINK(getCoor(ROW(),COLUMN()),""),"") ->  | BD29: =IFERROR(HYPERLINK(getCoor(ROW(),COLUMN()),""),"") ->  | BE29: =IFERROR(HYPERLINK(getCoor(ROW(),COLUMN()),""),"") ->  | BF29: =IFERROR(HYPERLINK(getCoor(ROW(),COLUMN()),""),"") ->  | BG29: =IFERROR(HYPERLINK(getCoor(ROW(),COLUMN()),""),"") ->  | BH29: =IFERROR(HYPERLINK(getCoor(ROW(),COLUMN()),""),"") ->  | BI29: =IFERROR(HYPERLINK(getCoor(ROW(),COLUMN()),""),"") ->  | BJ29: =IFERROR(HYPERLINK(getCoor(ROW(),COLUMN()),""),"") ->  | BK29: =IFERROR(HYPERLINK(getCoor(ROW(),COLUMN()),""),"") ->  | BL29: 28 | BM29: Nebraska | BN29: =IFERROR(HLOOKUP($DS$5,Table!$I$182:$BL$237,Table!BN213),"") ->  | BP29: =IFERROR(VLOOKUP($DS$5,Table!$A$186:$BL$237,Table!BO213),"") ->  | BS29: 26 | BT29: =BM26 -> Mississippi | BU29: =BR26 ->  | DH29: 234 | DI29: 148 | DJ29: 20 | DK29: 14 | DL29: FALSE | DM29: FALSE | DN29: FALSE | DO29: 241 | DP29: 158 | DQ29: 0 | DT29: 0 | DU29: FALSE | DV29: 28 | DW29: Nebraska | DX29: 0Nebraska | EB29: 32
AE30: =DS6 ->  | AJ30: =IFERROR(VLOOKUP($AE$30,$BM$69:$CB$120,4),".") -> . | BL30: 29 | BM30: Nevada | BN30: =IFERROR(HLOOKUP($DS$5,Table!$I$182:$BL$237,Table!BN214),"") ->  | BP30: =IFERROR(VLOOKUP($DS$5,Table!$A$186:$BL$237,Table!BO214),"") ->  | BS30: 25 | BT30: =BM25 -> Minnesota | BU30: =BR25 ->  | DH30: 72 | DI30: 148 | DJ30: 20 | DK30: 14 | DL30: FALSE | DM30: FALSE | DN30: FALSE | DO30: 79 | DP30: 158 | DQ30: 0 | DT30: 0 | DU30: FALSE | DV30: 29 | DW30: Nevada | DX30: 0Nevada | EB30: 33
L31: =IFERROR(VLOOKUP($AE$30,$BM$69:$CB$120,6),".") -> . | P31: =IFERROR(VLOOKUP($AE$30,$BM$69:$CB$120,8),".") -> . | T31: =IFERROR(VLOOKUP($AE$30,$BM$69:$CB$120,11),".") -> . | X31: =IFERROR(VLOOKUP($AE$30,$BM$69:$CB$120,14),".") -> . | AB31: =IFERROR(VLOOKUP($AE$30,$BM$69:$CB$120,16),".") -> . | AR31: =IFERROR(VLOOKUP($AE$30,$BM$69:$CB$120,6),".") -> . | AV31: =IFERROR(VLOOKUP($AE$30,$BM$69:$CB$120,8),".") -> . | AZ31: =IFERROR(VLOOKUP($AE$30,$BM$69:$CB$120,11),".") -> . | BD31: =IFERROR(VLOOKUP($AE$30,$BM$69:$CB$120,14),".") -> . | BH31: =IFERROR(VLOOKUP($AE$30,$BM$69:$CB$120,16),".") -> . | BL31: 30 | BM31: New Hampshire | BN31: =IFERROR(HLOOKUP($DS$5,Table!$I$182:$BL$237,Table!BN215),"") ->  | BP31: =IFERROR(VLOOKUP($DS$5,Table!$A$186:$BL$237,Table!BO215),"") ->  | BS31: 24 | BT31: =BM24 -> Michigan | BU31: =BR24 ->  | DH31: 432 | DI31: 27 | DJ31: 20 | DK31: 7 | DL31: FALSE | DM31: FALSE | DN31: FALSE | DO31: 435.5 | DP31: 37 | DQ31: 0 | DT31: 0 | DU31: FALSE | DV31: 30 | DW31: New Hampshire | DX31: 0New Hampshire | EB31: 34
L32: =IFERROR(VLOOKUP(C32,$BM$69:$BZ$120,5),".") -> . | P32: =IFERROR(VLOOKUP(G32,$BM$69:$BZ$120,5),".") -> . | T32: =IFERROR(VLOOKUP(K32,$BM$69:$BZ$120,5),".") -> . | X32: =IFERROR(VLOOKUP(O32,$BM$69:$BZ$120,5),".") -> . | AB32: =IFERROR(VLOOKUP(S32,$BM$69:$BZ$120,5),".") -> . | AR32: =IFERROR(VLOOKUP(AH32,$BM$69:$BZ$120,5),".") -> . | AV32: =IFERROR(VLOOKUP(AL32,$BM$69:$BZ$120,5),".") -> . | AZ32: =IFERROR(VLOOKUP(AQ32,$BM$69:$BZ$120,5),".") -> . | BD32: =IFERROR(VLOOKUP(AU32,$BM$69:$BZ$120,5),".") -> . | BH32: =IFERROR(VLOOKUP(AY32,$BM$69:$BZ$120,5),".") -> . | BL32: 31 | BM32: New Jersey | BN32: =IFERROR(HLOOKUP($DS$5,Table!$I$182:$BL$237,Table!BN216),"") ->  | BP32: =IFERROR(VLOOKUP($DS$5,Table!$A$186:$BL$237,Table!BO216),"") ->  | BT32: =BM23 -> Massachusetts | BU32: =BR23 ->  | DH32: 531 | DI32: 162 | DJ32: 20 | DK32: 7 | DL32: FALSE | DM32: FALSE | DN32: FALSE | DO32: 534.5 | DP32: 172 | DQ32: 0 | DT32: 0 | DU32: FALSE | DV32: 31 | DW32: New Jersey | DX32: 0New Jersey | EB32: 35
A33: Top (IN) | L33: Area | P33: Pop | T33: PIB | X33: Pib/Hab | AB33: Growth | AG33: TOP (OUT) | AR33: Area | AV33: Pop | AZ33: PIB | BD33: Pib/Hab | BH33: Growth | BL33: 32 | BM33: New Mexico | BN33: =IFERROR(HLOOKUP($DS$5,Table!$I$182:$BL$237,Table!BN217),"") ->  | BP33: =IFERROR(VLOOKUP($DS$5,Table!$A$186:$BL$237,Table!BO217),"") ->  | BS33: 22 | BT33: =BM22 -> Maryland | BU33: =BR22 ->  | DH33: 162 | DI33: 243 | DJ33: 20 | DK33: 20 | DL33: FALSE | DM33: FALSE | DN33: FALSE | DO33: 172 | DP33: 253 | DQ33: 0 | DT33: 0 | DU33: FALSE | DV33: 32 | DW33: New Mexico | DX33: 0New Mexico | EB33: 36
L34: % | P34: % | T34: % | X34: % | AB34: in 2012 | AR34: % | AV34: % | AZ34: % | BD34: % | BH34: in 2012 | BL34: 33 | BM34: New York | BN34: =IFERROR(HLOOKUP($DS$5,Table!$I$182:$BL$237,Table!BN218),"") ->  | BP34: =IFERROR(VLOOKUP($DS$5,Table!$A$186:$BL$237,Table!BO218),"") ->  | BR34: =+IFERROR(BN34-BP34,"") ->  | BS34: 21 | BT34: =BM21 -> Maine | BU34: =BR21 ->  | DH34: 450 | DI34: 108 | DJ34: 20 | DK34: 7 | DL34: FALSE | DM34: FALSE | DN34: FALSE | DO34: 453.5 | DP34: 118 | DQ34: 0 | DT34: 0 | DU34: =IF(DN34=FALSE,FALSE,TRUE) -> FALSE | DV34: 33 | DW34: New York | DX34: 0New York | EB34: 37
A35: 1º | C35: =IFERROR(VLOOKUP(MATCH(LARGE($BN$2:$BN$53,1),$BN$2:$BN$53,0),$BL$2:$BN$53,2),"") ->  | L35: =IFERROR(VLOOKUP(C35,$BM$69:$CB$120,6),".") -> . | P35: =IFERROR(VLOOKUP(C35,$BM$69:$CB$120,8),".") -> . | T35: =IFERROR(VLOOKUP(C35,$BM$69:$CB$120,11),".") -> . | X35: =IFERROR(VLOOKUP(C35,$BM$69:$CB$120,14),".") -> . | AB35: =IFERROR(VLOOKUP(C35,$BM$69:$CB$120,16),".") -> . | AG35: 1º | AI35: =IFERROR(VLOOKUP(MATCH(LARGE($BP$2:$BP$53,1),$BP$2:$BP$53,0),$BL$2:$BP$53,2),"") ->  | AR35: =IFERROR(VLOOKUP(AI35,$BM$69:$CB$120,6),".") -> . | AV35: =IFERROR(VLOOKUP(AI35,$BM$69:$CB$120,8),".") -> . | AZ35: =IFERROR(VLOOKUP(AI35,$BM$69:$CB$120,11),".") -> . | BD35: =IFERROR(VLOOKUP(AI35,$BM$69:$CB$120,14),".") -> . | BH35: =IFERROR(VLOOKUP(AI35,$BM$69:$CB$120,16),".") -> . | BL35: 34 | BM35: North Carolina | BN35: =IFERROR(HLOOKUP($DS$5,Table!$I$182:$BL$237,Table!BN219),"") ->  | BP35: =IFERROR(VLOOKUP($DS$5,Table!$A$186:$BL$237,Table!BO219),"") ->  | BS35: 20 | BT35: =BM20 -> Louisiana | BU35: =BR20 ->  | DH35: 432 | DI35: 216 | DJ35: 14 | DK35: 7 | DL35: FALSE | DM35: FALSE | DN35: FALSE | DO35: 435.5 | DP35: 223 | DQ35: 0 | DT35: 0 | DU35: FALSE | DV35: 34 | DW35: North Carolina | DX35: 0North Carolina | EB35: 38
A36: 2º | C36: =IFERROR(VLOOKUP(MATCH(LARGE($BN$2:$BN$53,2),$BN$2:$BN$53,0),$BL$2:$BN$53,2),"") ->  | L36: =IFERROR(VLOOKUP(C36,$BM$69:$CB$120,6),".") -> . | P36: =IFERROR(VLOOKUP(C36,$BM$69:$CB$120,8),".") -> . | T36: =IFERROR(VLOOKUP(C36,$BM$69:$CB$120,11),".") -> . | X36: =IFERROR(VLOOKUP(C36,$BM$69:$CB$120,14),".") -> . | AB36: =IFERROR(VLOOKUP(C36,$BM$69:$CB$120,16),".") -> . | AG36: 2º | AI36: =IFERROR(VLOOKUP(MATCH(LARGE($BP$2:$BP$53,2),$BP$2:$BP$53,0),$BL$2:$BP$53,2),"") ->  | AR36: =IFERROR(VLOOKUP(AI36,$BM$69:$CB$120,6),".") -> . | AV36: =IFERROR(VLOOKUP(AI36,$BM$69:$CB$120,8),".") -> . | AZ36: =IFERROR(VLOOKUP(AI36,$BM$69:$CB$120,11),".") -> . | BD36: =IFERROR(VLOOKUP(AI36,$BM$69:$CB$120,14),".") -> . | BH36: =IFERROR(VLOOKUP(AI36,$BM$69:$CB$120,16),".") -> . | BL36: 35 | BM36: North Dakota | BN36: =IFERROR(HLOOKUP($DS$5,Table!$I$182:$BL$237,Table!BN220),"") ->  | BP36: =IFERROR(VLOOKUP($DS$5,Table!$A$186:$BL$237,Table!BO220),"") ->  | BS36: 19 | BT36: =BM19 -> Kentucky | BU36: =BR19 ->  | DH36: 225 | DI36: 68 | DJ36: 20 | DK36: 14 | DL36: FALSE | DM36: FALSE | DN36: FALSE | DO36: 232 | DP36: 78 | DQ36: 0 | DT36: 0 | DU36: FALSE | DV36: 35 | DW36: North Dakota | DX36: 0North Dakota | EB36: 39
A37: 3º | C37: =IFERROR(VLOOKUP(MATCH(LARGE($BN$2:$BN$53,3),$BN$2:$BN$53,0),$BL$2:$BN$53,2),"") ->  | L37: . | P37: . | T37: . | X37: . | AB37: . | AG37: 3º | AI37: =IFERROR(VLOOKUP(MATCH(LARGE($BP$2:$BP$53,3),$BP$2:$BP$53,0),$BL$2:$BP$53,2),"") ->  | AR37: . | AV37: . | AZ37: . | BD37: . | BH37: . | BL37: 36 | BM37: Ohio | BN37: =IFERROR(HLOOKUP($DS$5,Table!$I$182:$BL$237,Table!BN221),"") ->  | BP37: =IFERROR(VLOOKUP($DS$5,Table!$A$186:$BL$237,Table!BO221),"") ->  | BS37: 18 | BT37: =BM18 -> Kansas | BU37: =BR18 ->  | DH37: 396 | DI37: 162 | DJ37: 20 | DK37: 14 | DL37: FALSE | DM37: FALSE | DN37: FALSE | DO37: 403 | DP37: 172 | DQ37: 0 | DT37: 0 | DU37: FALSE | DV37: 36 | DW37: Ohio | DX37: 0Ohio | EB37: 40
A38: 4º | C38: =IFERROR(VLOOKUP(MATCH(LARGE($BN$2:$BN$53,4),$BN$2:$BN$53,0),$BL$2:$BN$53,2),"") ->  | L38: . | P38: . | T38: . | X38: . | AB38: . | AG38: 4º | AI38: =IFERROR(VLOOKUP(MATCH(LARGE($BP$2:$BP$53,4),$BP$2:$BP$53,0),$BL$2:$BP$53,2),"") ->  | AR38: . | AV38: . | AZ38: . | BD38: . | BH38: . | BL38: 37 | BM38: Oklahoma | BN38: =IFERROR(HLOOKUP($DS$5,Table!$I$182:$BL$237,Table!BN222),"") ->  | BP38: =IFERROR(VLOOKUP($DS$5,Table!$A$186:$BL$237,Table!BO222),"") ->  | BS38: 17 | BT38: =BM17 -> Iowa | BU38: =BR17 ->  | DH38: 252 | DI38: 230 | DJ38: 20 | DK38: 20 | DL38: FALSE | DM38: FALSE | DN38: FALSE | DO38: 262 | DP38: 240 | DQ38: 0 | DT38: 0 | DU38: FALSE | DV38: 37 | DW38: Oklahoma | DX38: 0Oklahoma | EB38: 41
A39: 5º | C39: =IFERROR(VLOOKUP(MATCH(LARGE($BN$2:$BN$53,5),$BN$2:$BN$53,0),$BL$2:$BN$53,2),"") ->  | L39: . | P39: . | T39: . | X39: . | AB39: . | AG39: 5º | AI39: =IFERROR(VLOOKUP(MATCH(LARGE($BP$2:$BP$53,5),$BP$2:$BP$53,0),$BL$2:$BP$53,2),"") ->  | AR39: . | AV39: . | AZ39: . | BD39: . | BH39: . | BL39: 38 | BM39: Oregon | BN39: =IFERROR(HLOOKUP($DS$5,Table!$I$182:$BL$237,Table!BN223),"") ->  | BP39: =IFERROR(VLOOKUP($DS$5,Table!$A$186:$BL$237,Table!BO223),"") ->  | BS39: 16 | BT39: =BM16 -> Indiana | BU39: =BR16 ->  | DH39: 54 | DI39: 81 | DJ39: 20 | DK39: 20 | DL39: FALSE | DM39: FALSE | DN39: FALSE | DO39: 64 | DP39: 91 | DQ39: 0 | DT39: 0 | DU39: FALSE | DV39: 38 | DW39: Oregon | DX39: 0Oregon | EB39: 42
A40: … | AG40: … | BL40: 39 | BM40: Pennsylvania | BN40: =IFERROR(HLOOKUP($DS$5,Table!$I$182:$BL$237,Table!BN224),"") ->  | BP40: =IFERROR(VLOOKUP($DS$5,Table!$A$186:$BL$237,Table!BO224),"") ->  | BS40: 15 | BT40: =BM15 -> Illinois | BU40: =BR15 ->  | DH40: 432 | DI40: 135 | DJ40: 14 | DK40: 14 | DL40: FALSE | DM40: FALSE | DN40: FALSE | DO40: 439 | DP40: 142 | DQ40: 0 | DT40: =IF(DU40=TRUE,1,0) -> 0 | DU40: FALSE | DV40: 39 | DW40: Pennsylvania | DX40: =--DU40&DW40 -> 0Pennsylvania | EB40: 43
A41: 48º | C41: =IFERROR(VLOOKUP(MATCH(LARGE($BN$2:$BN$53,47),$BN$2:$BN$53,0),$BL$2:$BN$53,2),"") ->  | L41: =IFERROR(VLOOKUP(C41,$BM$69:$CB$120,6),".") -> . | P41: =IFERROR(VLOOKUP(C41,$BM$69:$CB$120,8),".") -> . | T41: =IFERROR(VLOOKUP(C41,$BM$69:$CB$120,11),".") -> . | X41: =IFERROR(VLOOKUP(C41,$BM$69:$CB$120,14),".") -> . | AB41: =IFERROR(VLOOKUP(C41,$BM$69:$CB$120,16),".") -> . | AG41: 48º | AI41: =IFERROR(VLOOKUP(MATCH(LARGE($BP$2:$BP$53,47),$BP$2:$BP$53,0),$BL$2:$BP$53,2),"") ->  | AR41: =IFERROR(VLOOKUP(AI41,$BM$69:$CB$120,6),".") -> . | AV41: =IFERROR(VLOOKUP(AI41,$BM$69:$CB$120,8),".") -> . | AZ41: =IFERROR(VLOOKUP(AI41,$BM$69:$CB$120,11),".") -> . | BD41: =IFERROR(VLOOKUP(AI41,$BM$69:$CB$120,14),".") -> . | BH41: =IFERROR(VLOOKUP(AI41,$BM$69:$CB$120,16),".") -> . | BL41: 40 | BM41: Rhode Island | BN41: =IFERROR(HLOOKUP($DS$5,Table!$I$182:$BL$237,Table!BN225),"") ->  | BP41: =IFERROR(VLOOKUP($DS$5,Table!$A$186:$BL$237,Table!BO225),"") ->  | BS41: 14 | BT41: =BM14 -> Idaho | BU41: =BR14 ->  | DH41: 531 | DI41: 135 | DJ41: 20 | DK41: 7 | DL41: FALSE | DM41: FALSE | DN41: FALSE | DO41: 534.5 | DP41: 145 | DQ41: 0 | DT41: 0 | DU41: FALSE | DV41: 40 | DW41: Rhode Island | DX41: 0Rhode Island | EB41: 44
A42: 49º | C42: =IFERROR(VLOOKUP(MATCH(LARGE($BN$2:$BN$53,48),$BN$2:$BN$53,0),$BL$2:$BN$53,2),"") ->  | L42: =IFERROR(VLOOKUP(C42,$BM$69:$CB$120,6),".") -> . | P42: =IFERROR(VLOOKUP(C42,$BM$69:$CB$120,8),".") -> . | T42: =IFERROR(VLOOKUP(C42,$BM$69:$CB$120,11),".") -> . | X42: =IFERROR(VLOOKUP(C42,$BM$69:$CB$120,14),".") -> . | AB42: =IFERROR(VLOOKUP(C42,$BM$69:$CB$120,16),".") -> . | AG42: 49º | AI42: =IFERROR(VLOOKUP(MATCH(LARGE($BP$2:$BP$53,48),$BP$2:$BP$53,0),$BL$2:$BP$53,2),"") ->  | AR42: =IFERROR(VLOOKUP(AI42,$BM$69:$CB$120,6),".") -> . | AV42: =IFERROR(VLOOKUP(AI42,$BM$69:$CB$120,8),".") -> . | AZ42: =IFERROR(VLOOKUP(AI42,$BM$69:$CB$120,11),".") -> . | BD42: =IFERROR(VLOOKUP(AI42,$BM$69:$CB$120,14),".") -> . | BH42: =IFERROR(VLOOKUP(AI42,$BM$69:$CB$120,16),".") -> . | BL42: 41 | BM42: South Carolina | BN42: =IFERROR(HLOOKUP($DS$5,Table!$I$182:$BL$237,Table!BN226),"") ->  | BP42: =IFERROR(VLOOKUP($DS$5,Table!$A$186:$BL$237,Table!BO226),"") ->  | BS42: 13 | BT42: =BM13 -> Hawaii | BU42: =BR13 ->  | DH42: 423 | DI42: 243 | DJ42: 14 | DK42: 14 | DL42: FALSE | DM42: FALSE | DN42: FALSE | DO42: 430 | DP42: 250 | DQ42: 0 | DT42: 0 | DU42: FALSE | DV42: 41 | DW42: South Carolina | DX42: 0South Carolina | EB42: 45
A43: 50º | C43: =IFERROR(VLOOKUP(MATCH(LARGE($BN$2:$BN$53,49),$BN$2:$BN$53,0),$BL$2:$BN$53,2),"") ->  | L43: . | P43: . | T43: . | X43: . | AB43: . | AG43: 50º | AI43: =IFERROR(VLOOKUP(MATCH(LARGE($BP$2:$BP$53,49),$BP$2:$BP$53,0),$BL$2:$BP$53,2),"") ->  | AR43: . | AV43: . | AZ43: . | BD43: . | BH43: . | BL43: 42 | BM43: South Dakota | BN43: =IFERROR(HLOOKUP($DS$5,Table!$I$182:$BL$237,Table!BN227),"") ->  | BP43: =IFERROR(VLOOKUP($DS$5,Table!$A$186:$BL$237,Table!BO227),"") ->  | BS43: 12 | BT43: =BM12 -> Georgia | BU43: =BR12 ->  | DH43: 225 | DI43: 108 | DJ43: 14 | DK43: 7 | DL43: FALSE | DM43: FALSE | DN43: FALSE | DO43: 228.5 | DP43: 115 | DQ43: 0 | DT43: 0 | DU43: FALSE | DV43: 42 | DW43: South Dakota | DX43: 0South Dakota | EB43: 46
A44: 51º | C44: =IFERROR(VLOOKUP(MATCH(LARGE($BN$2:$BN$53,50),$BN$2:$BN$53,0),$BL$2:$BN$53,2),"") ->  | L44: . | P44: . | T44: . | X44: . | AB44: . | AG44: 51º | AI44: =IFERROR(VLOOKUP(MATCH(LARGE($BP$2:$BP$53,50),$BP$2:$BP$53,0),$BL$2:$BP$53,2),"") ->  | AR44: . | AV44: . | AZ44: . | BD44: . | BH44: . | BL44: 43 | BM44: Tennessee | BN44: =IFERROR(HLOOKUP($DS$5,Table!$I$182:$BL$237,Table!BN228),"") ->  | BP44: =IFERROR(VLOOKUP($DS$5,Table!$A$186:$BL$237,Table!BO228),"") ->  | BS44: 11 | BT44: =BM11 -> Florida | BU44: =BR11 ->  | DH44: 360 | DI44: 230 | DJ44: 20 | DK44: 7 | DL44: FALSE | DM44: FALSE | DN44: FALSE | DO44: 363.5 | DP44: 240 | DQ44: 0 | DT44: 0 | DU44: FALSE | DV44: 43 | DW44: Tennessee | DX44: 0Tennessee | EB44: 47
A45: 52º | C45: =IFERROR(VLOOKUP(MATCH(LARGE($BN$2:$BN$53,51),$BN$2:$BN$53,0),$BL$2:$BN$53,2),"") ->  | L45: . | P45: . | T45: . | X45: . | AB45: . | AG45: 52º | AI45: =IFERROR(VLOOKUP(MATCH(LARGE($BP$2:$BP$53,51),$BP$2:$BP$53,0),$BL$2:$BP$53,2),"") ->  | AR45: . | AV45: . | AZ45: . | BD45: . | BH45: . | BL45: 44 | BM45: Texas | BN45: =IFERROR(HLOOKUP($DS$5,Table!$I$182:$BL$237,Table!BN229),"") ->  | BP45: =IFERROR(VLOOKUP($DS$5,Table!$A$186:$BL$237,Table!BO229),"") ->  | BS45: 10 | BT45: =BM10 -> District of Columbia | BU45: =BR10 ->  | DH45: 234 | DI45: 284 | DJ45: 20 | DK45: 20 | DL45: FALSE | DM45: FALSE | DN45: FALSE | DO45: 244 | DP45: 294 | DQ45: 0 | DT45: 0 | DU45: FALSE | DV45: 44 | DW45: Texas | DX45: 0Texas | EB45: 48
BL46: 45 | BM46: Utah | BN46: =IFERROR(HLOOKUP($DS$5,Table!$I$182:$BL$237,Table!BN230),"") ->  | BP46: =IFERROR(VLOOKUP($DS$5,Table!$A$186:$BL$237,Table!BO230),"") ->  | BS46: 9 | BT46: =BM9 -> Delaware | BU46: =BR9 ->  | DH46: 117 | DI46: 162 | DJ46: 20 | DK46: 20 | DL46: FALSE | DM46: FALSE | DN46: FALSE | DO46: 127 | DP46: 172 | DQ46: 0 | DT46: 0 | DU46: FALSE | DV46: 45 | DW46: Utah | DX46: 0Utah | EB46: 49
C47: Pop = Population | M47: PIB = GDP Gross Domestic Product (State) | AJ47: PIB/HAB = GDP per capita | AY47: Growth in 2012 | BL47: 46 | BM47: Vermont | BN47: =IFERROR(HLOOKUP($DS$5,Table!$I$182:$BL$237,Table!BN231),"") ->  | BP47: =IFERROR(VLOOKUP($DS$5,Table!$A$186:$BL$237,Table!BO231),"") ->  | BS47: 8 | BT47: =BM8 -> Connecticut | BU47: =BR8 ->  | DH47: 441 | DI47: 40 | DJ47: 20 | DK47: 7 | DL47: FALSE | DM47: FALSE | DN47: FALSE | DO47: 444.5 | DP47: 50 | DQ47: 0 | DT47: 0 | DU47: FALSE | DV47: 46 | DW47: Vermont | DX47: 0Vermont | EB47: 50
BL48: 47 | BM48: Virginia | BN48: =IFERROR(HLOOKUP($DS$5,Table!$I$182:$BL$237,Table!BN232),"") ->  | BP48: =IFERROR(VLOOKUP($DS$5,Table!$A$186:$BL$237,Table!BO232),"") ->  | BS48: 7 | BT48: =BM7 -> Colorado | BU48: =BR7 ->  | DH48: 441 | DI48: 189 | DJ48: 14 | DK48: 7 | DL48: FALSE | DM48: FALSE | DN48: FALSE | DO48: 444.5 | DP48: 196 | DQ48: 0 | DT48: 0 | DU48: FALSE | DV48: 47 | DW48: Virginia | DX48: 0Virginia | EB48: 51
BL49: 48 | BM49: Washington | BN49: =IFERROR(HLOOKUP($DS$5,Table!$I$182:$BL$237,Table!BN233),"") ->  | BP49: =IFERROR(VLOOKUP($DS$5,Table!$A$186:$BL$237,Table!BO233),"") ->  | BS49: 6 | BT49: =BM6 -> California | BU49: =BR6 ->  | DH49: 63 | DI49: 40 | DJ49: 20 | DK49: 14 | DL49: FALSE | DM49: FALSE | DN49: FALSE | DO49: 70 | DP49: 50 | DQ49: 0 | DT49: 0 | DU49: FALSE | DV49: 48 | DW49: Washington | DX49: 0Washington | EB49: 52
BL50: 49 | BM50: West Virginia | BN50: =IFERROR(HLOOKUP($DS$5,Table!$I$182:$BL$237,Table!BN234),"") ->  | BP50: =IFERROR(VLOOKUP($DS$5,Table!$A$186:$BL$237,Table!BO234),"") ->  | BS50: 5 | BT50: =BM5 -> Arkansas | BU50: =BR5 ->  | DH50: 531 | DI50: 230 | DJ50: 20 | DK50: 7 | DL50: FALSE | DM50: FALSE | DN50: FALSE | DO50: 534.5 | DP50: 240 | DQ50: 0 | DT50: 0 | DU50: FALSE | DV50: 49 | DW50: West Virginia | DX50: 0West Virginia | EB50: 53
BL51: 50 | BM51: Wisconsin | BN51: =IFERROR(HLOOKUP($DS$5,Table!$I$182:$BL$237,Table!BN235),"") ->  | BP51: =IFERROR(VLOOKUP($DS$5,Table!$A$186:$BL$237,Table!BO235),"") ->  | BS51: 4 | BT51: =BM4 -> Arizona | BU51: =BR4 ->  | DH51: 324 | DI51: 94 | DJ51: 20 | DK51: 7 | DL51: FALSE | DM51: FALSE | DN51: FALSE | DO51: 327.5 | DP51: 104 | DQ51: 0 | DT51: 0 | DU51: FALSE | DV51: 50 | DW51: Wisconsin | DX51: 0Wisconsin | EB51: 54
BL52: 51 | BM52: Wyoming | BN52: =IFERROR(HLOOKUP($DS$5,Table!$I$182:$BL$237,Table!BN236),"") ->  | BP52: =IFERROR(VLOOKUP($DS$5,Table!$A$186:$BL$237,Table!BO236),"") ->  | BS52: 3 | BT52: =BM3 -> Alaska | BU52: =BR3 ->  | DH52: 162 | DI52: 122 | DJ52: 20 | DK52: 14 | DL52: FALSE | DM52: FALSE | DN52: FALSE | DO52: 169 | DP52: 132 | DQ52: 0 | DT52: 0 | DU52: FALSE | DV52: 51 | DW52: Wyoming | DX52: 0Wyoming | EB52: 55
BL53: 52 | BM53: Puerto Rico | BN53: =IFERROR(HLOOKUP($DS$5,Table!$I$182:$BL$237,Table!BN237),"") ->  | BP53: =IFERROR(VLOOKUP($DS$5,Table!$A$186:$BL$237,Table!BO237),"") ->  | BS53: 2 | BT53: =BM2 -> Alabama | BU53: =BR2 ->  | DH53: 531 | DI53: 256 | DJ53: 20 | DK53: 14 | DL53: FALSE | DM53: FALSE | DN53: FALSE | DO53: 538 | DP53: 266 | DQ53: 0 | DT53: 0 | DU53: FALSE | DV53: 52 | DW53: Puerto Rico | DX53: 0Puerto Rico | EB53: 56
BN54: =SUM(BN2:BN53) -> 0 | BP54: =SUM(BP2:BP53) -> 0
BN66: 2 | BO66: 3 | BP66: 4 | BQ66: 5 | BR66: 6 | BS66: 7 | BT66: 8 | BU66: 9 | BV66: 10 | BW66: 11 | BX66: 12 | BY66: 13 | BZ66: 14 | CA66: 15 | CB66: 16
BU67: 8 | BV67: 10 | BW67: 11 | BX67: 12 | BY67: 13 | BZ67: 14 | CA67: 15 | CB67: 16
BN68: capital | BO68: maior | BQ68: Área | BR68: %% | BS68: População | BU68: Densidade | BV68: pib | BY68: per capita | CB68: crescimento
BL69: 1 | BM69: Alabama | BN69: Montgomery | BO69: Birmingham | BP69: =CONCATENATE(BN69," ",BO69) -> Montgomery Birmingham | BQ69: 135765 | BR69: =IFERROR(BQ69/$BQ$121,"") -> 0.01380692235 | BS69: 4764428 | BT69: =IFERROR(BS69/$BS$121,"") -> 0.01518101719 | BU69: =+BS69/BQ69 -> 35.09319781 | BV69: 169856 | BW69: =+BV69/$BV$121 -> 0.0118351202 | BX69: 25 | BY69: 30394 | BZ69: =+BY69/$BY$121 -> 0.01470467285 | CA69: 45 | CB69: 0.012
BL70: 2 | BM70: Alaska | BN70: Juneau | BO70: Anchorage | BP70: =CONCATENATE(BN70," ",BO70) -> Juneau Anchorage | BQ70: 1717854 | BR70: =IFERROR(BQ70/$BQ$121,"") -> 0.174700967 | BS70: 721186 | BT70: =IFERROR(BS70/$BS$121,"") -> 0.002297933155 | BU70: =+BS70/BQ70 -> 0.4198179822 | BV70: 45709 | BW70: =+BV70/$BV$121 -> 0.003184883131 | BX70: 45 | BY70: 51044 | BZ70: =+BY70/$BY$121 -> 0.02469518066 | CA70: 4 | CB70: 0.011
BL71: 3 | BM71: Arizona | BN71: Phoenix | BP71: Phoenix | BQ71: 295254 | BR71: 0.03002650941 | BS71: 6468907 | BT71: 0.02061204165 | BU71: 21.90963374 | BV71: 256364 | BW71: 0.01786277055 | BX71: 18 | BY71: 33616 | BZ71: 0.01626348235 | CA71: 37 | CB71: 0.026
BL72: 4 | BM72: Arkansas | BN72: Little Rock | BP72: Little Rock | BQ72: 137002 | BR72: 0.0139327218 | BS72: 2912680 | BT72: 0.009280745801 | BU72: 21.26012759 | BV72: 101818 | BW72: 0.007094410962 | BX72: 34 | BY72: 28805 | BZ72: 0.01393591174 | CA72: 49 | CB72: 0.013
BL73: 5 | BM73: California | BN73: Sacramento | BO73: Los Angeles | BP73: Sacramento Los Angeles | BQ73: 423970 | BR73: 0.04311656809 | BS73: 37572738 | BT73: 0.1197189634 | BU73: 88.62121848 | BV73: 1891363 | BW73: 0.1317852089 | BX73: 1 | BY73: 42727 | BZ73: 0.02067140083 | CA73: 12 | CB73: 0.035
BL74: 6 | BM74: Colorado | BN74: Denver | BP74: Denver | BQ74: 269837 | BR74: 0.02744167131 | BS74: 5123944 | BT74: 0.0163265521 | BU74: 18.98903412 | BV74: 252657 | BW74: 0.01760447652 | BX74: 19 | BY74: 42860 | BZ74: 0.02073574647 | CA74: 11 | CB74: 0.021
BL75: 7 | BM75: Connecticut | BN75: Hartford | BO75: Bridgport | BP75: Hartford Bridgport | BQ75: 14356 | BR75: 0.001459965213 | BS75: 3555319 | BT75: 0.01132840267 | BU75: 247.6538729 | BV75: 227405 | BW75: 0.01584498345 | BX75: 23 | BY75: 53296 | BZ75: 0.02578470238 | CA75: 3 | CB75: -0.001
BL76: 8 | BM76: Delaware | BN76: Dover | BO76: Wilmington | BP76: Dover Wilmington | BQ76: 6452 | BR76: 0.0006561504289 | BS76: 906576 | BT76: 0.002888645991 | BU76: 140.5108493 | BV76: 60588 | BW76: 0.004221612793 | BX76: 40 | BY76: 64609 | BZ76: 0.03125795249 | CA76: 2 | CB76: 0.002
BL77: 9 | BM77: District of Columbia | BN77: Washington | BP77: Washington | BQ77: 177 | BR77: 1.800040699e-05 | BS77: 624847 | BT77: 0.001990965767 | BU77: 3530.20904 | BV77: 99129 | BW77: 0.006907048501 | BX77: 35 | BY77: 136714 | BZ77: 0.06614248351 | CA77: 1 | CB77: 0.007
BL78: 10 | BM78: Florida | BN78: Tallahassee | BO78: Jacksonville | BP78: Tallahassee Jacksonville | BQ78: 170304 | BR78: 0.01731944244 | BS78: 19114620 | BT78: 0.06090539617 | BU78: 112.2382328 | BV78: 737038 | BW78: 0.05135487307 | BX78: 4 | BY78: 33419 | BZ78: 0.01616817339 | CA78: 39 | CB78: 0.024
BL79: 11 | BM79: Georgia | BN79: Atlanta | BP79: Atlanta | BQ79: 153909 | BR79: 0.01565211661 | BS79: 9796547 | BT79: 0.03121498497 | BU79: 63.65155384 | BV79: 395194 | BW79: 0.02753608051 | BX79: 11 | BY79: 37554 | BZ79: 0.01816869396 | CA79: 27 | CB79: 0.021
BL80: 12 | BM80: Hawaii | BN80: Honolulu | BP80: Honolulu | BQ80: 28311 | BR80: 0.002879149844 | BS80: 1374852 | BT80: 0.004380725629 | BU80: 48.56246689 | BV80: 66431 | BW80: 0.004628737695 | BX80: 38 | BY80: 39314 | BZ80: 0.01902018518 | CA80: 18 | CB80: 0.016
BL81: 13 | BM81: Idaho | BN81: Boise | BP81: Boise | BQ81: 216632 | BR81: 0.022030871 | BS81: 1573036 | BT81: 0.005012204311 | BU81: 7.261327966 | BV81: 54005 | BW81: 0.003762926634 | BX81: 42 | BY81: 30334 | BZ81: 0.01467564474 | CA81: 46 | CB81: 0.004
BL82: 14 | BM82: Illinois | BN82: Springfield | BO82: Chicago | BP82: Springfield Chicago | BQ82: 141998 | BR82: 0.01444080109 | BS82: 12725119 | BT82: 0.04054636786 | BU82: 89.61477626 | BV82: 630398 | BW82: 0.04392447781 | BX82: 5 | BY82: 41439 | BZ82: 0.02004826407 | CA82: 13 | CB82: 0.019
BL83: 15 | BM83: Indiana | BN83: Indianápolis | BP83: Indianápolis | BQ83: 94321 | BR83: 0.009592182983 | BS83: 6457067 | BT83: 0.02057431556 | BU83: 68.45842389 | BV83: 262647 | BW83: 0.0183005535 | BX83: 16 | BY83: 36235 | BZ83: 0.01753055934 | CA83: 32 | CB83: 0.033
BL84: 16 | BM84: Iowa | BN84: Des Moines | BP84: Des Moines | BQ84: 145743 | BR84: 0.01482165715 | BS84: 3035469 | BT84: 0.009671991491 | BU84: 20.82754575 | BV84: 142282 | BW84: 0.009913836261 | BX84: 30 | BY84: 38521 | BZ84: 0.01863653033 | CA84: 23 | CB84: 0.024
BL85: 17 | BM85: Kansas | BN85: Topeka | BO85: Wichita | BP85: Topeka Wichita | BQ85: 213096 | BR85: 0.02167126965 | BS85: 2848708 | BT85: 0.009076910203 | BU85: 13.36819086 | BV85: 124921 | BW85: 0.008704167355 | BX85: 32 | BY85: 36102 | BZ85: 0.0174662137 | CA85: 33 | CB85: 0.014
BL86: 18 | BM86: Kentucky | BN86: Frankfort | BO86: Louisville | BP86: Frankfort Louisville | BQ86: 104659 | BR86: 0.01064352879 | BS86: 4328626 | BT86: 0.01379241028 | BU86: 41.35932887 | BV86: 156553 | BW86: 0.01090820208 | BX86: 28 | BY86: 32446 | BZ86: 0.01569743421 | CA86: 42 | CB86: 0.014
BL87: 19 | BM87: Louisiana | BN87: Baton Rouge | BO87: Nova Orleães | BP87: Baton Rouge Nova Orleães | BQ87: 135382 | BR87: 0.01376797231 | BS87: 4545914 | BT87: 0.01448476052 | BU87: 33.57842254 | BV87: 208377 | BW87: 0.01451916236 | BX87: 24 | BY87: 33599 | BZ87: 0.01625525772 | CA87: 38 | CB87: 0.015
BL88: 20 | BM88: Maine | BN88: Augusta | BO88: Portland | BP88: Augusta Portland | BQ88: 91646 | BR88: 0.009320142933 | BS88: 1315586 | BT88: 0.004191884878 | BU88: 14.35508369 | BV88: 51293 | BW88: 0.003573961593 | BX88: 43 | BY88: 32749 | BZ88: 0.01584402616 | CA88: 41 | CB88: 0.005
BL89: 21 | BM89: Maryland | BN89: Annapolis | BO89: Baltimore | BP89: Annapolis Baltimore | BQ89: 32133 | BR89: 0.003267836598 | BS89: 5816472 | BT89: 0.01853317154 | BU89: 181.0124171 | BV89: 286797 | BW89: 0.0199832621 | BX89: 15 | BY89: 40445 | BZ89: 0.01956736505 | CA89: 16 | CB89: 0.024
BL90: 22 | BM90: Massachusetts | BN90: Boston | BP90: Boston | BQ90: 27336 | BR90: 0.00277999506 | BS90: 6580641 | BT90: 0.02096806252 | BU90: 240.7316725 | BV90: 365182 | BW90: 0.02544492314 | BX90: 13 | BY90: 49647 | BZ90: 0.0240193095 | CA90: 5 | CB90: 0.022
BL91: 23 | BM91: Michigan | BN91: Lansing | BO91: Detroit | BP91: Lansing Detroit | BQ91: 253973 | BR91: 0.0258283467 | BS91: 9778980 | BT91: 0.0311590108 | BU91: 38.50401421 | BV91: 368401 | BW91: 0.02566921461 | BX91: 12 | BY91: 36830 | BZ91: 0.01781842143 | CA91: 29 | CB91: 0.022
BL92: 24 | BM92: Minnesota | BN92: Saint Paul | BO92: Minneapolis | BP92: Saint Paul Minneapolis | BQ92: 225181 | BR92: 0.02290028049 | BS92: 5315228 | BT92: 0.01693604513 | BU92: 23.60424725 | BV92: 260692 | BW92: 0.01816433423 | BX92: 17 | BY92: 43957 | BZ92: 0.02126647708 | CA92: 9 | CB92: 0.035
BL93: 25 | BM93: Mississippi | BN93: Jackson | BP93: Jackson | BQ93: 125443 | BR93: 0.0127572037 | BS93: 2947696 | BT93: 0.009392318166 | BU93: 23.49829006 | BV93: 95905 | BW93: 0.006682408644 | BX93: 35 | BY93: 26087 | BZ93: 0.01262093836 | CA93: 51 | CB93: 0.024
BL94: 26 | BM94: Missouri | BN94: Jefferson City | BO94: Kansas City | BP94: Jefferson City Kansas City | BQ94: 180533 | BR94: 0.01835970325 | BS94: 5951913 | BT94: 0.01896473062 | BU94: 32.96855976 | BV94: 239752 | BW94: 0.01670529 | BX94: 22 | BY94: 35033 | BZ94: 0.01694902954 | CA94: 36 | CB94: 0.02
BL95: 27 | BM95: Montana | BN95: Helena | BO95: Billings | BP95: Helena Billings | BQ95: 381156 | BR95: 0.03876250355 | BS95: 995544 | BT95: 0.003172126975 | BU95: 2.611906936 | BV95: 35954 | BW95: 0.002505180339 | BX95: 48 | BY95: 29605 | BZ95: 0.0143229532 | CA95: 48 | CB95: 0.021
BL96: 28 | BM96: Nebraska | BN96: Lincoln | BO96: Omaha | BP96: Lincoln Omaha | BQ96: 200520 | BR96: 0.02039232548 | BS96: 1829420 | BT96: 0.005829127121 | BU96: 9.123379214 | BV96: 86439 | BW96: 0.006022842613 | BX96: 36 | BY96: 38601 | BZ96: 0.01867523447 | CA96: 21 | CB96: 0.015
BL97: 29 | BM97: Nevada | BN97: Carson City | BO97: Las Vegas | BP97: Carson City Las Vegas | BQ97: 286367 | BR97: 0.02912272627 | BS97: 2725280 | BT97: 0.008683628451 | BU97: 9.51673901 | BV97: 126503 | BW97: 0.008814396962 | BX97: 31 | BY97: 41151 | BZ97: 0.01990892914 | CA97: 15 | CB97: 0.015
BL98: 30 | BM98: New Hampshire | BN98: Concord | BO98: Manchester | BP98: Concord Manchester | BQ98: 24217 | BR98: 0.002462801447 | BS98: 1309203 | BT98: 0.004171546564 | BU98: 54.06132056 | BV98: 59400 | BW98: 0.004138836072 | BX98: 41 | BY98: 39770 | BZ98: 0.01924079881 | CA98: 17 | CB98: 0.005
BL99: 31 | BM99: New Jersey | BN99: Trenton | BO99: Newark | BP99: Trenton Newark | BQ99: 22608 | BR99: 0.002299170629 | BS99: 8772744 | BT99: 0.02795281563 | BU99: 388.037155 | BV99: 482967 | BW99: 0.03365187274 | BX99: 7 | BY99: 47705 | BZ99: 0.02307976634 | CA99: 7 | CB99: 0.013
BL100: 32 | BM100: New Mexico | BN100: Santa Fé | BO100: Albuquerque | BP100: Santa Fé Albuquerque | BQ100: 315194 | BR100: 0.03205435187 | BS100: 2060595 | BT100: 0.006565725859 | BU100: 6.537545131 | BV100: 74801 | BW100: 0.005211937323 | BX100: 37 | BY100: 31601 | BZ100: 0.01528862166 | CA100: 44 | CB100: 0.002
BL101: 33 | BM101: New York | BN101: Albany | BO101: Nova Iorque | BP101: Albany Nova Iorque | BQ101: 141299 | BR101: 0.01436971473 | BS101: 19352153 | BT101: 0.06166225356 | BU101: 136.9588815 | BV101: 1093219 | BW101: 0.07617263016 | BX101: 3 | BY101: 46724 | BZ101: 0.02260515675 | CA101: 8 | CB101: 0.013
BL102: 34 | BM102: North Carolina | BN102: Raleigh | BO102: Charlotte | BP102: Raleigh Charlotte | BQ102: 139509 | BR102: 0.01418767672 | BS102: 9640490 | BT102: 0.03071773662 | BU102: 69.10299694 | BV102: 398042 | BW102: 0.02773452168 | BX102: 10 | BY102: 38625 | BZ102: 0.01868684572 | CA102: 20 | CB102: 0.027
BL103: 35 | BM103: North Dakota | BN103: Bismark | BO103: Fargo | BP103: Bismark Fargo | BQ103: 183272 | BR103: 0.01863825192 | BS103: 689838 | BT103: 0.002198048231 | BU103: 3.76401196 | BV103: 31872 | BW103: 0.002220757294 | BX103: 49 | BY103: 37037 | BZ103: 0.01791856841 | CA103: 28 | CB103: 0.134
BL104: 36 | BM104: Ohio | BN104: Columbus | BP104: Columbus | BQ104: 116096 | BR104: 0.01180663983 | BS104: 11414635 | BT104: 0.03637073961 | BU104: 98.32065704 | BV104: 471264 | BW104: 0.03283643842 | BX104: 8 | BY104: 36484 | BZ104: 0.017651026 | CA104: 30 | CB104: 0.022
BL105: 37 | BM105: Oklahoma | BN105: Oklahoma City | BP105: Oklahoma City | BQ105: 181195 | BR105: 0.01842702681 | BS105: 3762311 | BT105: 0.0119879465 | BU105: 20.76387869 | BV105: 153778 | BW105: 0.01071484736 | BX105: 29 | BY105: 30225 | BZ105: 0.01462291034 | CA105: 47 | CB105: 0.021
BL106: 38 | BM106: Oregon | BN106: Salem | BO106: Portland | BP106: Salem Portland | BQ106: 255026 | BR106: 0.02593543386 | BS106: 3857465 | BT106: 0.01229113809 | BU106: 15.12577149 | BV106: 165648 | BW106: 0.0115419178 | BX106: 26 | BY106: 35189 | BZ106: 0.01702450263 | CA106: 35 | CB106: 0.039
BL107: 39 | BM107: Pennsylvania | BN107: Harrisburg | BO107: Filadélfia | BP107: Harrisburg Filadélfia | BQ107: 119283 | BR107: 0.01213074885 | BS107: 12630082 | BT107: 0.04024354906 | BU107: 105.8833363 | BV107: 554774 | BW107: 0.03865519601 | BX107: 6 | BY107: 37719 | BZ107: 0.01824852126 | CA107: 26 | CB107: 0.017
BL108: 40 | BM108: Rhode Island | BN108: Providence | BP108: Providence | BQ108: 3140 | BR108: 0.000319329254 | BS108: 1040527 | BT108: 0.003315457443 | BU108: 331.3780255 | BV108: 47837 | BW108: 0.003333156585 | BX108: 44 | BY108: 38953 | BZ108: 0.01884553272 | CA108: 19 | CB108: 0.014
BL109: 41 | BM109: South Carolina | BN109: Columbia | BP109: Columbia | BQ109: 82931 | BR109: 0.008433851708 | BS109: 4668886 | BT109: 0.01487658931 | BU109: 56.29844087 | BV109: 159647 | BW109: 0.01112378388 | BX109: 27 | BY109: 31786 | BZ109: 0.015378125 | CA109: 43 | CB109: 0.027
BL110: 42 | BM110: South Dakota | BN110: Pierre | BO110: Sioux Falls | BP110: Pierre Sioux Falls | BQ110: 199905 | BR110: 0.02032978169 | BS110: 821669 | BT110: 0.002618104674 | BU110: 4.110297391 | BV110: 38308 | BW110: 0.002669200879 | BX110: 46 | BY110: 37914 | BZ110: 0.01834286262 | CA110: 25 | CB110: 0.002
BL111: 43 | BM111: Tennessee | BN111: Nashville | BO111: Memphis | BP111: Nashville Memphis | BQ111: 109247 | BR111: 0.01111011561 | BS111: 6378278 | BT111: 0.02032326818 | BU111: 58.38401054 | BV111: 244508 | BW111: 0.01703667559 | BX111: 20 | BY111: 36381 | BZ111: 0.01760119441 | CA111: 31 | CB111: 0.033
BL112: 44 | BM112: Texas | BN112: Austin | BO112: Houston | BP112: Austin Houston | BQ112: 696241 | BR112: 0.07080577042 | BS112: 25711791 | BT112: 0.08192612864 | BU112: 36.9294411 | BV112: 1244695 | BW112: 0.0867270802 | BX112: 2 | BY112: 38536 | BZ112: 0.01864378736 | CA112: 22 | CB112: 0.048
BL113: 45 | BM113: Utah | BN113: Salt Lake City | BP113: Salt Lake City | BQ113: 219887 | BR113: 0.02236189544 | BS113: 2805440 | BT113: 0.008939044282 | BU113: 12.75855326 | BV113: 112941 | BW113: 0.007869432403 | BX113: 33 | BY113: 33346 | BZ113: 0.01613285585 | CA113: 40 | CB113: 0.034
BL114: 46 | BM114: Vermont | BN114: Montpelier | BO114: Burlington | BP114: Montpelier Burlington | BQ114: 24293 | BR114: 0.002470530435 | BS114: 620224 | BT114: 0.001976235386 | BU114: 25.530976 | BV114: 25438 | BW114: 0.001772453064 | BX114: 50 | BY114: 35493 | BZ114: 0.01717157838 | CA114: 34 | CB114: 0.012
BL115: 47 | BM115: Virginia | BN115: Richmond | BO115: Virginia Beach | BP115: Richmond Virginia Beach | BQ115: 110785 | BR115: 0.01126652592 | BS115: 8085389 | BT115: 0.02576267905 | BU115: 72.98270524 | BV115: 408443 | BW115: 0.02845923605 | BX115: 9 | BY115: 43162 | BZ115: 0.02088185463 | CA115: 10 | CB115: 0.033
BL116: 48 | BM116: Washington | BN116: Olympia | BO116: Seattle | BP116: Olympia Seattle | BQ116: 184827 | BR116: 0.01879639109 | BS116: 6815763 | BT116: 0.02171723768 | BU116: 36.87644662 | BV116: 338334 | BW116: 0.02357422497 | BX116: 14 | BY116: 41313 | BZ116: 0.01998730504 | CA116: 14 | CB116: 0.036
BL117: 49 | BM117: West Virginia | BN117: Charleston | BP117: Charleston | BQ117: 62755 | BR117: 0.006382008705 | BS117: 1837518 | BT117: 0.005854929983 | BU117: 29.28082225 | BV117: 63344 | BW117: 0.004413643638 | BX117: 39 | BY117: 27395 | BZ117: 0.01325375116 | CA117: 50 | CB117: 0.033
BL118: 50 | BM118: Wisconsin | BN118: Madison | BO118: Milwaukee | BP118: Madison Milwaukee | BQ118: 169639 | BR118: 0.0172518138 | BS118: 5660677 | BT118: 0.018036758 | BU118: 33.36895997 | BV118: 244370 | BW118: 0.01702706011 | BX118: 21 | BY118: 38244 | BZ118: 0.01850251722 | CA118: 24 | CB118: 0.015
BL119: 51 | BM119: Wyoming | BN119: Cheyenne | BP119: Cheyenne | BQ119: 253348 | BR119: 0.02576478594 | BS119: 569734 | BT119: 0.001815357824 | BU119: 2.248819805 | BV119: 37544 | BW119: 0.002615967365 | BX119: 47 | BY119: 47728 | BZ119: 0.02309089379 | CA119: 6 | CB119: 0.002
BL120: 52 | BM120: Puerto Rico | BN120: San Juan | BP120: San Juan | BQ120: 9104 | BR120: 0.0009258514421 | BS120: 3628402 | BT120: 0.01156126887 | BU120: 398.5503076 | BV120: 101034 | BW120: 0.0070397839 | BX120: 35 | BY120: 18499 | BZ120: 0.00894985007 | CA120: 52 | CB120: 0.011
BQ121: =SUM(BQ69:BQ120) -> 9833111 | BR121: =SUM(BR69:BR120) -> 1 | BS121: =SUM(BS69:BS120) -> 313841157 | BT121: 1 | BU121: =SUM(BU69:BU120) -> 7176.766732 | BV121: =SUM(BV69:BV120) -> 14351861 | BW121: 1 | BY121: =SUM(BY69:BY120) -> 2066962 | BZ121: 1

Sheet Folha2 (hidden)
B1: Meter aqui as bandeiras
E2: 1 | F2: Alabama
E3: 2 | F3: Alaska
E4: 3 | F4: Arizona
E5: 4 | F5: Arkansas | I5: 0 | J5: 1 | L5: =OFFSET($I$5,0,0,COUNTA($I$5:$I$57),1) -> 0 | M5: =OFFSET(I5,0,0) -> 0 | N5: =COUNTA(I5:I57,1) -> 54
E6: 5 | F6: California | I6: 1 | J6: 2 | L6: 1
E7: 6 | F7: Colorado | I7: 2 | J7: 3 | L7: 2
E8: 7 | F8: Connecticut | I8: 3 | J8: 4 | L8: 3
E9: 8 | F9: Delaware | I9: 4 | J9: 5 | L9: 4
E10: 9 | F10: District of Columbia | I10: 5 | J10: 6 | L10: 5
E11: 10 | F11: Florida | I11: 6 | J11: 7 | L11: 6
E12: 11 | F12: Georgia | I12: 7 | J12: 8 | L12: 7
E13: 12 | F13: Hawaii | I13: 8 | J13: 9 | L13: 8
E14: 13 | F14: Idaho | I14: 9 | J14: 10 | L14: 9
E15: 14 | F15: Illinois | I15: 10 | J15: 11 | L15: 10
E16: 15 | F16: Indiana | I16: 11 | J16: 12 | L16: 11
E17: 16 | F17: Iowa | I17: 12 | J17: 13 | L17: 12
E18: 17 | F18: Kansas | I18: 13 | J18: 14 | L18: 13
E19: 18 | F19: Kentucky | I19: 14 | J19: 15 | L19: 14
E20: 19 | F20: Louisiana | I20: 15 | J20: 16 | L20: 15
E21: 20 | F21: Maine | I21: 16 | J21: 17 | L21: 16
E22: 21 | F22: Maryland | I22: 17 | J22: 18 | L22: 17
E23: 22 | F23: Massachusetts | I23: 18 | J23: 19 | L23: 18
E24: 23 | F24: Michigan | I24: 19 | J24: 20 | L24: 19
E25: 24 | F25: Minnesota | I25: 20 | J25: 21 | L25: 20
E26: 25 | F26: Mississippi | I26: 21 | J26: 22 | L26: 21
E27: 26 | F27: Missouri | I27: 22 | J27: 23 | L27: 22
E28: 27 | F28: Montana | I28: 23 | J28: 24 | L28: 23
E29: 28 | F29: Nebraska | I29: 24 | J29: 25 | L29: 24
E30: 29 | F30: Nevada | I30: 25 | J30: 26 | L30: 25
E31: 30 | F31: New Hampshire | I31: 26 | J31: 27 | L31: 26
E32: 31 | F32: New Jersey | I32: 27 | J32: 28 | L32: 27
E33: 32 | F33: New Mexico | I33: 28 | J33: 29 | L33: 28
E34: 33 | F34: New York | I34: 29 | J34: 30 | L34: 29
E35: 34 | F35: North Carolina | I35: 30 | J35: 31 | L35: 30
E36: 35 | F36: North Dakota | I36: 31 | J36: 32 | L36: 31
E37: 36 | F37: Ohio | I37: 32 | J37: 33 | L37: =OFFSET($I$5,0,0,COUNTA($I$5:$I$57),1) -> 32
E38: 37 | F38: Oklahoma | I38: 33 | J38: 34 | L38: 33
E39: 38 | F39: Oregon | I39: 34 | J39: 35 | L39: 34
E40: 39 | F40: Pennsylvania | I40: 35 | J40: 36 | L40: 35
E41: 40 | F41: Rhode Island | I41: 36 | J41: 37 | L41: 36
E42: 41 | F42: South Carolina | I42: 37 | J42: 38 | L42: 37
E43: 42 | F43: South Dakota | I43: 38 | J43: 39 | L43: 38
E44: 43 | F44: Tennessee | I44: 39 | J44: 40 | L44: 39
E45: 44 | F45: Texas | I45: 40 | J45: 41 | L45: 40
E46: 45 | F46: Utah | I46: 41 | J46: 42 | L46: 41
E47: 46 | F47: Vermont | I47: 42 | J47: 43 | L47: 42
E48: 47 | F48: Virginia | I48: 43 | J48: 44 | L48: 43
E49: 48 | F49: Washington | I49: 44 | J49: 45 | L49: 44
E50: 49 | F50: West Virginia | I50: 45 | J50: 46 | L50: 45
E51: 50 | F51: Wisconsin | I51: 46 | J51: 47 | L51: 46
E52: 51 | F52: Wyoming | I52: 47 | J52: 48 | L52: 47
E53: 52 | F53: Puerto Rico | I53: 48 | J53: 49 | L53: 48
I54: 49 | J54: 50 | L54: 49
I55: 50 | J55: 51 | L55: 50
I56: 51 | J56: 52 | L56: 51
I57: 52 | J57: 53 | L57: 52

Sheet Table (hidden)
C1: Table 1. State-to-State Migration Flows*: 2010
C2: Dataset: 2010 American Community Survey 1-Year Estimates | H2: 2010
C3: Universe: Population 1 year and over
C4: 2010 | H4: Different state of residence 1 year ago | J4: Different state of residence 1 year ago (cont.) | O4: Different state of residence 1 year ago (cont.) | T4: Different state of residence 1 year ago (cont.) | Y4: Different state of residence 1 year ago (cont.) | AD4: Different state of residence 1 year ago (cont.) | AI4: Different state of residence 1 year ago (cont.) | AN4: Different state of residence 1 year ago (cont.) | AS4: Different state of residence 1 year ago (cont.) | AX4: Different state of residence 1 year ago (cont.) | BC4: Different state of residence 1 year ago (cont.) | BI4: Abroad 1 year ago--
I5: 1 | J5: 2 | K5: 3 | L5: 4 | M5: 5 | N5: 6 | O5: 7 | P5: 8 | Q5: 9 | R5: 10 | S5: 11 | T5: 12 | U5: 13 | V5: 14 | W5: 15 | X5: 16 | Y5: 17 | Z5: 18 | AA5: 19 | AB5: 20 | AC5: 21 | AD5: 22 | AE5: 23 | AF5: 24 | AG5: 25 | AH5: 26 | AI5: 27 | AJ5: 28 | AK5: 29 | AL5: 30 | AM5: 31 | AN5: 32 | AO5: 33 | AP5: 34 | AQ5: 35 | AR5: 36 | AS5: 37 | AT5: 38 | AU5: 39 | AV5: 40 | AW5: 41 | AX5: 42 | AY5: 43 | AZ5: 44 | BA5: 45 | BB5: 46 | BC5: 47 | BD5: 48 | BE5: 49 | BF5: 50 | BG5: 51
I6: =CONCATENATE($C$4,I5) -> 20101 | J6: =CONCATENATE($C$4,J5) -> 20102 | K6: 20103 | L6: 20104 | M6: 20105 | N6: 20106 | O6: 20107 | P6: 20108 | Q6: 20109 | R6: 201010 | S6: 201011 | T6: 201012 | U6: 201013 | V6: 201014 | W6: 201015 | X6: 201016 | Y6: 201017 | Z6: 201018 | AA6: 201019 | AB6: 201020 | AC6: 201021 | AD6: 201022 | AE6: 201023 | AF6: 201024 | AG6: 201025 | AH6: 201026 | AI6: 201027 | AJ6: 201028 | AK6: 201029 | AL6: 201030 | AM6: 201031 | AN6: 201032 | AO6: 201033 | AP6: 201034 | AQ6: 201035 | AR6: 201036 | AS6: 201037 | AT6: 201038 | AU6: 201039 | AV6: 201040 | AW6: 201041 | AX6: 201042 | AY6: 201043 | AZ6: 201044 | BA6: 201045 | BB6: 201046 | BC6: 201047 | BD6: 201048 | BE6: 201049 | BF6: 201050 | BG6: 201051
C7: Current residence in -- | D7: Population 1 year and over | E7: Population 1 year and over | F7: Same house 1 year ago | G7: Same state of residence 1 year ago | H7: Total | I7: Alabama | J7: Alaska | K7: Arizona | L7: Arkansas | M7: California | N7: Colorado | O7: Connecticut | P7: Delaware | Q7: District of Columbia | R7: Florida | S7: Georgia | T7: Hawaii | U7: Idaho | V7: Illinois | W7: Indiana | X7: Iowa | Y7: Kansas | Z7: Kentucky | AA7: Louisiana | AB7: Maine | AC7: Maryland | AD7: Massachusetts | AE7: Michigan | AF7: Minnesota | AG7: Mississippi | AH7: Missouri | AI7: Montana | AJ7: Nebraska | AK7: Nevada | AL7: New Hampshire | AM7: New Jersey | AN7: New Mexico | AO7: New York | AP7: North Carolina | AQ7: North Dakota | AR7: Ohio | AS7: Oklahoma | AT7: Oregon | AU7: Pennsylvania | AV7: Rhode Island | AW7: South Carolina | AX7: South Dakota | AY7: Tennessee | AZ7: Texas | BA7: Utah | BB7: Vermont | BC7: Virginia | BD7: Washington | BE7: West Virginia | BF7: Wisconsin | BG7: Wyoming | BI7: Total | BJ7: Puerto Rico | BK7: U.S. Island Area | BL7: Foreign Country
B8: 2010 | C8: TOTAL USA - sem PR | D8: =SUM(D9:D59) -> 305628607 | E8: 305628607 | F8: 258552348 | G8: 38582885 | H8: 6743229 | I8: 99221 | J8: 94692 | K8: 176768 | L8: 64264 | M8: 573988 | N8: 140620 | O8: 89360 | P8: 30055 | Q8: 56052 | R8: 427853 | S8: 244992 | T8: 49218 | U8: 53122 | V8: 277579 | W8: 130170 | X8: 66922 | Y8: 90681 | Z8: 92999 | AA8: 88131 | AB8: 32209 | AC8: 159866 | AD8: 144152 | AE8: 178207 | AF8: 104765 | AG8: 68363 | AH8: 148055 | AI8: 35870 | AJ8: 43531 | AK8: 109409 | AL8: 38399 | AM8: 193972 | AN8: 50438 | AO8: 363139 | AP8: 207025 | AQ8: 24450 | AR8: 188013 | AS8: 90616 | AT8: 100185 | AU8: 209810 | AV8: 24948 | AW8: 117569 | AX8: 27915 | AY8: 143135 | AZ8: 411641 | BA8: 75541 | BB8: 18380 | BC8: 232002 | BD8: 166162 | BE8: 49349 | BF8: 111240 | BG8: 28186 | BI8: 1750145 | BJ8: 59885 | BK8: 17167 | BL8: 1673093 | BM8: 6743229
A9: 1 | B9: =CONCATENATE($B$8,A9) -> 20101 | C9: Alabama | D9: 4729509 | E9: =+F9+G9+H9+BI9 -> 4729509 | F9: 3987155 | G9: 620465 | H9: =SUM(I9:BG9) -> 108723 | I9: N/A | J9: 3013 | K9: 676 | L9: 1481 | M9: 3827 | N9: 1278 | O9: 454 | P9: 811 | Q9: 211 | R9: 15062 | S9: 21644 | T9: 267 | U9: 304 | V9: 2503 | W9: 3945 | X9: 669 | Y9: 649 | Z9: 1967 | AA9: 1901 | AB9: 97 | AC9: 716 | AD9: 435 | AE9: 2334 | AF9: 386 | AG9: 7233 | AH9: 1373 | AI9: 229 | AJ9: 169 | AK9: 265 | AL9: 0 | AM9: 356 | AN9: 650 | AO9: 3686 | AP9: 2371 | AQ9: 169 | AR9: 2222 | AS9: 880 | AT9: 485 | AU9: 1477 | AV9: 0 | AW9: 2368 | AX9: 31 | AY9: 7409 | AZ9: 6500 | BA9: 1336 | BB9: 0 | BC9: 2490 | BD9: 1171 | BE9: 41 | BF9: 1155 | BG9: 27 | BI9: 13166 | BJ9: 228 | BK9: 181 | BL9: 12757 | BM9: =SUM(I9:BG9) -> 108723 | BN9: =SUM(BM9:BM60) -> 6774961
A10: 2 | B10: =CONCATENATE($B$8,A10) -> 20102 | C10: Alaska | D10: 702974 | E10: 702974 | F10: 565031 | G10: 95878 | H10: 36326 | I10: 477 | J10: N/A | K10: 1354 | L10: 47 | M10: 3906 | N10: 1930 | O10: 0 | P10: 0 | Q10: 14 | R10: 2315 | S10: 1251 | T10: 1705 | U10: 895 | V10: 388 | W10: 9 | X10: 262 | Y10: 106 | Z10: 1440 | AA10: 100 | AB10: 574 | AC10: 704 | AD10: 107 | AE10: 923 | AF10: 530 | AG10: 263 | AH10: 0 | AI10: 616 | AJ10: 215 | AK10: 240 | AL10: 316 | AM10: 413 | AN10: 421 | AO10: 255 | AP10: 698 | AQ10: 69 | AR10: 156 | AS10: 1455 | AT10: 1793 | AU10: 126 | AV10: 0 | AW10: 121 | AX10: 531 | AY10: 477 | AZ10: 4123 | BA10: 1274 | BB10: 353 | BC10: 714 | BD10: 2421 | BE10: 0 | BF10: 158 | BG10: 81 | BI10: 5739 | BJ10: 19 | BK10: 1374 | BL10: 4346 | BM10: =SUM(I10:BG10) -> 36326
A11: 3 | B11: 20103 | C11: Arizona | D11: 6332786 | E11: 6332786 | F11: 5069002 | G11: 1001991 | H11: 222725 | I11: 416 | J11: 3109 | K11: N/A | L11: 689 | M11: 47164 | N11: 7687 | O11: 479 | P11: 738 | Q11: 0 | R11: 7712 | S11: 4261 | T11: 1966 | U11: 2147 | V11: 12250 | W11: 2690 | X11: 3008 | Y11: 1935 | Z11: 1705 | AA11: 2014 | AB11: 241 | AC11: 1284 | AD11: 1449 | AE11: 6354 | AF11: 5421 | AG11: 272 | AH11: 4567 | AI11: 1343 | AJ11: 1750 | AK11: 10342 | AL11: 64 | AM11: 1782 | AN11: 4419 | AO11: 6618 | AP11: 4463 | AQ11: 826 | AR11: 5225 | AS11: 2910 | AT11: 5430 | AU11: 5535 | AV11: 403 | AW11: 2310 | AX11: 1351 | AY11: 3061 | AZ11: 14705 | BA11: 7164 | BB11: 664 | BC11: 3413 | BD11: 12645 | BE11: 595 | BF11: 5556 | BG11: 593 | BI11: 39068 | BJ11: 599 | BK11: 223 | BL11: 38246 | BM11: 222725
A12: 4 | B12: 20104 | C12: Arkansas | D12: 2888304 | E12: 2888304 | F12: 2387806 | G12: 412997 | H12: 79127 | I12: 1405 | J12: 934 | K12: 777 | L12: N/A | M12: 4457 | N12: 2535 | O12: 451 | P12: 0 | Q12: 154 | R12: 3578 | S12: 3921 | T12: 129 | U12: 618 | V12: 3221 | W12: 722 | X12: 85 | Y12: 3611 | Z12: 2540 | AA12: 4012 | AB12: 0 | AC12: 306 | AD12: 190 | AE12: 1506 | AF12: 222 | AG12: 2764 | AH12: 7320 | AI12: 85 | AJ12: 394 | AK12: 67 | AL12: 0 | AM12: 77 | AN12: 0 | AO12: 289 | AP12: 1561 | AQ12: 0 | AR12: 1137 | AS12: 8607 | AT12: 239 | AU12: 731 | AV12: 0 | AW12: 1496 | AX12: 243 | AY12: 2653 | AZ12: 13707 | BA12: 361 | BB12: 0 | BC12: 494 | BD12: 264 | BE12: 0 | BF12: 821 | BG12: 443 | BI12: 8374 | BJ12: 87 | BK12: 0 | BL12: 8287 | BM12: 79127
A13: 5 | B13: 20105 | C13: California | D13: 36907897 | E13: 36907897 | F13: 30790221 | G13: 5413287 | H13: 444749 | I13: 3364 | J13: 9579 | K13: 33854 | L13: 4172 | M13: N/A | N13: 15662 | O13: 4631 | P13: 643 | Q13: 3683 | R13: 20362 | S13: 8820 | T13: 9528 | U13: 5719 | V13: 16482 | W13: 6550 | X13: 3163 | Y13: 3857 | Z13: 3394 | AA13: 2989 | AB13: 1796 | AC13: 10626 | AD13: 11969 | AE13: 10435 | AF13: 5095 | AG13: 2757 | AH13: 6921 | AI13: 3009 | AJ13: 3062 | AK13: 27724 | AL13: 1614 | AM13: 10108 | AN13: 4632 | AO13: 20981 | AP13: 9593 | AQ13: 392 | AR13: 8170 | AS13: 5708 | AT13: 20913 | AU13: 9948 | AV13: 526 | AW13: 5016 | AX13: 1604 | AY13: 4349 | AZ13: 36582 | BA13: 10653 | BB13: 525 | BC13: 14232 | BD13: 30544 | BE13: 1446 | BF13: 6031 | BG13: 1336 | BI13: 259640 | BJ13: 1223 | BK13: 5123 | BL13: 253294 | BM13: 444749
A14: 6 | B14: 20106 | C14: Colorado | D14: 4988190 | E14: 4988190 | F14: 4042039 | G14: 725413 | H14: 186366 | I14: 954 | J14: 2225 | K14: 12287 | L14: 1034 | M14: 26089 | N14: N/A | O14: 459 | P14: 486 | Q14: 479 | R14: 8849 | S14: 6445 | T14: 2355 | U14: 839 | V14: 6950 | W14: 3296 | X14: 2140 | Y14: 4308 | Z14: 1961 | AA14: 968 | AB14: 532 | AC14: 1532 | AD14: 2242 | AE14: 4587 | AF14: 2878 | AG14: 1277 | AH14: 1978 | AI14: 2042 | AJ14: 4065 | AK14: 4131 | AL14: 791 | AM14: 1259 | AN14: 3921 | AO14: 4594 | AP14: 2940 | AQ14: 802 | AR14: 2838 | AS14: 3464 | AT14: 4330 | AU14: 3928 | AV14: 192 | AW14: 1231 | AX14: 1847 | AY14: 1628 | AZ14: 22253 | BA14: 4748 | BB14: 350 | BC14: 2739 | BD14: 7583 | BE14: 623 | BF14: 2499 | BG14: 4418 | BI14: 34372 | BJ14: 874 | BK14: 125 | BL14: 33373 | BM14: 186366
A15: 7 | B15: 20107 | C15: Connecticut | D15: 3541146 | E15: 3541146 | F15: 3100742 | G15: 342904 | H15: 77333 | I15: 896 | J15: 0 | K15: 664 | L15: 334 | M15: 4479 | N15: 547 | O15: N/A | P15: 149 | Q15: 331 | R15: 9207 | S15: 748 | T15: 182 | U15: 147 | V15: 3391 | W15: 1074 | X15: 108 | Y15: 0 | Z15: 400 | AA15: 0 | AB15: 528 | AC15: 1531 | AD15: 8510 | AE15: 770 | AF15: 934 | AG15: 67 | AH15: 42 | AI15: 0 | AJ15: 0 | AK15: 507 | AL15: 1049 | AM15: 3475 | AN15: 112 | AO15: 20727 | AP15: 1345 | AQ15: 0 | AR15: 1296 | AS15: 145 | AT15: 640 | AU15: 1955 | AV15: 1728 | AW15: 1140 | AX15: 0 | AY15: 430 | AZ15: 1887 | BA15: 0 | BB15: 458 | BC15: 1735 | BD15: 2084 | BE15: 442 | BF15: 1092 | BG15: 47 | BI15: 20167 | BJ15: 2027 | BK15: 0 | BL15: 18140 | BM15: 77333
A16: 8 | B16: 20108 | C16: Delaware | D16: 889812 | E16: 889812 | F16: 764640 | G16: 90001 | H16: 30759 | I16: 128 | J16: 68 | K16: 60 | L16: 0 | M16: 353 | N16: 178 | O16: 714 | P16: N/A | Q16: 432 | R16: 2362 | S16: 585 | T16: 0 | U16: 0 | V16: 612 | W16: 0 | X16: 0 | Y16: 28 | Z16: 163 | AA16: 0 | AB16: 294 | AC16: 4969 | AD16: 689 | AE16: 61 | AF16: 55 | AG16: 0 | AH16: 539 | AI16: 73 | AJ16: 0 | AK16: 106 | AL16: 139 | AM16: 3678 | AN16: 59 | AO16: 4251 | AP16: 424 | AQ16: 0 | AR16: 325 | AS16: 0 | AT16: 0 | AU16: 7318 | AV16: 149 | AW16: 195 | AX16: 0 | AY16: 146 | AZ16: 178 | BA16: 0 | BB16: 0 | BC16: 1051 | BD16: 377 | BE16: 0 | BF16: 0 | BG16: 0 | BI16: 4412 | BJ16: 954 | BK16: 431 | BL16: 3027 | BM16: 30759
A17: 9 | B17: 20109 | C17: District of Columbia | D17: 596747 | E17: 596747 | F17: 474676 | G17: 63766 | H17: 51244 | I17: 360 | J17: 591 | K17: 662 | L17: 155 | M17: 4205 | N17: 656 | O17: 926 | P17: 0 | Q17: N/A | R17: 1100 | S17: 1597 | T17: 0 | U17: 0 | V17: 615 | W17: 711 | X17: 392 | Y17: 83 | Z17: 94 | AA17: 0 | AB17: 76 | AC17: 13503 | AD17: 1376 | AE17: 126 | AF17: 87 | AG17: 0 | AH17: 272 | AI17: 0 | AJ17: 62 | AK17: 0 | AL17: 137 | AM17: 1924 | AN17: 61 | AO17: 3852 | AP17: 1897 | AQ17: 98 | AR17: 598 | AS17: 0 | AT17: 601 | AU17: 2378 | AV17: 249 | AW17: 380 | AX17: 0 | AY17: 591 | AZ17: 1180 | BA17: 0 | BB17: 199 | BC17: 7915 | BD17: 284 | BE17: 860 | BF17: 391 | BG17: 0 | BI17: 7061 | BJ17: 0 | BK17: 62 | BL17: 6999 | BM17: 51244
A18: 10 | B18: 201010 | C18: Florida | D18: 18647600 | E18: 18647600 | F18: 15554008 | G18: 2459530 | H18: 482889 | I18: 15830 | J18: 5887 | K18: 3907 | L18: 3611 | M18: 22130 | N18: 6428 | O18: 11183 | P18: 3099 | Q18: 1110 | R18: N/A | S18: 35615 | T18: 2021 | U18: 884 | V18: 17432 | W18: 9030 | X18: 2921 | Y18: 4136 | Z18: 6321 | AA18: 7232 | AB18: 5497 | AC18: 13241 | AD18: 13900 | AE18: 21359 | AF18: 5439 | AG18: 7929 | AH18: 7984 | AI18: 338 | AJ18: 1544 | AK18: 7050 | AL18: 3645 | AM18: 22344 | AN18: 900 | AO18: 55011 | AP18: 19108 | AQ18: 794 | AR18: 21047 | AS18: 3466 | AT18: 1655 | AU18: 19935 | AV18: 1982 | AW18: 10759 | AX18: 430 | AY18: 12882 | AZ18: 24039 | BA18: 2833 | BB18: 1442 | BC18: 20080 | BD18: 3573 | BE18: 5634 | BF18: 8081 | BG18: 191 | BI18: 151173 | BJ18: 12968 | BK18: 1131 | BL18: 137074 | BM18: 482889
A19: 11 | B19: 201011 | C19: Georgia | D19: 9587237 | E19: 9587237 | F19: 8015409 | G19: 1278548 | H19: 249459 | I19: 13840 | J19: 3645 | K19: 2554 | L19: 599 | M19: 8909 | N19: 3224 | O19: 2619 | P19: 837 | Q19: 1708 | R19: 49901 | S19: N/A | T19: 1040 | U19: 414 | V19: 9736 | W19: 2649 | X19: 1096 | Y19: 1355 | Z19: 6525 | AA19: 3645 | AB19: 0 | AC19: 5382 | AD19: 3910 | AE19: 6857 | AF19: 1169 | AG19: 2380 | AH19: 3072 | AI19: 52 | AJ19: 148 | AK19: 1155 | AL19: 162 | AM19: 4151 | AN19: 826 | AO19: 12472 | AP19: 15361 | AQ19: 0 | AR19: 9323 | AS19: 2070 | AT19: 843 | AU19: 6294 | AV19: 43 | AW19: 15562 | AX19: 557 | AY19: 14445 | AZ19: 11424 | BA19: 380 | BB19: 361 | BC19: 8393 | BD19: 4495 | BE19: 358 | BF19: 3416 | BG19: 102 | BI19: 43821 | BJ19: 1010 | BK19: 376 | BL19: 42435 | BM19: 249459
A20: 12 | B20: 201012 | C20: Hawaii | D20: 1346274 | E20: 1346274 | F20: 1140572 | G20: 134315 | H20: 53581 | I20: 749 | J20: 743 | K20: 1398 | L20: 0 | M20: 12677 | N20: 1073 | O20: 307 | P20: 0 | Q20: 0 | R20: 4599 | S20: 2013 | T20: N/A | U20: 42 | V20: 715 | W20: 192 | X20: 68 | Y20: 387 | Z20: 95 | AA20: 88 | AB20: 89 | AC20: 990 | AD20: 1283 | AE20: 627 | AF20: 476 | AG20: 234 | AH20: 170 | AI20: 150 | AJ20: 0 | AK20: 1925 | AL20: 496 | AM20: 443 | AN20: 11 | AO20: 1339 | AP20: 1510 | AQ20: 69 | AR20: 625 | AS20: 57 | AT20: 1834 | AU20: 553 | AV20: 644 | AW20: 322 | AX20: 267 | AY20: 142 | AZ20: 6694 | BA20: 467 | BB20: 0 | BC20: 2644 | BD20: 2705 | BE20: 483 | BF20: 1168 | BG20: 18 | BI20: 17806 | BJ20: 0 | BK20: 805 | BL20: 17001 | BM20: 53581
A21: 13 | B21: 201013 | C21: Idaho | D21: 1550967 | E21: 1550967 | F21: 1279856 | G21: 209272 | H21: 55638 | I21: 376 | J21: 3264 | K21: 3086 | L21: 45 | M21: 8932 | N21: 1372 | O21: 0 | P21: 0 | Q21: 144 | R21: 612 | S21: 313 | T21: 123 | U21: N/A | V21: 169 | W21: 132 | X21: 773 | Y21: 422 | Z21: 315 | AA21: 59 | AB21: 202 | AC21: 44 | AD21: 115 | AE21: 427 | AF21: 465 | AG21: 37 | AH21: 425 | AI21: 1509 | AJ21: 0 | AK21: 2110 | AL21: 109 | AM21: 97 | AN21: 694 | AO21: 155 | AP21: 134 | AQ21: 96 | AR21: 325 | AS21: 711 | AT21: 3202 | AU21: 172 | AV21: 0 | AW21: 0 | AX21: 296 | AY21: 1153 | AZ21: 1746 | BA21: 8014 | BB21: 0 | BC21: 611 | BD21: 10876 | BE21: 133 | BF21: 233 | BG21: 1410 | BI21: 6201 | BJ21: 233 | BK21: 36 | BL21: 5932 | BM21: 55638
A22: 14 | B22: 201014 | C22: Illinois | D22: 12680126 | E22: 12680126 | F22: 11009852 | G22: 1404525 | H22: 203959 | I22: 1397 | J22: 1764 | K22: 5921 | L22: 1194 | M22: 16205 | N22: 3850 | O22: 2264 | P22: 56 | Q22: 1047 | R22: 8051 | S22: 6781 | T22: 1224 | U22: 313 | V22: N/A | W22: 21918 | X22: 9141 | Y22: 1970 | Z22: 2921 | AA22: 1419 | AB22: 55 | AC22: 1985 | AD22: 2811 | AE22: 11865 | AF22: 4300 | AG22: 1093 | AH22: 16703 | AI22: 928 | AJ22: 546 | AK22: 2541 | AL22: 206 | AM22: 2331 | AN22: 996 | AO22: 8479 | AP22: 5504 | AQ22: 1112 | AR22: 5103 | AS22: 1459 | AT22: 1224 | AU22: 5190 | AV22: 838 | AW22: 1565 | AX22: 292 | AY22: 3999 | AZ22: 12245 | BA22: 658 | BB22: 260 | BC22: 3831 | BD22: 1642 | BE22: 812 | BF22: 15364 | BG22: 586 | BI22: 61790 | BJ22: 2055 | BK22: 0 | BL22: 59735 | BM22: 203959
A23: 15 | B23: 201015 | C23: Indiana | D23: 6414862 | E23: 6414862 | F23: 5431015 | G23: 833086 | H23: 127353 | I23: 1502 | J23: 177 | K23: 2210 | L23: 1548 | M23: 8959 | N23: 1362 | O23: 544 | P23: 0 | Q23: 181 | R23: 5496 | S23: 1623 | T23: 267 | U23: 772 | V23: 27950 | W23: N/A | X23: 1885 | Y23: 1582 | Z23: 10643 | AA23: 749 | AB23: 30 | AC23: 1641 | AD23: 103 | AE23: 9361 | AF23: 916 | AG23: 270 | AH23: 3893 | AI23: 164 | AJ23: 705 | AK23: 227 | AL23: 114 | AM23: 1876 | AN23: 188 | AO23: 2564 | AP23: 2828 | AQ23: 0 | AR23: 13272 | AS23: 681 | AT23: 423 | AU23: 2668 | AV23: 174 | AW23: 584 | AX23: 216 | AY23: 3093 | AZ23: 6335 | BA23: 444 | BB23: 45 | BC23: 3673 | BD23: 571 | BE23: 669 | BF23: 1762 | BG23: 413 | BI23: 23408 | BJ23: 572 | BK23: 75 | BL23: 22761 | BM23: 127353
A24: 16 | B24: 201016 | C24: Iowa | D24: 3013053 | E24: 3013053 | F24: 2553210 | G24: 375650 | H24: 72557 | I24: 330 | J24: 519 | K24: 1483 | L24: 247 | M24: 2847 | N24: 2554 | O24: 114 | P24: 0 | Q24: 53 | R24: 1364 | S24: 973 | T24: 866 | U24: 315 | V24: 17016 | W24: 1710 | X24: N/A | Y24: 1520 | Z24: 334 | AA24: 315 | AB24: 0 | AC24: 134 | AD24: 189 | AE24: 1439 | AF24: 7564 | AG24: 117 | AH24: 6031 | AI24: 836 | AJ24: 4783 | AK24: 623 | AL24: 381 | AM24: 472 | AN24: 492 | AO24: 273 | AP24: 1123 | AQ24: 601 | AR24: 632 | AS24: 679 | AT24: 1071 | AU24: 378 | AV24: 0 | AW24: 591 | AX24: 1992 | AY24: 1617 | AZ24: 4131 | BA24: 146 | BB24: 45 | BC24: 303 | BD24: 538 | BE24: 0 | BF24: 2705 | BG24: 111 | BI24: 11636 | BJ24: 149 | BK24: 0 | BL24: 11487 | BM24: 72557
A25: 17 | B25: 201017 | C25: Kansas | D25: 2820894 | E25: 2820894 | F25: 2341401 | G25: 372161 | H25: 95059 | I25: 44 | J25: 1050 | K25: 2238 | L25: 1596 | M25: 6125 | N25: 6022 | O25: 85 | P25: 238 | Q25: 0 | R25: 2863 | S25: 1916 | T25: 128 | U25: 398 | V25: 2943 | W25: 1544 | X25: 1875 | Y25: N/A | Z25: 1048 | AA25: 890 | AB25: 0 | AC25: 1369 | AD25: 100 | AE25: 806 | AF25: 1562 | AG25: 167 | AH25: 23384 | AI25: 289 | AJ25: 2678 | AK25: 1318 | AL25: 76 | AM25: 1743 | AN25: 873 | AO25: 2390 | AP25: 1083 | AQ25: 225 | AR25: 1509 | AS25: 7568 | AT25: 514 | AU25: 563 | AV25: 39 | AW25: 137 | AX25: 352 | AY25: 1152 | AZ25: 9217 | BA25: 238 | BB25: 75 | BC25: 1648 | BD25: 1175 | BE25: 0 | BF25: 1233 | BG25: 573 | BI25: 12273 | BJ25: 68 | BK25: 90 | BL25: 12115 | BM25: 95059
A26: 18 | B26: 201018 | C26: Kentucky | D26: 4296639 | E26: 4296639 | F26: 3638259 | G26: 519887 | H26: 118443 | I26: 2161 | J26: 3017 | K26: 2598 | L26: 558 | M26: 3779 | N26: 329 | O26: 698 | P26: 38 | Q26: 147 | R26: 10119 | S26: 6397 | T26: 520 | U26: 71 | V26: 4659 | W26: 11906 | X26: 656 | Y26: 1109 | Z26: N/A | AA26: 437 | AB26: 0 | AC26: 1395 | AD26: 1036 | AE26: 4672 | AF26: 930 | AG26: 1442 | AH26: 3153 | AI26: 0 | AJ26: 858 | AK26: 76 | AL26: 0 | AM26: 1147 | AN26: 122 | AO26: 2057 | AP26: 3758 | AQ26: 0 | AR26: 15598 | AS26: 1153 | AT26: 181 | AU26: 2618 | AV26: 289 | AW26: 1286 | AX26: 163 | AY26: 11153 | AZ26: 5758 | BA26: 905 | BB26: 525 | BC26: 3671 | BD26: 716 | BE26: 2297 | BF26: 1993 | BG26: 292 | BI26: 20050 | BJ26: 179 | BK26: 0 | BL26: 19871 | BM26: 118443
A27: 19 | B27: 201019 | C27: Louisiana | D27: 4483529 | E27: 4483529 | F27: 3826390 | G27: 547291 | H27: 97889 | I27: 5740 | J27: 1504 | K27: 1960 | L27: 2382 | M27: 5751 | N27: 1215 | O27: 89 | P27: 0 | Q27: 264 | R27: 9394 | S27: 5766 | T27: 342 | U27: 202 | V27: 2131 | W27: 948 | X27: 625 | Y27: 706 | Z27: 1656 | AA27: N/A | AB27: 162 | AC27: 963 | AD27: 995 | AE27: 1301 | AF27: 569 | AG27: 7032 | AH27: 2852 | AI27: 40 | AJ27: 119 | AK27: 1552 | AL27: 462 | AM27: 171 | AN27: 294 | AO27: 2161 | AP27: 1443 | AQ27: 438 | AR27: 1100 | AS27: 1074 | AT27: 281 | AU27: 1350 | AV27: 0 | AW27: 1130 | AX27: 0 | AY27: 1853 | AZ27: 26134 | BA27: 473 | BB27: 0 | BC27: 1278 | BD27: 1509 | BE27: 210 | BF27: 237 | BG27: 31 | BI27: 11959 | BJ27: 402 | BK27: 116 | BL27: 11441 | BM27: 97889
A28: 20 | B28: 201020 | C28: Maine | D28: 1313902 | E28: 1313902 | F28: 1136780 | G28: 146735 | H28: 27758 | I28: 402 | J28: 424 | K28: 254 | L28: 67 | M28: 1066 | N28: 478 | O28: 1361 | P28: 174 | Q28: 55 | R28: 3025 | S28: 844 | T28: 62 | U28: 0 | V28: 311 | W28: 259 | X28: 337 | Y28: 56 | Z28: 484 | AA28: 115 | AB28: N/A | AC28: 243 | AD28: 3521 | AE28: 122 | AF28: 91 | AG28: 0 | AH28: 201 | AI28: 275 | AJ28: 204 | AK28: 345 | AL28: 4058 | AM28: 902 | AN28: 234 | AO28: 2339 | AP28: 1001 | AQ28: 55 | AR28: 315 | AS28: 124 | AT28: 0 | AU28: 375 | AV28: 379 | AW28: 148 | AX28: 0 | AY28: 249 | AZ28: 458 | BA28: 390 | BB28: 420 | BC28: 654 | BD28: 381 | BE28: 0 | BF28: 0 | BG28: 500 | BI28: 2629 | BJ28: 204 | BK28: 0 | BL28: 2425 | BM28: 27758
A29: 21 | B29: 201021 | C29: Maryland | D29: 5716785 | E29: 5716785 | F29: 4917637 | G29: 588879 | H29: 164484 | I29: 1641 | J29: 2672 | K29: 1124 | L29: 273 | M29: 8206 | N29: 2501 | O29: 1603 | P29: 8340 | Q29: 23202 | R29: 6564 | S29: 3454 | T29: 422 | U29: 357 | V29: 3300 | W29: 431 | X29: 160 | Y29: 781 | Z29: 396 | AA29: 1376 | AB29: 53 | AC29: N/A | AD29: 1983 | AE29: 3572 | AF29: 820 | AG29: 403 | AH29: 1147 | AI29: 86 | AJ29: 54 | AK29: 979 | AL29: 1369 | AM29: 9058 | AN29: 238 | AO29: 10736 | AP29: 5787 | AQ29: 0 | AR29: 3277 | AS29: 607 | AT29: 723 | AU29: 13467 | AV29: 782 | AW29: 1710 | AX29: 49 | AY29: 2669 | AZ29: 5883 | BA29: 655 | BB29: 350 | BC29: 24765 | BD29: 1542 | BE29: 4363 | BF29: 324 | BG29: 230 | BI29: 45785 | BJ29: 612 | BK29: 269 | BL29: 44904 | BM29: 164484
A30: 22 | B30: 201022 | C30: Massachusetts | D30: 6489250 | E30: 6489250 | F30: 5583650 | G30: 706624 | H30: 140162 | I30: 583 | J30: 1891 | K30: 1572 | L30: 206 | M30: 14971 | N30: 1051 | O30: 13270 | P30: 131 | Q30: 1539 | R30: 11118 | S30: 1409 | T30: 682 | U30: 79 | V30: 2842 | W30: 1891 | X30: 307 | Y30: 0 | Z30: 340 | AA30: 0 | AB30: 4666 | AC30: 3660 | AD30: N/A | AE30: 1624 | AF30: 2185 | AG30: 453 | AH30: 1957 | AI30: 388 | AJ30: 46 | AK30: 792 | AL30: 9911 | AM30: 4709 | AN30: 161 | AO30: 20002 | AP30: 2798 | AQ30: 0 | AR30: 2163 | AS30: 158 | AT30: 228 | AU30: 5316 | AV30: 6965 | AW30: 1659 | AX30: 0 | AY30: 918 | AZ30: 7073 | BA30: 207 | BB30: 1526 | BC30: 4542 | BD30: 1627 | BE30: 0 | BF30: 546 | BG30: 0 | BI30: 58814 | BJ30: 3085 | BK30: 0 | BL30: 55729 | BM30: 140162
A31: 23 | B31: 201023 | C31: Michigan | D31: 9762127 | E31: 9762127 | F31: 8310098 | G31: 1291901 | H31: 116149 | I31: 2403 | J31: 1040 | K31: 3197 | L31: 636 | M31: 6726 | N31: 2031 | O31: 277 | P31: 167 | Q31: 471 | R31: 11646 | S31: 3913 | T31: 313 | U31: 66 | V31: 10651 | W31: 7816 | X31: 758 | Y31: 640 | Z31: 2353 | AA31: 1342 | AB31: 645 | AC31: 620 | AD31: 1206 | AE31: N/A | AF31: 1275 | AG31: 656 | AH31: 2921 | AI31: 312 | AJ31: 213 | AK31: 1874 | AL31: 437 | AM31: 1676 | AN31: 669 | AO31: 3135 | AP31: 2444 | AQ31: 53 | AR31: 9783 | AS31: 2276 | AT31: 537 | AU31: 3134 | AV31: 653 | AW31: 1446 | AX31: 706 | AY31: 4453 | AZ31: 7184 | BA31: 545 | BB31: 45 | BC31: 2073 | BD31: 1427 | BE31: 446 | BF31: 6291 | BG31: 568 | BI31: 43979 | BJ31: 1432 | BK31: 0 | BL31: 42547 | BM31: 116149
A32: 24 | B32: 201024 | C32: Minnesota | D32: 5244256 | E32: 5244256 | F32: 4480630 | G32: 647946 | H32: 89872 | I32: 266 | J32: 1169 | K32: 4165 | L32: 279 | M32: 6233 | N32: 2521 | O32: 211 | P32: 176 | Q32: 306 | R32: 2575 | S32: 1776 | T32: 227 | U32: 231 | V32: 6641 | W32: 1120 | X32: 4948 | Y32: 1067 | Z32: 402 | AA32: 519 | AB32: 172 | AC32: 1259 | AD32: 1092 | AE32: 2631 | AF32: N/A | AG32: 196 | AH32: 1549 | AI32: 1020 | AJ32: 734 | AK32: 540 | AL32: 183 | AM32: 513 | AN32: 151 | AO32: 1309 | AP32: 1673 | AQ32: 7316 | AR32: 1035 | AS32: 284 | AT32: 738 | AU32: 730 | AV32: 123 | AW32: 1597 | AX32: 3237 | AY32: 1155 | AZ32: 2619 | BA32: 1013 | BB32: 0 | BC32: 2371 | BD32: 1328 | BE32: 200 | BF32: 17929 | BG32: 343 | BI32: 25808 | BJ32: 39 | BK32: 0 | BL32: 25769 | BM32: 89872
A33: 25 | B33: 201025 | C33: Mississippi | D33: 2931228 | E33: 2931228 | F33: 2510729 | G33: 340266 | H33: 72321 | I33: 8306 | J33: 1192 | K33: 187 | L33: 4941 | M33: 3000 | N33: 1167 | O33: 71 | P33: 0 | Q33: 0 | R33: 4814 | S33: 4014 | T33: 276 | U33: 121 | V33: 3030 | W33: 1403 | X33: 114 | Y33: 330 | Z33: 407 | AA33: 7390 | AB33: 0 | AC33: 649 | AD33: 107 | AE33: 2495 | AF33: 863 | AG33: N/A | AH33: 959 | AI33: 314 | AJ33: 0 | AK33: 408 | AL33: 0 | AM33: 403 | AN33: 633 | AO33: 1026 | AP33: 2227 | AQ33: 0 | AR33: 1312 | AS33: 663 | AT33: 0 | AU33: 750 | AV33: 145 | AW33: 1860 | AX33: 56 | AY33: 8158 | AZ33: 5755 | BA33: 232 | BB33: 0 | BC33: 572 | BD33: 508 | BE33: 94 | BF33: 879 | BG33: 490 | BI33: 7912 | BJ33: 814 | BK33: 67 | BL33: 7031 | BM33: 72321
A34: 26 | B34: 201026 | C34: Missouri | D34: 5920858 | E34: 5920858 | F34: 4968921 | G34: 786726 | H34: 145226 | I34: 819 | J34: 1051 | K34: 2988 | L34: 4381 | M34: 9840 | N34: 1903 | O34: 243 | P34: 314 | Q34: 478 | R34: 8317 | S34: 2492 | T34: 380 | U34: 830 | V34: 21277 | W34: 3351 | X34: 4708 | Y34: 23427 | Z34: 2552 | AA34: 2238 | AB34: 171 | AC34: 1359 | AD34: 1395 | AE34: 2610 | AF34: 1701 | AG34: 1183 | AH34: N/A | AI34: 220 | AJ34: 2636 | AK34: 1060 | AL34: 108 | AM34: 1320 | AN34: 150 | AO34: 2630 | AP34: 1825 | AQ34: 848 | AR34: 2163 | AS34: 4647 | AT34: 314 | AU34: 1639 | AV34: 0 | AW34: 954 | AX34: 512 | AY34: 3311 | AZ34: 12884 | BA34: 1319 | BB34: 498 | BC34: 3206 | BD34: 1107 | BE34: 177 | BF34: 1331 | BG34: 359 | BI34: 19985 | BJ34: 867 | BK34: 0 | BL34: 19118 | BM34: 145226
A35: 27 | B35: 201027 | C35: Montana | D35: 978507 | E35: 978507 | F35: 821709 | G35: 117752 | H35: 35630 | I35: 212 | J35: 650 | K35: 1909 | L35: 672 | M35: 5756 | N35: 2185 | O35: 128 | P35: 71 | Q35: 0 | R35: 1373 | S35: 46 | T35: 0 | U35: 1458 | V35: 1094 | W35: 251 | X35: 169 | Y35: 60 | Z35: 321 | AA35: 85 | AB35: 76 | AC35: 51 | AD35: 59 | AE35: 648 | AF35: 1323 | AG35: 242 | AH35: 564 | AI35: N/A | AJ35: 340 | AK35: 548 | AL35: 0 | AM35: 0 | AN35: 660 | AO35: 246 | AP35: 1072 | AQ35: 1677 | AR35: 89 | AS35: 182 | AT35: 1620 | AU35: 419 | AV35: 0 | AW35: 110 | AX35: 295 | AY35: 111 | AZ35: 2101 | BA35: 964 | BB35: 0 | BC35: 497 | BD35: 3250 | BE35: 0 | BF35: 357 | BG35: 1689 | BI35: 3416 | BJ35: 11 | BK35: 0 | BL35: 3405 | BM35: 35630
A36: 28 | B36: 201028 | C36: Nebraska | D36: 1802697 | E36: 1802697 | F36: 1497138 | G36: 247005 | H36: 51290 | I36: 232 | J36: 35 | K36: 2322 | L36: 674 | M36: 4430 | N36: 4182 | O36: 361 | P36: 177 | Q36: 0 | R36: 1775 | S36: 1202 | T36: 257 | U36: 127 | V36: 1820 | W36: 639 | X36: 5536 | Y36: 2484 | Z36: 153 | AA36: 89 | AB36: 0 | AC36: 77 | AD36: 100 | AE36: 726 | AF36: 2254 | AG36: 823 | AH36: 2723 | AI36: 112 | AJ36: N/A | AK36: 232 | AL36: 0 | AM36: 143 | AN36: 831 | AO36: 111 | AP36: 442 | AQ36: 777 | AR36: 1232 | AS36: 702 | AT36: 506 | AU36: 345 | AV36: 0 | AW36: 65 | AX36: 2936 | AY36: 77 | AZ36: 4445 | BA36: 537 | BB36: 0 | BC36: 772 | BD36: 1230 | BE36: 73 | BF36: 1046 | BG36: 1478 | BI36: 7264 | BJ36: 0 | BK36: 278 | BL36: 6986 | BM36: 51290
A37: 29 | B37: 201029 | C37: Nevada | D37: 2667364 | E37: 2667364 | F37: 2030410 | G37: 517261 | H37: 102677 | I37: 150 | J37: 511 | K37: 7818 | L37: 530 | M37: 35472 | N37: 2935 | O37: 648 | P37: 0 | Q37: 0 | R37: 3579 | S37: 1187 | T37: 4363 | U37: 1686 | V37: 1711 | W37: 739 | X37: 543 | Y37: 453 | Z37: 569 | AA37: 733 | AB37: 0 | AC37: 485 | AD37: 1275 | AE37: 2202 | AF37: 805 | AG37: 946 | AH37: 1747 | AI37: 770 | AJ37: 1129 | AK37: N/A | AL37: 59 | AM37: 1528 | AN37: 1220 | AO37: 1204 | AP37: 957 | AQ37: 37 | AR37: 1554 | AS37: 886 | AT37: 2629 | AU37: 1567 | AV37: 167 | AW37: 312 | AX37: 1203 | AY37: 706 | AZ37: 5224 | BA37: 4500 | BB37: 197 | BC37: 1832 | BD37: 3290 | BE37: 56 | BF37: 419 | BG37: 144 | BI37: 17016 | BJ37: 502 | BK37: 454 | BL37: 16060 | BM37: 102677
A38: 30 | B38: 201030 | C38: New Hampshire | D38: 1303865 | E38: 1303865 | F38: 1118359 | G38: 141213 | H38: 39367 | I38: 152 | J38: 0 | K38: 544 | L38: 0 | M38: 1692 | N38: 240 | O38: 3134 | P38: 0 | Q38: 298 | R38: 1659 | S38: 0 | T38: 51 | U38: 66 | V38: 850 | W38: 23 | X38: 109 | Y38: 57 | Z38: 0 | AA38: 19 | AB38: 3242 | AC38: 49 | AD38: 13752 | AE38: 230 | AF38: 240 | AG38: 25 | AH38: 295 | AI38: 486 | AJ38: 0 | AK38: 95 | AL38: N/A | AM38: 540 | AN38: 276 | AO38: 2462 | AP38: 471 | AQ38: 0 | AR38: 28 | AS38: 0 | AT38: 508 | AU38: 674 | AV38: 988 | AW38: 51 | AX38: 0 | AY38: 372 | AZ38: 1570 | BA38: 279 | BB38: 2566 | BC38: 745 | BD38: 261 | BE38: 0 | BF38: 268 | BG38: 0 | BI38: 4926 | BJ38: 56 | BK38: 285 | BL38: 4585 | BM38: 39367
A39: 31 | B39: 201031 | C39: New Jersey | D39: 8709933 | E39: 8709933 | F39: 7841470 | G39: 684482 | H39: 127369 | I39: 616 | J39: 383 | K39: 1625 | L39: 258 | M39: 8777 | N39: 807 | O39: 2503 | P39: 1543 | Q39: 431 | R39: 9841 | S39: 4588 | T39: 385 | U39: 91 | V39: 2656 | W39: 402 | X39: 332 | Y39: 442 | Z39: 91 | AA39: 249 | AB39: 95 | AC39: 4231 | AD39: 2626 | AE39: 1070 | AF39: 322 | AG39: 450 | AH39: 727 | AI39: 122 | AJ39: 261 | AK39: 874 | AL39: 705 | AM39: N/A | AN39: 421 | AO39: 41374 | AP39: 3052 | AQ39: 0 | AR39: 1584 | AS39: 32 | AT39: 613 | AU39: 22225 | AV39: 332 | AW39: 1134 | AX39: 0 | AY39: 852 | AZ39: 3434 | BA39: 178 | BB39: 57 | BC39: 2670 | BD39: 964 | BE39: 358 | BF39: 586 | BG39: 0 | BI39: 56612 | BJ39: 2732 | BK39: 245 | BL39: 53635 | BM39: 127369
A40: 32 | B40: 201032 | C40: New Mexico | D40: 2039549 | E40: 2039549 | F40: 1735950 | G40: 220663 | H40: 73605 | I40: 751 | J40: 969 | K40: 6117 | L40: 77 | M40: 6547 | N40: 2852 | O40: 25 | P40: 391 | Q40: 56 | R40: 3259 | S40: 1977 | T40: 122 | U40: 755 | V40: 526 | W40: 465 | X40: 0 | Y40: 751 | Z40: 739 | AA40: 65 | AB40: 94 | AC40: 1968 | AD40: 2076 | AE40: 1460 | AF40: 179 | AG40: 719 | AH40: 138 | AI40: 1003 | AJ40: 530 | AK40: 4192 | AL40: 79 | AM40: 160 | AN40: N/A | AO40: 784 | AP40: 1793 | AQ40: 79 | AR40: 1712 | AS40: 1182 | AT40: 1659 | AU40: 809 | AV40: 46 | AW40: 152 | AX40: 204 | AY40: 1269 | AZ40: 18511 | BA40: 1601 | BB40: 309 | BC40: 290 | BD40: 3004 | BE40: 0 | BF40: 407 | BG40: 752 | BI40: 9331 | BJ40: 632 | BK40: 173 | BL40: 8526 | BM40: 73605
A41: 33 | B41: 201033 | C41: New York | D41: 19171916 | E41: 19171916 | F41: 16976205 | G41: 1779540 | H41: 269427 | I41: 1310 | J41: 5070 | K41: 2649 | L41: 362 | M41: 25177 | N41: 3135 | O41: 15338 | P41: 2603 | Q41: 1983 | R41: 30553 | S41: 7676 | T41: 259 | U41: 198 | V41: 6533 | W41: 2497 | X41: 477 | Y41: 1189 | Z41: 804 | AA41: 1321 | AB41: 2270 | AC41: 5912 | AD41: 16855 | AE41: 4779 | AF41: 1649 | AG41: 872 | AH41: 1870 | AI41: 237 | AJ41: 886 | AK41: 2077 | AL41: 2636 | AM41: 35333 | AN41: 829 | AO41: N/A | AP41: 13322 | AQ41: 0 | AR41: 6510 | AS41: 2298 | AT41: 2284 | AU41: 20514 | AV41: 1913 | AW41: 7161 | AX41: 521 | AY41: 1730 | AZ41: 9692 | BA41: 910 | BB41: 2900 | BC41: 8881 | BD41: 2503 | BE41: 444 | BF41: 2354 | BG41: 151 | BI41: 146744 | BJ41: 6740 | BK41: 199 | BL41: 139805 | BM41: 269427
A42: 34 | B42: 201034 | C42: North Carolina | D42: 9443000 | E42: 9443000 | F42: 7982017 | G42: 1141001 | H42: 263256 | I42: 3044 | J42: 1618 | K42: 2847 | L42: 550 | M42: 16699 | N42: 1842 | O42: 3752 | P42: 479 | Q42: 1691 | R42: 28983 | S42: 15943 | T42: 1567 | U42: 724 | V42: 5657 | W42: 4132 | X42: 1077 | Y42: 2192 | Z42: 4419 | AA42: 2180 | AB42: 2259 | AC42: 9881 | AD42: 4052 | AE42: 5789 | AF42: 1839 | AG42: 1187 | AH42: 1932 | AI42: 230 | AJ42: 516 | AK42: 698 | AL42: 2130 | AM42: 7195 | AN42: 1186 | AO42: 19406 | AP42: N/A | AQ42: 243 | AR42: 8661 | AS42: 1453 | AT42: 1796 | AU42: 11155 | AV42: 97 | AW42: 23196 | AX42: 362 | AY42: 8685 | AZ42: 14329 | BA42: 790 | BB42: 350 | BC42: 25662 | BD42: 2874 | BE42: 3025 | BF42: 2012 | BG42: 870 | BI42: 56726 | BJ42: 1950 | BK42: 424 | BL42: 54352 | BM42: 263256
A43: 35 | B43: 201035 | C43: North Dakota | D43: 665654 | E43: 665654 | F43: 556222 | G43: 75720 | H43: 30100 | I43: 109 | J43: 1066 | K43: 662 | L43: 168 | M43: 1411 | N43: 873 | O43: 30 | P43: 0 | Q43: 175 | R43: 492 | S43: 799 | T43: 53 | U43: 69 | V43: 39 | W43: 45 | X43: 289 | Y43: 114 | Z43: 97 | AA43: 374 | AB43: 0 | AC43: 121 | AD43: 52 | AE43: 298 | AF43: 12350 | AG43: 0 | AH43: 197 | AI43: 1236 | AJ43: 328 | AK43: 382 | AL43: 0 | AM43: 144 | AN43: 380 | AO43: 188 | AP43: 637 | AQ43: N/A | AR43: 134 | AS43: 108 | AT43: 313 | AU43: 392 | AV43: 0 | AW43: 0 | AX43: 1038 | AY43: 273 | AZ43: 2513 | BA43: 462 | BB43: 0 | BC43: 25 | BD43: 696 | BE43: 0 | BF43: 749 | BG43: 219 | BI43: 3612 | BJ43: 0 | BK43: 44 | BL43: 3568 | BM43: 30100
A44: 36 | B44: 201036 | C44: Ohio | D44: 11405101 | E44: 11405101 | F44: 9745227 | G44: 1453401 | H44: 172633 | I44: 1289 | J44: 1556 | K44: 4715 | L44: 434 | M44: 8997 | N44: 2859 | O44: 1307 | P44: 15 | Q44: 972 | R44: 16495 | S44: 9502 | T44: 436 | U44: 564 | V44: 7092 | W44: 9438 | X44: 1270 | Y44: 1016 | Z44: 9159 | AA44: 743 | AB44: 291 | AC44: 3828 | AD44: 3686 | AE44: 15130 | AF44: 2298 | AG44: 89 | AH44: 1171 | AI44: 460 | AJ44: 1531 | AK44: 2240 | AL44: 175 | AM44: 2465 | AN44: 515 | AO44: 5988 | AP44: 5985 | AQ44: 26 | AR44: N/A | AS44: 1228 | AT44: 342 | AU44: 12012 | AV44: 444 | AW44: 2479 | AX44: 207 | AY44: 4987 | AZ44: 7465 | BA44: 485 | BB44: 182 | BC44: 6769 | BD44: 2567 | BE44: 7814 | BF44: 1771 | BG44: 144 | BI44: 33840 | BJ44: 2140 | BK44: 159 | BL44: 31541 | BM44: 172633
A45: 37 | B45: 201037 | C45: Oklahoma | D45: 3716264 | E45: 3716264 | F45: 3065497 | G45: 528824 | H45: 106511 | I45: 1612 | J45: 1397 | K45: 2759 | L45: 5873 | M45: 9429 | N45: 3184 | O45: 68 | P45: 109 | Q45: 0 | R45: 5438 | S45: 3159 | T45: 773 | U45: 611 | V45: 2679 | W45: 957 | X45: 1108 | Y45: 5024 | Z45: 877 | AA45: 2208 | AB45: 298 | AC45: 382 | AD45: 465 | AE45: 1047 | AF45: 599 | AG45: 1733 | AH45: 4102 | AI45: 448 | AJ45: 829 | AK45: 1079 | AL45: 69 | AM45: 890 | AN45: 2723 | AO45: 1118 | AP45: 1991 | AQ45: 139 | AR45: 1385 | AS45: N/A | AT45: 398 | AU45: 1316 | AV45: 119 | AW45: 596 | AX45: 83 | AY45: 1872 | AZ45: 28238 | BA45: 428 | BB45: 93 | BC45: 2286 | BD45: 2035 | BE45: 221 | BF45: 551 | BG45: 1713 | BI45: 15432 | BJ45: 209 | BK45: 364 | BL45: 14859 | BM45: 106511
A46: 38 | B46: 201038 | C46: Oregon | D46: 3794008 | E46: 3794008 | F46: 3110896 | G46: 545841 | H46: 116700 | I46: 400 | J46: 2027 | K46: 5264 | L46: 246 | M46: 34190 | N46: 2050 | O46: 270 | P46: 0 | Q46: 217 | R46: 2273 | S46: 688 | T46: 2323 | U46: 4129 | V46: 1565 | W46: 317 | X46: 161 | Y46: 678 | Z46: 0 | AA46: 0 | AB46: 0 | AC46: 595 | AD46: 1471 | AE46: 1159 | AF46: 668 | AG46: 735 | AH46: 1786 | AI46: 3386 | AJ46: 777 | AK46: 2805 | AL46: 317 | AM46: 544 | AN46: 981 | AO46: 2538 | AP46: 1040 | AQ46: 592 | AR46: 1541 | AS46: 821 | AT46: N/A | AU46: 1689 | AV46: 0 | AW46: 989 | AX46: 741 | AY46: 787 | AZ46: 3826 | BA46: 2879 | BB46: 456 | BC46: 1124 | BD46: 22793 | BE46: 358 | BF46: 1981 | BG46: 523 | BI46: 20571 | BJ46: 821 | BK46: 0 | BL46: 19750 | BM46: 116700
A47: 39 | B47: 201039 | C47: Pennsylvania | D47: 12577555 | E47: 12577555 | F47: 11053022 | G47: 1239199 | H47: 235580 | I47: 369 | J47: 2185 | K47: 3668 | L47: 807 | M47: 12077 | N47: 3657 | O47: 4007 | P47: 4608 | Q47: 1621 | R47: 18212 | S47: 4644 | T47: 332 | U47: 380 | V47: 4490 | W47: 2018 | X47: 227 | Y47: 1426 | Z47: 1675 | AA47: 625 | AB47: 1621 | AC47: 18281 | AD47: 4455 | AE47: 4961 | AF47: 1491 | AG47: 563 | AH47: 1725 | AI47: 339 | AJ47: 551 | AK47: 1810 | AL47: 729 | AM47: 42456 | AN47: 1250 | AO47: 30481 | AP47: 7611 | AQ47: 521 | AR47: 14545 | AS47: 1254 | AT47: 918 | AU47: N/A | AV47: 377 | AW47: 1315 | AX47: 966 | AY47: 1611 | AZ47: 7778 | BA47: 1048 | BB47: 215 | BC47: 10558 | BD47: 2495 | BE47: 4258 | BF47: 1300 | BG47: 1069 | BI47: 49754 | BJ47: 6275 | BK47: 147 | BL47: 43332 | BM47: 235580
A48: 40 | B48: 201040 | C48: Rhode Island | D48: 1042240 | E48: 1042240 | F48: 900283 | G48: 99603 | H48: 32059 | I48: 136 | J48: 0 | K48: 324 | L48: 0 | M48: 1697 | N48: 59 | O48: 4090 | P48: 0 | Q48: 146 | R48: 1336 | S48: 382 | T48: 274 | U48: 0 | V48: 1210 | W48: 206 | X48: 48 | Y48: 0 | Z48: 0 | AA48: 0 | AB48: 447 | AC48: 977 | AD48: 8639 | AE48: 77 | AF48: 47 | AG48: 0 | AH48: 47 | AI48: 0 | AJ48: 0 | AK48: 297 | AL48: 333 | AM48: 1868 | AN48: 0 | AO48: 4583 | AP48: 1376 | AQ48: 62 | AR48: 0 | AS48: 199 | AT48: 0 | AU48: 560 | AV48: N/A | AW48: 61 | AX48: 48 | AY48: 71 | AZ48: 678 | BA48: 0 | BB48: 72 | BC48: 1399 | BD48: 160 | BE48: 150 | BF48: 0 | BG48: 0 | BI48: 10295 | BJ48: 276 | BK48: 0 | BL48: 10019 | BM48: 32059
A49: 41 | B49: 201041 | C49: South Carolina | D49: 4577399 | E49: 4577399 | F49: 3870879 | G49: 537961 | H49: 152441 | I49: 1741 | J49: 1670 | K49: 1457 | L49: 365 | M49: 4691 | N49: 1867 | O49: 3998 | P49: 249 | Q49: 38 | R49: 16060 | S49: 17486 | T49: 813 | U49: 233 | V49: 4253 | W49: 2174 | X49: 703 | Y49: 514 | Z49: 2211 | AA49: 2059 | AB49: 603 | AC49: 5184 | AD49: 3765 | AE49: 3709 | AF49: 818 | AG49: 1175 | AH49: 1371 | AI49: 0 | AJ49: 0 | AK49: 1173 | AL49: 486 | AM49: 4908 | AN49: 1390 | AO49: 7912 | AP49: 20749 | AQ49: 118 | AR49: 3883 | AS49: 1458 | AT49: 1020 | AU49: 4689 | AV49: 154 | AW49: N/A | AX49: 95 | AY49: 3816 | AZ49: 4965 | BA49: 455 | BB49: 478 | BC49: 9786 | BD49: 3070 | BE49: 1190 | BF49: 1057 | BG49: 382 | BI49: 16118 | BJ49: 269 | BK49: 28 | BL49: 15821 | BM49: 152441
A50: 42 | B50: 201042 | C50: South Dakota | D50: 805616 | E50: 805616 | F50: 680993 | G50: 96805 | H50: 25777 | I50: 325 | J50: 25 | K50: 745 | L50: 61 | M50: 1338 | N50: 807 | O50: 0 | P50: 0 | Q50: 0 | R50: 251 | S50: 24 | T50: 75 | U50: 457 | V50: 80 | W50: 439 | X50: 3520 | Y50: 571 | Z50: 82 | AA50: 129 | AB50: 0 | AC50: 0 | AD50: 407 | AE50: 144 | AF50: 4615 | AG50: 201 | AH50: 252 | AI50: 560 | AJ50: 2260 | AK50: 38 | AL50: 0 | AM50: 0 | AN50: 38 | AO50: 758 | AP50: 262 | AQ50: 2020 | AR50: 160 | AS50: 296 | AT50: 122 | AU50: 209 | AV50: 0 | AW50: 0 | AX50: N/A | AY50: 0 | AZ50: 1334 | BA50: 0 | BB50: 0 | BC50: 224 | BD50: 1564 | BE50: 0 | BF50: 736 | BG50: 648 | BI50: 2041 | BJ50: 0 | BK50: 0 | BL50: 2041 | BM50: 25777
A51: 43 | B51: 201043 | C51: Tennessee | D51: 6282706 | E51: 6282706 | F51: 5299496 | G51: 801355 | H51: 159778 | I51: 8897 | J51: 343 | K51: 2291 | L51: 4736 | M51: 8019 | N51: 1858 | O51: 765 | P51: 248 | Q51: 394 | R51: 14168 | S51: 11065 | T51: 243 | U51: 333 | V51: 3162 | W51: 4764 | X51: 1052 | Y51: 2506 | Z51: 11188 | AA51: 2602 | AB51: 84 | AC51: 1450 | AD51: 1733 | AE51: 5529 | AF51: 1504 | AG51: 9029 | AH51: 4342 | AI51: 290 | AJ51: 187 | AK51: 2433 | AL51: 197 | AM51: 2230 | AN51: 621 | AO51: 4800 | AP51: 7102 | AQ51: 0 | AR51: 4462 | AS51: 669 | AT51: 430 | AU51: 2562 | AV51: 805 | AW51: 4765 | AX51: 63 | AY51: N/A | AZ51: 8701 | BA51: 2062 | BB51: 0 | BC51: 8650 | BD51: 1412 | BE51: 2201 | BF51: 2831 | BG51: 0 | BI51: 22077 | BJ51: 0 | BK51: 0 | BL51: 22077 | BM51: 159778
A52: 44 | B52: 201044 | C52: Texas | D52: 24899075 | E52: 24899075 | F52: 20500156 | G52: 3740344 | H52: 486558 | I52: 8636 | J52: 11613 | K52: 16521 | L52: 15251 | M52: 68959 | N52: 16361 | O52: 924 | P52: 704 | Q52: 460 | R52: 26668 | S52: 16671 | T52: 3718 | U52: 2033 | V52: 20169 | W52: 6985 | X52: 3946 | Y52: 11598 | Z52: 5153 | AA52: 31149 | AB52: 1318 | AC52: 4724 | AD52: 7139 | AE52: 13775 | AF52: 6088 | AG52: 7773 | AH52: 12061 | AI52: 1027 | AJ52: 4893 | AK52: 8324 | AL52: 1067 | AM52: 7058 | AN52: 11752 | AO52: 16624 | AP52: 12183 | AQ52: 2452 | AR52: 8317 | AS52: 22969 | AT52: 4373 | AU52: 7161 | AV52: 975 | AW52: 5249 | AX52: 1936 | AY52: 13044 | AZ52: N/A | BA52: 4123 | BB52: 52 | BC52: 13713 | BD52: 8847 | BE52: 2221 | BF52: 5927 | BG52: 1874 | BI52: 172017 | BJ52: 4180 | BK52: 843 | BL52: 166994 | BM52: 486558
A53: 45 | B53: 201045 | C53: Utah | D53: 2724064 | E53: 2724064 | F53: 2240636 | G53: 388410 | H53: 77780 | I53: 93 | J53: 1798 | K53: 8147 | L53: 316 | M53: 12187 | N53: 3987 | O53: 119 | P53: 0 | Q53: 138 | R53: 2097 | S53: 966 | T53: 932 | U53: 7692 | V53: 1831 | W53: 517 | X53: 483 | Y53: 299 | Z53: 235 | AA53: 46 | AB53: 148 | AC53: 426 | AD53: 246 | AE53: 261 | AF53: 914 | AG53: 127 | AH53: 1255 | AI53: 1929 | AJ53: 118 | AK53: 4549 | AL53: 0 | AM53: 247 | AN53: 518 | AO53: 1462 | AP53: 1167 | AQ53: 0 | AR53: 1527 | AS53: 886 | AT53: 2525 | AU53: 557 | AV53: 0 | AW53: 838 | AX53: 875 | AY53: 459 | AZ53: 5305 | BA53: N/A | BB53: 297 | BC53: 3005 | BD53: 3792 | BE53: 0 | BF53: 338 | BG53: 2126 | BI53: 17238 | BJ53: 383 | BK53: 108 | BL53: 16747 | BM53: 77780
A54: 46 | B54: 201046 | C54: Vermont | D54: 619363 | E54: 619363 | F54: 534975 | G54: 59032 | H54: 22529 | I54: 0 | J54: 184 | K54: 65 | L54: 0 | M54: 1001 | N54: 326 | O54: 1287 | P54: 87 | Q54: 9 | R54: 2063 | S54: 496 | T54: 49 | U54: 0 | V54: 370 | W54: 0 | X54: 91 | Y54: 0 | Z54: 176 | AA54: 0 | AB54: 824 | AC54: 300 | AD54: 3599 | AE54: 201 | AF54: 85 | AG54: 0 | AH54: 51 | AI54: 236 | AJ54: 0 | AK54: 58 | AL54: 2760 | AM54: 751 | AN54: 0 | AO54: 4056 | AP54: 539 | AQ54: 30 | AR54: 50 | AS54: 0 | AT54: 100 | AU54: 524 | AV54: 227 | AW54: 134 | AX54: 153 | AY54: 125 | AZ54: 565 | BA54: 0 | BB54: N/A | BC54: 400 | BD54: 128 | BE54: 0 | BF54: 377 | BG54: 52 | BI54: 2827 | BJ54: 0 | BK54: 0 | BL54: 2827 | BM54: 22529
A55: 47 | B55: 201047 | C55: Virginia | D55: 7930773 | E55: 7930773 | F55: 6752310 | G55: 870491 | H55: 259507 | I55: 2671 | J55: 3296 | K55: 3807 | L55: 1233 | M55: 17088 | N55: 3229 | O55: 2468 | P55: 1265 | Q55: 10593 | R55: 18165 | S55: 11927 | T55: 2347 | U55: 1159 | V55: 7576 | W55: 2892 | X55: 1135 | Y55: 2103 | Z55: 2051 | AA55: 2148 | AB55: 1494 | AC55: 24822 | AD55: 4104 | AE55: 5733 | AF55: 462 | AG55: 1858 | AH55: 4262 | AI55: 866 | AJ55: 523 | AK55: 748 | AL55: 372 | AM55: 6825 | AN55: 1098 | AO55: 17525 | AP55: 23829 | AQ55: 201 | AR55: 7708 | AS55: 781 | AT55: 2137 | AU55: 11796 | AV55: 1543 | AW55: 8339 | AX55: 98 | AY55: 5842 | AZ55: 12938 | BA55: 1551 | BB55: 676 | BC55: N/A | BD55: 4373 | BE55: 6779 | BF55: 2648 | BG55: 423 | BI55: 48465 | BJ55: 1306 | BK55: 217 | BL55: 46942 | BM55: 259507
A56: 48 | B56: 201048 | C56: Washington | D56: 6661321 | E56: 6661321 | F56: 5464985 | G56: 946923 | H56: 191784 | I56: 1322 | J56: 5644 | K56: 5971 | L56: 658 | M56: 39468 | N56: 4883 | O56: 642 | P56: 202 | Q56: 243 | R56: 5378 | S56: 3107 | T56: 4246 | U56: 12661 | V56: 3931 | W56: 1912 | X56: 1685 | Y56: 1694 | Z56: 886 | AA56: 1011 | AB56: 717 | AC56: 629 | AD56: 1448 | AE56: 2871 | AF56: 1323 | AG56: 737 | AH56: 3727 | AI56: 5094 | AJ56: 323 | AK56: 5310 | AL56: 282 | AM56: 721 | AN56: 1012 | AO56: 4140 | AP56: 2143 | AQ56: 515 | AR56: 2727 | AS56: 1986 | AT56: 26235 | AU56: 2893 | AV56: 220 | AW56: 3047 | AX56: 866 | AY56: 789 | AZ56: 11338 | BA56: 4020 | BB56: 981 | BC56: 7266 | BD56: N/A | BE56: 62 | BF56: 2180 | BG56: 638 | BI56: 57629 | BJ56: 0 | BK56: 2715 | BL56: 54914 | BM56: 191784
A57: 49 | B57: 201049 | C57: West Virginia | D57: 1833535 | E57: 1833535 | F57: 1625125 | G57: 166168 | H57: 39609 | I57: 41 | J57: 1326 | K57: 0 | L57: 0 | M57: 760 | N57: 608 | O57: 84 | P57: 556 | Q57: 480 | R57: 1842 | S57: 485 | T57: 0 | U57: 88 | V57: 356 | W57: 366 | X57: 0 | Y57: 161 | Z57: 851 | AA57: 60 | AB57: 0 | AC57: 4249 | AD57: 191 | AE57: 657 | AF57: 0 | AG57: 44 | AH57: 160 | AI57: 39 | AJ57: 0 | AK57: 25 | AL57: 107 | AM57: 906 | AN57: 0 | AO57: 611 | AP57: 2552 | AQ57: 268 | AR57: 7925 | AS57: 229 | AT57: 0 | AU57: 4908 | AV57: 238 | AW57: 647 | AX57: 0 | AY57: 1160 | AZ57: 968 | BA57: 112 | BB57: 208 | BC57: 4999 | BD57: 192 | BE57: N/A | BF57: 150 | BG57: 0 | BI57: 2633 | BJ57: 182 | BK57: 0 | BL57: 2451 | BM57: 39609
A58: 50 | B58: 201050 | C58: Wisconsin | D58: 5623196 | E58: 5623196 | F58: 4824045 | G58: 691592 | H58: 93065 | I58: 552 | J58: 798 | K58: 1854 | L58: 518 | M58: 4506 | N58: 1890 | O58: 359 | P58: 351 | Q58: 98 | R58: 4492 | S58: 1656 | T58: 550 | U58: 902 | V58: 20299 | W58: 2563 | X58: 2300 | Y58: 752 | Z58: 287 | AA58: 331 | AB58: 448 | AC58: 1088 | AD58: 992 | AE58: 6317 | AF58: 16741 | AG58: 810 | AH58: 1716 | AI58: 154 | AJ58: 853 | AK58: 1049 | AL58: 69 | AM58: 632 | AN58: 123 | AO58: 1291 | AP58: 1817 | AQ58: 497 | AR58: 1674 | AS58: 89 | AT58: 1444 | AU58: 2211 | AV58: 0 | AW58: 1142 | AX58: 235 | AY58: 856 | AZ58: 3039 | BA58: 476 | BB58: 75 | BC58: 771 | BD58: 1013 | BE58: 256 | BF58: N/A | BG58: 129 | BI58: 14494 | BJ58: 521 | BK58: 0 | BL58: 13973 | BM58: 93065
A59: 51 | B59: 201051 | C59: Wyoming | D59: 556954 | E59: 556954 | F59: 444614 | G59: 82255 | H59: 28046 | I59: 172 | J59: 0 | K59: 1511 | L59: 0 | M59: 2784 | N59: 4390 | O59: 0 | P59: 0 | Q59: 0 | R59: 396 | S59: 745 | T59: 25 | U59: 942 | V59: 415 | W59: 132 | X59: 462 | Y59: 532 | Z59: 519 | AA59: 107 | AB59: 0 | AC59: 51 | AD59: 252 | AE59: 570 | AF59: 218 | AG59: 0 | AH59: 421 | AI59: 2528 | AJ59: 1711 | AK59: 416 | AL59: 0 | AM59: 0 | AN59: 707 | AO59: 146 | AP59: 34 | AQ59: 233 | AR59: 56 | AS59: 62 | AT59: 14 | AU59: 95 | AV59: 0 | AW59: 220 | AX59: 258 | AY59: 495 | AZ59: 1990 | BA59: 3226 | BB59: 75 | BC59: 580 | BD59: 556 | BE59: 0 | BF59: 0 | BG59: N/A | BI59: 2039 | BJ59: 0 | BK59: 0 | BL59: 2039 | BM59: 28046
A60: 52 | B60: 201052 | C60: Puerto Rico | D60: 3676493 | E60: =+F60+G60+H60+BI60 -> 3676493 | F60: 3392179 | G60: 247593 | H60: =SUM(I60:BG60) -> 31732 | I60: 629 | J60: 156 | K60: 288 | L60: 0 | M60: 1177 | N60: 388 | O60: 899 | P60: 0 | Q60: 0 | R60: 11262 | S60: 207 | T60: 0 | U60: 0 | V60: 1642 | W60: 109 | X60: 0 | Y60: 112 | Z60: 254 | AA60: 109 | AB60: 0 | AC60: 59 | AD60: 2004 | AE60: 89 | AF60: 50 | AG60: 170 | AH60: 221 | AI60: 0 | AJ60: 0 | AK60: 0 | AL60: 0 | AM60: 1244 | AN60: 364 | AO60: 4768 | AP60: 146 | AQ60: 0 | AR60: 69 | AS60: 0 | AT60: 0 | AU60: 1516 | AV60: 684 | AW60: 109 | AX60: 0 | AY60: 30 | AZ60: 977 | BA60: 882 | BB60: 0 | BC60: 392 | BD60: 0 | BE60: 141 | BF60: 585 | BG60: 0 | BI60: 4989 | BJ60: N/A2 | BK60: 102 | BL60: 4887 | BM60: 31732
C61: com porto rico | D61: =SUM(D9:D60) -> 309305100 | E61: 309305100 | F61: 261944527 | G61: 38830478 | H61: 6774961 | I61: =SUM(I9:I60) -> 99850 | J61: =SUM(J9:J60) -> 94848 | K61: 177056 | L61: 64264 | M61: 575165 | N61: 141008 | O61: 90259 | P61: 30055 | Q61: 56052 | R61: 439115 | S61: 245199 | T61: 49218 | U61: 53122 | V61: 279221 | W61: 130279 | X61: 66922 | Y61: 90793 | Z61: 93253 | AA61: 88240 | AB61: 32209 | AC61: 159925 | AD61: 146156 | AE61: 178296 | AF61: 104815 | AG61: 68533 | AH61: 148276 | AI61: 35870 | AJ61: 43531 | AK61: 109409 | AL61: 38399 | AM61: 195216 | AN61: 50802 | AO61: 367907 | AP61: 207171 | AQ61: 24450 | AR61: 188082 | AS61: 90616 | AT61: 100185 | AU61: 211326 | AV61: 25632 | AW61: 117678 | AX61: 27915 | AY61: 143165 | AZ61: 412618 | BA61: 76423 | BB61: 18380 | BC61: 232394 | BD61: 166162 | BE61: 49490 | BF61: 111825 | BG61: 28186 | BI61: 1755134 | BJ61: 59885 | BK61: 17269 | BL61: =SUM(BL9:BL60) -> 1677980
I62: =SUM(I61:BG61) -> 6774961
C63: 2011 | H63: 2011 | J63: Different state of residence 1 year ago (cont.) | O63: Different state of residence 1 year ago (cont.) | T63: Different state of residence 1 year ago (cont.) | Y63: Different state of residence 1 year ago (cont.) | AD63: Different state of residence 1 year ago (cont.) | AI63: Different state of residence 1 year ago (cont.) | AN63: Different state of residence 1 year ago (cont.) | AS63: Different state of residence 1 year ago (cont.) | AX63: Different state of residence 1 year ago (cont.) | BC63: Different state of residence 1 year ago (cont.) | BI63: Abroad 1 year ago--
I64: 1 | J64: 2 | K64: 3 | L64: 4 | M64: 5 | N64: 6 | O64: 7 | P64: 8 | Q64: 9 | R64: 10 | S64: 11 | T64: 12 | U64: 13 | V64: 14 | W64: 15 | X64: 16 | Y64: 17 | Z64: 18 | AA64: 19 | AB64: 20 | AC64: 21 | AD64: 22 | AE64: 23 | AF64: 24 | AG64: 25 | AH64: 26 | AI64: 27 | AJ64: 28 | AK64: 29 | AL64: 30 | AM64: 31 | AN64: 32 | AO64: 33 | AP64: 34 | AQ64: 35 | AR64: 36 | AS64: 37 | AT64: 38 | AU64: 39 | AV64: 40 | AW64: 41 | AX64: 42 | AY64: 43 | AZ64: 44 | BA64: 45 | BB64: 46 | BC64: 47 | BD64: 48 | BE64: 49 | BF64: 50 | BG64: 51
I65: =CONCATENATE($C$63,I64) -> 20111 | J65: =CONCATENATE($C$63,J64) -> 20112 | K65: 20113 | L65: 20114 | M65: 20115 | N65: 20116 | O65: 20117 | P65: 20118 | Q65: 20119 | R65: 201110 | S65: 201111 | T65: 201112 | U65: 201113 | V65: 201114 | W65: 201115 | X65: 201116 | Y65: 201117 | Z65: 201118 | AA65: 201119 | AB65: 201120 | AC65: 201121 | AD65: 201122 | AE65: 201123 | AF65: 201124 | AG65: 201125 | AH65: 201126 | AI65: 201127 | AJ65: 201128 | AK65: 201129 | AL65: 201130 | AM65: 201131 | AN65: 201132 | AO65: 201133 | AP65: 201134 | AQ65: 201135 | AR65: 201136 | AS65: 201137 | AT65: 201138 | AU65: 201139 | AV65: 201140 | AW65: 201141 | AX65: 201142 | AY65: 201143 | AZ65: 201144 | BA65: 201145 | BB65: 201146 | BC65: 201147 | BD65: 201148 | BE65: 201149 | BF65: 201150 | BG65: 201151
C66: Current residence in -- | D66: Population 1 year and over | E66: 2011 | F66: Same house 1 year ago | G66: Same state of residence 1 year ago | I66: Alabama | J66: Alaska | K66: Arizona | L66: Arkansas | M66: California | N66: Colorado | O66: Connecticut | P66: Delaware | Q66: District of Columbia | R66: Florida | S66: Georgia | T66: Hawaii | U66: Idaho | V66: Illinois | W66: Indiana | X66: Iowa | Y66: Kansas | Z66: Kentucky | AA66: Louisiana | AB66: Maine | AC66: Maryland | AD66: Massachusetts | AE66: Michigan | AF66: Minnesota | AG66: Mississippi | AH66: Missouri | AI66: Montana | AJ66: Nebraska | AK66: Nevada | AL66: New Hampshire | AM66: New Jersey | AN66: New Mexico | AO66: New York | AP66: North Carolina | AQ66: North Dakota | AR66: Ohio | AS66: Oklahoma | AT66: Oregon | AU66: Pennsylvania | AV66: Rhode Island | AW66: South Carolina | AX66: South Dakota | AY66: Tennessee | AZ66: Texas | BA66: Utah | BB66: Vermont | BC66: Virginia | BD66: Washington | BE66: West Virginia | BF66: Wisconsin | BG66: Wyoming | BI66: Total | BJ66: Puerto Rico | BK66: U.S. Island Area | BL66: Foreign Country
B67: 2011 | C67: TOTAL USA - sem PR | D67: =SUM(D68:D118) -> 307900319 | E67: =SUM(E68:E118) -> 307900319 | F67: =SUM(F68:F118) -> 261087925 | G67: 37998701 | H67: 6987416 | I67: 106806 | J67: 88850 | K67: 211816 | L67: 77226 | M67: 562343 | N67: 160623 | O67: 91295 | P67: 26631 | Q67: 49732 | R67: 437202 | S67: 248892 | T67: 61940 | U67: 57831 | V67: 269008 | W67: 143228 | X67: 74516 | Y67: 94180 | Z67: 99256 | AA67: 86593 | AB67: 33729 | AC67: 165041 | AD67: 145869 | AE67: 186505 | AF67: 103253 | AG67: 68597 | AH67: 138404 | AI67: 31204 | AJ67: 52809 | AK67: 115943 | AL67: 43277 | AM67: 216369 | AN67: 61431 | AO67: 377800 | AP67: 225147 | AQ67: 26563 | AR67: 206049 | AS67: 81009 | AT67: 109795 | AU67: 215127 | AV67: 31065 | AW67: 121426 | AX67: 29383 | AY67: 154243 | AZ67: 404839 | BA67: 73211 | BB67: 18172 | BC67: 229227 | BD67: 190644 | BE67: 45956 | BF67: 105370 | BG67: 31991 | BI67: 1826277 | BJ67: 76218 | BK67: 13131 | BL67: 1736928 | BM67: 6987416
A68: 1 | B68: =CONCATENATE($B$67,A68) -> 20111 | C68: Alabama | D68: 4745278 | E68: =+F68+G68+H68+BI68 -> 4745278 | F68: 4024442 | G68: 588293 | H68: =SUM(I68:BG68) -> 117726 | I68: N/A | J68: 1771 | K68: 1677 | L68: 1642 | M68: 3389 | N68: 348 | O68: 2921 | P68: 232 | Q68: 399 | R68: 20063 | S68: 19346 | T68: 1259 | U68: 137 | V68: 6991 | W68: 1434 | X68: 30 | Y68: 842 | Z68: 2686 | AA68: 2413 | AB68: 626 | AC68: 1606 | AD68: 112 | AE68: 2797 | AF68: 327 | AG68: 3945 | AH68: 1086 | AI68: 317 | AJ68: 770 | AK68: 257 | AL68: 64 | AM68: 1996 | AN68: 119 | AO68: 1108 | AP68: 2697 | AQ68: 284 | AR68: 2596 | AS68: 973 | AT68: 169 | AU68: 1075 | AV68: 0 | AW68: 2036 | AX68: 90 | AY68: 8710 | AZ68: 7973 | BA68: 300 | BB68: 66 | BC68: 4935 | BD68: 2621 | BE68: 65 | BF68: 417 | BG68: 9 | BI68: 14817 | BJ68: 569 | BK68: 0 | BL68: 14248 | BM68: =SUM(I68:BG68) -> 117726 | BN68: =SUM(BM68:BM119) -> 7010065
A69: 2 | B69: =CONCATENATE($B$67,A69) -> 20112 | C69: Alaska | D69: 711962 | E69: =+F69+G69+H69+BI69 -> 711962 | F69: 571857 | G69: 100280 | H69: =SUM(I69:BG69) -> 35084 | I69: 93 | J69: N/A | K69: 2467 | L69: 190 | M69: 3098 | N69: 1583 | O69: 138 | P69: 11 | Q69: 140 | R69: 1188 | S69: 556 | T69: 1366 | U69: 475 | V69: 985 | W69: 181 | X69: 319 | Y69: 750 | Z69: 237 | AA69: 1077 | AB69: 0 | AC69: 216 | AD69: 141 | AE69: 771 | AF69: 593 | AG69: 554 | AH69: 921 | AI69: 248 | AJ69: 5 | AK69: 532 | AL69: 520 | AM69: 128 | AN69: 226 | AO69: 940 | AP69: 470 | AQ69: 0 | AR69: 319 | AS69: 616 | AT69: 2161 | AU69: 378 | AV69: 0 | AW69: 186 | AX69: 301 | AY69: 388 | AZ69: 2492 | BA69: 662 | BB69: 68 | BC69: 1488 | BD69: 4548 | BE69: 89 | BF69: 23 | BG69: 246 | BI69: 4741 | BJ69: 1044 | BK69: 0 | BL69: 3697 | BM69: =SUM(I69:BG69) -> 35084
A70: 3 | B70: 20113 | C70: Arizona | D70: 6402301 | E70: 6402301 | F70: 5107496 | G70: 1028366 | H70: 222877 | I70: 833 | J70: 5001 | K70: N/A | L70: 1066 | M70: 49635 | N70: 10189 | O70: 1875 | P70: 0 | Q70: 389 | R70: 3732 | S70: 2206 | T70: 2199 | U70: 2190 | V70: 10035 | W70: 5855 | X70: 4526 | Y70: 1708 | Z70: 2134 | AA70: 844 | AB70: 0 | AC70: 1918 | AD70: 743 | AE70: 9396 | AF70: 3297 | AG70: 1226 | AH70: 3872 | AI70: 2431 | AJ70: 1393 | AK70: 8756 | AL70: 228 | AM70: 3379 | AN70: 4610 | AO70: 3880 | AP70: 2548 | AQ70: 1159 | AR70: 4682 | AS70: 3219 | AT70: 4613 | AU70: 3436 | AV70: 72 | AW70: 1774 | AX70: 1657 | AY70: 1680 | AZ70: 12688 | BA70: 10577 | BB70: 0 | BC70: 2233 | BD70: 13940 | BE70: 70 | BF70: 6473 | BG70: 2510 | BI70: 43562 | BJ70: 871 | BK70: 122 | BL70: 42569 | BM70: 222877
A71: 4 | B71: 20114 | C71: Arkansas | D71: 2906632 | E71: 2906632 | F71: 2421746 | G71: 405831 | H71: 69845 | I71: 691 | J71: 560 | K71: 439 | L71: N/A | M71: 4077 | N71: 746 | O71: 519 | P71: 79 | Q71: 0 | R71: 3067 | S71: 1446 | T71: 13 | U71: 179 | V71: 3684 | W71: 1362 | X71: 851 | Y71: 2008 | Z71: 213 | AA71: 2120 | AB71: 30 | AC71: 133 | AD71: 781 | AE71: 1881 | AF71: 232 | AG71: 1731 | AH71: 7314 | AI71: 713 | AJ71: 332 | AK71: 641 | AL71: 52 | AM71: 341 | AN71: 775 | AO71: 674 | AP71: 1664 | AQ71: 214 | AR71: 174 | AS71: 3761 | AT71: 632 | AU71: 567 | AV71: 0 | AW71: 235 | AX71: 0 | AY71: 6462 | AZ71: 14767 | BA71: 0 | BB71: 0 | BC71: 1245 | BD71: 1477 | BE71: 24 | BF71: 687 | BG71: 252 | BI71: 9210 | BJ71: 529 | BK71: 46 | BL71: 8635 | BM71: 69845
A72: 5 | B72: 20115 | C72: California | D72: 37222678 | E72: 37222678 | F72: 31213310 | G72: 5271168 | H72: 468428 | I72: 2087 | J72: 7358 | K72: 35650 | L72: 2648 | M72: N/A | N72: 21245 | O72: 3073 | P72: 1302 | Q72: 3240 | R72: 22094 | S72: 13303 | T72: 9864 | U72: 4796 | V72: 20834 | W72: 4673 | X72: 3324 | Y72: 2810 | Z72: 1201 | AA72: 3600 | AB72: 1658 | AC72: 7793 | AD72: 10244 | AE72: 12069 | AF72: 5687 | AG72: 2092 | AH72: 7677 | AI72: 2599 | AJ72: 1955 | AK72: 36159 | AL72: 1222 | AM72: 8053 | AN72: 5904 | AO72: 25629 | AP72: 8708 | AQ72: 1392 | AR72: 10474 | AS72: 5113 | AT72: 18165 | AU72: 8550 | AV72: 1103 | AW72: 5758 | AX72: 1004 | AY72: 8761 | AZ72: 37087 | BA72: 8944 | BB72: 745 | BC72: 15753 | BD72: 36481 | BE72: 832 | BF72: 5668 | BG72: 2047 | BI72: 269772 | BJ72: 1344 | BK72: 2817 | BL72: 265611 | BM72: 468428
A73: 6 | B73: 20116 | C73: Colorado | D73: 5048443 | E73: 5048443 | F73: 4048042 | G73: 763233 | H73: 202124 | I73: 2340 | J73: 3191 | K73: 12338 | L73: 1615 | M73: 23234 | N73: N/A | O73: 1567 | P73: 501 | Q73: 298 | R73: 8075 | S73: 3250 | T73: 1852 | U73: 1578 | V73: 6027 | W73: 2116 | X73: 3510 | Y73: 3718 | Z73: 1361 | AA73: 908 | AB73: 1358 | AC73: 3303 | AD73: 2157 | AE73: 3225 | AF73: 3055 | AG73: 879 | AH73: 4552 | AI73: 4079 | AJ73: 4582 | AK73: 4061 | AL73: 489 | AM73: 2863 | AN73: 8797 | AO73: 3998 | AP73: 4756 | AQ73: 2249 | AR73: 5527 | AS73: 3824 | AT73: 5543 | AU73: 3348 | AV73: 435 | AW73: 718 | AX73: 1340 | AY73: 3193 | AZ73: 22390 | BA73: 3856 | BB73: 914 | BC73: 6281 | BD73: 5524 | BE73: 412 | BF73: 3995 | BG73: 2942 | BI73: 35044 | BJ73: 476 | BK73: 57 | BL73: 34511 | BM73: 202124
A74: 7 | B74: 20117 | C74: Connecticut | D74: 3548667 | E74: 3548667 | F74: 3139496 | G74: 316883 | H74: 71502 | I74: 101 | J74: 180 | K74: 1387 | L74: 84 | M74: 3699 | N74: 1502 | O74: N/A | P74: 62 | Q74: 607 | R74: 4771 | S74: 2000 | T74: 587 | U74: 133 | V74: 1843 | W74: 168 | X74: 67 | Y74: 16 | Z74: 0 | AA74: 315 | AB74: 259 | AC74: 1267 | AD74: 8691 | AE74: 692 | AF74: 76 | AG74: 69 | AH74: 365 | AI74: 206 | AJ74: 62 | AK74: 160 | AL74: 1221 | AM74: 3809 | AN74: 265 | AO74: 20015 | AP74: 1029 | AQ74: 0 | AR74: 1383 | AS74: 217 | AT74: 117 | AU74: 3668 | AV74: 1488 | AW74: 997 | AX74: 0 | AY74: 123 | AZ74: 1214 | BA74: 398 | BB74: 608 | BC74: 2555 | BD74: 2255 | BE74: 46 | BF74: 660 | BG74: 65 | BI74: 20786 | BJ74: 2105 | BK74: 0 | BL74: 18681 | BM74: 71502
A75: 8 | B75: 20118 | C75: Delaware | D75: 897187 | E75: 897187 | F75: 775414 | G75: 83156 | H75: 33912 | I75: 81 | J75: 329 | K75: 541 | L75: 0 | M75: 699 | N75: 169 | O75: 66 | P75: N/A | Q75: 154 | R75: 810 | S75: 639 | T75: 201 | U75: 441 | V75: 34 | W75: 210 | X75: 0 | Y75: 7 | Z75: 305 | AA75: 0 | AB75: 0 | AC75: 4238 | AD75: 806 | AE75: 43 | AF75: 201 | AG75: 0 | AH75: 713 | AI75: 0 | AJ75: 12 | AK75: 0 | AL75: 0 | AM75: 6297 | AN75: 0 | AO75: 3141 | AP75: 388 | AQ75: 0 | AR75: 664 | AS75: 27 | AT75: 0 | AU75: 8571 | AV75: 131 | AW75: 153 | AX75: 0 | AY75: 221 | AZ75: 883 | BA75: 475 | BB75: 0 | BC75: 1064 | BD75: 482 | BE75: 198 | BF75: 55 | BG75: 463 | BI75: 4705 | BJ75: 1008 | BK75: 0 | BL75: 3697 | BM75: 33912
A76: 9 | B76: 20119 | C76: District of Columbia | D76: 611608 | E76: 611608 | F76: 489659 | G76: 66519 | H76: 48066 | I76: 13 | J76: 135 | K76: 43 | L76: 81 | M76: 3797 | N76: 452 | O76: 981 | P76: 128 | Q76: N/A | R76: 1254 | S76: 937 | T76: 372 | U76: 68 | V76: 1397 | W76: 128 | X76: 241 | Y76: 6 | Z76: 297 | AA76: 0 | AB76: 0 | AC76: 14129 | AD76: 2048 | AE76: 1108 | AF76: 409 | AG76: 83 | AH76: 112 | AI76: 38 | AJ76: 79 | AK76: 238 | AL76: 145 | AM76: 1035 | AN76: 0 | AO76: 2313 | AP76: 1716 | AQ76: 285 | AR76: 306 | AS76: 0 | AT76: 51 | AU76: 1589 | AV76: 50 | AW76: 357 | AX76: 104 | AY76: 421 | AZ76: 1083 | BA76: 75 | BB76: 445 | BC76: 7975 | BD76: 476 | BE76: 120 | BF76: 946 | BG76: 0 | BI76: 7364 | BJ76: 0 | BK76: 0 | BL76: 7364 | BM76: 48066
A77: 10 | B77: 201110 | C77: Florida | D77: 18863948 | E77: 18863948 | F77: 15742168 | G77: 2454255 | H77: 498597 | I77: 12635 | J77: 7405 | K77: 8451 | L77: 3025 | M77: 22420 | N77: 9383 | O77: 11704 | P77: 1264 | Q77: 891 | R77: N/A | S77: 38658 | T77: 3639 | U77: 312 | V77: 19152 | W77: 11472 | X77: 1846 | Y77: 2661 | Z77: 5441 | AA77: 6094 | AB77: 4689 | AC77: 15410 | AD77: 13701 | AE77: 19640 | AF77: 4663 | AG77: 5175 | AH77: 7114 | AI77: 559 | AJ77: 3857 | AK77: 3527 | AL77: 4324 | AM77: 25206 | AN77: 1376 | AO77: 59288 | AP77: 23983 | AQ77: 514 | AR77: 18191 | AS77: 2600 | AT77: 3315 | AU77: 20821 | AV77: 5002 | AW77: 11953 | AX77: 716 | AY77: 10451 | AZ77: 25532 | BA77: 2343 | BB77: 2019 | BC77: 16614 | BD77: 6339 | BE77: 4964 | BF77: 7412 | BG77: 846 | BI77: 168928 | BJ77: 21611 | BK77: 2643 | BL77: 144674 | BM77: 498597
A78: 11 | B78: 201111 | C78: Georgia | D78: 9699859 | E78: 9699859 | F78: 8095407 | G78: 1289450 | H78: 271077 | I78: 18799 | J78: 1079 | K78: 4292 | L78: 2112 | M78: 14949 | N78: 2325 | O78: 709 | P78: 619 | Q78: 364 | R78: 42666 | S78: N/A | T78: 1006 | U78: 126 | V78: 6080 | W78: 2442 | X78: 950 | Y78: 4513 | Z78: 3686 | AA78: 6541 | AB78: 408 | AC78: 3708 | AD78: 4436 | AE78: 6992 | AF78: 1808 | AG78: 5380 | AH78: 2514 | AI78: 246 | AJ78: 4144 | AK78: 774 | AL78: 132 | AM78: 8371 | AN78: 791 | AO78: 14454 | AP78: 19138 | AQ78: 201 | AR78: 6863 | AS78: 1632 | AT78: 727 | AU78: 5791 | AV78: 337 | AW78: 16914 | AX78: 536 | AY78: 16898 | AZ78: 15760 | BA78: 793 | BB78: 361 | BC78: 9438 | BD78: 3701 | BE78: 1340 | BF78: 2727 | BG78: 504 | BI78: 43925 | BJ78: 1635 | BK78: 992 | BL78: 41298 | BM78: 271077
A79: 12 | B79: 201112 | C79: Hawaii | D79: 1357806 | E79: 1357806 | F79: 1160948 | G79: 122727 | H79: 57542 | I79: 1268 | J79: 844 | K79: 2900 | L79: 242 | M79: 10173 | N79: 950 | O79: 731 | P79: 784 | Q79: 222 | R79: 3160 | S79: 2519 | T79: N/A | U79: 112 | V79: 1884 | W79: 402 | X79: 478 | Y79: 125 | Z79: 18 | AA79: 179 | AB79: 106 | AC79: 341 | AD79: 92 | AE79: 1303 | AF79: 933 | AG79: 371 | AH79: 308 | AI79: 85 | AJ79: 91 | AK79: 1548 | AL79: 107 | AM79: 564 | AN79: 354 | AO79: 4246 | AP79: 2307 | AQ79: 32 | AR79: 970 | AS79: 685 | AT79: 2030 | AU79: 870 | AV79: 58 | AW79: 1681 | AX79: 0 | AY79: 636 | AZ79: 3007 | BA79: 1040 | BB79: 0 | BC79: 2523 | BD79: 3790 | BE79: 312 | BF79: 147 | BG79: 14 | BI79: 16589 | BJ79: 238 | BK79: 114 | BL79: 16237 | BM79: 57542
A80: 13 | B80: 201113 | C80: Idaho | D80: 1559637 | E80: 1559637 | F80: 1284530 | G80: 208434 | H80: 60336 | I80: 263 | J80: 4510 | K80: 3543 | L80: 224 | M80: 9021 | N80: 1813 | O80: 0 | P80: 0 | Q80: 0 | R80: 1733 | S80: 275 | T80: 254 | U80: N/A | V80: 390 | W80: 296 | X80: 318 | Y80: 479 | Z80: 120 | AA80: 51 | AB80: 0 | AC80: 0 | AD80: 396 | AE80: 615 | AF80: 566 | AG80: 62 | AH80: 384 | AI80: 1602 | AJ80: 439 | AK80: 3581 | AL80: 129 | AM80: 84 | AN80: 141 | AO80: 419 | AP80: 263 | AQ80: 1201 | AR80: 260 | AS80: 288 | AT80: 7170 | AU80: 343 | AV80: 0 | AW80: 55 | AX80: 842 | AY80: 296 | AZ80: 1303 | BA80: 6059 | BB80: 0 | BC80: 905 | BD80: 8991 | BE80: 0 | BF80: 165 | BG80: 487 | BI80: 6337 | BJ80: 249 | BK80: 34 | BL80: 6054 | BM80: 60336
A81: 14 | B81: 201114 | C81: Illinois | D81: 12718402 | E81: 12718402 | F81: 11076528 | G81: 1353853 | H81: 216204 | I81: 2823 | J81: 4119 | K81: 7657 | L81: 3185 | M81: 13930 | N81: 3271 | O81: 1819 | P81: 277 | Q81: 1440 | R81: 17548 | S81: 6042 | T81: 1269 | U81: 393 | V81: N/A | W81: 23491 | X81: 8420 | Y81: 2533 | Z81: 5569 | AA81: 1315 | AB81: 693 | AC81: 2565 | AD81: 3507 | AE81: 10274 | AF81: 4496 | AG81: 1521 | AH81: 13889 | AI81: 304 | AJ81: 827 | AK81: 2454 | AL81: 590 | AM81: 3009 | AN81: 1573 | AO81: 6412 | AP81: 4057 | AQ81: 105 | AR81: 8384 | AS81: 1002 | AT81: 792 | AU81: 3012 | AV81: 278 | AW81: 1582 | AX81: 1318 | AY81: 3223 | AZ81: 11011 | BA81: 951 | BB81: 49 | BC81: 5233 | BD81: 3075 | BE81: 352 | BF81: 14507 | BG81: 58 | BI81: 71817 | BJ81: 2387 | BK81: 76 | BL81: 69354 | BM81: 216204
A82: 15 | B82: 201115 | C82: Indiana | D82: 6437155 | E82: 6437155 | F82: 5478683 | G82: 809158 | H82: 127874 | I82: 1562 | J82: 371 | K82: 3975 | L82: 2016 | M82: 7649 | N82: 1930 | O82: 1227 | P82: 79 | Q82: 0 | R82: 8595 | S82: 2543 | T82: 1057 | U82: 1368 | V82: 23071 | W82: N/A | X82: 916 | Y82: 1321 | Z82: 10177 | AA82: 2241 | AB82: 275 | AC82: 480 | AD82: 952 | AE82: 7896 | AF82: 1168 | AG82: 469 | AH82: 1824 | AI82: 34 | AJ82: 622 | AK82: 511 | AL82: 90 | AM82: 651 | AN82: 504 | AO82: 2518 | AP82: 3038 | AQ82: 70 | AR82: 11109 | AS82: 844 | AT82: 505 | AU82: 3998 | AV82: 49 | AW82: 3306 | AX82: 235 | AY82: 3879 | AZ82: 6326 | BA82: 123 | BB82: 530 | BC82: 1486 | BD82: 1028 | BE82: 216 | BF82: 2923 | BG82: 117 | BI82: 21440 | BJ82: 132 | BK82: 121 | BL82: 21187 | BM82: 127874
A83: 16 | B83: 201116 | C83: Iowa | D83: 3027718 | E83: 3027718 | F83: 2573313 | G83: 370554 | H83: 70405 | I83: 207 | J83: 967 | K83: 1411 | L83: 433 | M83: 3297 | N83: 2891 | O83: 424 | P83: 0 | Q83: 0 | R83: 707 | S83: 1938 | T83: 299 | U83: 161 | V83: 13725 | W83: 349 | X83: N/A | Y83: 1776 | Z83: 387 | AA83: 228 | AB83: 26 | AC83: 487 | AD83: 466 | AE83: 1687 | AF83: 5634 | AG83: 408 | AH83: 3649 | AI83: 370 | AJ83: 6490 | AK83: 2009 | AL83: 0 | AM83: 185 | AN83: 421 | AO83: 2361 | AP83: 1760 | AQ83: 604 | AR83: 993 | AS83: 532 | AT83: 811 | AU83: 388 | AV83: 65 | AW83: 172 | AX83: 2842 | AY83: 623 | AZ83: 2334 | BA83: 1482 | BB83: 38 | BC83: 720 | BD83: 856 | BE83: 115 | BF83: 2537 | BG83: 140 | BI83: 13446 | BJ83: 57 | BK83: 44 | BL83: 13345 | BM83: 70405
A84: 17 | B84: 201117 | C84: Kansas | D84: 2833584 | E84: 2833584 | F84: 2372033 | G84: 362782 | H84: 83640 | I84: 434 | J84: 108 | K84: 2028 | L84: 998 | M84: 4743 | N84: 5030 | O84: 412 | P84: 74 | Q84: 128 | R84: 1581 | S84: 1146 | T84: 287 | U84: 264 | V84: 2760 | W84: 863 | X84: 1715 | Y84: N/A | Z84: 1167 | AA84: 519 | AB84: 481 | AC84: 3180 | AD84: 28 | AE84: 1947 | AF84: 679 | AG84: 1517 | AH84: 22033 | AI84: 270 | AJ84: 1648 | AK84: 657 | AL84: 27 | AM84: 1189 | AN84: 769 | AO84: 780 | AP84: 1223 | AQ84: 379 | AR84: 1616 | AS84: 5022 | AT84: 285 | AU84: 1494 | AV84: 180 | AW84: 1102 | AX84: 104 | AY84: 1066 | AZ84: 6575 | BA84: 196 | BB84: 0 | BC84: 1986 | BD84: 772 | BE84: 0 | BF84: 893 | BG84: 1285 | BI84: 15129 | BJ84: 775 | BK84: 253 | BL84: 14101 | BM84: 83640
A85: 18 | B85: 201118 | C85: Kentucky | D85: 4316297 | E85: 4316297 | F85: 3686232 | G85: 505741 | H85: 110031 | I85: 925 | J85: 0 | K85: 1818 | L85: 1058 | M85: 2130 | N85: 221 | O85: 176 | P85: 0 | Q85: 201 | R85: 7400 | S85: 2725 | T85: 63 | U85: 36 | V85: 4273 | W85: 11071 | X85: 536 | Y85: 253 | Z85: N/A | AA85: 1399 | AB85: 71 | AC85: 2076 | AD85: 1019 | AE85: 3178 | AF85: 475 | AG85: 1248 | AH85: 2793 | AI85: 216 | AJ85: 471 | AK85: 1358 | AL85: 52 | AM85: 1289 | AN85: 553 | AO85: 2174 | AP85: 3916 | AQ85: 117 | AR85: 19617 | AS85: 1256 | AT85: 459 | AU85: 1490 | AV85: 640 | AW85: 1387 | AX85: 0 | AY85: 16852 | AZ85: 4661 | BA85: 140 | BB85: 151 | BC85: 5154 | BD85: 1121 | BE85: 1174 | BF85: 581 | BG85: 57 | BI85: 14293 | BJ85: 192 | BK85: 0 | BL85: 14101 | BM85: 110031
A86: 19 | B86: 201119 | C86: Louisiana | D86: 4518629 | E86: 4518629 | F86: 3865118 | G86: 538691 | H86: 99138 | I86: 3065 | J86: 288 | K86: 2010 | L86: 2774 | M86: 3957 | N86: 1202 | O86: 358 | P86: 0 | Q86: 195 | R86: 5193 | S86: 4425 | T86: 688 | U86: 230 | V86: 1189 | W86: 1549 | X86: 468 | Y86: 312 | Z86: 1520 | AA86: N/A | AB86: 120 | AC86: 1221 | AD86: 439 | AE86: 1163 | AF86: 698 | AG86: 10255 | AH86: 1375 | AI86: 278 | AJ86: 176 | AK86: 994 | AL86: 15 | AM86: 453 | AN86: 1028 | AO86: 1360 | AP86: 2134 | AQ86: 277 | AR86: 2641 | AS86: 4235 | AT86: 1531 | AU86: 455 | AV86: 268 | AW86: 1573 | AX86: 37 | AY86: 2495 | AZ86: 30292 | BA86: 179 | BB86: 87 | BC86: 2055 | BD86: 1075 | BE86: 110 | BF86: 339 | BG86: 357 | BI86: 15682 | BJ86: 393 | BK86: 32 | BL86: 15257 | BM86: 99138
A87: 20 | B87: 201120 | C87: Maine | D87: 1315833 | E87: 1315833 | F87: 1120364 | G87: 157102 | H87: 33818 | I87: 634 | J87: 37 | K87: 325 | L87: 38 | M87: 829 | N87: 290 | O87: 2481 | P87: 238 | Q87: 239 | R87: 4304 | S87: 507 | T87: 177 | U87: 0 | V87: 675 | W87: 164 | X87: 275 | Y87: 523 | Z87: 158 | AA87: 138 | AB87: N/A | AC87: 52 | AD87: 4439 | AE87: 702 | AF87: 296 | AG87: 0 | AH87: 325 | AI87: 10 | AJ87: 0 | AK87: 150 | AL87: 4302 | AM87: 694 | AN87: 144 | AO87: 2589 | AP87: 1439 | AQ87: 19 | AR87: 483 | AS87: 25 | AT87: 471 | AU87: 915 | AV87: 234 | AW87: 587 | AX87: 42 | AY87: 394 | AZ87: 1637 | BA87: 182 | BB87: 612 | BC87: 570 | BD87: 88 | BE87: 43 | BF87: 321 | BG87: 21 | BI87: 4549 | BJ87: 65 | BK87: 0 | BL87: 4484 | BM87: 33818
A88: 21 | B88: 201121 | C88: Maryland | D88: 5759087 | E88: 5759087 | F88: 5008452 | G88: 553895 | H88: 153979 | I88: 228 | J88: 671 | K88: 945 | L88: 423 | M88: 8595 | N88: 1796 | O88: 1608 | P88: 6652 | Q88: 18492 | R88: 7825 | S88: 7113 | T88: 1170 | U88: 389 | V88: 2392 | W88: 1318 | X88: 110 | Y88: 689 | Z88: 848 | AA88: 860 | AB88: 1526 | AC88: N/A | AD88: 3470 | AE88: 2077 | AF88: 810 | AG88: 1109 | AH88: 1469 | AI88: 73 | AJ88: 0 | AK88: 1105 | AL88: 232 | AM88: 9627 | AN88: 797 | AO88: 9222 | AP88: 6686 | AQ88: 0 | AR88: 3396 | AS88: 845 | AT88: 276 | AU88: 14158 | AV88: 197 | AW88: 2882 | AX88: 0 | AY88: 1942 | AZ88: 3619 | BA88: 223 | BB88: 40 | BC88: 22089 | BD88: 1525 | BE88: 2027 | BF88: 353 | BG88: 80 | BI88: 42761 | BJ88: 779 | BK88: 133 | BL88: 41849 | BM88: 153979
A89: 22 | B89: 201122 | C89: Massachusetts | D89: 6515057 | E89: 6515057 | F89: 5658768 | G89: 656441 | H89: 139830 | I89: 1201 | J89: 225 | K89: 1017 | L89: 167 | M89: 11556 | N89: 1388 | O89: 9445 | P89: 399 | Q89: 676 | R89: 11396 | S89: 3264 | T89: 733 | U89: 412 | V89: 2991 | W89: 640 | X89: 138 | Y89: 969 | Z89: 180 | AA89: 977 | AB89: 4006 | AC89: 2762 | AD89: N/A | AE89: 2629 | AF89: 862 | AG89: 356 | AH89: 1261 | AI89: 596 | AJ89: 637 | AK89: 163 | AL89: 12010 | AM89: 8332 | AN89: 199 | AO89: 19431 | AP89: 3964 | AQ89: 61 | AR89: 1757 | AS89: 90 | AT89: 178 | AU89: 6538 | AV89: 10182 | AW89: 1621 | AX89: 44 | AY89: 371 | AZ89: 5203 | BA89: 548 | BB89: 2246 | BC89: 2984 | BD89: 1673 | BE89: 911 | BF89: 441 | BG89: 0 | BI89: 60018 | BJ89: 4413 | BK89: 294 | BL89: 55311 | BM89: 139830
A90: 23 | B90: 201123 | C90: Michigan | D90: 9766574 | E90: 9766574 | F90: 8340767 | G90: 1242917 | H90: 139158 | I90: 3527 | J90: 3456 | K90: 3840 | L90: 2054 | M90: 7793 | N90: 3425 | O90: 1656 | P90: 0 | Q90: 256 | R90: 17712 | S90: 4254 | T90: 630 | U90: 882 | V90: 9897 | W90: 7668 | X90: 1709 | Y90: 1148 | Z90: 2578 | AA90: 955 | AB90: 599 | AC90: 1035 | AD90: 2861 | AE90: N/A | AF90: 2671 | AG90: 715 | AH90: 2509 | AI90: 84 | AJ90: 439 | AK90: 1215 | AL90: 73 | AM90: 1849 | AN90: 508 | AO90: 6087 | AP90: 3405 | AQ90: 159 | AR90: 11224 | AS90: 917 | AT90: 647 | AU90: 2864 | AV90: 385 | AW90: 2185 | AX90: 571 | AY90: 3106 | AZ90: 9935 | BA90: 642 | BB90: 0 | BC90: 2327 | BD90: 1430 | BE90: 417 | BF90: 4018 | BG90: 841 | BI90: 43732 | BJ90: 908 | BK90: 478 | BL90: 42346 | BM90: 139158
A91: 24 | B91: 201124 | C91: Minnesota | D91: 5277329 | E91: 5277329 | F91: 4505462 | G91: 646176 | H91: 101029 | I91: 123 | J91: 893 | K91: 2314 | L91: 951 | M91: 6638 | N91: 2662 | O91: 74 | P91: 86 | Q91: 367 | R91: 2820 | S91: 840 | T91: 901 | U91: 402 | V91: 8209 | W91: 786 | X91: 6175 | Y91: 606 | Z91: 755 | AA91: 573 | AB91: 321 | AC91: 424 | AD91: 970 | AE91: 5164 | AF91: N/A | AG91: 549 | AH91: 1345 | AI91: 1457 | AJ91: 1936 | AK91: 2682 | AL91: 21 | AM91: 631 | AN91: 540 | AO91: 2416 | AP91: 845 | AQ91: 7574 | AR91: 1961 | AS91: 546 | AT91: 1800 | AU91: 870 | AV91: 0 | AW91: 447 | AX91: 5305 | AY91: 874 | AZ91: 3062 | BA91: 919 | BB91: 177 | BC91: 1034 | BD91: 1413 | BE91: 92 | BF91: 19255 | BG91: 224 | BI91: 24662 | BJ91: 54 | BK91: 35 | BL91: 24573 | BM91: 101029
A92: 25 | B92: 201125 | C92: Mississippi | D92: 2943021 | E92: 2943021 | F92: 2534036 | G92: 332934 | H92: 68511 | I92: 8922 | J92: 117 | K92: 556 | L92: 2315 | M92: 4723 | N92: 484 | O92: 54 | P92: 0 | Q92: 415 | R92: 6152 | S92: 3136 | T92: 369 | U92: 55 | V92: 2068 | W92: 611 | X92: 650 | Y92: 66 | Z92: 1626 | AA92: 7139 | AB92: 0 | AC92: 265 | AD92: 1445 | AE92: 1610 | AF92: 614 | AG92: N/A | AH92: 1581 | AI92: 0 | AJ92: 118 | AK92: 84 | AL92: 65 | AM92: 269 | AN92: 1075 | AO92: 364 | AP92: 483 | AQ92: 0 | AR92: 991 | AS92: 566 | AT92: 74 | AU92: 2568 | AV92: 41 | AW92: 398 | AX92: 6 | AY92: 7683 | AZ92: 5243 | BA92: 332 | BB92: 0 | BC92: 1453 | BD92: 286 | BE92: 303 | BF92: 1136 | BG92: 0 | BI92: 7540 | BJ92: 318 | BK92: 87 | BL92: 7135 | BM92: 68511
A93: 26 | B93: 201126 | C93: Missouri | D93: 5937896 | E93: 5937896 | F93: 4963040 | G93: 801046 | H93: 149439 | I93: 1395 | J93: 2043 | K93: 2356 | L93: 6168 | M93: 8386 | N93: 3144 | O93: 1516 | P93: 0 | Q93: 215 | R93: 4513 | S93: 2964 | T93: 871 | U93: 560 | V93: 20161 | W93: 4404 | X93: 4811 | Y93: 20884 | Z93: 1993 | AA93: 1728 | AB93: 291 | AC93: 716 | AD93: 463 | AE93: 2830 | AF93: 2026 | AG93: 1641 | AH93: N/A | AI93: 845 | AJ93: 4860 | AK93: 1544 | AL93: 769 | AM93: 1114 | AN93: 1016 | AO93: 2904 | AP93: 3669 | AQ93: 977 | AR93: 3240 | AS93: 6073 | AT93: 777 | AU93: 1810 | AV93: 359 | AW93: 267 | AX93: 361 | AY93: 2676 | AZ93: 10293 | BA93: 1697 | BB93: 88 | BC93: 2684 | BD93: 2518 | BE93: 196 | BF93: 1503 | BG93: 1120 | BI93: 24371 | BJ93: 709 | BK93: 222 | BL93: 23440 | BM93: 149439
A94: 27 | B94: 201127 | C94: Montana | D94: 987076 | E94: 987076 | F94: 828254 | G94: 122210 | H94: 33553 | I94: 449 | J94: 1118 | K94: 1971 | L94: 49 | M94: 3033 | N94: 2856 | O94: 58 | P94: 365 | Q94: 0 | R94: 291 | S94: 231 | T94: 32 | U94: 1543 | V94: 765 | W94: 646 | X94: 417 | Y94: 845 | Z94: 0 | AA94: 0 | AB94: 71 | AC94: 57 | AD94: 10 | AE94: 353 | AF94: 969 | AG94: 0 | AH94: 158 | AI94: N/A | AJ94: 384 | AK94: 688 | AL94: 0 | AM94: 889 | AN94: 264 | AO94: 422 | AP94: 1173 | AQ94: 360 | AR94: 321 | AS94: 96 | AT94: 1959 | AU94: 840 | AV94: 0 | AW94: 77 | AX94: 227 | AY94: 266 | AZ94: 1329 | BA94: 1232 | BB94: 53 | BC94: 278 | BD94: 3835 | BE94: 14 | BF94: 146 | BG94: 2413 | BI94: 3059 | BJ94: 353 | BK94: 0 | BL94: 2706 | BM94: 33553
A95: 28 | B95: 201128 | C95: Nebraska | D95: 1817126 | E95: 1817126 | F95: 1505191 | G95: 253269 | H95: 52070 | I95: 169 | J95: 721 | K95: 1646 | L95: 161 | M95: 5124 | N95: 3245 | O95: 381 | P95: 0 | Q95: 29 | R95: 1105 | S95: 434 | T95: 275 | U95: 506 | V95: 1415 | W95: 615 | X95: 9575 | Y95: 3040 | Z95: 352 | AA95: 222 | AB95: 122 | AC95: 318 | AD95: 0 | AE95: 683 | AF95: 1455 | AG95: 424 | AH95: 1848 | AI95: 64 | AJ95: N/A | AK95: 240 | AL95: 0 | AM95: 119 | AN95: 242 | AO95: 544 | AP95: 829 | AQ95: 292 | AR95: 268 | AS95: 1255 | AT95: 1556 | AU95: 252 | AV95: 0 | AW95: 243 | AX95: 2999 | AY95: 226 | AZ95: 5343 | BA95: 734 | BB95: 0 | BC95: 615 | BD95: 835 | BE95: 24 | BF95: 560 | BG95: 965 | BI95: 6596 | BJ95: 0 | BK95: 11 | BL95: 6585 | BM95: 52070
A96: 29 | B96: 201129 | C96: Nevada | D96: 2688336 | E96: 2688336 | F96: 2084668 | G96: 480317 | H96: 110345 | I96: 280 | J96: 597 | K96: 10142 | L96: 310 | M96: 40114 | N96: 2714 | O96: 189 | P96: 184 | Q96: 983 | R96: 2923 | S96: 1731 | T96: 4093 | U96: 3929 | V96: 1668 | W96: 855 | X96: 114 | Y96: 602 | Z96: 628 | AA96: 78 | AB96: 49 | AC96: 931 | AD96: 256 | AE96: 1663 | AF96: 1055 | AG96: 203 | AH96: 335 | AI96: 1137 | AJ96: 32 | AK96: N/A | AL96: 0 | AM96: 2118 | AN96: 2136 | AO96: 1516 | AP96: 1333 | AQ96: 0 | AR96: 1354 | AS96: 258 | AT96: 1691 | AU96: 570 | AV96: 86 | AW96: 165 | AX96: 588 | AY96: 96 | AZ96: 7249 | BA96: 3365 | BB96: 0 | BC96: 1740 | BD96: 4680 | BE96: 0 | BF96: 2672 | BG96: 933 | BI96: 13006 | BJ96: 153 | BK96: 127 | BL96: 12726 | BM96: 110345
A97: 30 | B97: 201130 | C97: New Hampshire | D97: 1305678 | E97: 1305678 | F97: 1141236 | G97: 122129 | H97: 37000 | I97: 193 | J97: 0 | K97: 246 | L97: 22 | M97: 547 | N97: 403 | O97: 1617 | P97: 20 | Q97: 68 | R97: 1970 | S97: 535 | T97: 0 | U97: 0 | V97: 478 | W97: 470 | X97: 47 | Y97: 0 | Z97: 0 | AA97: 0 | AB97: 3080 | AC97: 222 | AD97: 15526 | AE97: 155 | AF97: 104 | AG97: 160 | AH97: 153 | AI97: 230 | AJ97: 33 | AK97: 186 | AL97: N/A | AM97: 294 | AN97: 186 | AO97: 1471 | AP97: 1297 | AQ97: 47 | AR97: 248 | AS97: 0 | AT97: 198 | AU97: 1015 | AV97: 608 | AW97: 588 | AX97: 86 | AY97: 126 | AZ97: 605 | BA97: 158 | BB97: 2138 | BC97: 880 | BD97: 428 | BE97: 0 | BF97: 0 | BG97: 162 | BI97: 5313 | BJ97: 0 | BK97: 0 | BL97: 5313 | BM97: 37000
A98: 31 | B98: 201131 | C98: New Jersey | D98: 8719952 | E98: 8719952 | F98: 7825661 | G98: 693380 | H98: 140194 | I98: 189 | J98: 1198 | K98: 3784 | L98: 57 | M98: 5986 | N98: 2203 | O98: 1924 | P98: 2100 | Q98: 781 | R98: 12907 | S98: 4268 | T98: 264 | U98: 256 | V98: 3690 | W98: 718 | X98: 332 | Y98: 317 | Z98: 102 | AA98: 871 | AB98: 624 | AC98: 5335 | AD98: 4675 | AE98: 1889 | AF98: 1261 | AG98: 510 | AH98: 583 | AI98: 49 | AJ98: 312 | AK98: 899 | AL98: 499 | AM98: N/A | AN98: 355 | AO98: 40815 | AP98: 2482 | AQ98: 61 | AR98: 1121 | AS98: 773 | AT98: 360 | AU98: 19733 | AV98: 463 | AW98: 1586 | AX98: 0 | AY98: 1412 | AZ98: 3801 | BA98: 256 | BB98: 0 | BC98: 4458 | BD98: 2454 | BE98: 1252 | BF98: 214 | BG98: 15 | BI98: 60717 | BJ98: 4312 | BK98: 73 | BL98: 56332 | BM98: 140194
A99: 32 | B99: 201132 | C99: New Mexico | D99: 2055293 | E99: 2055293 | F99: 1753413 | G99: 228218 | H99: 62130 | I99: 410 | J99: 416 | K99: 7444 | L99: 682 | M99: 7066 | N99: 5525 | O99: 0 | P99: 0 | Q99: 212 | R99: 2806 | S99: 676 | T99: 81 | U99: 355 | V99: 466 | W99: 2030 | X99: 0 | Y99: 1333 | Z99: 87 | AA99: 184 | AB99: 510 | AC99: 2277 | AD99: 252 | AE99: 908 | AF99: 438 | AG99: 556 | AH99: 1183 | AI99: 544 | AJ99: 353 | AK99: 2099 | AL99: 114 | AM99: 245 | AN99: N/A | AO99: 1445 | AP99: 522 | AQ99: 264 | AR99: 1742 | AS99: 234 | AT99: 916 | AU99: 492 | AV99: 0 | AW99: 145 | AX99: 240 | AY99: 899 | AZ99: 13633 | BA99: 303 | BB99: 71 | BC99: 425 | BD99: 924 | BE99: 0 | BF99: 340 | BG99: 283 | BI99: 11532 | BJ99: 99 | BK99: 0 | BL99: 11433 | BM99: 62130
A100: 33 | B100: 201133 | C100: New York | D100: 19248685 | E100: 19248685 | F100: 17055260 | G100: 1756105 | H100: 282209 | I100: 1812 | J100: 6124 | K100: 2821 | L100: 1041 | M100: 25761 | N100: 3724 | O100: 15123 | P100: 1124 | Q100: 3702 | R100: 29344 | S100: 10584 | T100: 1002 | U100: 434 | V100: 6914 | W100: 2198 | X100: 928 | Y100: 838 | Z100: 2414 | AA100: 1495 | AB100: 2915 | AC100: 5037 | AD100: 14646 | AE100: 3936 | AF100: 1824 | AG100: 401 | AH100: 1417 | AI100: 391 | AJ100: 579 | AK100: 1785 | AL100: 2972 | AM100: 41450 | AN100: 461 | AO100: N/A | AP100: 9336 | AQ100: 374 | AR100: 5191 | AS100: 1425 | AT100: 2189 | AU100: 26596 | AV100: 1393 | AW100: 6947 | AX100: 112 | AY100: 2660 | AZ100: 9151 | BA100: 773 | BB100: 3882 | BC100: 10800 | BD100: 2986 | BE100: 631 | BF100: 1878 | BG100: 688 | BI100: 155111 | BJ100: 10582 | BK100: 254 | BL100: 144275 | BM100: 282209
A101: 34 | B101: 201134 | C101: North Carolina | D101: 9539412 | E101: 9539412 | F101: 8070238 | G101: 1160510 | H101: 265291 | I101: 5420 | J101: 3991 | K101: 4286 | L101: 327 | M101: 15373 | N101: 3919 | O101: 1975 | P101: 954 | Q101: 1135 | R101: 28044 | S101: 16192 | T101: 1806 | U101: 675 | V101: 5971 | W101: 3228 | X101: 654 | Y101: 4995 | Z101: 1637 | AA101: 2936 | AB101: 824 | AC101: 10485 | AD101: 9053 | AE101: 7530 | AF101: 1294 | AG101: 1273 | AH101: 2638 | AI101: 563 | AJ101: 1056 | AK101: 1048 | AL101: 2078 | AM101: 10374 | AN101: 1737 | AO101: 18321 | AP101: N/A | AQ101: 189 | AR101: 10187 | AS101: 1390 | AT101: 1175 | AU101: 9450 | AV101: 444 | AW101: 20427 | AX101: 565 | AY101: 6057 | AZ101: 6621 | BA101: 961 | BB101: 212 | BC101: 27302 | BD101: 3295 | BE101: 2780 | BF101: 2291 | BG101: 153 | BI101: 43373 | BJ101: 844 | BK101: 582 | BL101: 41947 | BM101: 265291
A102: 35 | B102: 201135 | C102: North Dakota | D102: 675161 | E102: 675161 | F102: 559906 | G102: 79837 | H102: 32510 | I102: 97 | J102: 393 | K102: 1313 | L102: 249 | M102: 1356 | N102: 1229 | O102: 0 | P102: 84 | Q102: 0 | R102: 459 | S102: 364 | T102: 138 | U102: 1209 | V102: 571 | W102: 130 | X102: 208 | Y102: 75 | Z102: 0 | AA102: 422 | AB102: 50 | AC102: 10 | AD102: 369 | AE102: 328 | AF102: 12244 | AG102: 80 | AH102: 330 | AI102: 1227 | AJ102: 218 | AK102: 845 | AL102: 0 | AM102: 183 | AN102: 99 | AO102: 264 | AP102: 900 | AQ102: N/A | AR102: 286 | AS102: 59 | AT102: 264 | AU102: 652 | AV102: 0 | AW102: 1 | AX102: 1293 | AY102: 113 | AZ102: 1862 | BA102: 429 | BB102: 0 | BC102: 166 | BD102: 404 | BE102: 0 | BF102: 1398 | BG102: 139 | BI102: 2908 | BJ102: 76 | BK102: 0 | BL102: 2832 | BM102: 32510
A103: 36 | B103: 201136 | C103: Ohio | D103: 11418944 | E103: 11418944 | F103: 9764366 | G103: 1425709 | H103: 191778 | I103: 1567 | J103: 1637 | K103: 6763 | L103: 1952 | M103: 9032 | N103: 2690 | O103: 1189 | P103: 263 | Q103: 587 | R103: 16492 | S103: 4290 | T103: 1044 | U103: 312 | V103: 7027 | W103: 11588 | X103: 1146 | Y103: 657 | Z103: 12744 | AA103: 1872 | AB103: 0 | AC103: 4982 | AD103: 2101 | AE103: 14330 | AF103: 1788 | AG103: 691 | AH103: 2003 | AI103: 101 | AJ103: 1176 | AK103: 1851 | AL103: 1992 | AM103: 3936 | AN103: 255 | AO103: 8784 | AP103: 4572 | AQ103: 204 | AR103: N/A | AS103: 2333 | AT103: 1326 | AU103: 14292 | AV103: 369 | AW103: 3826 | AX103: 34 | AY103: 6468 | AZ103: 11987 | BA103: 691 | BB103: 68 | BC103: 5425 | BD103: 1979 | BE103: 7548 | BF103: 2534 | BG103: 1280 | BI103: 37091 | BJ103: 1607 | BK103: 458 | BL103: 35026 | BM103: 191778
A104: 37 | B104: 201137 | C104: Oklahoma | D104: 3742698 | E104: 3742698 | F104: 3089041 | G104: 528498 | H104: 108878 | I104: 591 | J104: 1137 | K104: 3770 | L104: 6894 | M104: 8233 | N104: 3273 | O104: 97 | P104: 66 | Q104: 191 | R104: 6056 | S104: 3514 | T104: 140 | U104: 21 | V104: 2179 | W104: 2113 | X104: 580 | Y104: 4626 | Z104: 1398 | AA104: 1934 | AB104: 271 | AC104: 432 | AD104: 160 | AE104: 1038 | AF104: 497 | AG104: 199 | AH104: 5781 | AI104: 803 | AJ104: 1979 | AK104: 705 | AL104: 0 | AM104: 391 | AN104: 403 | AO104: 1858 | AP104: 1322 | AQ104: 928 | AR104: 1608 | AS104: N/A | AT104: 917 | AU104: 1116 | AV104: 152 | AW104: 2015 | AX104: 600 | AY104: 1700 | AZ104: 31595 | BA104: 587 | BB104: 0 | BC104: 1013 | BD104: 1246 | BE104: 44 | BF104: 942 | BG104: 1763 | BI104: 16281 | BJ104: 105 | BK104: 47 | BL104: 16129 | BM104: 108878
A105: 38 | B105: 201138 | C105: Oregon | D105: 3828714 | E105: 3828714 | F105: 3128121 | G105: 549332 | H105: 127906 | I105: 758 | J105: 1935 | K105: 7911 | L105: 988 | M105: 34214 | N105: 2110 | O105: 949 | P105: 251 | Q105: 349 | R105: 3384 | S105: 1946 | T105: 2491 | U105: 6236 | V105: 1350 | W105: 1371 | X105: 659 | Y105: 1263 | Z105: 71 | AA105: 0 | AB105: 269 | AC105: 453 | AD105: 1423 | AE105: 1652 | AF105: 1413 | AG105: 7 | AH105: 1172 | AI105: 1079 | AJ105: 324 | AK105: 7222 | AL105: 427 | AM105: 1322 | AN105: 537 | AO105: 2056 | AP105: 1099 | AQ105: 313 | AR105: 949 | AS105: 2034 | AT105: N/A | AU105: 1407 | AV105: 0 | AW105: 370 | AX105: 417 | AY105: 673 | AZ105: 4498 | BA105: 3443 | BB105: 176 | BC105: 1179 | BD105: 21862 | BE105: 66 | BF105: 914 | BG105: 914 | BI105: 23355 | BJ105: 4 | BK105: 549 | BL105: 22802 | BM105: 127906
A106: 39 | B106: 201139 | C106: Pennsylvania | D106: 12610486 | E106: 12610486 | F106: 11099077 | G106: 1224564 | H106: 234291 | I106: 1332 | J106: 759 | K106: 2278 | L106: 582 | M106: 10672 | N106: 2491 | O106: 4150 | P106: 5177 | Q106: 1401 | R106: 19299 | S106: 4627 | T106: 495 | U106: 236 | V106: 3902 | W106: 4086 | X106: 1176 | Y106: 2323 | Z106: 4013 | AA106: 615 | AB106: 608 | AC106: 17751 | AD106: 6284 | AE106: 4406 | AF106: 853 | AG106: 1238 | AH106: 1761 | AI106: 338 | AJ106: 582 | AK106: 1057 | AL106: 1326 | AM106: 36133 | AN106: 325 | AO106: 29436 | AP106: 11254 | AQ106: 195 | AR106: 13075 | AS106: 283 | AT106: 1594 | AU106: N/A | AV106: 799 | AW106: 3438 | AX106: 142 | AY106: 3742 | AZ106: 7006 | BA106: 1246 | BB106: 446 | BC106: 8419 | BD106: 3688 | BE106: 4631 | BF106: 2426 | BG106: 195 | BI106: 52554 | BJ106: 2723 | BK106: 166 | BL106: 49665 | BM106: 234291
A107: 40 | B107: 201140 | C107: Rhode Island | D107: 1040022 | E107: 1040022 | F107: 903786 | G107: 101689 | H107: 26769 | I107: 0 | J107: 0 | K107: 214 | L107: 0 | M107: 1949 | N107: 301 | O107: 2613 | P107: 0 | Q107: 0 | R107: 2230 | S107: 476 | T107: 0 | U107: 107 | V107: 373 | W107: 41 | X107: 82 | Y107: 374 | Z107: 211 | AA107: 121 | AB107: 228 | AC107: 472 | AD107: 7715 | AE107: 178 | AF107: 27 | AG107: 0 | AH107: 109 | AI107: 0 | AJ107: 0 | AK107: 0 | AL107: 941 | AM107: 1224 | AN107: 93 | AO107: 2776 | AP107: 259 | AQ107: 0 | AR107: 60 | AS107: 0 | AT107: 57 | AU107: 1125 | AV107: N/A | AW107: 223 | AX107: 0 | AY107: 210 | AZ107: 207 | BA107: 181 | BB107: 621 | BC107: 485 | BD107: 262 | BE107: 199 | BF107: 2 | BG107: 23 | BI107: 7778 | BJ107: 293 | BK107: 249 | BL107: 7236 | BM107: 26769
A108: 41 | B108: 201141 | C108: South Carolina | D108: 4624180 | E108: 4624180 | F108: 3899705 | G108: 546666 | H108: 157644 | I108: 2999 | J108: 2421 | K108: 1971 | L108: 1333 | M108: 6592 | N108: 1000 | O108: 1752 | P108: 841 | Q108: 589 | R108: 15476 | S108: 16355 | T108: 712 | U108: 55 | V108: 2371 | W108: 3249 | X108: 1379 | Y108: 1885 | Z108: 2454 | AA108: 878 | AB108: 652 | AC108: 3807 | AD108: 730 | AE108: 4483 | AF108: 471 | AG108: 2163 | AH108: 1522 | AI108: 915 | AJ108: 204 | AK108: 1017 | AL108: 372 | AM108: 4241 | AN108: 598 | AO108: 11317 | AP108: 23102 | AQ108: 271 | AR108: 6327 | AS108: 1008 | AT108: 833 | AU108: 3523 | AV108: 453 | AW108: N/A | AX108: 62 | AY108: 3324 | AZ108: 8623 | BA108: 181 | BB108: 91 | BC108: 7879 | BD108: 2510 | BE108: 1680 | BF108: 341 | BG108: 632 | BI108: 20165 | BJ108: 2166 | BK108: 203 | BL108: 17796 | BM108: 157644
A109: 42 | B109: 201142 | C109: South Dakota | D109: 814175 | E109: 814175 | F109: 688436 | G109: 94655 | H109: 27506 | I109: 0 | J109: 554 | K109: 1422 | L109: 659 | M109: 1286 | N109: 1021 | O109: 0 | P109: 0 | Q109: 0 | R109: 101 | S109: 69 | T109: 0 | U109: 186 | V109: 267 | W109: 285 | X109: 4772 | Y109: 144 | Z109: 211 | AA109: 0 | AB109: 0 | AC109: 254 | AD109: 113 | AE109: 239 | AF109: 5342 | AG109: 129 | AH109: 354 | AI109: 232 | AJ109: 1695 | AK109: 110 | AL109: 0 | AM109: 441 | AN109: 513 | AO109: 6 | AP109: 166 | AQ109: 2060 | AR109: 84 | AS109: 40 | AT109: 15 | AU109: 57 | AV109: 7 | AW109: 529 | AX109: N/A | AY109: 0 | AZ109: 1156 | BA109: 560 | BB109: 0 | BC109: 79 | BD109: 557 | BE109: 0 | BF109: 481 | BG109: 1310 | BI109: 3578 | BJ109: 0 | BK109: 0 | BL109: 3578 | BM109: 27506
A110: 43 | B110: 201143 | C110: Tennessee | D110: 6333466 | E110: 6333466 | F110: 5342978 | G110: 794556 | H110: 170969 | I110: 9326 | J110: 531 | K110: 1346 | L110: 7393 | M110: 7130 | N110: 1372 | O110: 150 | P110: 155 | Q110: 307 | R110: 15491 | S110: 17507 | T110: 179 | U110: 0 | V110: 8593 | W110: 5645 | X110: 387 | Y110: 1805 | Z110: 13884 | AA110: 1901 | AB110: 9 | AC110: 1135 | AD110: 1690 | AE110: 5983 | AF110: 445 | AG110: 9172 | AH110: 3795 | AI110: 43 | AJ110: 631 | AK110: 883 | AL110: 132 | AM110: 1396 | AN110: 381 | AO110: 4921 | AP110: 9353 | AQ110: 50 | AR110: 5944 | AS110: 3166 | AT110: 726 | AU110: 3360 | AV110: 14 | AW110: 5531 | AX110: 181 | AY110: N/A | AZ110: 7009 | BA110: 200 | BB110: 38 | BC110: 6098 | BD110: 2852 | BE110: 1385 | BF110: 1213 | BG110: 131 | BI110: 24963 | BJ110: 1083 | BK110: 59 | BL110: 23821 | BM110: 170969
A111: 44 | B111: 201144 | C111: Texas | D111: 25327104 | E111: 25327104 | F111: 20984855 | G111: 3648260 | H111: 514726 | I111: 8747 | J111: 6670 | K111: 20073 | L111: 16461 | M111: 58992 | N111: 19126 | O111: 2927 | P111: 884 | Q111: 2276 | R111: 35777 | S111: 17401 | T111: 6106 | U111: 4379 | V111: 15064 | W111: 10265 | X111: 3236 | Y111: 12766 | Z111: 6616 | AA111: 25513 | AB111: 1357 | AC111: 9443 | AD111: 5035 | AE111: 15654 | AF111: 7691 | AG111: 6048 | AH111: 13473 | AI111: 537 | AJ111: 3837 | AK111: 7793 | AL111: 459 | AM111: 7578 | AN111: 15225 | AO111: 26155 | AP111: 14956 | AQ111: 809 | AR111: 12315 | AS111: 19302 | AT111: 3743 | AU111: 9107 | AV111: 1297 | AW111: 4075 | AX111: 1486 | AY111: 10788 | AZ111: N/A | BA111: 5234 | BB111: 349 | BC111: 13231 | BD111: 15325 | BE111: 663 | BF111: 5982 | BG111: 2500 | BI111: 179263 | BJ111: 5225 | BK111: 710 | BL111: 173328 | BM111: 514726
A112: 45 | B112: 201145 | C112: Utah | D112: 2769627 | E112: 2769627 | F112: 2295961 | G112: 373984 | H112: 85217 | I112: 486 | J112: 2151 | K112: 6585 | L112: 422 | M112: 18237 | N112: 3986 | O112: 562 | P112: 0 | Q112: 132 | R112: 1643 | S112: 1052 | T112: 1701 | U112: 7538 | V112: 1447 | W112: 545 | X112: 290 | Y112: 1146 | Z112: 611 | AA112: 494 | AB112: 0 | AC112: 342 | AD112: 959 | AE112: 1099 | AF112: 939 | AG112: 143 | AH112: 511 | AI112: 1241 | AJ112: 195 | AK112: 4315 | AL112: 34 | AM112: 506 | AN112: 1707 | AO112: 1937 | AP112: 1653 | AQ112: 2 | AR112: 2584 | AS112: 150 | AT112: 2037 | AU112: 1496 | AV112: 0 | AW112: 309 | AX112: 128 | AY112: 549 | AZ112: 4507 | BA112: N/A | BB112: 122 | BC112: 2413 | BD112: 4825 | BE112: 270 | BF112: 158 | BG112: 1058 | BI112: 14465 | BJ112: 0 | BK112: 0 | BL112: 14465 | BM112: 85217
A113: 46 | B113: 201146 | C113: Vermont | D113: 621354 | E113: 621354 | F113: 537304 | G113: 60719 | H113: 20463 | I113: 0 | J113: 580 | K113: 310 | L113: 0 | M113: 819 | N113: 529 | O113: 2105 | P113: 107 | Q113: 27 | R113: 366 | S113: 101 | T113: 143 | U113: 0 | V113: 386 | W113: 258 | X113: 0 | Y113: 7 | Z113: 627 | AA113: 41 | AB113: 322 | AC113: 361 | AD113: 2378 | AE113: 335 | AF113: 206 | AG113: 0 | AH113: 69 | AI113: 0 | AJ113: 0 | AK113: 15 | AL113: 2244 | AM113: 962 | AN113: 56 | AO113: 3723 | AP113: 250 | AQ113: 0 | AR113: 383 | AS113: 0 | AT113: 124 | AU113: 389 | AV113: 401 | AW113: 21 | AX113: 0 | AY113: 327 | AZ113: 185 | BA113: 182 | BB113: N/A | BC113: 740 | BD113: 156 | BE113: 53 | BF113: 137 | BG113: 38 | BI113: 2868 | BJ113: 19 | BK113: 0 | BL113: 2849 | BM113: 20463
A114: 47 | B114: 201147 | C114: Virginia | D114: 7996552 | E114: 7996552 | F114: 6789620 | G114: 889751 | H114: 257130 | I114: 4930 | J114: 3202 | K114: 4679 | L114: 645 | M114: 19371 | N114: 4908 | O114: 5376 | P114: 961 | Q114: 6854 | R114: 17773 | S114: 8715 | T114: 2917 | U114: 434 | V114: 4000 | W114: 2703 | X114: 1503 | Y114: 892 | Z114: 3630 | AA114: 2496 | AB114: 2855 | AC114: 22051 | AD114: 5386 | AE114: 7323 | AF114: 834 | AG114: 1682 | AH114: 2277 | AI114: 617 | AJ114: 256 | AK114: 1717 | AL114: 1344 | AM114: 7327 | AN114: 1014 | AO114: 12455 | AP114: 22753 | AQ114: 462 | AR114: 9570 | AS114: 853 | AT114: 3499 | AU114: 12009 | AV114: 1897 | AW114: 6612 | AX114: 908 | AY114: 7482 | AZ114: 11655 | BA114: 1426 | BB114: 173 | BC114: N/A | BD114: 4615 | BE114: 9041 | BF114: 858 | BG114: 190 | BI114: 60051 | BJ114: 1222 | BK114: 124 | BL114: 58705 | BM114: 257130
A115: 48 | B115: 201148 | C115: Washington | D115: 6748474 | E115: 6748474 | F115: 5565069 | G115: 919925 | H115: 208507 | I115: 1821 | J115: 5266 | K115: 12397 | L115: 756 | M115: 38421 | N115: 3938 | O115: 1026 | P115: 0 | Q115: 358 | R115: 6094 | S115: 8705 | T115: 5940 | U115: 10895 | V115: 2062 | W115: 2303 | X115: 1000 | Y115: 2820 | Z115: 1271 | AA115: 1016 | AB115: 1313 | AC115: 1899 | AD115: 1580 | AE115: 3720 | AF115: 1543 | AG115: 1110 | AH115: 3307 | AI115: 2125 | AJ115: 673 | AK115: 4925 | AL115: 824 | AM115: 2006 | AN115: 1569 | AO115: 4512 | AP115: 3870 | AQ115: 189 | AR115: 2686 | AS115: 765 | AT115: 29168 | AU115: 2296 | AV115: 463 | AW115: 1519 | AX115: 227 | AY115: 2342 | AZ115: 15491 | BA115: 4789 | BB115: 119 | BC115: 4233 | BD115: N/A | BE115: 157 | BF115: 1491 | BG115: 1507 | BI115: 54973 | BJ115: 1083 | BK115: 362 | BL115: 53528 | BM115: 208507
A116: 49 | B116: 201149 | C116: West Virginia | D116: 1836614 | E116: 1836614 | F116: 1609110 | G116: 172262 | H116: 50068 | I116: 221 | J116: 598 | K116: 50 | L116: 225 | M116: 1442 | N116: 124 | O116: 594 | P116: 89 | Q116: 300 | R116: 2949 | S116: 1296 | T116: 147 | U116: 120 | V116: 1331 | W116: 210 | X116: 0 | Y116: 0 | Z116: 515 | AA116: 326 | AB116: 45 | AC116: 7515 | AD116: 236 | AE116: 459 | AF116: 0 | AG116: 0 | AH116: 309 | AI116: 60 | AJ116: 78 | AK116: 293 | AL116: 160 | AM116: 1431 | AN116: 0 | AO116: 2017 | AP116: 3865 | AQ116: 0 | AR116: 8545 | AS116: 97 | AT116: 132 | AU116: 4205 | AV116: 284 | AW116: 1857 | AX116: 0 | AY116: 546 | AZ116: 1574 | BA116: 114 | BB116: 23 | BC116: 5561 | BD116: 83 | BE116: N/A | BF116: 42 | BG116: 0 | BI116: 5174 | BJ116: 680 | BK116: 557 | BL116: 3937 | BM116: 50068
A117: 50 | B117: 201150 | C117: Wisconsin | D117: 5647213 | E117: 5647213 | F117: 4846550 | G117: 675623 | H117: 109439 | I117: 708 | J117: 432 | K117: 4045 | L117: 335 | M117: 6637 | N117: 2592 | O117: 993 | P117: 219 | Q117: 123 | R117: 4338 | S117: 1745 | T117: 1108 | U117: 566 | V117: 25521 | W117: 4017 | X117: 3306 | Y117: 418 | Z117: 1040 | AA117: 850 | AB117: 12 | AC117: 147 | AD117: 733 | AE117: 5623 | AF117: 17927 | AG117: 983 | AH117: 2090 | AI117: 143 | AJ117: 483 | AK117: 663 | AL117: 480 | AM117: 378 | AN117: 714 | AO117: 2213 | AP117: 2120 | AQ117: 1383 | AR117: 1358 | AS117: 118 | AT117: 1057 | AU117: 1294 | AV117: 368 | AW117: 377 | AX117: 590 | AY117: 744 | AZ117: 1984 | BA117: 890 | BB117: 342 | BC117: 2573 | BD117: 1555 | BE117: 1090 | BF117: N/A | BG117: 14 | BI117: 15601 | BJ117: 728 | BK117: 0 | BL117: 14873 | BM117: 109439
A118: 51 | B118: 201151 | C118: Wyoming | D118: 561389 | E118: 561389 | F118: 462808 | G118: 66648 | H118: 30651 | I118: 51 | J118: 761 | K118: 369 | L118: 174 | M118: 2539 | N118: 6905 | O118: 11 | P118: 0 | Q118: 0 | R118: 1525 | S118: 46 | T118: 0 | U118: 2140 | V118: 450 | W118: 6 | X118: 342 | Y118: 286 | Z118: 83 | AA118: 114 | AB118: 0 | AC118: 0 | AD118: 152 | AE118: 849 | AF118: 357 | AG118: 70 | AH118: 241 | AI118: 1105 | AJ118: 1784 | AK118: 427 | AL118: 0 | AM118: 7 | AN118: 76 | AO118: 113 | AP118: 395 | AQ118: 237 | AR118: 22 | AS118: 462 | AT118: 960 | AU118: 284 | AV118: 13 | AW118: 219 | AX118: 1043 | AY118: 69 | AZ118: 1398 | BA118: 2140 | BB118: 4 | BC118: 451 | BD118: 1803 | BE118: 0 | BF118: 168 | BG118: N/A | BI118: 1282 | BJ118: 0 | BK118: 0 | BL118: 1282 | BM118: 30651
A119: 52 | B119: 201152 | C119: Puerto Rico | D119: 3669195 | E119: 3669195 | F119: 3403602 | G119: 238263 | H119: 22649 | I119: 35 | J119: 378 | K119: 229 | L119: 0 | M119: 207 | N119: 0 | O119: 1849 | P119: 13 | Q119: 212 | R119: 6614 | S119: 247 | T119: 0 | U119: 13 | V119: 624 | W119: 784 | X119: 0 | Y119: 38 | Z119: 0 | AA119: 0 | AB119: 0 | AC119: 70 | AD119: 1412 | AE119: 88 | AF119: 0 | AG119: 27 | AH119: 101 | AI119: 0 | AJ119: 0 | AK119: 0 | AL119: 0 | AM119: 2150 | AN119: 51 | AO119: 2615 | AP119: 200 | AQ119: 0 | AR119: 0 | AS119: 79 | AT119: 0 | AU119: 1978 | AV119: 490 | AW119: 3 | AX119: 113 | AY119: 224 | AZ119: 444 | BA119: 0 | BB119: 0 | BC119: 1077 | BD119: 41 | BE119: 14 | BF119: 229 | BG119: 0 | BI119: 4681 | BJ119: N/A2 | BK119: 0 | BL119: 4681 | BM119: 22649
C120: com porto rico | D120: =SUM(D68:D119) -> 311569514 | E120: 311569514 | F120: 264491527 | G120: 38236964 | H120: 7010065 | I120: =SUM(I68:I119) -> 106841 | J120: =SUM(J68:J119) -> 89228 | K120: 212045 | L120: 77226 | M120: 562550 | N120: 160623 | O120: 93144 | P120: 26644 | Q120: 49944 | R120: 443816 | S120: 249139 | T120: 61940 | U120: 57844 | V120: 269632 | W120: 144012 | X120: 74516 | Y120: 94218 | Z120: 99256 | AA120: 86593 | AB120: 33729 | AC120: 165111 | AD120: 147281 | AE120: 186593 | AF120: 103253 | AG120: 68624 | AH120: 138505 | AI120: 31204 | AJ120: 52809 | AK120: 115943 | AL120: 43277 | AM120: 218519 | AN120: 61482 | AO120: 380415 | AP120: 225347 | AQ120: 26563 | AR120: 206049 | AS120: 81088 | AT120: 109795 | AU120: 217105 | AV120: 31555 | AW120: 121429 | AX120: 29496 | AY120: 154467 | AZ120: 405283 | BA120: 73211 | BB120: 18172 | BC120: 230304 | BD120: 190685 | BE120: 45970 | BF120: 105599 | BG120: 31991 | BI120: 1830958 | BJ120: 76218 | BK120: 13131 | BL120: 1741609
I121: =SUM(I120:BG120) -> 7010065
C122: 2012 | H122: Diferente state | J122: Different state of residence 1 year ago (cont.) | O122: Different state of residence 1 year ago (cont.) | T122: Different state of residence 1 year ago (cont.) | Y122: Different state of residence 1 year ago (cont.) | AD122: Different state of residence 1 year ago (cont.) | AI122: Different state of residence 1 year ago (cont.) | AN122: Different state of residence 1 year ago (cont.) | AS122: Different state of residence 1 year ago (cont.) | AX122: Different state of residence 1 year ago (cont.) | BC122: Different state of residence 1 year ago (cont.) | BI122: Abroad 1 year ago--
I123: 1 | J123: 2 | K123: 3 | L123: 4 | M123: 5 | N123: 6 | O123: 7 | P123: 8 | Q123: 9 | R123: 10 | S123: 11 | T123: 12 | U123: 13 | V123: 14 | W123: 15 | X123: 16 | Y123: 17 | Z123: 18 | AA123: 19 | AB123: 20 | AC123: 21 | AD123: 22 | AE123: 23 | AF123: 24 | AG123: 25 | AH123: 26 | AI123: 27 | AJ123: 28 | AK123: 29 | AL123: 30 | AM123: 31 | AN123: 32 | AO123: 33 | AP123: 34 | AQ123: 35 | AR123: 36 | AS123: 37 | AT123: 38 | AU123: 39 | AV123: 40 | AW123: 41 | AX123: 42 | AY123: 43 | AZ123: 44 | BA123: 45 | BB123: 46 | BC123: 47 | BD123: 48 | BE123: 49 | BF123: 50 | BG123: 51
I124: =CONCATENATE($C$122,I123) -> 20121 | J124: =CONCATENATE($C$122,J123) -> 20122 | K124: 20123 | L124: 20124 | M124: 20125 | N124: 20126 | O124: 20127 | P124: 20128 | Q124: 20129 | R124: 201210 | S124: 201211 | T124: 201212 | U124: 201213 | V124: 201214 | W124: 201215 | X124: 201216 | Y124: 201217 | Z124: 201218 | AA124: 201219 | AB124: 201220 | AC124: 201221 | AD124: 201222 | AE124: 201223 | AF124: 201224 | AG124: 201225 | AH124: 201226 | AI124: 201227 | AJ124: 201228 | AK124: 201229 | AL124: 201230 | AM124: 201231 | AN124: 201232 | AO124: 201233 | AP124: 201234 | AQ124: 201235 | AR124: 201236 | AS124: 201237 | AT124: 201238 | AU124: 201239 | AV124: 201240 | AW124: 201241 | AX124: 201242 | AY124: 201243 | AZ124: 201244 | BA124: 201245 | BB124: 201246 | BC124: 201247 | BD124: 201248 | BE124: 201249 | BF124: 201250 | BG124: 201251
C125: Current residence in -- | D125: Population 1 year and over | E125: 2012 | F125: Same residence 1 year ago | G125: Different residence, same state 1 year ago | I125: Alabama | J125: Alaska | K125: Arizona | L125: Arkansas | M125: California | N125: Colorado | O125: Connecticut | P125: Delaware | Q125: District of Columbia | R125: Florida | S125: Georgia | T125: Hawaii | U125: Idaho | V125: Illinois | W125: Indiana | X125: Iowa | Y125: Kansas | Z125: Kentucky | AA125: Louisiana | AB125: Maine | AC125: Maryland | AD125: Massachusetts | AE125: Michigan | AF125: Minnesota | AG125: Mississippi | AH125: Missouri | AI125: Montana | AJ125: Nebraska | AK125: Nevada | AL125: New Hampshire | AM125: New Jersey | AN125: New Mexico | AO125: New York | AP125: North Carolina | AQ125: North Dakota | AR125: Ohio | AS125: Oklahoma | AT125: Oregon | AU125: Pennsylvania | AV125: Rhode Island | AW125: South Carolina | AX125: South Dakota | AY125: Tennessee | AZ125: Texas | BA125: Utah | BB125: Vermont | BC125: Virginia | BD125: Washington | BE125: West Virginia | BF125: Wisconsin | BG125: Wyoming | BI125: Total | BJ125: Puerto Rico | BK125: U.S. Island Area | BL125: Foreign Country
B126: 2012 | C126: TOTAL USA - sem PR | D126: =SUM(D127:D177) -> 310212755 | E126: =SUM(E127:E177) -> 310212755 | F126: =SUM(F127:F177) -> 263612596 | G126: 37696597 | H126: 7070345 | I126: 109210 | J126: 84068 | K126: 206842 | L126: 64967 | M126: 566986 | N126: 161530 | O126: 87023 | P126: 25149 | Q126: 59513 | R126: 428325 | S126: 252262 | T126: 61509 | U126: 55191 | V126: 277953 | W126: 144597 | X126: 73325 | Y126: 93134 | Z126: 103004 | AA126: 95956 | AB126: 38574 | AC126: 157664 | AD126: 158156 | AE126: 175733 | AF126: 115946 | AG126: 66947 | AH126: 142754 | AI126: 33832 | AJ126: 48816 | AK126: 98882 | AL126: 38696 | AM126: 219202 | AN126: 63921 | AO126: 405864 | AP126: 238663 | AQ126: 23959 | AR126: 199202 | AS126: 102572 | AT126: 108182 | AU126: 237156 | AV126: 30498 | AW126: 127418 | AX126: 22534 | AY126: 163843 | AZ126: 402187 | BA126: 82165 | BB126: 20056 | BC126: 238540 | BD126: 180462 | BE126: 47425 | BF126: 97724 | BG126: 32228 | BI126: 1833217 | BJ126: 74500 | BK126: 15876 | BL126: 1742841 | BM126: 7070345
A127: 1 | B127: =CONCATENATE($B$126,A127) -> 20121 | C127: Alabama | D127: 4764428 | E127: =+F127+G127+H127+BI127 -> 4764428 | F127: 4054260 | G127: 590326 | H127: =SUM(I127:BG127) -> 104600 | I127: N/A | J127: 1004 | K127: 962 | L127: 660 | M127: 3077 | N127: 1386 | O127: 284 | P127: 42 | Q127: 162 | R127: 11244 | S127: 19920 | T127: 627 | U127: 493 | V127: 2722 | W127: 1347 | X127: 345 | Y127: 865 | Z127: 2495 | AA127: 3104 | AB127: 67 | AC127: 1513 | AD127: 334 | AE127: 2298 | AF127: 752 | AG127: 4952 | AH127: 1555 | AI127: 101 | AJ127: 151 | AK127: 1009 | AL127: 161 | AM127: 1702 | AN127: 459 | AO127: 2709 | AP127: 5133 | AQ127: 228 | AR127: 1411 | AS127: 194 | AT127: 200 | AU127: 1837 | AV127: 0 | AW127: 2811 | AX127: 518 | AY127: 10539 | AZ127: 7468 | BA127: 579 | BB127: 0 | BC127: 3170 | BD127: 1034 | BE127: 128 | BF127: 760 | BG127: 88 | BI127: 15242 | BJ127: 619 | BK127: 0 | BL127: 14623 | BM127: =SUM(I127:BG127) -> 104600 | BN127: =SUM(BM127:BM178) -> 7090389
A128: 2 | B128: =CONCATENATE($B$126,A128) -> 20122 | C128: Alaska | D128: 721186 | E128: =+F128+G128+H128+BI128 -> 721186 | F128: 592551 | G128: 90613 | H128: =SUM(I128:BG128) -> 33415 | I128: 1097 | J128: N/A | K128: 1520 | L128: 196 | M128: 3494 | N128: 556 | O128: 0 | P128: 0 | Q128: 356 | R128: 1991 | S128: 928 | T128: 1376 | U128: 538 | V128: 58 | W128: 260 | X128: 13 | Y128: 221 | Z128: 161 | AA128: 120 | AB128: 66 | AC128: 508 | AD128: 297 | AE128: 563 | AF128: 192 | AG128: 56 | AH128: 819 | AI128: 371 | AJ128: 1195 | AK128: 803 | AL128: 118 | AM128: 116 | AN128: 263 | AO128: 736 | AP128: 920 | AQ128: 264 | AR128: 1316 | AS128: 335 | AT128: 3174 | AU128: 255 | AV128: 0 | AW128: 384 | AX128: 99 | AY128: 451 | AZ128: 1488 | BA128: 330 | BB128: 79 | BC128: 1265 | BD128: 3725 | BE128: 0 | BF128: 206 | BG128: 136 | BI128: 4607 | BJ128: 25 | BK128: 272 | BL128: 4310 | BM128: =SUM(I128:BG128) -> 33415
A129: 3 | B129: 20123 | C129: Arizona | D129: 6468907 | E129: 6468907 | F129: 5242674 | G129: 953789 | H129: 232457 | I129: 1331 | J129: 3717 | K129: N/A | L129: 1214 | M129: 44889 | N129: 13790 | O129: 417 | P129: 246 | Q129: 36 | R129: 5553 | S129: 2263 | T129: 2491 | U129: 2934 | V129: 10744 | W129: 2930 | X129: 2702 | Y129: 2498 | Z129: 1328 | AA129: 724 | AB129: 616 | AC129: 3007 | AD129: 1961 | AE129: 9598 | AF129: 8570 | AG129: 293 | AH129: 2595 | AI129: 1118 | AJ129: 2293 | AK129: 6712 | AL129: 510 | AM129: 2564 | AN129: 6946 | AO129: 7402 | AP129: 2721 | AQ129: 877 | AR129: 7906 | AS129: 1626 | AT129: 8587 | AU129: 4280 | AV129: 614 | AW129: 1070 | AX129: 1472 | AY129: 5075 | AZ129: 14788 | BA129: 5916 | BB129: 207 | BC129: 2763 | BD129: 13247 | BE129: 765 | BF129: 3765 | BG129: 2786 | BI129: 39987 | BJ129: 1791 | BK129: 447 | BL129: 37749 | BM129: 232457
A130: 4 | B130: 20124 | C130: Arkansas | D130: 2912680 | E130: 2912680 | F130: 2453347 | G130: 373046 | H130: 76948 | I130: 374 | J130: 855 | K130: 1677 | L130: N/A | M130: 3525 | N130: 603 | O130: 185 | P130: 0 | Q130: 205 | R130: 2682 | S130: 1525 | T130: 0 | U130: 0 | V130: 3576 | W130: 1172 | X130: 409 | Y130: 1033 | Z130: 1310 | AA130: 3953 | AB130: 17 | AC130: 169 | AD130: 254 | AE130: 1283 | AF130: 295 | AG130: 3689 | AH130: 9105 | AI130: 258 | AJ130: 166 | AK130: 121 | AL130: 0 | AM130: 157 | AN130: 547 | AO130: 2262 | AP130: 3057 | AQ130: 0 | AR130: 1135 | AS130: 9938 | AT130: 193 | AU130: 516 | AV130: 59 | AW130: 52 | AX130: 673 | AY130: 4195 | AZ130: 11767 | BA130: 269 | BB130: 0 | BC130: 1159 | BD130: 251 | BE130: 84 | BF130: 695 | BG130: 1498 | BI130: 9339 | BJ130: 0 | BK130: 4 | BL130: 9335 | BM130: 76948
A131: 5 | B131: 20125 | C131: California | D131: 37572738 | E131: 37572738 | F131: 31777868 | G131: 5046618 | H131: 493641 | I131: 2509 | J131: 6995 | K131: 38916 | L131: 3472 | M131: N/A | N131: 15150 | O131: 6764 | P131: 474 | Q131: 3199 | R131: 21004 | S131: 10790 | T131: 11906 | U131: 5331 | V131: 21251 | W131: 5891 | X131: 2284 | Y131: 2790 | Z131: 3763 | AA131: 5180 | AB131: 1256 | AC131: 7902 | AD131: 14356 | AE131: 8921 | AF131: 8539 | AG131: 2556 | AH131: 6729 | AI131: 3060 | AJ131: 3302 | AK131: 27968 | AL131: 1327 | AM131: 12057 | AN131: 5921 | AO131: 31261 | AP131: 11195 | AQ131: 1827 | AR131: 10653 | AS131: 6671 | AT131: 22724 | AU131: 10466 | AV131: 1648 | AW131: 4110 | AX131: 826 | AY131: 5802 | AZ131: 43005 | BA131: 12172 | BB131: 544 | BC131: 15625 | BD131: 34569 | BE131: 1413 | BF131: 5681 | BG131: 1886 | BI131: 254611 | BJ131: 2323 | BK131: 1483 | BL131: 250805 | BM131: 493641
A132: 6 | B132: 20126 | C132: Colorado | D132: 5123944 | E132: 5123944 | F132: 4131357 | G132: 751921 | H132: 205060 | I132: 3108 | J132: 3457 | K132: 10589 | L132: 1043 | M132: 22152 | N132: N/A | O132: 1317 | P132: 70 | Q132: 488 | R132: 8615 | S132: 5834 | T132: 2536 | U132: 2660 | V132: 6374 | W132: 4336 | X132: 2776 | Y132: 5283 | Z132: 2500 | AA132: 5048 | AB132: 20 | AC132: 2844 | AD132: 5939 | AE132: 3343 | AF132: 2992 | AG132: 835 | AH132: 3771 | AI132: 2021 | AJ132: 4472 | AK132: 3789 | AL132: 679 | AM132: 2464 | AN132: 6520 | AO132: 7250 | AP132: 4378 | AQ132: 1918 | AR132: 4533 | AS132: 4582 | AT132: 2419 | AU132: 3950 | AV132: 137 | AW132: 2383 | AX132: 756 | AY132: 2535 | AZ132: 17355 | BA132: 6398 | BB132: 503 | BC132: 3796 | BD132: 4853 | BE132: 837 | BF132: 3000 | BG132: 5602 | BI132: 35606 | BJ132: 1144 | BK132: 387 | BL132: 34075 | BM132: 205060
A133: 7 | B133: 20127 | C133: Connecticut | D133: 3555319 | E133: 3555319 | F133: 3114940 | G133: 334918 | H133: 80311 | I133: 46 | J133: 439 | K133: 3167 | L133: 200 | M133: 3161 | N133: 367 | O133: N/A | P133: 22 | Q133: 288 | R133: 6578 | S133: 1702 | T133: 408 | U133: 97 | V133: 912 | W133: 53 | X133: 0 | Y133: 0 | Z133: 124 | AA133: 909 | AB133: 1224 | AC133: 1752 | AD133: 8743 | AE133: 753 | AF133: 605 | AG133: 276 | AH133: 358 | AI133: 50 | AJ133: 45 | AK133: 172 | AL133: 1009 | AM133: 5665 | AN133: 444 | AO133: 23310 | AP133: 3379 | AQ133: 0 | AR133: 287 | AS133: 415 | AT133: 35 | AU133: 2214 | AV133: 1558 | AW133: 940 | AX133: 0 | AY133: 260 | AZ133: 3279 | BA133: 45 | BB133: 709 | BC133: 1729 | BD133: 1593 | BE133: 174 | BF133: 711 | BG133: 104 | BI133: 25150 | BJ133: 3228 | BK133: 213 | BL133: 21709 | BM133: 80311
A134: 8 | B134: 20128 | C134: Delaware | D134: 906576 | E134: 906576 | F134: 782216 | G134: 86003 | H134: 34757 | I134: 119 | J134: 692 | K134: 188 | L134: 0 | M134: 2221 | N134: 0 | O134: 1489 | P134: N/A | Q134: 11 | R134: 715 | S134: 179 | T134: 0 | U134: 32 | V134: 567 | W134: 62 | X134: 30 | Y134: 113 | Z134: 0 | AA134: 178 | AB134: 0 | AC134: 5649 | AD134: 157 | AE134: 227 | AF134: 351 | AG134: 58 | AH134: 80 | AI134: 0 | AJ134: 91 | AK134: 572 | AL134: 99 | AM134: 5846 | AN134: 85 | AO134: 3566 | AP134: 1349 | AQ134: 0 | AR134: 191 | AS134: 0 | AT134: 0 | AU134: 6828 | AV134: 135 | AW134: 298 | AX134: 0 | AY134: 344 | AZ134: 133 | BA134: 166 | BB134: 0 | BC134: 1746 | BD134: 29 | BE134: 161 | BF134: 0 | BG134: 0 | BI134: 3600 | BJ134: 56 | BK134: 0 | BL134: 3544 | BM134: 34757
A135: 9 | B135: 20129 | C135: District of Columbia | D135: 624847 | E135: 624847 | F135: 500267 | G135: 61992 | H135: 53830 | I135: 79 | J135: 1247 | K135: 902 | L135: 35 | M135: 4999 | N135: 677 | O135: 618 | P135: 78 | Q135: N/A | R135: 1705 | S135: 1079 | T135: 38 | U135: 46 | V135: 795 | W135: 469 | X135: 133 | Y135: 164 | Z135: 112 | AA135: 283 | AB135: 194 | AC135: 14120 | AD135: 1524 | AE135: 944 | AF135: 393 | AG135: 44 | AH135: 337 | AI135: 0 | AJ135: 172 | AK135: 42 | AL135: 197 | AM135: 1451 | AN135: 116 | AO135: 3085 | AP135: 985 | AQ135: 0 | AR135: 651 | AS135: 0 | AT135: 157 | AU135: 1494 | AV135: 635 | AW135: 150 | AX135: 0 | AY135: 577 | AZ135: 1473 | BA135: 116 | BB135: 267 | BC135: 9537 | BD135: 481 | BE135: 293 | BF135: 721 | BG135: 215 | BI135: 8758 | BJ135: 0 | BK135: 0 | BL135: 8758 | BM135: 53830
A136: 10 | B136: 201210 | C136: Florida | D136: 19114620 | E136: 19114620 | F136: 16032617 | G136: 2380288 | H136: 537148 | I136: 18599 | J136: 10704 | K136: 6473 | L136: 3321 | M136: 20386 | N136: 8766 | O136: 8975 | P136: 1099 | Q136: 780 | R136: N/A | S136: 42754 | T136: 3177 | U136: 1268 | V136: 22565 | W136: 13803 | X136: 3864 | Y136: 5661 | Z136: 6912 | AA136: 5550 | AB136: 7348 | AC136: 10442 | AD136: 15159 | AE136: 23400 | AF136: 5460 | AG136: 5490 | AH136: 10666 | AI136: 1758 | AJ136: 945 | AK136: 1241 | AL136: 2362 | AM136: 27606 | AN136: 2853 | AO136: 53009 | AP136: 23133 | AQ136: 239 | AR136: 22927 | AS136: 3142 | AT136: 2919 | AU136: 25659 | AV136: 3050 | AW136: 11366 | AX136: 1070 | AY136: 16275 | AZ136: 28564 | BA136: 2499 | BB136: 2747 | BC136: 25697 | BD136: 4943 | BE136: 3533 | BF136: 6216 | BG136: 773 | BI136: 164567 | BJ136: 21638 | BK136: 2328 | BL136: 140601 | BM136: 537148
A137: 11 | B137: 201211 | C137: Georgia | D137: 9796547 | E137: 9796547 | F137: 8231384 | G137: 1236302 | H137: 277466 | I137: 13864 | J137: 2654 | K137: 6657 | L137: 1041 | M137: 14174 | N137: 4710 | O137: 1829 | P137: 226 | Q137: 1352 | R137: 42870 | S137: N/A | T137: 1409 | U137: 936 | V137: 7143 | W137: 5972 | X137: 1687 | Y137: 1497 | Z137: 6172 | AA137: 4100 | AB137: 222 | AC137: 3619 | AD137: 4153 | AE137: 9949 | AF137: 2237 | AG137: 3280 | AH137: 3377 | AI137: 251 | AJ137: 1283 | AK137: 3783 | AL137: 15 | AM137: 4920 | AN137: 915 | AO137: 13957 | AP137: 16009 | AQ137: 207 | AR137: 7501 | AS137: 3299 | AT137: 453 | AU137: 9076 | AV137: 440 | AW137: 18611 | AX137: 257 | AY137: 17606 | AZ137: 16198 | BA137: 20 | BB137: 84 | BC137: 10702 | BD137: 1965 | BE137: 1237 | BF137: 3441 | BG137: 106 | BI137: 51395 | BJ137: 1730 | BK137: 853 | BL137: 48812 | BM137: 277466
A138: 12 | B138: 201212 | C138: Hawaii | D138: 1374852 | E138: 1374852 | F138: 1164145 | G138: 134827 | H138: 55145 | I138: 608 | J138: 1417 | K138: 1865 | L138: 24 | M138: 9756 | N138: 1216 | O138: 191 | P138: 278 | Q138: 230 | R138: 2780 | S138: 1448 | T138: N/A | U138: 404 | V138: 318 | W138: 292 | X138: 84 | Y138: 1135 | Z138: 485 | AA138: 207 | AB138: 91 | AC138: 2491 | AD138: 1266 | AE138: 321 | AF138: 192 | AG138: 44 | AH138: 944 | AI138: 131 | AJ138: 75 | AK138: 760 | AL138: 85 | AM138: 410 | AN138: 284 | AO138: 2382 | AP138: 2241 | AQ138: 0 | AR138: 884 | AS138: 1095 | AT138: 1763 | AU138: 1087 | AV138: 106 | AW138: 644 | AX138: 459 | AY138: 1314 | AZ138: 3300 | BA138: 2183 | BB138: 0 | BC138: 1393 | BD138: 5920 | BE138: 197 | BF138: 295 | BG138: 50 | BI138: 20735 | BJ138: 336 | BK138: 631 | BL138: 19768 | BM138: 55145
A139: 13 | B139: 201213 | C139: Idaho | D139: 1573036 | E139: 1573036 | F139: 1296975 | G139: 210151 | H139: 59283 | I139: 575 | J139: 1198 | K139: 2424 | L139: 291 | M139: 10280 | N139: 1186 | O139: 44 | P139: 120 | Q139: 116 | R139: 2014 | S139: 583 | T139: 206 | U139: N/A | V139: 532 | W139: 283 | X139: 90 | Y139: 63 | Z139: 83 | AA139: 54 | AB139: 0 | AC139: 107 | AD139: 338 | AE139: 683 | AF139: 637 | AG139: 87 | AH139: 214 | AI139: 3800 | AJ139: 35 | AK139: 2535 | AL139: 0 | AM139: 214 | AN139: 675 | AO139: 938 | AP139: 817 | AQ139: 0 | AR139: 1018 | AS139: 93 | AT139: 4963 | AU139: 169 | AV139: 0 | AW139: 205 | AX139: 118 | AY139: 1957 | AZ139: 1352 | BA139: 6617 | BB139: 0 | BC139: 269 | BD139: 10398 | BE139: 0 | BF139: 225 | BG139: 677 | BI139: 6627 | BJ139: 136 | BK139: 303 | BL139: 6188 | BM139: 59283
A140: 14 | B140: 201214 | C140: Illinois | D140: 12725119 | E140: 12725119 | F140: 11009321 | G140: 1441191 | H140: 208755 | I140: 883 | J140: 2250 | K140: 7139 | L140: 1587 | M140: 14940 | N140: 3036 | O140: 955 | P140: 234 | Q140: 1066 | R140: 12687 | S140: 8745 | T140: 869 | U140: 1384 | V140: N/A | W140: 16907 | X140: 8529 | Y140: 2009 | Z140: 2923 | AA140: 1229 | AB140: 526 | AC140: 1865 | AD140: 3296 | AE140: 12583 | AF140: 6537 | AG140: 2744 | AH140: 13264 | AI140: 228 | AJ140: 1302 | AK140: 1478 | AL140: 283 | AM140: 2366 | AN140: 1359 | AO140: 7561 | AP140: 3761 | AQ140: 196 | AR140: 6872 | AS140: 1491 | AT140: 954 | AU140: 4588 | AV140: 462 | AW140: 1583 | AX140: 394 | AY140: 4648 | AZ140: 16780 | BA140: 1154 | BB140: 156 | BC140: 4311 | BD140: 2704 | BE140: 1221 | BF140: 14414 | BG140: 302 | BI140: 65852 | BJ140: 2049 | BK140: 149 | BL140: 63654 | BM140: 208755
A141: 15 | B141: 201215 | C141: Indiana | D141: 6457067 | E141: 6457067 | F141: 5493090 | G141: 805228 | H141: 134137 | I141: 1625 | J141: 479 | K141: 2763 | L141: 564 | M141: 6033 | N141: 1225 | O141: 823 | P141: 639 | Q141: 1045 | R141: 11472 | S141: 2258 | T141: 856 | U141: 186 | V141: 28436 | W141: N/A | X141: 1678 | Y141: 1624 | Z141: 11177 | AA141: 736 | AB141: 0 | AC141: 1050 | AD141: 837 | AE141: 11017 | AF141: 1543 | AG141: 1948 | AH141: 4526 | AI141: 134 | AJ141: 591 | AK141: 1011 | AL141: 0 | AM141: 1537 | AN141: 219 | AO141: 2316 | AP141: 2665 | AQ141: 113 | AR141: 11235 | AS141: 1198 | AT141: 387 | AU141: 2419 | AV141: 0 | AW141: 1414 | AX141: 111 | AY141: 3547 | AZ141: 4490 | BA141: 105 | BB141: 0 | BC141: 1932 | BD141: 258 | BE141: 507 | BF141: 1727 | BG141: 1681 | BI141: 24612 | BJ141: 136 | BK141: 0 | BL141: 24476 | BM141: 134137
A142: 16 | B142: 201216 | C142: Iowa | D142: 3035469 | E142: 3035469 | F142: 2585979 | G142: 362938 | H142: 75760 | I142: 503 | J142: 951 | K142: 1590 | L142: 451 | M142: 3268 | N142: 3252 | O142: 112 | P142: 0 | Q142: 151 | R142: 4335 | S142: 596 | T142: 521 | U142: 290 | V142: 11969 | W142: 1716 | X142: N/A | Y142: 918 | Z142: 819 | AA142: 763 | AB142: 78 | AC142: 419 | AD142: 585 | AE142: 946 | AF142: 7505 | AG142: 751 | AH142: 4168 | AI142: 452 | AJ142: 7698 | AK142: 681 | AL142: 56 | AM142: 1018 | AN142: 114 | AO142: 1230 | AP142: 734 | AQ142: 833 | AR142: 1127 | AS142: 1465 | AT142: 348 | AU142: 451 | AV142: 0 | AW142: 943 | AX142: 1158 | AY142: 1148 | AZ142: 3553 | BA142: 886 | BB142: 0 | BC142: 268 | BD142: 919 | BE142: 22 | BF142: 3607 | BG142: 392 | BI142: 10792 | BJ142: 786 | BK142: 0 | BL142: 10006 | BM142: 75760
A143: 17 | B143: 201217 | C143: Kansas | D143: 2848708 | E143: 2848708 | F143: 2361899 | G143: 381695 | H143: 88284 | I143: 853 | J143: 333 | K143: 3094 | L143: 2158 | M143: 5411 | N143: 3746 | O143: 210 | P143: 0 | Q143: 456 | R143: 3118 | S143: 1896 | T143: 149 | U143: 456 | V143: 1702 | W143: 1679 | X143: 1527 | Y143: N/A | Z143: 617 | AA143: 438 | AB143: 211 | AC143: 282 | AD143: 187 | AE143: 1125 | AF143: 682 | AG143: 452 | AH143: 21022 | AI143: 300 | AJ143: 4126 | AK143: 851 | AL143: 0 | AM143: 267 | AN143: 1029 | AO143: 571 | AP143: 813 | AQ143: 261 | AR143: 1310 | AS143: 8408 | AT143: 848 | AU143: 918 | AV143: 18 | AW143: 556 | AX143: 154 | AY143: 1542 | AZ143: 8468 | BA143: 97 | BB143: 70 | BC143: 1705 | BD143: 3265 | BE143: 139 | BF143: 486 | BG143: 278 | BI143: 16830 | BJ143: 82 | BK143: 605 | BL143: 16143 | BM143: 88284
A144: 18 | B144: 201218 | C144: Kentucky | D144: 4328626 | E144: 4328626 | F144: 3676472 | G144: 521511 | H144: 112787 | I144: 4137 | J144: 304 | K144: 1103 | L144: 518 | M144: 3415 | N144: 712 | O144: 246 | P144: 706 | Q144: 254 | R144: 9232 | S144: 4173 | T144: 647 | U144: 50 | V144: 4445 | W144: 12203 | X144: 238 | Y144: 602 | Z144: N/A | AA144: 666 | AB144: 46 | AC144: 1120 | AD144: 419 | AE144: 7302 | AF144: 605 | AG144: 646 | AH144: 2381 | AI144: 0 | AJ144: 723 | AK144: 301 | AL144: 84 | AM144: 496 | AN144: 554 | AO144: 5239 | AP144: 3643 | AQ144: 122 | AR144: 17041 | AS144: 577 | AT144: 298 | AU144: 2226 | AV144: 0 | AW144: 1347 | AX144: 0 | AY144: 10064 | AZ144: 3345 | BA144: 464 | BB144: 45 | BC144: 3319 | BD144: 1988 | BE144: 3346 | BF144: 1395 | BG144: 0 | BI144: 17856 | BJ144: 170 | BK144: 0 | BL144: 17686 | BM144: 112787
A145: 19 | B145: 201219 | C145: Louisiana | D145: 4545914 | E145: 4545914 | F145: 3912023 | G145: 528406 | H145: 91215 | I145: 2329 | J145: 403 | K145: 2021 | L145: 3645 | M145: 5139 | N145: 1433 | O145: 164 | P145: 0 | Q145: 596 | R145: 6534 | S145: 4478 | T145: 378 | U145: 265 | V145: 1229 | W145: 1359 | X145: 544 | Y145: 420 | Z145: 1649 | AA145: N/A | AB145: 251 | AC145: 642 | AD145: 549 | AE145: 1080 | AF145: 330 | AG145: 6791 | AH145: 1591 | AI145: 428 | AJ145: 745 | AK145: 931 | AL145: 11 | AM145: 975 | AN145: 150 | AO145: 2786 | AP145: 2284 | AQ145: 64 | AR145: 1115 | AS145: 2159 | AT145: 195 | AU145: 1239 | AV145: 737 | AW145: 1914 | AX145: 0 | AY145: 2348 | AZ145: 24488 | BA145: 277 | BB145: 45 | BC145: 1857 | BD145: 1581 | BE145: 238 | BF145: 682 | BG145: 146 | BI145: 14270 | BJ145: 655 | BK145: 267 | BL145: 13348 | BM145: 91215
A146: 20 | B146: 201220 | C146: Maine | D146: 1315586 | E146: 1315586 | F146: 1132344 | G146: 151438 | H146: 27523 | I146: 129 | J146: 38 | K146: 230 | L146: 0 | M146: 1610 | N146: 314 | O146: 1468 | P146: 234 | Q146: 32 | R146: 2926 | S146: 511 | T146: 0 | U146: 143 | V146: 195 | W146: 0 | X146: 7 | Y146: 277 | Z146: 482 | AA146: 15 | AB146: N/A | AC146: 325 | AD146: 3887 | AE146: 116 | AF146: 430 | AG146: 79 | AH146: 69 | AI146: 0 | AJ146: 82 | AK146: 35 | AL146: 3655 | AM146: 405 | AN146: 272 | AO146: 2519 | AP146: 1112 | AQ146: 0 | AR146: 628 | AS146: 79 | AT146: 215 | AU146: 976 | AV146: 1024 | AW146: 173 | AX146: 0 | AY146: 985 | AZ146: 496 | BA146: 200 | BB146: 349 | BC146: 573 | BD146: 118 | BE146: 51 | BF146: 0 | BG146: 59 | BI146: 4281 | BJ146: 38 | BK146: 0 | BL146: 4243 | BM146: 27523
A147: 21 | B147: 201221 | C147: Maryland | D147: 5816472 | E147: 5816472 | F147: 5068457 | G147: 549973 | H147: 154983 | I147: 1261 | J147: 1947 | K147: 760 | L147: 136 | M147: 8614 | N147: 1071 | O147: 881 | P147: 4100 | Q147: 21213 | R147: 9610 | S147: 4610 | T147: 610 | U147: 429 | V147: 3621 | W147: 1210 | X147: 569 | Y147: 1726 | Z147: 715 | AA147: 606 | AB147: 332 | AC147: N/A | AD147: 3977 | AE147: 2167 | AF147: 1422 | AG147: 581 | AH147: 256 | AI147: 0 | AJ147: 132 | AK147: 330 | AL147: 1124 | AM147: 6260 | AN147: 638 | AO147: 11736 | AP147: 7507 | AQ147: 116 | AR147: 2522 | AS147: 463 | AT147: 378 | AU147: 15485 | AV147: 82 | AW147: 2297 | AX147: 0 | AY147: 1800 | AZ147: 5612 | BA147: 1061 | BB147: 589 | BC147: 20579 | BD147: 1431 | BE147: 1957 | BF147: 460 | BG147: 0 | BI147: 43059 | BJ147: 294 | BK147: 116 | BL147: 42649 | BM147: 154983
A148: 22 | B148: 201222 | C148: Massachusetts | D148: 6580641 | E148: 6580641 | F148: 5752166 | G148: 626380 | H148: 142577 | I148: 636 | J148: 890 | K148: 1972 | L148: 394 | M148: 12770 | N148: 980 | O148: 10525 | P148: 506 | Q148: 379 | R148: 12890 | S148: 2789 | T148: 1108 | U148: 188 | V148: 2886 | W148: 677 | X148: 151 | Y148: 565 | Z148: 52 | AA148: 1556 | AB148: 3907 | AC148: 2381 | AD148: N/A | AE148: 1337 | AF148: 966 | AG148: 155 | AH148: 453 | AI148: 49 | AJ148: 182 | AK148: 787 | AL148: 13331 | AM148: 8046 | AN148: 521 | AO148: 19467 | AP148: 2514 | AQ148: 81 | AR148: 1829 | AS148: 297 | AT148: 1528 | AU148: 8236 | AV148: 6863 | AW148: 2477 | AX148: 194 | AY148: 823 | AZ148: 3694 | BA148: 1027 | BB148: 2534 | BC148: 4098 | BD148: 1653 | BE148: 385 | BF148: 584 | BG148: 264 | BI148: 59518 | BJ148: 4056 | BK148: 121 | BL148: 55341 | BM148: 142577
A149: 23 | B149: 201223 | C149: Michigan | D149: 9778980 | E149: 9778980 | F149: 8330990 | G149: 1268105 | H149: 133981 | I149: 2341 | J149: 1152 | K149: 7168 | L149: 906 | M149: 8085 | N149: 2363 | O149: 798 | P149: 114 | Q149: 274 | R149: 13146 | S149: 4270 | T149: 291 | U149: 242 | V149: 10047 | W149: 10976 | X149: 993 | Y149: 805 | Z149: 3409 | AA149: 1284 | AB149: 261 | AC149: 2201 | AD149: 1720 | AE149: N/A | AF149: 1127 | AG149: 922 | AH149: 2206 | AI149: 218 | AJ149: 113 | AK149: 1354 | AL149: 446 | AM149: 1617 | AN149: 1318 | AO149: 5731 | AP149: 3912 | AQ149: 265 | AR149: 11318 | AS149: 705 | AT149: 811 | AU149: 2739 | AV149: 68 | AW149: 1822 | AX149: 66 | AY149: 3259 | AZ149: 8638 | BA149: 819 | BB149: 60 | BC149: 3057 | BD149: 2146 | BE149: 353 | BF149: 4768 | BG149: 1277 | BI149: 45904 | BJ149: 782 | BK149: 422 | BL149: 44700 | BM149: 133981
A150: 24 | B150: 201224 | C150: Minnesota | D150: 5315228 | E150: 5315228 | F150: 4536303 | G150: 653012 | H150: 101042 | I150: 1299 | J150: 523 | K150: 3065 | L150: 375 | M150: 8086 | N150: 3565 | O150: 696 | P150: 0 | Q150: 310 | R150: 2372 | S150: 2235 | T150: 1277 | U150: 575 | V150: 5896 | W150: 2026 | X150: 7220 | Y150: 924 | Z150: 57 | AA150: 791 | AB150: 187 | AC150: 1841 | AD150: 814 | AE150: 2212 | AF150: N/A | AG150: 202 | AH150: 1709 | AI150: 1257 | AJ150: 992 | AK150: 932 | AL150: 0 | AM150: 1038 | AN150: 322 | AO150: 1849 | AP150: 1745 | AQ150: 6672 | AR150: 2635 | AS150: 1212 | AT150: 781 | AU150: 1106 | AV150: 299 | AW150: 1705 | AX150: 3442 | AY150: 1738 | AZ150: 4001 | BA150: 429 | BB150: 77 | BC150: 1037 | BD150: 1685 | BE150: 0 | BF150: 17618 | BG150: 213 | BI150: 24871 | BJ150: 134 | BK150: 234 | BL150: 24503 | BM150: 101042
A151: 25 | B151: 201225 | C151: Mississippi | D151: 2947696 | E151: 2947696 | F151: 2529377 | G151: 339807 | H151: 73500 | I151: 5141 | J151: 0 | K151: 710 | L151: 2680 | M151: 4371 | N151: 799 | O151: 106 | P151: 0 | Q151: 97 | R151: 4676 | S151: 2669 | T151: 184 | U151: 586 | V151: 2703 | W151: 1200 | X151: 160 | Y151: 400 | Z151: 446 | AA151: 8588 | AB151: 163 | AC151: 379 | AD151: 67 | AE151: 1768 | AF151: 568 | AG151: N/A | AH151: 2634 | AI151: 166 | AJ151: 138 | AK151: 526 | AL151: 60 | AM151: 2127 | AN151: 86 | AO151: 1492 | AP151: 1709 | AQ151: 98 | AR151: 896 | AS151: 562 | AT151: 465 | AU151: 613 | AV151: 185 | AW151: 596 | AX151: 79 | AY151: 11643 | AZ151: 7230 | BA151: 454 | BB151: 0 | BC151: 1929 | BD151: 433 | BE151: 0 | BF151: 611 | BG151: 307 | BI151: 5012 | BJ151: 81 | BK151: 59 | BL151: 4872 | BM151: 73500
A152: 26 | B152: 201226 | C152: Missouri | D152: 5951913 | E152: 5951913 | F152: 4965459 | G152: 801093 | H152: 162930 | I152: 1333 | J152: 2186 | K152: 2297 | L152: 9434 | M152: 10717 | N152: 3798 | O152: 410 | P152: 234 | Q152: 144 | R152: 8374 | S152: 3451 | T152: 2114 | U152: 596 | V152: 22001 | W152: 4184 | X152: 5956 | Y152: 20218 | Z152: 2291 | AA152: 1178 | AB152: 996 | AC152: 1246 | AD152: 810 | AE152: 2964 | AF152: 2798 | AG152: 1110 | AH152: N/A | AI152: 511 | AJ152: 1999 | AK152: 836 | AL152: 35 | AM152: 960 | AN152: 451 | AO152: 2834 | AP152: 3988 | AQ152: 636 | AR152: 3557 | AS152: 5298 | AT152: 1186 | AU152: 1535 | AV152: 361 | AW152: 2856 | AX152: 527 | AY152: 3122 | AZ152: 9278 | BA152: 3287 | BB152: 318 | BC152: 2609 | BD152: 2312 | BE152: 148 | BF152: 2636 | BG152: 810 | BI152: 22431 | BJ152: 826 | BK152: 308 | BL152: 21297 | BM152: 162930
A153: 27 | B153: 201227 | C153: Montana | D153: 995544 | E153: 995544 | F153: 829489 | G153: 126463 | H153: 37690 | I153: 31 | J153: 726 | K153: 1548 | L153: 63 | M153: 5428 | N153: 2135 | O153: 0 | P153: 0 | Q153: 0 | R153: 1875 | S153: 292 | T153: 556 | U153: 3385 | V153: 542 | W153: 163 | X153: 415 | Y153: 224 | Z153: 367 | AA153: 0 | AB153: 225 | AC153: 33 | AD153: 97 | AE153: 822 | AF153: 481 | AG153: 32 | AH153: 447 | AI153: N/A | AJ153: 108 | AK153: 968 | AL153: 115 | AM153: 156 | AN153: 259 | AO153: 482 | AP153: 1082 | AQ153: 977 | AR153: 402 | AS153: 1018 | AT153: 2950 | AU153: 457 | AV153: 0 | AW153: 230 | AX153: 191 | AY153: 45 | AZ153: 1393 | BA153: 260 | BB153: 87 | BC153: 156 | BD153: 4783 | BE153: 0 | BF153: 750 | BG153: 934 | BI153: 1902 | BJ153: 0 | BK153: 64 | BL153: 1838 | BM153: 37690
A154: 28 | B154: 201228 | C154: Nebraska | D154: 1829420 | E154: 1829420 | F154: 1540361 | G154: 237937 | H154: 43266 | I154: 245 | J154: 626 | K154: 2406 | L154: 363 | M154: 3438 | N154: 2023 | O154: 0 | P154: 0 | Q154: 0 | R154: 1368 | S154: 786 | T154: 165 | U154: 315 | V154: 1193 | W154: 290 | X154: 6815 | Y154: 3103 | Z154: 131 | AA154: 411 | AB154: 68 | AC154: 129 | AD154: 195 | AE154: 258 | AF154: 1489 | AG154: 176 | AH154: 2223 | AI154: 108 | AJ154: N/A | AK154: 233 | AL154: 0 | AM154: 524 | AN154: 158 | AO154: 318 | AP154: 874 | AQ154: 497 | AR154: 563 | AS154: 587 | AT154: 106 | AU154: 702 | AV154: 0 | AW154: 456 | AX154: 2507 | AY154: 232 | AZ154: 3130 | BA154: 229 | BB154: 79 | BC154: 1076 | BD154: 1327 | BE154: 111 | BF154: 316 | BG154: 917 | BI154: 7856 | BJ154: 0 | BK154: 0 | BL154: 7856 | BM154: 43266
A155: 29 | B155: 201229 | C155: Nevada | D155: 2725280 | E155: 2725280 | F155: 2105070 | G155: 481496 | H155: 124285 | I155: 761 | J155: 2161 | K155: 8748 | L155: 353 | M155: 49978 | N155: 6402 | O155: 143 | P155: 373 | Q155: 468 | R155: 3381 | S155: 745 | T155: 2053 | U155: 1503 | V155: 2822 | W155: 362 | X155: 714 | Y155: 1202 | Z155: 952 | AA155: 421 | AB155: 209 | AC155: 934 | AD155: 318 | AE155: 1235 | AF155: 1157 | AG155: 783 | AH155: 694 | AI155: 1086 | AJ155: 714 | AK155: N/A | AL155: 175 | AM155: 912 | AN155: 1138 | AO155: 3521 | AP155: 767 | AQ155: 702 | AR155: 1407 | AS155: 1520 | AT155: 3101 | AU155: 1601 | AV155: 336 | AW155: 480 | AX155: 0 | AY155: 1699 | AZ155: 5484 | BA155: 4605 | BB155: 121 | BC155: 1135 | BD155: 2997 | BE155: 100 | BF155: 1046 | BG155: 766 | BI155: 14429 | BJ155: 237 | BK155: 412 | BL155: 13780 | BM155: 124285
A156: 30 | B156: 201230 | C156: New Hampshire | D156: 1309203 | E156: 1309203 | F156: 1127376 | G156: 125118 | H156: 50484 | I156: 0 | J156: 437 | K156: 440 | L156: 0 | M156: 1514 | N156: 572 | O156: 1345 | P156: 0 | Q156: 101 | R156: 2746 | S156: 470 | T156: 43 | U156: 20 | V156: 673 | W156: 297 | X156: 53 | Y156: 102 | Z156: 284 | AA156: 7 | AB156: 6118 | AC156: 33 | AD156: 18990 | AE156: 426 | AF156: 0 | AG156: 0 | AH156: 289 | AI156: 0 | AJ156: 110 | AK156: 0 | AL156: N/A | AM156: 591 | AN156: 223 | AO156: 2905 | AP156: 1609 | AQ156: 0 | AR156: 324 | AS156: 186 | AT156: 208 | AU156: 890 | AV156: 1248 | AW156: 323 | AX156: 0 | AY156: 77 | AZ156: 2150 | BA156: 557 | BB156: 2960 | BC156: 660 | BD156: 113 | BE156: 80 | BF156: 239 | BG156: 71 | BI156: 6225 | BJ156: 75 | BK156: 18 | BL156: 6132 | BM156: 50484
A157: 31 | B157: 201231 | C157: New Jersey | D157: 8772744 | E157: 8772744 | F157: 7929570 | G157: 655465 | H157: 130223 | I157: 779 | J157: 359 | K157: 1328 | L157: 57 | M157: 4330 | N157: 380 | O157: 3466 | P157: 1921 | Q157: 840 | R157: 10649 | S157: 3002 | T157: 22 | U157: 113 | V157: 2052 | W157: 1039 | X157: 357 | Y157: 426 | Z157: 631 | AA157: 339 | AB157: 430 | AC157: 3474 | AD157: 4907 | AE157: 324 | AF157: 570 | AG157: 106 | AH157: 384 | AI157: 67 | AJ157: 35 | AK157: 908 | AL157: 126 | AM157: N/A | AN157: 45 | AO157: 40495 | AP157: 3236 | AQ157: 55 | AR157: 1452 | AS157: 1540 | AT157: 760 | AU157: 23597 | AV157: 429 | AW157: 2372 | AX157: 581 | AY157: 1400 | AZ157: 2509 | BA157: 425 | BB157: 35 | BC157: 5024 | BD157: 1847 | BE157: 297 | BF157: 680 | BG157: 23 | BI157: 57486 | BJ157: 2574 | BK157: 38 | BL157: 54874 | BM157: 130223
A158: 32 | B158: 201232 | C158: New Mexico | D158: 2060595 | E158: 2060595 | F158: 1769341 | G158: 226243 | H158: 54693 | I158: 787 | J158: 320 | K158: 6391 | L158: 410 | M158: 4536 | N158: 4780 | O158: 280 | P158: 100 | Q158: 25 | R158: 4707 | S158: 192 | T158: 168 | U158: 355 | V158: 790 | W158: 660 | X158: 384 | Y158: 672 | Z158: 159 | AA158: 790 | AB158: 57 | AC158: 505 | AD158: 303 | AE158: 602 | AF158: 284 | AG158: 451 | AH158: 1216 | AI158: 139 | AJ158: 194 | AK158: 604 | AL158: 268 | AM158: 252 | AN158: N/A | AO158: 1111 | AP158: 335 | AQ158: 41 | AR158: 1178 | AS158: 1076 | AT158: 932 | AU158: 822 | AV158: 0 | AW158: 325 | AX158: 509 | AY158: 338 | AZ158: 11955 | BA158: 1382 | BB158: 81 | BC158: 1560 | BD158: 1251 | BE158: 0 | BF158: 321 | BG158: 95 | BI158: 10318 | BJ158: 429 | BK158: 159 | BL158: 9730 | BM158: 54693
A159: 33 | B159: 201233 | C159: New York | D159: 19352153 | E159: 19352153 | F159: 17202134 | G159: 1723117 | H159: 270053 | I159: 1364 | J159: 4002 | K159: 4146 | L159: 247 | M159: 24623 | N159: 3596 | O159: 14595 | P159: 477 | Q159: 3936 | R159: 27392 | S159: 7592 | T159: 1598 | U159: 607 | V159: 8017 | W159: 3040 | X159: 955 | Y159: 1437 | Z159: 1753 | AA159: 1083 | AB159: 1345 | AC159: 7321 | AD159: 15073 | AE159: 5191 | AF159: 1059 | AG159: 773 | AH159: 3310 | AI159: 421 | AJ159: 78 | AK159: 600 | AL159: 2760 | AM159: 42574 | AN159: 646 | AO159: N/A | AP159: 10544 | AQ159: 77 | AR159: 4625 | AS159: 1327 | AT159: 1055 | AU159: 22895 | AV159: 3222 | AW159: 5952 | AX159: 0 | AY159: 1279 | AZ159: 11231 | BA159: 622 | BB159: 2764 | BC159: 7939 | BD159: 2614 | BE159: 921 | BF159: 979 | BG159: 396 | BI159: 156849 | BJ159: 7321 | BK159: 814 | BL159: 148714 | BM159: 270053
A160: 34 | B160: 201234 | C160: North Carolina | D160: 9640490 | E160: 9640490 | F160: 8167830 | G160: 1149080 | H160: 273149 | I160: 4329 | J160: 1458 | K160: 3493 | L160: 861 | M160: 13883 | N160: 4790 | O160: 4914 | P160: 2180 | Q160: 1801 | R160: 26365 | S160: 16823 | T160: 1566 | U160: 334 | V160: 6378 | W160: 4532 | X160: 775 | Y160: 1595 | Z160: 1531 | AA160: 919 | AB160: 1259 | AC160: 9005 | AD160: 3710 | AE160: 6161 | AF160: 1523 | AG160: 2377 | AH160: 2623 | AI160: 244 | AJ160: 628 | AK160: 1627 | AL160: 754 | AM160: 11468 | AN160: 1138 | AO160: 19891 | AP160: N/A | AQ160: 206 | AR160: 9337 | AS160: 1263 | AT160: 1333 | AU160: 12179 | AV160: 290 | AW160: 25532 | AX160: 351 | AY160: 9230 | AZ160: 12638 | BA160: 1189 | BB160: 445 | BC160: 26759 | BD160: 5915 | BE160: 2677 | BF160: 2266 | BG160: 604 | BI160: 50431 | BJ160: 2025 | BK160: 674 | BL160: 47732 | BM160: 273149
A161: 35 | B161: 201235 | C161: North Dakota | D161: 689838 | E161: 689838 | F161: 563978 | G161: 84294 | H161: 38213 | I161: 83 | J161: 70 | K161: 1571 | L161: 0 | M161: 999 | N161: 546 | O161: 65 | P161: 0 | Q161: 70 | R161: 950 | S161: 98 | T161: 160 | U161: 540 | V161: 799 | W161: 55 | X161: 458 | Y161: 161 | Z161: 22 | AA161: 18 | AB161: 98 | AC161: 232 | AD161: 187 | AE161: 757 | AF161: 15257 | AG161: 72 | AH161: 1490 | AI161: 1776 | AJ161: 950 | AK161: 854 | AL161: 0 | AM161: 140 | AN161: 161 | AO161: 331 | AP161: 231 | AQ161: N/A | AR161: 6 | AS161: 280 | AT161: 724 | AU161: 114 | AV161: 244 | AW161: 14 | AX161: 1754 | AY161: 746 | AZ161: 1414 | BA161: 43 | BB161: 758 | BC161: 403 | BD161: 1604 | BE161: 0 | BF161: 543 | BG161: 365 | BI161: 3353 | BJ161: 0 | BK161: 28 | BL161: 3325 | BM161: 38213
A162: 36 | B162: 201236 | C162: Ohio | D162: 11414635 | E162: 11414635 | F162: 9735390 | G162: 1440815 | H162: 196391 | I162: 3705 | J162: 2207 | K162: 4929 | L162: 884 | M162: 8995 | N162: 3180 | O162: 1355 | P162: 1079 | Q162: 985 | R162: 16366 | S162: 8052 | T162: 1198 | U162: 412 | V162: 9510 | W162: 13534 | X162: 1039 | Y162: 1166 | Z162: 13227 | AA162: 2214 | AB162: 1189 | AC162: 5026 | AD162: 2189 | AE162: 16336 | AF162: 1122 | AG162: 1017 | AH162: 3026 | AI162: 276 | AJ162: 1052 | AK162: 907 | AL162: 189 | AM162: 4703 | AN162: 1361 | AO162: 8732 | AP162: 5498 | AQ162: 453 | AR162: N/A | AS162: 858 | AT162: 432 | AU162: 14147 | AV162: 435 | AW162: 2445 | AX162: 47 | AY162: 3542 | AZ162: 11760 | BA162: 197 | BB162: 364 | BC162: 3193 | BD162: 2862 | BE162: 7820 | BF162: 974 | BG162: 202 | BI162: 42039 | BJ162: 1403 | BK162: 0 | BL162: 40636 | BM162: 196391
A163: 37 | B163: 201237 | C163: Oklahoma | D163: 3762311 | E163: 3762311 | F163: 3107367 | G163: 531347 | H163: 108972 | I163: 1030 | J163: 1279 | K163: 2974 | L163: 5777 | M163: 8950 | N163: 4717 | O163: 0 | P163: 380 | Q163: 151 | R163: 5011 | S163: 2581 | T163: 189 | U163: 905 | V163: 1100 | W163: 1490 | X163: 1088 | Y163: 7065 | Z163: 1354 | AA163: 2562 | AB163: 167 | AC163: 750 | AD163: 1233 | AE163: 1347 | AF163: 906 | AG163: 1850 | AH163: 5210 | AI163: 798 | AJ163: 300 | AK163: 1101 | AL163: 549 | AM163: 1523 | AN163: 1244 | AO163: 1981 | AP163: 1961 | AQ163: 308 | AR163: 1148 | AS163: N/A | AT163: 1261 | AU163: 494 | AV163: 0 | AW163: 569 | AX163: 108 | AY163: 2471 | AZ163: 25508 | BA163: 2588 | BB163: 197 | BC163: 1749 | BD163: 1574 | BE163: 368 | BF163: 1061 | BG163: 45 | BI163: 14625 | BJ163: 0 | BK163: 257 | BL163: 14368 | BM163: 108972
A164: 38 | B164: 201238 | C164: Oregon | D164: 3857465 | E164: 3857465 | F164: 3158450 | G164: 560673 | H164: 118925 | I164: 373 | J164: 2513 | K164: 7954 | L164: 165 | M164: 31862 | N164: 4472 | O164: 381 | P164: 0 | Q164: 696 | R164: 1660 | S164: 1032 | T164: 2501 | U164: 5093 | V164: 1676 | W164: 1380 | X164: 834 | Y164: 556 | Z164: 202 | AA164: 227 | AB164: 446 | AC164: 457 | AD164: 760 | AE164: 570 | AF164: 1792 | AG164: 186 | AH164: 403 | AI164: 2192 | AJ164: 570 | AK164: 5935 | AL164: 39 | AM164: 385 | AN164: 920 | AO164: 2379 | AP164: 1482 | AQ164: 42 | AR164: 1411 | AS164: 725 | AT164: N/A | AU164: 904 | AV164: 177 | AW164: 461 | AX164: 119 | AY164: 802 | AZ164: 3347 | BA164: 4793 | BB164: 367 | BC164: 676 | BD164: 21224 | BE164: 593 | BF164: 426 | BG164: 765 | BI164: 19417 | BJ164: 152 | BK164: 477 | BL164: 18788 | BM164: 118925
A165: 39 | B165: 201239 | C165: Pennsylvania | D165: 12630082 | E165: 12630082 | F165: 11107110 | G165: 1252378 | H165: 215500 | I165: 1926 | J165: 1658 | K165: 3529 | L165: 573 | M165: 7772 | N165: 2574 | O165: 3311 | P165: 4814 | Q165: 2921 | R165: 14631 | S165: 4337 | T165: 245 | U165: 359 | V165: 3749 | W165: 1599 | X165: 125 | Y165: 967 | Z165: 1233 | AA165: 694 | AB165: 988 | AC165: 17529 | AD165: 5900 | AE165: 2642 | AF165: 1169 | AG165: 55 | AH165: 1171 | AI165: 135 | AJ165: 214 | AK165: 1600 | AL165: 1138 | AM165: 33791 | AN165: 1001 | AO165: 32898 | AP165: 6380 | AQ165: 166 | AR165: 14319 | AS165: 378 | AT165: 234 | AU165: N/A | AV165: 771 | AW165: 3023 | AX165: 159 | AY165: 1273 | AZ165: 6768 | BA165: 1276 | BB165: 1012 | BC165: 11960 | BD165: 1787 | BE165: 6762 | BF165: 1550 | BG165: 434 | BI165: 55094 | BJ165: 7847 | BK165: 224 | BL165: 47023 | BM165: 215500
A166: 40 | B166: 201240 | C166: Rhode Island | D166: 1040527 | E166: 1040527 | F166: 899551 | G166: 101165 | H166: 33446 | I166: 20 | J166: 0 | K166: 93 | L166: 0 | M166: 2146 | N166: 332 | O166: 4170 | P166: 0 | Q166: 313 | R166: 2752 | S166: 168 | T166: 120 | U166: 0 | V166: 385 | W166: 0 | X166: 0 | Y166: 27 | Z166: 286 | AA166: 24 | AB166: 279 | AC166: 482 | AD166: 11253 | AE166: 230 | AF166: 131 | AG166: 0 | AH166: 210 | AI166: 0 | AJ166: 188 | AK166: 25 | AL166: 611 | AM166: 1219 | AN166: 36 | AO166: 3603 | AP166: 478 | AQ166: 0 | AR166: 63 | AS166: 0 | AT166: 139 | AU166: 735 | AV166: N/A | AW166: 481 | AX166: 0 | AY166: 120 | AZ166: 823 | BA166: 0 | BB166: 53 | BC166: 1008 | BD166: 287 | BE166: 0 | BF166: 135 | BG166: 21 | BI166: 6365 | BJ166: 116 | BK166: 0 | BL166: 6249 | BM166: 33446
A167: 41 | B167: 201241 | C167: South Carolina | D167: 4668886 | E167: 4668886 | F167: 3929626 | G167: 564350 | H167: 156705 | I167: 1665 | J167: 1244 | K167: 2222 | L167: 839 | M167: 5979 | N167: 1915 | O167: 1590 | P167: 697 | Q167: 435 | R167: 11552 | S167: 18570 | T167: 638 | U167: 198 | V167: 2125 | W167: 3802 | X167: 643 | Y167: 1064 | Z167: 1924 | AA167: 2709 | AB167: 2077 | AC167: 3565 | AD167: 2313 | AE167: 2966 | AF167: 757 | AG167: 1407 | AH167: 1884 | AI167: 93 | AJ167: 158 | AK167: 1025 | AL167: 917 | AM167: 6517 | AN167: 1052 | AO167: 10746 | AP167: 24764 | AQ167: 656 | AR167: 4388 | AS167: 555 | AT167: 255 | AU167: 6497 | AV167: 538 | AW167: N/A | AX167: 816 | AY167: 3550 | AZ167: 5351 | BA167: 566 | BB167: 298 | BC167: 9377 | BD167: 1629 | BE167: 1345 | BF167: 832 | BG167: 0 | BI167: 18205 | BJ167: 1070 | BK167: 0 | BL167: 17135 | BM167: 156705
A168: 42 | B168: 201242 | C168: South Dakota | D168: 821669 | E168: 821669 | F168: 676014 | G168: 115606 | H168: 26051 | I168: 0 | J168: 855 | K168: 435 | L168: 227 | M168: 1494 | N168: 1744 | O168: 2 | P168: 0 | Q168: 0 | R168: 970 | S168: 122 | T168: 8 | U168: 78 | V168: 74 | W168: 210 | X168: 2441 | Y168: 403 | Z168: 0 | AA168: 0 | AB168: 0 | AC168: 60 | AD168: 61 | AE168: 892 | AF168: 3568 | AG168: 34 | AH168: 474 | AI168: 248 | AJ168: 2175 | AK168: 135 | AL168: 0 | AM168: 0 | AN168: 175 | AO168: 371 | AP168: 240 | AQ168: 1725 | AR168: 64 | AS168: 21 | AT168: 667 | AU168: 515 | AV168: 0 | AW168: 158 | AX168: N/A | AY168: 507 | AZ168: 1715 | BA168: 388 | BB168: 5 | BC168: 340 | BD168: 1026 | BE168: 131 | BF168: 314 | BG168: 979 | BI168: 3998 | BJ168: 134 | BK168: 0 | BL168: 3864 | BM168: 26051
A169: 43 | B169: 201243 | C169: Tennessee | D169: 6378278 | E169: 6378278 | F169: 5396833 | G169: 783077 | H169: 177098 | I169: 12116 | J169: 1281 | K169: 2250 | L169: 3306 | M169: 8396 | N169: 2473 | O169: 936 | P169: 176 | Q169: 180 | R169: 15641 | S169: 16012 | T169: 1058 | U169: 787 | V169: 7094 | W169: 5591 | X169: 617 | Y169: 2630 | Z169: 13202 | AA169: 2452 | AB169: 1040 | AC169: 1743 | AD169: 1525 | AE169: 4507 | AF169: 1178 | AG169: 10568 | AH169: 2694 | AI169: 308 | AJ169: 432 | AK169: 735 | AL169: 271 | AM169: 783 | AN169: 751 | AO169: 6279 | AP169: 5904 | AQ169: 7 | AR169: 6200 | AS169: 2495 | AT169: 1080 | AU169: 3329 | AV169: 26 | AW169: 4300 | AX169: 0 | AY169: N/A | AZ169: 8716 | BA169: 784 | BB169: 133 | BC169: 8008 | BD169: 1876 | BE169: 3248 | BF169: 1622 | BG169: 358 | BI169: 21270 | BJ169: 717 | BK169: 28 | BL169: 20525 | BM169: 177098
A170: 44 | B170: 201244 | C170: Texas | D170: 25711791 | E170: 25711791 | F170: 21354247 | G170: 3656070 | H170: 507752 | I170: 9993 | J170: 6759 | K170: 18908 | L170: 13781 | M170: 62702 | N170: 16616 | O170: 2769 | P170: 181 | Q170: 1189 | R170: 31259 | S170: 20362 | T170: 5040 | U170: 2387 | V170: 19672 | W170: 8264 | X170: 4934 | Y170: 12699 | Z170: 6040 | AA170: 29348 | AB170: 1293 | AC170: 4969 | AD170: 4813 | AE170: 9501 | AF170: 2803 | AG170: 6402 | AH170: 12319 | AI170: 1813 | AJ170: 4794 | AK170: 8266 | AL170: 761 | AM170: 6797 | AN170: 16762 | AO170: 20274 | AP170: 22660 | AQ170: 989 | AR170: 8728 | AS170: 26284 | AT170: 3827 | AU170: 10449 | AV170: 1763 | AW170: 4470 | AX170: 1264 | AY170: 10368 | AZ170: N/A | BA170: 4610 | BB170: 113 | BC170: 17734 | BD170: 11630 | BE170: 1729 | BF170: 4192 | BG170: 2472 | BI170: 193722 | BJ170: 4435 | BK170: 1455 | BL170: 187832 | BM170: 507752
A171: 45 | B171: 201245 | C171: Utah | D171: 2805440 | E171: 2805440 | F171: 2324019 | G171: 373980 | H171: 87870 | I171: 126 | J171: 2819 | K171: 7966 | L171: 361 | M171: 15286 | N171: 5350 | O171: 142 | P171: 0 | Q171: 0 | R171: 2428 | S171: 1142 | T171: 1436 | U171: 5129 | V171: 1588 | W171: 475 | X171: 2791 | Y171: 398 | Z171: 217 | AA171: 345 | AB171: 380 | AC171: 613 | AD171: 1503 | AE171: 1670 | AF171: 385 | AG171: 284 | AH171: 1553 | AI171: 1057 | AJ171: 489 | AK171: 5391 | AL171: 507 | AM171: 437 | AN171: 686 | AO171: 2129 | AP171: 842 | AQ171: 175 | AR171: 1875 | AS171: 1338 | AT171: 4089 | AU171: 944 | AV171: 351 | AW171: 60 | AX171: 47 | AY171: 863 | AZ171: 3605 | BA171: N/A | BB171: 39 | BC171: 1369 | BD171: 3529 | BE171: 0 | BF171: 1445 | BG171: 2216 | BI171: 19571 | BJ171: 239 | BK171: 0 | BL171: 19332 | BM171: 87870
A172: 46 | B172: 201246 | C172: Vermont | D172: 620224 | E172: 620224 | F172: 532237 | G172: 61242 | H172: 24431 | I172: 16 | J172: 93 | K172: 127 | L172: 0 | M172: 1112 | N172: 382 | O172: 1626 | P172: 0 | Q172: 116 | R172: 966 | S172: 56 | T172: 6 | U172: 0 | V172: 230 | W172: 68 | X172: 30 | Y172: 0 | Z172: 1243 | AA172: 73 | AB172: 883 | AC172: 862 | AD172: 3318 | AE172: 284 | AF172: 315 | AG172: 0 | AH172: 23 | AI172: 147 | AJ172: 0 | AK172: 17 | AL172: 2893 | AM172: 833 | AN172: 74 | AO172: 4780 | AP172: 328 | AQ172: 0 | AR172: 214 | AS172: 11 | AT172: 26 | AU172: 935 | AV172: 341 | AW172: 124 | AX172: 39 | AY172: 193 | AZ172: 493 | BA172: 81 | BB172: N/A | BC172: 728 | BD172: 98 | BE172: 0 | BF172: 151 | BG172: 96 | BI172: 2314 | BJ172: 0 | BK172: 45 | BL172: 2269 | BM172: 24431
